Workbook

Sheet Start
B3: Section | C3: Contents
B4: A | C4: Grid emissions factors
B5: B | C5: Operating margin emissions factors | D5: 2017 | E5: 2016 | F5: 2015 | G5: 2014 | H5: 2013 | I5: 2012 | J5: 2011 | K5: 2010 | L5: 2009 | M5: 2008
B6: C | C6: Build margin emissions factors | D6: 2017 | K6: 2010
B7: D | C7: Greenhouse gas emissions reductions
C8: Greenhouse gas emissions reductions - combined cycle
B9: E | C9: Scenarios
C10: Current electricity demand
C11: Nationally determined contribution
C12: 100% renewables
C13: Graphs
B14: F | C14: Others
C15: Natural gas upstream emissions factor
C16: Plant/unit emissions factors 2008
C17: References
B18: G | C18: Investment
B20: H | C20: Levelized Cost

Sheet Grid-EF
C3: Grid emissions factors
C5: Historic grid emissions factors (2008 - 2017)
C7: Description | D7: Parameter | E7: Units | F7: 2008 | G7: 2009 | H7: 2010 | I7: 2011 | J7: 2012 | K7: 2013 | L7: 2014 | M7: 2015 | N7: 2016 | O7: 2017
C8: Electricity generation in year y | D8: EGy | E8: [MWh] | F8: =+OM_EF_2008!$C$6 -> 5360464.509 | G8: =+OM_EF_2009!$C$6 -> 5632658.087 | H8: =+OM_EF_2010!$C$6 -> 6085440.865 | I8: =+OM_EF_2011!$C$6 -> 6592941.533 | J8: =+OM_EF_2012!$C$6 -> 6861925.926 | K8: =+OM_EF_2013!$C$6 -> 7286833.036 | L8: =+OM_EF_2014!$C$6 -> 7743488.703 | M8: =+OM_EF_2015!$C$6 -> 8248316.823 | N8: =+OM_EF_2016!$C$6 -> 8669522.259 | O8: =+OM_EF_2017!$C$6 -> 8891442.873
C9: Average operating margin emissions factor in year y | D9: EFgrid,OM-ave,y | E9: [tCO2/MWh] | F9: =+OM_EF_2008!$C$12 -> 0.3405372558 | G9: =+OM_EF_2009!$C$17 -> 0.3583690552 | H9: =+OM_EF_2010!$C$17 -> 0.3890598651 | I9: =+OM_EF_2011!$C$17 -> 0.3888163639 | J9: =+OM_EF_2012!$C$17 -> 0.4106149992 | K9: =+OM_EF_2013!$C$17 -> 0.3813337486 | L9: =+OM_EF_2014!$C$17 -> 0.4167390497 | M9: =+OM_EF_2015!$C$17 -> 0.3978991486 | N9: =+OM_EF_2016!$C$17 -> 0.4645598991 | O9: =+OM_EF_2017!$C$17 -> 0.4226139263
C10: Operating margin emissions factor in year y | D10: EFgrid,OM,y | E10: [tCO2/MWh] | H10: =+(F8*F9+G8*G9+H8*H9)/SUM(F8:H8) -> 0.363707934
C11: Build margin emissions factor in year y | D11: EFgrid,BM,y | E11: [tCO2/MWh] | H11: =+BM_EF_2010!I13 -> 0.5526805008
C12: Combined margin emissions factor in year y (wind and solar) | D12: EFgrid,CM,y | E12: [tCO2/MWh] | H12: =+H10*$E$17+H11*$E$18 -> 0.4109510757
C13: Combined margin emissions factor in year y (other) | D13: EFgrid,CM,y | E13: [tCO2/MWh] | H13: =+H10*$E$20+H11*$E$21 -> 0.4581942174
C15: Weights for calculating the combined margin emissions factor
C16: Wind and solar
C17: Weight of operating margin | D17: wOM | E17: 0.75
C18: Weight of build margin | D18: wBM | E18: 0.25
C19: Other than wind and solar
C20: Weight of operating margin | D20: wOM | E20: 0.5
C21: Weight of build margin | D21: wBM | E21: 0.5
C23: Grid emissions factors under the scenario with current electricity demand (2008 - 2030)
C25: Description | D25: Parameter | E25: Units | F25: 2008 | G25: 2009 | H25: 2010 | I25: 2011 | J25: 2012 | K25: 2013 | L25: 2014 | M25: 2015 | N25: 2016 | O25: 2017 | P25: 2018 | Q25: 2019 | R25: 2020 | S25: 2021 | T25: 2022 | U25: 2023 | V25: 2024 | W25: 2025 | X25: 2026 | Y25: 2027 | Z25: 2028 | AA25: 2029 | AB25: 2030
C26: Electricity generation in year y | D26: EGy | E26: [MWh] | F26: =+OM_EF_2008!$C$6 -> 5360464.509 | G26: =+OM_EF_2009!$C$6 -> 5632658.087 | H26: =+OM_EF_2010!$C$6 -> 6085440.865 | I26: =+OM_EF_2011!$C$6 -> 6592941.533 | J26: =+OM_EF_2012!$C$6 -> 6861925.926 | K26: =+OM_EF_2013!$C$6 -> 7286833.036 | L26: =+OM_EF_2014!$C$6 -> 7743488.703 | M26: =+OM_EF_2015!$C$6 -> 8248316.823 | N26: =+OM_EF_2016!$C$6 -> 8669522.259 | O26: =+OM_EF_2017!$C$6 -> 8891442.873 | P26: =+Scenario_Current_Demand!O12 -> 9475504.271 | Q26: =+Scenario_Current_Demand!P12 -> 10272543 | R26: =+Scenario_Current_Demand!Q12 -> 11094235.45 | S26: =+Scenario_Current_Demand!R12 -> 12258198.97 | T26: =+Scenario_Current_Demand!S12 -> 13030525.04 | U26: =+Scenario_Current_Demand!T12 -> 13845837.54 | V26: =+Scenario_Current_Demand!U12 -> 14707379.21 | W26: =+Scenario_Current_Demand!V12 -> 15617618.79 | X26: =+Scenario_Current_Demand!W12 -> 16579097.96 | Y26: =+Scenario_Current_Demand!X12 -> 17594545.87 | Z26: =+Scenario_Current_Demand!Y12 -> 18666816.71 | AA26: =+Scenario_Current_Demand!Z12 -> 19798900.04 | AB26: =+Scenario_Current_Demand!AA12 -> 20993983.37
C27: Average operating margin emissions factor in year y | D27: EFgrid,OM-ave,y | E27: [tCO2/MWh] | F27: =+OM_EF_2008!$C$12 -> 0.3405372558 | G27: =+OM_EF_2009!$C$17 -> 0.3583690552 | H27: =+OM_EF_2010!$C$17 -> 0.3890598651 | I27: =+OM_EF_2011!$C$17 -> 0.3888163639 | J27: =+OM_EF_2012!$C$17 -> 0.4106149992 | K27: =+OM_EF_2013!$C$17 -> 0.3813337486 | L27: =+OM_EF_2014!$C$17 -> 0.4167390497 | M27: =+OM_EF_2015!$C$17 -> 0.3978991486 | N27: =+OM_EF_2016!$C$17 -> 0.4645598991 | O27: =+OM_EF_2017!$C$17 -> 0.4226139263 | P27: =+Scenario_Current_Demand!O20 -> 0.3792246808 | Q27: =+Scenario_Current_Demand!P20 -> 0.2522041697 | R27: =+Scenario_Current_Demand!Q20 -> 0.2424608037 | S27: =+Scenario_Current_Demand!R20 -> 0.1839833028 | T27: =+Scenario_Current_Demand!S20 -> 0.1957025305 | U27: =+Scenario_Current_Demand!T20 -> 0.2066554485 | V27: =+Scenario_Current_Demand!U20 -> 0.2169098105 | W27: =+Scenario_Current_Demand!V20 -> 0.2270607547 | X27: =+Scenario_Current_Demand!W20 -> 0.2431023646 | Y27: =+Scenario_Current_Demand!X20 -> 0.262591435 | Z27: =+Scenario_Current_Demand!Y20 -> 0.2841195682 | AA27: =+Scenario_Current_Demand!Z20 -> 0.2691890899 | AB27: =+Scenario_Current_Demand!AA20 -> 0.2784885348
C29: Grid emissions factors under the nationally determined contribution (2008 - 2030)
C31: Description | D31: Parameter | E31: Units | F31: 2008 | G31: 2009 | H31: 2010 | I31: 2011 | J31: 2012 | K31: 2013 | L31: 2014 | M31: 2015 | N31: 2016 | O31: 2017 | P31: 2018 | Q31: 2019 | R31: 2020 | S31: 2021 | T31: 2022 | U31: 2023 | V31: 2024 | W31: 2025 | X31: 2026 | Y31: 2027 | Z31: 2028 | AA31: 2029 | AB31: 2030
C32: Electricity generation in year y | D32: EGy | E32: [MWh] | F32: =+OM_EF_2008!$C$6 -> 5360464.509 | G32: =+OM_EF_2009!$C$6 -> 5632658.087 | H32: =+OM_EF_2010!$C$6 -> 6085440.865 | I32: =+OM_EF_2011!$C$6 -> 6592941.533 | J32: =+OM_EF_2012!$C$6 -> 6861925.926 | K32: =+OM_EF_2013!$C$6 -> 7286833.036 | L32: =+OM_EF_2014!$C$6 -> 7743488.703 | M32: =+OM_EF_2015!$C$6 -> 8248316.823 | N32: =+OM_EF_2016!$C$6 -> 8669522.259 | O32: =+OM_EF_2017!$C$6 -> 8891442.873 | P32: =+Scenario_NDC!O38 -> 9549855.457 | Q32: =+Scenario_NDC!P38 -> 12726694.19 | R32: =+Scenario_NDC!Q38 -> 20759867.12 | S32: =+Scenario_NDC!R38 -> 23042112.01 | T32: =+Scenario_NDC!S38 -> 23042112.01 | U32: =+Scenario_NDC!T38 -> 23786712.01 | V32: =+Scenario_NDC!U38 -> 23786712.01 | W32: =+Scenario_NDC!V38 -> 29883672.01 | X32: =+Scenario_NDC!W38 -> 29883672.01 | Y32: =+Scenario_NDC!X38 -> 29883672.01 | Z32: =+Scenario_NDC!Y38 -> 29883672.01 | AA32: =+Scenario_NDC!Z38 -> 51889185.61 | AB32: =+Scenario_NDC!AA38 -> 60514281.61
C33: Average operating margin emissions factor in year y | D33: EFgrid,OM-ave,y | E33: [tCO2/MWh] | F33: =+OM_EF_2008!$C$12 -> 0.3405372558 | G33: =+OM_EF_2009!$C$17 -> 0.3583690552 | H33: =+OM_EF_2010!$C$17 -> 0.3890598651 | I33: =+OM_EF_2011!$C$17 -> 0.3888163639 | J33: =+OM_EF_2012!$C$17 -> 0.4106149992 | K33: =+OM_EF_2013!$C$17 -> 0.3813337486 | L33: =+OM_EF_2014!$C$17 -> 0.4167390497 | M33: =+OM_EF_2015!$C$17 -> 0.3978991486 | N33: =+OM_EF_2016!$C$17 -> 0.4645598991 | O33: =+OM_EF_2017!$C$17 -> 0.4226139263 | P33: =+Scenario_NDC!O47 -> 0.3821132477 | Q33: =+Scenario_NDC!P47 -> 0.3689991138 | R33: =+Scenario_NDC!Q47 -> 0.3206835065 | S33: =+Scenario_NDC!R47 -> 0.2882952738 | T33: =+Scenario_NDC!S47 -> 0.2882952738 | U33: =+Scenario_NDC!T47 -> 0.2792707116 | V33: =+Scenario_NDC!U47 -> 0.2792707116 | W33: =+Scenario_NDC!V47 -> 0.2222930297 | X33: =+Scenario_NDC!W47 -> 0.2222930297 | Y33: =+Scenario_NDC!X47 -> 0.2222930297 | Z33: =+Scenario_NDC!Y47 -> 0.2222930297 | AA33: =+Scenario_NDC!Z47 -> 0.1280215118 | AB33: =+Scenario_NDC!AA47 -> 0.1097746154
C35: Grid emissions factors under a scenario with 100% renewable energy generation (2008 - 2030)
C37: Description | D37: Parameter | E37: Units | F37: 2008 | G37: 2009 | H37: 2010 | I37: 2011 | J37: 2012 | K37: 2013 | L37: 2014 | M37: 2015 | N37: 2016 | O37: 2017 | P37: 2018 | Q37: 2019 | R37: 2020 | S37: 2021 | T37: 2022 | U37: 2023 | V37: 2024 | W37: 2025 | X37: 2026 | Y37: 2027 | Z37: 2028 | AA37: 2029 | AB37: 2030
C38: Electricity generation in year y | D38: EGy | E38: [MWh] | F38: =+OM_EF_2008!$C$6 -> 5360464.509 | G38: =+OM_EF_2009!$C$6 -> 5632658.087 | H38: =+OM_EF_2010!$C$6 -> 6085440.865 | I38: =+OM_EF_2011!$C$6 -> 6592941.533 | J38: =+OM_EF_2012!$C$6 -> 6861925.926 | K38: =+OM_EF_2013!$C$6 -> 7286833.036 | L38: =+OM_EF_2014!$C$6 -> 7743488.703 | M38: =+OM_EF_2015!$C$6 -> 8248316.823 | N38: =+OM_EF_2016!$C$6 -> 8669522.259 | O38: =+OM_EF_2017!$C$6 -> 8891442.873 | P38: =+'Scenario_100%_RE'!O38 -> 9549855.457 | Q38: =+'Scenario_100%_RE'!P38 -> 10217479.79 | R38: =+'Scenario_100%_RE'!Q38 -> 12491293.39 | S38: =+'Scenario_100%_RE'!R38 -> 14744424.48 | T38: =+'Scenario_100%_RE'!S38 -> 14776852.15 | U38: =+'Scenario_100%_RE'!T38 -> 15509538.3 | V38: =+'Scenario_100%_RE'!U38 -> 15506671.65 | W38: =+'Scenario_100%_RE'!V38 -> 19215526.63 | X38: =+'Scenario_100%_RE'!W38 -> 19212560.59 | Y38: =+'Scenario_100%_RE'!X38 -> 19212577.15 | Z38: =+'Scenario_100%_RE'!Y38 -> 19213554.79 | AA38: =+'Scenario_100%_RE'!Z38 -> 37975048.19 | AB38: =+'Scenario_100%_RE'!AA38 -> 46600144.19
C39: Average operating margin emissions factor in year y | D39: EFgrid,OM-ave,y | E39: [tCO2/MWh] | F39: =+OM_EF_2008!$C$12 -> 0.3405372558 | G39: =+OM_EF_2009!$C$17 -> 0.3583690552 | H39: =+OM_EF_2010!$C$17 -> 0.3890598651 | I39: =+OM_EF_2011!$C$17 -> 0.3888163639 | J39: =+OM_EF_2012!$C$17 -> 0.4106149992 | K39: =+OM_EF_2013!$C$17 -> 0.3813337486 | L39: =+OM_EF_2014!$C$17 -> 0.4167390497 | M39: =+OM_EF_2015!$C$17 -> 0.3978991486 | N39: =+OM_EF_2016!$C$17 -> 0.4645598991 | O39: =+OM_EF_2017!$C$17 -> 0.4226139263 | P39: =+'Scenario_100%_RE'!O47 -> 0.3821132477 | Q39: =+'Scenario_100%_RE'!P47 -> 0.3658781372 | R39: =+'Scenario_100%_RE'!Q47 -> 0.2505980506 | S39: =+'Scenario_100%_RE'!R47 -> 0.2102619979 | T39: =+'Scenario_100%_RE'!S47 -> 0.2109838813 | U39: =+'Scenario_100%_RE'!T47 -> 0.2006023297 | V39: =+'Scenario_100%_RE'!U47 -> 0.2005399031 | W39: =+'Scenario_100%_RE'!V47 -> 0.08936267742 | X39: =+'Scenario_100%_RE'!W47 -> 0.08929319848 | Y39: =+'Scenario_100%_RE'!X47 -> 0.08929361452 | Z39: =+'Scenario_100%_RE'!Y47 -> 0.08931649918 | AA39: =+'Scenario_100%_RE'!Z47 -> 0 | AB39: =+'Scenario_100%_RE'!AA47 -> 0

Sheet OM_EF_2017
B3: Operating margin emissions factor | D3: 2017
B6: Total generation | C6: =+C7+C9 -> 8891442.873
B7: Renewable energy [MWh] | C7: =+C90+C162+C170+C176 -> 2335360.384
B8: Renewable energy [%] | C8: =+C7/C6 -> 0.262652577
B9: Fossil fuels [MWh] | C9: =+C22 -> 6556082.49
B10: Fossil fuels [%] | C10: =+C9/C6 -> 0.737347423
B12: Constants and conversion factors
B13: Conversion factor [BTU - kWh] | C13: 3412.14
B14: Emission factor natural gas [tCO2/GJ] | C14: 0.0561
B15: Conversion factor [GJ - MWh] | C15: 3.6
B17: EFgrid,OM-ave,2010 [tCO2/MWh] | C17: =+H22/C6 -> 0.4226139263
B19: EFgrid,OM-ave,2010 [tCO2/MWh] | C19: =+H22/C9 -> 0.5731544088
B21: Plant Unit | C21: Generation [MWh] | D21: Capacity [MW] | E21: Heat rate [BTU/kWh] | F21: Efficiency [%] | G21: Emission factor [tCO2/MWh] | H21: GHG emissions [tCO2]
B22: Natural gas | C22: =SUM(C23:C87) -> 6556082.49 | D22: =SUM(D23:D87) -> 1419.74 | H22: =SUM(H23:H87) -> 3757647.583
B23: El Alto | H23: =+G23*C23 -> 0
B24: ALT1 | C24: 49236.5229 | D24: 17.5 | E24: 9534 | F24: =1/(E24/$C$13) -> 0.3578917558 | G24: =+$C$14*$C$15/F24 -> 0.5643047003 | H24: =+G24*C24 -> 27784.4013
B25: ALT2 | C25: 148687.6958 | D25: 32.4 | E25: 8354 | F25: =1/(E25/$C$13) -> 0.4084438592 | G25: =+$C$14*$C$15/F25 -> 0.4944620795 | H25: =+G25*C25 -> 73520.42726
B26: Aranjuez | H26: =+G26*C26 -> 0
B27: ARJ1 | C27: 511.0025 | D27: 3 | E27: 10201 | F27: =1/(E27/$C$13) -> 0.3344907362 | G27: =+$C$14*$C$15/F27 -> 0.6037835376 | H27: =+G27*C27 -> 308.5348972
B28: ARJ2 | C28: 148.1945 | D28: 3 | E28: 10201 | F28: =1/(E28/$C$13) -> 0.3344907362 | G28: =+$C$14*$C$15/F28 -> 0.6037835376 | H28: =+G28*C28 -> 89.47739946
B29: ARJ3 | C29: 740.5125 | D29: 3 | E29: 10201 | F29: 0.3344907362 | G29: 0.6037835376 | H29: 447.1092569
B30: ARJ8 | C30: 139685.16 | D30: 18 | E30: 11497 | F30: 0.2967852483 | G30: 0.6804920431 | H30: 95054.63992
B31: ARJ9 | C31: 697.12325 | D31: 2 | E31: 9050 | F31: 0.3770320442 | G31: 0.535657388 | H31: 373.4192192
B32: ARJ10 | D32: 2 | E32: 9050 | F32: 0.3770320442 | G32: 0.535657388 | H32: 0
B33: ARJ11 | C33: 657.711895 | D33: 2 | E33: 9050 | F33: 0.3770320442 | G33: 0.535657388 | H33: 352.3082358
B34: ARJ12 | C34: 0 | D34: 2 | E34: 9050 | F34: 0.3770320442 | G34: 0.535657388 | H34: 0
B35: ARJ13 | C35: 0 | D35: 2 | E35: 9050 | F35: 0.3770320442 | G35: 0.535657388 | H35: 0
B36: ARJ14 | C36: 0 | D36: 2 | E36: 9050 | F36: 0.3770320442 | G36: 0.535657388 | H36: 0
B37: ARJ15 | C37: 474.077 | D37: 2 | E37: 9050 | F37: 0.3770320442 | G37: 0.535657388 | H37: 253.9428475
B38: Bulo Bulo | H38: =+G38*C38 -> 0
B39: BUL1 | C39: 237695.821 | D39: 45 | E39: 9004 | F39: 0.3789582408 | G39: 0.5329347096 | H39: =+G39*C39 -> 126676.3533
B40: BUL2 | C40: 77027.986 | D40: 45 | E40: 9061 | F40: 0.3765743295 | G40: 0.5363084633 | H40: 41310.7608
B41: BUL3 | C41: 239710.459 | D41: 49.02 | E41: 8814 | F41: 0.3871272975 | G41: 0.5216888639 | H41: 125054.277
B42: Carrasco | C42: 552699.29 | E42: =SUMPRODUCT(D43:D45,E43:E45)/SUM(D43:D45) -> 10250.72141 | F42: =1/(E42/$C$13) -> 0.3328682796 | G42: 0.6067264812 | H42: =+G42*C42 -> 335337.2954
B43: CAR1 | D43: 56 | E43: 10018 | F43: 0.3406009183 | G43: 0.5929520125
B44: CAR2 | D44: 56 | E44: 10821 | F44: 0.3153257555 | G44: 0.6404805078
B45: CAR3 | D45: 24.4 | E45: 9476 | F45: 0.3600823132 | G45: 0.5608717579 | H45: =+G45*C45 -> 0
B46: Entre Ríos | H46: =+G46*C46 -> 0
B47: ERI01 | C47: 36192 | D47: 23 | E47: 10006 | F47: 0.3410093944 | G47: 0.5922417486 | H47: =+G47*C47 -> 21434.41336
B48: ERI02 | C48: 52744 | D48: 23 | E48: 9997 | F48: 0.3413163949 | G48: 0.5917090506 | H48: 31209.10217
B49: ERI03 | C49: 60409 | D49: 25 | E49: 9998 | F49: 0.3412822565 | G49: 0.5917682393 | H49: 35748.12757
B50: ERI04 | C50: 46175 | D50: 25 | E50: 10087 | F50: 0.3382710419 | G50: 0.5970360302 | H50: 27568.13869
B51: Guaracachi | H51: =+G51*C51 -> 0
B52: GCH1 | C52: 41459.7 | D52: 22 | E52: 11971 | F52: 0.2850338318 | G52: 0.7085474687 | H52: =+G52*C52 -> 29376.16549
B53: GCH2 | C53: 20603.04 | D53: 20 | E53: 12595 | F53: 0.2709122668 | G53: 0.7454811936 | H53: 15359.17885
B54: GCH4 | C54: 24144.996 | D54: 20 | E54: 12834 | F54: 0.2658672277 | G54: 0.7596272838 | H54: 18341.19773
B55: GCH6 | C55: 47740.185 | D55: 21 | E55: 12644 | F55: 0.2698623853 | G55: 0.748381438 | H55: 35727.8683
B56: GCH9 | C56: 381288.42 | D56: 63 | E56: 10070 | F56: 0.3388421053 | G56: 0.5960298229 | H56: 227259.2695
B57: GCH10 | C57: 365210.388 | D57: 63 | E57: 10070 | F57: 0.3388421053 | G57: 0.5960298229 | H57: 217676.2829
B58: GCH11 | C58: 149744.4793 | D58: 63 | E58: 10070 | F58: 0.3388421053 | G58: 0.5960298229 | H58: 89252.17545
B59: GCH12 | C59: 361213.692 | D59: 96 | E59: 7211 | F59: 0.4731854112 | G59: 0.4268094392 | H59: 154169.4133
B60: Karachipampa | H60: =+G60*C60 -> 0
B61: KAR1 | C61: 41016.303 | D61: 14 | E61: 11860 | F61: 0.2877015177 | G61: 0.7019775273 | H61: =+G61*C61 -> 28792.52296
B62: Kenko | H62: =+G62*C62 -> 0
B63: KEN1 | C63: 18.81 | D63: 9 | E63: 12074 | F63: 0.2826022859 | G63: 0.7146439009 | H63: =+G63*C63 -> 13.44245178
B64: KEN2 | C64: 14455.24559 | D64: 9 | E64: 11982 | F64: 0.2847721582 | G64: 0.709198544 | H64: 10251.63913
B65: Santa Cruz | H65: =+G65*C65 -> 0
B66: SCZ1 | C66: 77133.69 | D66: 22 | E66: 11850 | F66: 0.2879443038 | G66: 0.7013856407 | H66: =+G66*C66 -> 54100.46258
B67: SCZ2 | C67: 64466.46 | D67: 22 | E67: 11672 | F67: 0.2923355038 | G67: 0.6908500589 | H67: 44536.65769
B68: Del Sur | H68: =+G68*C68 -> 0
B69: SUR01 | C69: 321801.0224 | D69: 43.83 | E69: 9348 | F69: 0.365012837 | G69: 0.5532956092 | H69: =+G69*C69 -> 178051.0928
B70: SUR02 | C70: 283832.3403 | D70: 43.31 | E70: 9394 | F70: 0.3632254631 | G70: 0.5560182876 | H70: 157815.9718
B71: SUR03 | C71: 326287.4248 | D71: 44.16 | E71: 9304 | F71: 0.366739037 | G71: 0.5506913081 | H71: 179683.6488
B72: SUR04 | C72: 335050.7928 | D72: 44.06 | E72: 9298 | F72: 0.3669756937 | G72: 0.5503361761 | H72: 184390.5721
B73: Valle Hermoso (VHE) | C73: 498992.928 | E73: =SUMPRODUCT(D74:D81,E74:E81)/SUM(D74:D81) -> 11851.5458 | F73: 0.2879067472 | G73: 0.7014771344 | H73: =+G73*C73 -> 350032.1292
B74: VHE1 | D74: 18.52 | E74: 13046 | F74: 0.2615468343 | G74: 0.77217528 | H74: =+G74*C74 -> 0
B75: VHE2 | D75: 18.81 | E75: 11755 | F75: 0.2902713739 | G75: 0.6957627178 | H75: 0
B76: VHE3 | D76: 18.32 | E76: 12379 | F76: 0.2756393893 | G76: 0.7326964427 | H76: 0
B77: VHE4 | D77: 18.63 | E77: 13011 | F77: 0.2622504035 | G77: 0.7701036769 | H77: 0
B78: VHE5 | D78: 10.58 | E78: 10575 | F78: 0.3226609929 | G78: 0.6259200971 | H78: 0
B79: VHE6 | D79: 10.58 | E79: 10625 | F79: 0.3211425882 | G79: 0.6288795301 | H79: 0
B80: VHE7 | D80: 10.58 | E80: 10662 | F80: 0.3200281373 | G80: 0.6310695106 | H80: 0
B81: VHE8 | D81: 10.58 | E81: 10670 | F81: 0.3197881912 | G81: 0.6315430199 | H81: 0
B82: Warnes | H82: =+G82*C82 -> 0
B83: WAR01 | C83: 341340.336 | D83: 44.58 | E83: 9039 | F83: 0.3774908729 | G83: 0.5350063128 | H83: =+G83*C83 -> 182619.2346
B84: WAR02 | C84: 232234.96 | D84: 44 | E84: 9124 | F84: 0.3739741342 | G84: 0.540037349 | H84: 125415.5521
B85: WAR03 | C85: 332215.632 | D85: 44.33 | E85: 9122 | F85: 0.374056128 | G85: 0.5399189717 | H85: 179369.5224
B86: WAR04 | C86: 319457.856 | D86: 44.55 | E86: 9134 | F86: 0.3735647033 | G86: 0.5406292356 | H86: 172708.2565
B87: WAR05 | C87: 332882.232 | D87: 44 | E87: 9145 | F87: =1/(E87/$C$13) -> 0.3731153636 | G87: =+$C$14*$C$15/F87 -> 0.5412803109 | H87: 180182.598
B89: Plant Unit | C89: Generation [MWh] | D89: Capacity [MW]
B90: Hydropower | C90: =SUM(C91:C159) -> 2229863.901 | D90: =SUM(D91:D159) -> 609.87
B91: Angostura
B92: ANG1 | C92: 7068.212 | D92: 2.22
B93: ANG2 | C93: 3531.556 | D93: 1.27
B94: ANG3 | C94: 6833.087 | D94: 2.74
B95: Botijlaca
B96: BOT1 | C96: 8563.441 | D96: 1.9
B97: BOT2 | C97: 6239.618 | D97: 1.47
B98: BOT3 | C98: 20402.677 | D98: 3.44
B99: Cahua
B100: CAH1 | C100: 85854.238 | D100: 13.65
B101: CAH2 | C101: 83617.593 | D101: 14.36
B102: Carabuco
B103: CRB | C103: 41074.045 | D103: 6.13
B104: Chojlla
B105: CHJ1y2 | C105: 0
B106: CHJ | C106: 127227.77 | D106: 38.4
B107: Choquetanga
B108: CHO1 | C108: 10812.362 | D108: 1.91
B109: CHO2 | C109: 13785.388 | D109: 2.45
B110: CHO3 | C110: 10677.777 | D110: 1.84
B111: Chururaqui
B112: CHU1 | C112: 68171.012 | D112: 13.18
B113: CHU2 | C113: 66329.928 | D113: 12.21
B114: Corani
B115: COR1234 | C115: 284284.711 | D115: 64.32
B116: Cuticucho
B117: CUT1 | C117: 9498.882 | D117: 2.5
B118: CUT2 | C118: 9023.669 | D118: 2.38
B119: CUT3 | C119: 8865.554 | D119: 2.3
B120: CUT4 | C120: 4531.527 | D120: 1.49
B121: CUT5 | C121: 96164.228 | D121: 14.3
B122: Harca
B123: HAR1 | C123: 79535.855 | D123: 13.53
B124: HAR2 | C124: 81530.162 | D124: 12.3
B125: Huaji
B126: HUA1 | C126: 91011.157 | D126: 15.1
B127: HUA2 | C127: 99447.379 | D127: 15.05
B128: Kanata
B129: KAN1 | C129: 10963.13 | D129: 7.54
B130: Kilpani
B131: KIL123 | C131: 31306.787 | D131: 11.49
B132: Landara
B133: LAN123 | C133: 14473.442 | D133: 5.15
B134: Miguilla
B135: MIG1 | C135: 4191.576 | D135: 1.31
B136: MIG2 | C136: 4038.616 | D136: 1.24
B137: Misicuni
B138: MIS | C138: 11172.226 | D138: 120
B139: Punutuma
B140: PUN1 | C140: 15005.555 | D140: 2.4
B141: Quehata
B142: QUE01 | C142: 3547 | D142: 0.98
B143: QUE02 | C143: 3707.2 | D143: 0.98
B144: Sainani
B145: SAI1 | C145: 69211.265 | D145: 10.5
B146: San Jacinto
B147: SJA01 | C147: 9940.8974 | D147: 3.8
B148: SJA02 | C148: 10262.133 | D148: 3.8
B149: Santa Isabel
B150: SIS12345 | C150: 431404.268 | D150: 91.1
B151: Santa Rosa
B152: SRO1 | C152: 38544.048 | D152: 6.9
B153: SRO2 | C153: 47225.398 | D153: 10.69
B154: Tiquimani
B155: TIQ1 | C155: 11241.979 | D155: 9.72
B156: Yanacachi
B157: YAN | C157: 179334.131 | D157: 50.79
B158: Zongo
B159: ZON1 | C159: 10212.422 | D159: 11.04
B161: Plant Unit | C161: Generation [MWh/y] | D161: Capacity [MW]
B162: Biomass | C162: =+SUM(C163:C167) -> 44047.567 | D162: =SUM(D164:D167) -> 40.57
B163: Guabirá
B164: GBE1 | C164: 29748 | D164: 21
B165: IAG01 | C165: 3137 | D165: 5
B166: Santa Cruz
B167: UNA01 | C167: 11162.567 | D167: 14.57
B169: Plant Unit | C169: Generation [MWh/y] | D169: Capacity [MW]
B170: Wind | C170: =+SUM(C171:C173) -> 60383.279 | D170: =SUM(D171:D173) -> 27
B171: Qollpana | D171: 27
B172: QOL Fase I | C172: 12488.579
B173: QOL Fase II | C173: 47894.7
B175: Plant Unit | C175: Generation [MWh/y] | D175: Capacity [MW]
B176: Solar PV | C176: =+SUM(C177:C178) -> 1065.63625 | D176: =SUM(D177:D178) -> 5
B177: Yunchara
B178: YUN | C178: 1065.63625 | D178: 5

Sheet OM_EF_2016
B3: Operating margin emissions factor | D3: 2016
B6: Total generation | C6: =+C7+C9 -> 8669522.259
B7: Renewable energy [MWh] | C7: =+C91+C161+C168 -> 1811708.955
B8: Renewable energy [%] | C8: =+C7/C6 -> 0.2089744857
B9: Fossil fuels [MWh] | C9: =+C23 -> 6857813.304
B10: Fossil fuels [%] | C10: =+C9/C6 -> 0.7910255143
B12: Constants and conversion factors
B13: Conversion factor [BTU - kWh] | C13: 3412.14
B14: Emission factor natural gas [tCO2/GJ] | C14: 0.0561
B15: Conversion factor [GJ - MWh] | C15: 3.6
B17: EFgrid,OM-ave,2010 [tCO2/MWh] | C17: =+H23/C6 -> 0.4645598991
B19: EFgrid,OM-ave,2010 [tCO2/MWh] | C19: =+H23/C9 -> 0.5872881351
B22: Plant Unit | C22: Generation [MWh] | D22: Capacity [MW] | E22: Heat rate [BTU/kWh] | F22: Efficiency [%] | G22: Emission factor [tCO2/MWh] | H22: GHG emissions [tCO2]
B23: Natural gas | C23: =SUM(C24:C88) -> 6857813.304 | H23: =SUM(H24:H88) -> 4027512.386
B24: El Alto | D24: =+SUM(D25) -> 17.5 | E24: =+E25 -> 9242 | F24: =1/(E24/$C$13) -> 0.3691993075 | G24: =+$C$14*$C$15/F24 -> 0.5470216111 | H24: =+G24*C24 -> 0
B25: ALT1 | C25: 100635.927 | D25: 17.5 | E25: 9242 | F25: =1/(E25/$C$13) -> 0.3691993075 | G25: =+$C$14*$C$15/F25 -> 0.5470216111 | H25: =+G25*C25 -> 55050.02692
B26: ALT2 | C26: 213864.514 | D26: 32.4 | E26: 8039 | F26: =1/(E26/$C$13) -> 0.4244483145 | G26: =+$C$14*$C$15/F26 -> 0.4758176511 | H26: =+G26*C26 -> 101760.5107
B27: Aranjuez | D27: =+SUM(D28:D38) -> 41 | E27: =SUMPRODUCT(D28:D38,E28:E38)/D27 -> 10376.95122 | F27: 0.3288191231 | G27: 0.6141978548 | H27: =+G27*C27 -> 0
B28: ARJ1 | C28: 2065.398746 | D28: 3 | E28: 10201 | F28: =1/(E28/$C$13) -> 0.3344907362 | G28: =+$C$14*$C$15/F28 -> 0.6037835376 | H28: =+G28*C28 -> 1247.053762
B29: ARJ2 | C29: 2494.435346 | D29: 3 | E29: 10201 | F29: 0.3344907362 | G29: 0.6037835376 | H29: =+G29*C29 -> 1506.098998
B30: ARJ3 | C30: 3046.812 | D30: 3 | E30: 10201 | F30: 0.3344907362 | G30: 0.6037835376 | H30: 1839.614928
B31: ARJ8 | C31: 101154.24 | D31: 18 | E31: 11497 | F31: 0.2967852483 | G31: 0.6804920431 | H31: 68834.65545
B32: ARJ9 | C32: 10825.28304 | D32: 2 | E32: 9050 | F32: 0.3770320442 | G32: 0.535657388 | H32: 5798.642838
B33: ARJ10 | C33: 0 | D33: 2 | E33: 9050 | F33: 0.3770320442 | G33: 0.535657388 | H33: 0
B34: ARJ11 | C34: 10874.30593 | D34: 2 | E34: 9050 | F34: 0.3770320442 | G34: 0.535657388 | H34: 5824.902311
B35: ARJ12 | C35: 0 | D35: 2 | E35: 9050 | F35: 0.3770320442 | G35: 0.535657388 | H35: 0
B36: ARJ13 | C36: 0 | D36: 2 | E36: 9050 | F36: 0.3770320442 | G36: 0.535657388 | H36: 0
B37: ARJ14 | C37: 0 | D37: 2 | E37: 9050 | F37: 0.3770320442 | G37: 0.535657388 | H37: 0
B38: ARJ15 | C38: 8339.7396 | D38: 2 | E38: 9050 | F38: 0.3770320442 | G38: 0.535657388 | H38: 4467.243131
B39: Bulo Bulo | D39: =+SUM(D40:D41) -> 90 | E39: =SUMPRODUCT(D40:D41,E40:E41)/D39 -> 9032.5 | F39: 0.3777625242 | G39: 0.5346215865 | H39: =+G39*C39 -> 0
B40: BUL1 | C40: 223504.631 | D40: 45 | E40: 9004 | F40: 0.3789582408 | G40: 0.5329347096 | H40: =+G40*C40 -> 119113.3756
B41: BUL2 | C41: 15850.489 | D41: 45 | E41: 9061 | F41: 0.3765743295 | G41: 0.5363084633 | H41: 8500.751398
B42: BUL3 | C42: 125500.576 | D42: 49.02 | E42: 8814 | F42: 0.3871272975 | G42: 0.5216888639 | H42: 65472.25291
B43: Carrasco | C43: 440398.86 | D43: =+SUM(D44:D45) -> 112 | E43: =SUMPRODUCT(D44:D46,E44:E46)/D43 -> 12280.95357 | F43: =1/(E43/$C$13) -> 0.2778399886 | G43: 0.7268932058 | H43: =+G43*C43 -> 320122.9392
B44: CAR1 | D44: 56 | E44: 10116 | F44: 0.3373013049 | G44: 0.5987525014
B45: CAR2 | D45: 56 | E45: 10199 | F45: 0.3345563291 | G45: 0.6036651603
B46: CAR3 | D46: 24.4 | E46: 9747 | F46: 0.350070791 | G46: 0.5769118852 | H46: =+G46*C46 -> 0
B47: Entre Ríos | D47: =+SUM(D48:D49) -> 46 | E47: =SUMPRODUCT(D48:D49,E48:E49)/D47 -> 9965 | F47: 0.3424124436 | G47: 0.5898150135 | H47: =+G47*C47 -> 0
B48: ERI01 | C48: 152450 | D48: 23 | E48: 9964 | F48: 0.3424468085 | G48: 0.5897558248 | H48: =+G48*C48 -> 89908.27549
B49: ERI02 | C49: 168623 | D49: 23 | E49: 9966 | F49: 0.3423780855 | G49: 0.5898742021 | H49: 99466.35758
B50: ERI03 | C50: 182321 | D50: 25 | E50: 9983 | F50: 0.3417950516 | G50: 0.5908804094 | H50: 107729.9071
B51: ERI04 | C51: 182872 | D51: 25 | E51: 10043 | F51: 0.3397530618 | G51: 0.5944317291 | H51: 108704.9192
B52: Guaracachi | D52: =+SUM(D53:D60) -> 368 | E52: =SUMPRODUCT(D53:D60,E53:E60)/D52 -> 9872.152174 | F52: 0.3456328407 | G52: 0.5843194749 | H52: =+G52*C52 -> 0
B53: GCH1 | C53: 42919.2 | D53: 22 | E53: 11971 | F53: 0.2850338318 | G53: 0.7085474687 | H53: =+G53*C53 -> 30410.29052
B54: GCH2 | C54: 28229.76 | D54: 20 | E54: 12595 | F54: 0.2709122668 | G54: 0.7454811936 | H54: 21044.75518
B55: GCH4 | C55: 43634.928 | D55: 20 | E55: 12834 | F55: 0.2658672277 | G55: 0.7596272838 | H55: 33146.28183
B56: GCH6 | C56: 73438.605 | D56: 21 | E56: 12644 | F56: 0.2698623853 | G56: 0.748381438 | H56: 54960.08882
B57: GCH9 | C57: 240047.46 | D57: 63 | E57: 10070 | F57: 0.3388421053 | G57: 0.5960298229 | H57: 143075.4451
B58: GCH10 | C58: 386168.796 | D58: 63 | E58: 10070 | F58: 0.3388421053 | G58: 0.5960298229 | H58: 230168.1191
B59: GCH11 | C59: 299524.302 | D59: 63 | E59: 10070 | F59: 0.3388421053 | G59: 0.5960298229 | H59: 178525.4167
B60: GCH12 | C60: 222713.652 | D60: 96 | E60: 7211 | F60: 0.4731854112 | G60: 0.4268094392 | H60: 95056.28892
B61: Karachipampa | D61: =+D62 -> 14 | E61: =+E62 -> 11860 | F61: 0.2877015177 | G61: 0.7019775273 | H61: =+G61*C61 -> 0
B62: KAR1 | C62: 76545.15521 | D62: 14 | E62: 11860 | F62: 0.2877015177 | G62: 0.7019775273 | H62: =+G62*C62 -> 53732.97878
B63: Kenko | D63: =+SUM(D64:D65) -> 18 | E63: =SUMPRODUCT(D64:D65,E64:E65)/D63 -> 12028 | F63: 0.2836830728 | G63: 0.7119212225 | H63: =+G63*C63 -> 0
B64: KEN1 | C64: 1793.82 | D64: 9 | E64: 12074 | F64: 0.2826022859 | G64: 0.7146439009 | H64: =+G64*C64 -> 1281.942522
B65: KEN2 | C65: 14728.66919 | D65: 9 | E65: 11982 | F65: 0.2847721582 | G65: 0.709198544 | H65: 10445.55074
B66: Santa Cruz | D66: =+SUM(D67:D68) -> 44 | E66: =SUMPRODUCT(D67:D68,E67:E68)/D66 -> 11761 | F66: 0.2901232888 | G66: 0.6961178498 | H66: =+G66*C66 -> 0
B67: SCZ1 | C67: 76414.3515 | D67: 22 | E67: 11850 | F67: 0.2879443038 | G67: 0.7013856407 | H67: =+G67*C67 -> 53595.92888
B68: SCZ2 | C68: 69334.6305 | D68: 22 | E68: 11672 | F68: 0.2923355038 | G68: 0.6908500589 | H68: 47899.83357
B69: Del Sur | D69: =+SUM(D70:D73) -> 175.36 | E69: =SUMPRODUCT(D70:D73,E70:E73)/D69 -> 9439.746693 | F69: 0.3614652078 | G69: 0.5587259731 | H69: =+G69*C69 -> 0
B70: SUR01 | C70: 327520.8056 | D70: 43.83 | E70: 9424 | F70: 0.3620691851 | G70: 0.5577939475 | H70: =+G70*C70 -> 182689.123
B71: SUR02 | C71: 313178.5303 | D71: 43.31 | E71: 9500 | F71: 0.3591726316 | G71: 0.5622922858 | H71: 176097.8716
B72: SUR03 | C72: 329847.8392 | D72: 44.16 | E72: 9409 | F72: 0.3626464024 | G72: 0.5569061176 | H72: 183694.2795
B73: SUR04 | C73: 310140.643 | D73: 44.06 | E73: 9427 | F73: 0.361953962 | G73: 0.5579715135 | H73: 173049.644
B74: Valle Hermoso (VHE) | C74: 431717.9446 | D74: =+SUM(D75:D82) -> 116.6 | E74: =SUMPRODUCT(D75:D82,E75:E82)/D74 -> 12178.99322 | F74: 0.2801660151 | G74: 0.7208583093 | H74: =+G74*C74 -> 311207.4677
B75: VHE1 | D75: 18.52 | E75: 16682 | F75: 0.204540223 | G75: 0.9873852538 | H75: =+G75*C75 -> 0
B76: VHE2 | D76: 18.81 | E76: 12448 | F76: 0.2741115039 | G76: 0.7367804604 | H76: 0
B77: VHE3 | D77: 18.32 | E77: 12870 | F77: 0.2651235431 | G77: 0.7617580756 | H77: 0
B78: VHE4 | D78: 18.63 | E78: 12343 | F78: 0.2764433282 | G78: 0.7305656509 | H78: 0
B79: VHE5 | D79: 10.58 | E79: 9753 | F79: 0.3498554291 | G79: 0.5772670172 | H79: 0
B80: VHE6 | D80: 10.58 | E80: 9943 | F80: 0.3431700694 | G80: 0.5885128629 | H80: 0
B81: VHE7 | D81: 10.58 | E81: 9562 | F81: 0.3568437565 | G81: 0.5659619828 | H81: 0
B82: VHE8 | D82: 10.58 | E82: 9612 | F82: 0.3549875156 | G82: 0.5689214159 | H82: 0
B83: Warnes | D83: =+SUM(D84:D89) -> 221.46 | E83: =SUMPRODUCT(D84:D89,E84:E89)/D83 -> 9170.494175 | F83: 0.3720780947 | G83: 0.542789277 | H83: =+G83*C83 -> 0
B84: WAR01 | C84: 327476 | D84: 44.58 | E84: 9100 | F84: 0.3749604396 | G84: 0.5386168211 | H84: =+G84*C84 -> 176384.0821
B85: WAR02 | C85: 303848 | D85: 44 | E85: 9185 | F85: 0.3714904736 | G85: 0.5436478574 | H85: 165186.3142
B86: WAR03 | C86: 334360 | D86: 44.33 | E86: 9183 | F86: 0.3715713819 | G86: 0.54352948 | H86: 181734.5169
B87: WAR04 | C87: 328445 | D87: 44.55 | E87: 9195 | F87: 0.37108646 | G87: 0.544239744 | H87: 178752.8227
B88: WAR05 | C88: 330964 | D88: 44 | E88: 9190 | F88: =1/(E88/$C$13) -> 0.3712883569 | G88: =+$C$14*$C$15/F88 -> 0.5439438007 | H88: 180025.816
B90: Plant Unit | C90: Generation [MWh]
B91: Hydropower | C91: =SUM(C92:C158) -> 1715604.461
B92: Angostura
B93: ANG1 | C93: 8299.026
B94: ANG2 | C94: 2863.16
B95: ANG3 | C95: 5656.743
B96: Botijlaca
B97: BOT1 | C97: 5032.601
B98: BOT2 | C98: 3451.904
B99: BOT3 | C99: 18889.346
B100: Cahua
B101: CAH1 | C101: 62691.475
B102: CAH2 | C102: 67549.633
B103: Carabuco
B104: CRB | C104: 36040.24
B105: Chojlla
B106: CHJ1y2 | C106: 38.66845
B107: CHJ | C107: 50256.09
B108: Choquetanga
B109: CHO1 | C109: 9108.759
B110: CHO2 | C110: 11847.556
B111: CHO3 | C111: 9006.972
B112: Chururaqui
B113: CHU1 | C113: 53061.766
B114: CHU2 | C114: 53897.993
B115: Corani
B116: COR1234 | C116: 214629.939
B117: Cuticucho
B118: CUT1 | C118: 4440.681
B119: CUT2 | C119: 5619.907
B120: CUT3 | C120: 5422.311
B121: CUT4 | C121: 2561.439
B122: CUT5 | C122: 75993.779
B123: Harca
B124: HAR1 | C124: 63047.572
B125: HAR2 | C125: 61868.473
B126: Huaji
B127: HUA1 | C127: 79958.991
B128: HUA2 | C128: 82387.253
B129: Kanata
B130: KAN1 | C130: 12031.66
B131: Kilpani
B132: KIL123 | C132: 32860.883
B133: Landara
B134: LAN123 | C134: 14087.349
B135: Miguilla
B136: MIG1 | C136: 3466.108
B137: MIG2 | C137: 3329.45
B138: Punutuma
B139: PUN1 | C139: 16078.901
B140: Quehata
B141: QUE01 | C141: 2307.6
B142: QUE02 | C142: 2352.1
B143: Sainani
B144: SAI1 | C144: 53982.859
B145: San Jacinto
B146: SJA01 | C146: 5921.3628
B147: SJA02 | C147: 6106.089
B148: Santa Isabel
B149: SIS12345 | C149: 330698.884
B150: Santa Rosa
B151: SRO1 | C151: 27181.952
B152: SRO2 | C152: 39690.658
B153: Tiquimani
B154: TIQ1 | C154: 6632.062
B155: Yanacachi
B156: YAN | C156: 155757.262
B157: Zongo
B158: ZON1 | C158: 9497.004
B160: Plant Unit | C160: Generation [MWh/y]
B161: Biomass | C161: =+SUM(C162:C165) -> 61193.04975
B162: Guabirá
B163: GBE1 | C163: 50538
B164: Santa Cruz
B165: UNA01 | C165: 10655.04975
B167: Plant Unit | C167: Generation [MWh/y]
B168: Wind | C168: =+SUM(C169:C171) -> 34911.444
B169: Qollpana
B170: QOL Fase I | C170: 13207.373
B171: QOL Fase II | C171: 21704.071

Sheet OM_EF_2015
B3: Operating margin emissions factor | D3: 2015
B6: Total generation | C6: =+C7+C9 -> 8248316.823
B7: Renewable energy [MWh] | C7: =+C90+C159+C166 -> 2530134.785
B8: Renewable energy [%] | C8: =+C7/C6 -> 0.3067455869
B9: Fossil fuels [MWh] | C9: =+C22 -> 5718182.038
B10: Fossil fuels [%] | C10: =+C9/C6 -> 0.6932544131
B12: Constants and conversion factors
B13: Conversion factor [BTU - kWh] | C13: 3412.14
B14: Emission factor natural gas [tCO2/GJ] | C14: 0.0561
B15: Conversion factor [GJ - MWh] | C15: 3.6
B17: EFgrid,OM-ave,2010 [tCO2/MWh] | C17: =+H22/C6 -> 0.3978991486
B19: EFgrid,OM-ave,2010 [tCO2/MWh] | C19: =+H22/C9 -> 0.573958335
B21: Plant Unit | C21: Generation [MWh] | D21: Capacity [MW] | E21: Heat rate [BTU/kWh] | F21: Efficiency [%] | G21: Emission factor [tCO2/MWh] | H21: GHG emissions [tCO2]
B22: Natural gas | C22: =SUM(C23:C87) -> 5718182.038 | H22: =SUM(H23:H87) -> 3281998.242
B23: El Alto | D23: =+SUM(D24) -> 17.5 | E23: =+E24 -> 9682 | F23: =1/(E23/$C$13) -> 0.3524209874 | G23: =+$C$14*$C$15/F23 -> 0.5730646222 | H23: =+G23*C23 -> 0
B24: ALT1 | C24: 62901.0717 | D24: 17.5 | E24: 9682 | F24: =1/(E24/$C$13) -> 0.3524209874 | G24: =+$C$14*$C$15/F24 -> 0.5730646222 | H24: =+G24*C24 -> 36046.37889
B25: ALT2 | C25: 230006.7025 | D25: 32.4 | E25: 8140 | F25: =1/(E25/$C$13) -> 0.4191818182 | G25: =+$C$14*$C$15/F25 -> 0.4817957059 | H25: =+G25*C25 -> 110816.2416
B26: Aranjuez | D26: =+SUM(D27:D37) -> 41 | E26: =SUMPRODUCT(D27:D37,E27:E37)/D26 -> 10376.95122 | F26: 0.3288191231 | G26: 0.6141978548 | H26: =+G26*C26 -> 0
B27: ARJ1 | C27: 903.1293569 | D27: 3 | E27: 10201 | F27: =1/(E27/$C$13) -> 0.3344907362 | G27: =+$C$14*$C$15/F27 -> 0.6037835376 | H27: =+G27*C27 -> 545.294638
B28: ARJ2 | C28: 911.2479539 | D28: 3 | E28: 10201 | F28: 0.3344907362 | G28: 0.6037835376 | H28: =+G28*C28 -> 550.1965133
B29: ARJ3 | C29: 742.6815 | D29: 3 | E29: 10201 | F29: 0.3344907362 | G29: 0.6037835376 | H29: 448.4188634
B30: ARJ8 | C30: 83446.76 | D30: 18 | E30: 11497 | F30: 0.2967852483 | G30: 0.6804920431 | H30: 56784.8562
B31: ARJ9 | C31: 8423.39897 | D31: 2 | E31: 9050 | F31: 0.3770320442 | G31: 0.535657388 | H31: 4512.055891
B32: ARJ10 | D32: 2 | E32: 9050 | F32: 0.3770320442 | G32: 0.535657388 | H32: 0
B33: ARJ11 | C33: 4874.09304 | D33: 2 | E33: 9050 | F33: 0.3770320442 | G33: 0.535657388 | H33: 2610.843947
B34: ARJ12 | C34: 7073.216074 | D34: 2 | E34: 9050 | F34: 0.3770320442 | G34: 0.535657388 | H34: 3788.820447
B35: ARJ13 | C35: 5371.6202 | D35: 2 | E35: 9050 | F35: 0.3770320442 | G35: 0.535657388 | H35: 2877.348046
B36: ARJ14 | C36: 0 | D36: 2 | E36: 9050 | F36: 0.3770320442 | G36: 0.535657388 | H36: 0
B37: ARJ15 | C37: 7564.2672 | D37: 2 | E37: 9050 | F37: 0.3770320442 | G37: 0.535657388 | H37: 4051.855611
B38: Bulo Bulo | D38: =+SUM(D39:D40) -> 90 | E38: =SUMPRODUCT(D39:D40,E39:E40)/D38 -> 9032.5 | F38: 0.3777625242 | G38: 0.5346215865 | H38: =+G38*C38 -> 0
B39: BUL1 | C39: 253280.231 | D39: 45 | E39: 9004 | F39: 0.3789582408 | G39: 0.5329347096 | H39: =+G39*C39 -> 134981.8264
B40: BUL2 | C40: 33037.909 | D40: 45 | E40: 9061 | F40: 0.3765743295 | G40: 0.5363084633 | H40: 17718.51021
B41: BUL3 | C41: 313954.442 | D41: 49.02 | E41: 8814 | F41: 0.3871272975 | G41: 0.5216888639 | H41: 163786.5362
B42: Carrasco | C42: 516330.15 | D42: =+SUM(D43:D44) -> 112 | E42: =SUMPRODUCT(D43:D45,E43:E45)/D42 -> 11949.96786 | F42: =1/(E42/$C$13) -> 0.2855354961 | G42: 0.7073026044 | H42: =+G42*C42 -> 365201.6598
B43: CAR1 | D43: 56 | E43: 9830 | F43: 0.3471149542 | G43: 0.5818245441
B44: CAR2 | D44: 56 | E44: 9830 | F44: 0.3471149542 | G44: 0.5818245441
B45: CAR3 | D45: 24.4 | E45: 9731 | F45: 0.3506463878 | G45: 0.5759648666 | H45: =+G45*C45 -> 0
B46: Entre Ríos | D46: =+SUM(D47:D48) -> 46 | E46: =SUMPRODUCT(D47:D48,E47:E48)/D46 -> 9958 | F46: 0.3426531432 | G46: 0.5894006928 | H46: =+G46*C46 -> 0
B47: ERI01 | C47: 75240 | D47: 23 | E47: 9964 | F47: 0.3424468085 | G47: 0.5897558248 | H47: =+G47*C47 -> 44373.22826
B48: ERI02 | C48: 85293 | D48: 23 | E48: 9952 | F48: 0.3428597267 | G48: 0.5890455609 | H48: 50241.46302
B49: ERI03 | C49: 74301 | D49: 25 | E49: 9969 | F49: 0.3422750527 | G49: 0.5900517681 | H49: 43841.43642
B50: ERI04 | C50: 89367 | D50: 25 | E50: 10017 | F50: 0.3406349206 | G50: 0.5928928239 | H50: 52985.05299
B51: Guaracachi | D51: =+SUM(D52:D59) -> 368 | E51: =SUMPRODUCT(D52:D59,E52:E59)/D51 -> 9872.152174 | F51: 0.3456328407 | G51: 0.5843194749 | H51: =+G51*C51 -> 0
B52: GCH1 | C52: 14091.3 | D52: 22 | E52: 11971 | F52: 0.2850338318 | G52: 0.7085474687 | H52: =+G52*C52 -> 9984.354946
B53: GCH2 | C53: 10209.6 | D53: 20 | E53: 12595 | F53: 0.2709122668 | G53: 0.7454811936 | H53: 7611.064794
B54: GCH4 | C54: 13814.244 | D54: 20 | E54: 12834 | F54: 0.2658672277 | G54: 0.7596272838 | H54: 10493.67665
B55: GCH6 | C55: 49910.715 | D55: 21 | E55: 12644 | F55: 0.2698623853 | G55: 0.748381438 | H55: 37352.25267
B56: GCH9 | C56: 459226.692 | D56: 63 | E56: 10070 | F56: 0.3388421053 | G56: 0.5960298229 | H56: 273712.8039
B57: GCH10 | C57: 378806.544 | D57: 63 | E57: 10070 | F57: 0.3388421053 | G57: 0.5960298229 | H57: 225779.9973
B58: GCH11 | C58: 234237.2923 | D58: 63 | E58: 10070 | F58: 0.3388421053 | G58: 0.5960298229 | H58: 139612.4118
B59: GCH12 | C59: 544179.2599 | D59: 96 | E59: 7211 | F59: 0.4731854112 | G59: 0.4268094392 | H59: 232260.8448
B60: Karachipampa | D60: =+D61 -> 14 | E60: =+E61 -> 11860 | F60: 0.2877015177 | G60: 0.7019775273 | H60: =+G60*C60 -> 0
B61: KAR1 | C61: 79662.39755 | D61: 14 | E61: 11860 | F61: 0.2877015177 | G61: 0.7019775273 | H61: =+G61*C61 -> 55921.21285
B62: Kenko | D62: =+SUM(D63:D64) -> 18 | E62: =SUMPRODUCT(D63:D64,E63:E64)/D62 -> 12028 | F62: 0.2836830728 | G62: 0.7119212225 | H62: =+G62*C62 -> 0
B63: KEN1 | C63: 0 | D63: 9 | E63: 12074 | F63: 0.2826022859 | G63: 0.7146439009 | H63: =+G63*C63 -> 0
B64: KEN2 | C64: 29966.794 | D64: 9 | E64: 11982 | F64: 0.2847721582 | G64: 0.709198544 | H64: 21252.40667
B65: Santa Cruz | D65: =+SUM(D66:D67) -> 44 | E65: =SUMPRODUCT(D66:D67,E66:E67)/D65 -> 11761 | F65: 0.2901232888 | G65: 0.6961178498 | H65: =+G65*C65 -> 0
B66: SCZ1 | C66: 44085.42 | D66: 22 | E66: 11850 | F66: 0.2879443038 | G66: 0.7013856407 | H66: =+G66*C66 -> 30920.88055
B67: SCZ2 | C67: 35185.5 | D67: 22 | E67: 11672 | F67: 0.2923355038 | G67: 0.6908500589 | H67: 24307.90475
B68: Del Sur | D68: =+SUM(D69:D72) -> 175.36 | E68: =SUMPRODUCT(D69:D72,E69:E72)/D68 -> 9386.213789 | F68: 0.363526772 | G68: 0.5555574322 | H68: =+G68*C68 -> 0
B69: SUR01 | C69: 283458 | D69: 43.83 | E69: 9397 | F69: 0.363109503 | G69: 0.5561958536 | H69: =+G69*C69 -> 157658.1643
B70: SUR02 | C70: 256045 | D70: 43.31 | E70: 9446 | F70: 0.3612259157 | G70: 0.559096098 | H70: 143153.7604
B71: SUR03 | C71: 285112 | D71: 44.16 | E71: 9355 | F71: 0.3647397114 | G71: 0.5537099298 | H71: 157869.3455
B72: SUR04 | C72: 279769 | D72: 44.06 | E72: 9348 | F72: 0.365012837 | G72: 0.5532956092 | H72: 154794.9593
B73: Valle Hermoso (VHE) | C73: 260568.359 | D73: =+SUM(D74:D81) -> 116.6 | E73: =SUMPRODUCT(D74:D81,E74:E81)/D73 -> 11302.64357 | F73: 0.301888667 | G73: 0.668988346 | H73: =+G73*C73 -> 174317.1955
B74: VHE1 | D74: 18.52 | E74: 12124 | F74: 0.2814368195 | G74: 0.717603334 | H74: =+G74*C74 -> 0
B75: VHE2 | D75: 18.81 | E75: 12124 | F75: 0.2814368195 | G75: 0.717603334 | H75: 0
B76: VHE3 | D76: 18.32 | E76: 12124 | F76: 0.2814368195 | G76: 0.717603334 | H76: 0
B77: VHE4 | D77: 18.63 | E77: 12124 | F77: 0.2814368195 | G77: 0.717603334 | H77: 0
B78: VHE5 | D78: 10.58 | E78: 9861 | F78: 0.3460237298 | G78: 0.5836593926 | H78: 0
B79: VHE6 | D79: 10.58 | E79: 9861 | F79: 0.3460237298 | G79: 0.5836593926 | H79: 0
B80: VHE7 | D80: 10.58 | E80: 9861 | F80: 0.3460237298 | G80: 0.5836593926 | H80: 0
B81: VHE8 | D81: 10.58 | E81: 9861 | F81: 0.3460237298 | G81: 0.5836593926 | H81: 0
B82: Warnes | D82: =+SUM(D83:D88) -> 221.46 | E82: =SUMPRODUCT(D83:D88,E83:E88)/D82 -> 9165.926985 | F82: 0.3722634935 | G82: 0.5425189511 | H82: =+G82*C82 -> 0
B83: WAR01 | C83: 198822 | D83: 44.58 | E83: 9100 | F83: 0.3749604396 | G83: 0.5386168211 | H83: =+G83*C83 -> 107088.8736
B84: WAR02 | C84: 104963 | D84: 44 | E84: 9185 | F84: 0.3714904736 | G84: 0.5436478574 | H84: 57062.91005
B85: WAR03 | C85: 135385 | D85: 44.33 | E85: 9183 | F85: 0.3715713819 | G85: 0.54352948 | H85: 73585.73865
B86: WAR04 | C86: 75984 | D86: 44.55 | E86: 9196 | F86: 0.371046107 | G86: 0.5442989326 | H86: 41358.0101
B87: WAR05 | C87: 91678 | D87: 44 | E87: 9166 | F87: =1/(E87/$C$13) -> 0.372260528 | G87: =+$C$14*$C$15/F87 -> 0.5425232728 | H87: 49737.4486
B89: Plant Unit | C89: Generation [MWh]
B90: Hydropower | C90: =SUM(C91:C156) -> 2439591.151
B91: Angostura
B92: ANG1 | C92: 8059.284
B93: ANG2 | C93: 3992.585
B94: ANG3 | C94: 6644.116
B95: Botijlaca
B96: BOT1 | C96: 8959.491
B97: BOT2 | C97: 7037.519
B98: BOT3 | C98: 23605.781
B99: Cahua
B100: CAH1 | C100: 81648.602
B101: CAH2 | C101: 81079.113
B102: Carabuco
B103: CRB | C103: 41867.757
B104: Chojlla
B105: CHJ1y2 | C105: 1658.238035
B106: CHJ | C106: 130614.54
B107: Choquetanga
B108: CHO1 | C108: 11539.983
B109: CHO2 | C109: 14778.668
B110: CHO3 | C110: 11178.842
B111: Chururaqui
B112: CHU1 | C112: 71255.49
B113: CHU2 | C113: 67719.197
B114: Corani
B115: COR1234 | C115: 377176.696
B116: Cuticucho
B117: CUT1 | C117: 14181.029
B118: CUT2 | C118: 12898.889
B119: CUT3 | C119: 13386.754
B120: CUT4 | C120: 6687.367091
B121: CUT5 | C121: 80462.043
B122: Harca
B123: HAR1 | C123: 81849.417
B124: HAR2 | C124: 80452.606
B125: Huaji
B126: HUA1 | C126: 86632.661
B127: HUA2 | C127: 93811.008
B128: Kanata
B129: KAN1 | C129: 17612.39
B130: Kilpani
B131: KIL123 | C131: 41357.006
B132: Landara
B133: LAN123 | C133: 18022.293
B134: Miguilla
B135: MIG1 | C135: 4376.905
B136: MIG2 | C136: 4145.267
B137: Punutuma
B138: PUN1 | C138: 18207.586
B139: Quehata
B140: QUE | C140: 8301.2
B141: Sainani
B142: SAI1 | C142: 23543.033
B143: San Jacinto
B144: SJA01 | C144: 2118.474
B145: SJA02 | C145: 1880.5392
B146: Santa Isabel
B147: SIS12345 | C147: 560551.928
B148: Santa Rosa
B149: SRO1 | C149: 38808.311
B150: SRO2 | C150: 47305.845
B151: Tiquimani
B152: TIQ1 | C152: 12813.867
B153: Yanacachi
B154: YAN | C154: 211398.553
B155: Zongo
B156: ZON1 | C156: 9970.278
B158: Plant Unit | C158: Generation [MWh/y]
B159: Biomass | C159: =+SUM(C160:C163) -> 79093.5075
B160: Guabirá
B161: GBE1 | C161: 62146
B162: Santa Cruz
B163: UNA01 | C163: 16947.5075
B165: Plant Unit | C165: Generation [MWh/y]
B166: Wind | C166: =+SUM(C167:C168) -> 11450.126
B167: Qollpana
B168: QOL12 | C168: 11450.126

Sheet OM_EF_2014
B3: Operating margin emissions factor | D3: 2014
B6: Total generation | C6: =+C7+C9 -> 7743488.703
B7: Renewable energy [MWh] | C7: =+C84+C150+C157 -> 2317460.239
B8: Renewable energy [%] | C8: =+C7/C6 -> 0.2992785716
B9: Fossil fuels [MWh] | C9: =+C22 -> 5426028.464
B10: Fossil fuels [%] | C10: =+C9/C6 -> 0.7007214284
B12: Constants and conversion factors
B13: Conversion factor [BTU - kWh] | C13: 3412.14
B14: Emission factor natural gas [tCO2/GJ] | C14: 0.0561
B15: Conversion factor [GJ - MWh] | C15: 3.6
B17: EFgrid,OM-ave,2010 [tCO2/MWh] | C17: =+H22/C6 -> 0.4167390497
B19: EFgrid,OM-ave,2010 [tCO2/MWh] | C19: =+H22/C9 -> 0.5947285652
B21: Plant Unit | C21: Generation [MWh] | D21: Capacity [MW] | E21: Heat rate [BTU/kWh] | F21: Efficiency [%] | G21: Emission factor [tCO2/MWh] | H21: GHG emissions [tCO2]
B22: Natural gas | C22: =SUM(C23:C81) -> 5426028.464 | H22: =SUM(H23:H81) -> 3227014.123
B23: El Alto | D23: =+SUM(D24) -> 17.5 | E23: =+E24 -> 9682 | F23: =1/(E23/$C$13) -> 0.3524209874 | G23: =+$C$14*$C$15/F23 -> 0.5730646222 | H23: =+G23*C23 -> 0
B24: ALT1 | C24: 108265.7625 | D24: 17.5 | E24: 9682 | F24: =1/(E24/$C$13) -> 0.3524209874 | G24: =+$C$14*$C$15/F24 -> 0.5730646222 | H24: =+G24*C24 -> 62043.27828
B25: ALT2 | C25: 74350.10655 | D25: 32.4 | E25: 8140 | F25: =1/(E25/$C$13) -> 0.4191818182 | G25: =+$C$14*$C$15/F25 -> 0.4817957059 | H25: =+G25*C25 -> 35821.56207
B26: Aranjuez | D26: =+SUM(D27:D37) -> 41 | E26: =SUMPRODUCT(D27:D37,E27:E37)/D26 -> 10376.95122 | F26: 0.3288191231 | G26: 0.6141978548 | H26: =+G26*C26 -> 0
B27: ARJ1 | C27: 5457.598282 | D27: 3 | E27: 10201 | F27: =1/(E27/$C$13) -> 0.3344907362 | G27: =+$C$14*$C$15/F27 -> 0.6037835376 | H27: =+G27*C27 -> 3295.207998
B28: ARJ2 | C28: 1826.328269 | D28: 3 | E28: 10201 | F28: 0.3344907362 | G28: 0.6037835376 | H28: =+G28*C28 -> 1102.706943
B29: ARJ3 | C29: 5453.138 | D29: 3 | E29: 10201 | F29: 0.3344907362 | G29: 0.6037835376 | H29: 3292.514953
B30: ARJ8 | C30: 105427.86 | D30: 18 | E30: 11497 | F30: 0.2967852483 | G30: 0.6804920431 | H30: 71742.81985
B31: ARJ9 | C31: 10782.3011 | D31: 2 | E31: 9050 | F31: 0.3770320442 | G31: 0.535657388 | H31: 5775.619247
B32: ARJ10 | C32: 2009.37959 | D32: 2 | E32: 9050 | F32: 0.3770320442 | G32: 0.535657388 | H32: 1076.339023
B33: ARJ11 | C33: 5505.76371 | D33: 2 | E33: 9050 | F33: 0.3770320442 | G33: 0.535657388 | H33: 2949.203008
B34: ARJ12 | C34: 9975.93413 | D34: 2 | E34: 9050 | F34: 0.3770320442 | G34: 0.535657388 | H34: 5343.682819
B35: ARJ13 | C35: 4970.5612 | D35: 2 | E35: 9050 | F35: 0.3770320442 | G35: 0.535657388 | H35: 2662.517829
B36: ARJ14 | C36: 7007.9094 | D36: 2 | E36: 9050 | F36: 0.3770320442 | G36: 0.535657388 | H36: 3753.838445
B37: ARJ15 | C37: 9947.2014 | D37: 2 | E37: 9050 | F37: 0.3770320442 | G37: 0.535657388 | H37: 5328.29192
B38: Bulo Bulo | D38: =+SUM(D39:D40) -> 90 | E38: =SUMPRODUCT(D39:D40,E39:E40)/D38 -> 8562 | F38: 0.3985213735 | G38: 0.5067733211 | H38: =+G38*C38 -> 0
B39: BUL1 | C39: 269807.618 | D39: 45 | E39: 8398 | F39: 0.4063038819 | G39: 0.4970663806 | H39: =+G39*C39 -> 134112.2961
B40: BUL2 | C40: 173568.66 | D40: 45 | E40: 8726 | F40: 0.3910314004 | G40: 0.5164802617 | H40: 89644.78693
B41: BUL3 | C41: 265758.5813 | D41: 49.02 | E41: 8536 | F41: 0.399735239 | G41: 0.5052344159 | H41: =+G41*C41 -> 134270.3816
B42: Carrasco | C42: 815783.94 | D42: =+SUM(D43:D44) -> 112 | E42: =SUMPRODUCT(D43:D45,E43:E45)/D42 -> 11949.96786 | F42: =1/(E42/$C$13) -> 0.2855354961 | G42: 0.7073026044 | H42: =+G42*C42 -> 577006.1054
B43: CAR1 | D43: 56 | E43: 9830 | F43: 0.3471149542 | G43: 0.5818245441
B44: CAR2 | D44: 56 | E44: 9830 | F44: 0.3471149542 | G44: 0.5818245441
B45: CAR3 | D45: 24.4 | E45: 9731 | F45: 0.3506463878 | G45: 0.5759648666 | H45: =+G45*C45 -> 0
B46: Entre Ríos | D46: =+SUM(D47:D48) -> 46 | E46: =SUMPRODUCT(D47:D48,E47:E48)/D46 -> 10149.5 | F46: 0.3361879896 | G46: 0.6007353215 | H46: =+G46*C46 -> 0
B47: ERI01 | C47: 173128 | D47: 23 | E47: 10115 | F47: 0.3373346515 | G47: 0.5986933127 | H47: =+G47*C47 -> 103650.5758
B48: ERI02 | C48: 165138 | D48: 23 | E48: 10184 | F48: 0.3350490966 | G48: 0.6027773304 | H48: 99541.44278
B49: ERI03 | C49: 173443 | D49: 25 | E49: 10069 | F49: 0.3388757573 | G49: 0.5959706343 | H49: 103366.9347
B50: ERI04 | C50: 193663 | D50: 25 | E50: 9991 | F50: 0.3415213692 | G50: 0.5913539187 | H50: 114523.3739
B51: Guaracachi | D51: =+SUM(D52:D59) -> 368 | E51: =SUMPRODUCT(D52:D59,E52:E59)/D51 -> 9872.152174 | F51: 0.3456328407 | G51: 0.5843194749 | H51: =+G51*C51 -> 0
B52: GCH1 | C52: 15638.4 | D52: 22 | E52: 11971 | F52: 0.2850338318 | G52: 0.7085474687 | H52: =+G52*C52 -> 11080.54874
B53: GCH2 | C53: 14575.08 | D53: 20 | E53: 12595 | F53: 0.2709122668 | G53: 0.7454811936 | H53: 10865.44804
B54: GCH4 | C54: 24451.464 | D54: 20 | E54: 12834 | F54: 0.2658672277 | G54: 0.7596272838 | H54: 18573.99918
B55: GCH6 | C55: 52400.7557 | D55: 21 | E55: 12644 | F55: 0.2698623853 | G55: 0.748381438 | H55: 39215.75291
B56: GCH9 | C56: 420127.4714 | D56: 63 | E56: 10070 | F56: 0.3388421053 | G56: 0.5960298229 | H56: 250408.5024
B57: GCH10 | C57: 412122.1051 | D57: 63 | E57: 10070 | F57: 0.3388421053 | G57: 0.5960298229 | H57: 245637.0653
B58: GCH11 | C58: 301526.5525 | D58: 63 | E58: 10070 | F58: 0.3388421053 | G58: 0.5960298229 | H58: 179718.8177
B59: GCH12 | C59: 523552.596 | D59: 96 | E59: 7211 | F59: 0.4731854112 | G59: 0.4268094392 | H59: 223457.1899
B60: Karachipampa | D60: =+D61 -> 14 | E60: =+E61 -> 11860 | F60: 0.2877015177 | G60: 0.7019775273 | H60: =+G60*C60 -> 0
B61: KAR1 | C61: 61003.53232 | D61: 14 | E61: 11860 | F61: 0.2877015177 | G61: 0.7019775273 | H61: =+G61*C61 -> 42823.10878
B62: Kenko | D62: =+SUM(D63:D64) -> 18 | E62: =SUMPRODUCT(D63:D64,E63:E64)/D62 -> 12028 | F62: 0.2836830728 | G62: 0.7119212225 | H62: =+G62*C62 -> 0
B63: KEN1 | C63: 43520.74519 | D63: 9 | E63: 12074 | F63: 0.2826022859 | G63: 0.7146439009 | H63: =+G63*C63 -> 31101.83511
B64: KEN2 | C64: 46932.1795 | D64: 9 | E64: 11982 | F64: 0.2847721582 | G64: 0.709198544 | H64: 33284.23337
B65: Santa Cruz | D65: =+SUM(D66:D67) -> 44 | E65: =SUMPRODUCT(D66:D67,E66:E67)/D65 -> 11761 | F65: 0.2901232888 | G65: 0.6961178498 | H65: =+G65*C65 -> 0
B66: SCZ1 | C66: 44110.71 | D66: 22 | E66: 11850 | F66: 0.2879443038 | G66: 0.7013856407 | H66: =+G66*C66 -> 30938.61859
B67: SCZ2 | C67: 29892.71113 | D67: 22 | E67: 11672 | F67: 0.2923355038 | G67: 0.6908500589 | H67: 20651.38124
B68: Del Sur | D68: =+SUM(D69:D72) -> 175.36 | E68: =SUMPRODUCT(D69:D72,E69:E72)/D68 -> 9456.006216 | F68: 0.3608436714 | G68: 0.5596883526 | H68: =+G68*C68 -> 0
B69: SUR01 | C69: 84605.7 | D69: 43.83 | E69: 9275 | F69: 0.3678857143 | G69: 0.5489748369 | H69: =+G69*C69 -> 46446.40036
B70: SUR02 | C70: 129537 | D70: 43.31 | E70: 9572 | F70: 0.356470957 | G70: 0.5665538694 | H70: 73389.68858
B71: SUR03 | C71: 108702.3 | D71: 44.16 | E71: 9480 | F71: 0.3599303797 | G71: 0.5611085125 | H71: 60993.78586
B72: SUR04 | C72: 73180 | D72: 44.06 | E72: 9498 | F72: 0.3592482628 | G72: 0.5621739085 | H72: 41139.88662
B73: Valle Hermoso (VHE) | C73: 458878.518 | D73: =+SUM(D74:D81) -> 116.6 | E73: =SUMPRODUCT(D74:D81,E74:E81)/D73 -> 11302.64357 | F73: 0.301888667 | G73: 0.668988346 | H73: =+G73*C73 -> 306984.3808
B74: VHE1 | D74: 18.52 | E74: 12124 | F74: 0.2814368195 | G74: 0.717603334 | H74: =+G74*C74 -> 0
B75: VHE2 | D75: 18.81 | E75: 12124 | F75: 0.2814368195 | G75: 0.717603334 | H75: 0
B76: VHE3 | D76: 18.32 | E76: 12124 | F76: 0.2814368195 | G76: 0.717603334 | H76: 0
B77: VHE4 | D77: 18.63 | E77: 12124 | F77: 0.2814368195 | G77: 0.717603334 | H77: 0
B78: VHE5 | D78: 10.58 | E78: 9861 | F78: 0.3460237298 | G78: 0.5836593926 | H78: 0
B79: VHE6 | D79: 10.58 | E79: 9861 | F79: 0.3460237298 | G79: 0.5836593926 | H79: 0
B80: VHE7 | D80: 10.58 | E80: 9861 | F80: 0.3460237298 | G80: 0.5836593926 | H80: 0
B81: VHE8 | D81: 10.58 | E81: 9861 | F81: 0.3460237298 | G81: 0.5836593926 | H81: 0
B83: Plant Unit | C83: Generation [MWh]
B84: Hydropower | C84: =SUM(C85:C147) -> 2232992.857
B85: Angostura
B86: ANG1 | C86: 8364.82
B87: ANG2 | C87: 4087.838
B88: ANG3 | C88: 6808.925
B89: Botijlaca
B90: BOT1 | C90: 6937.646
B91: BOT2 | C91: 5548.011
B92: BOT3 | C92: 20967.523
B93: Cahua
B94: CAH1 | C94: 85493.886
B95: CAH2 | C95: 77185.931
B96: Carabuco
B97: CRB | C97: 43258.478
B98: Chojlla
B99: CHJ1y2 | C99: 4567.332535
B100: CHJ | C100: 127364.103
B101: Choquetanga
B102: CHO1 | C102: 11577.643
B103: CHO2 | C103: 14227.504
B104: CHO3 | C104: 11142.393
B105: Chururaqui
B106: CHU1 | C106: 64762.602
B107: CHU2 | C107: 62725.934
B108: Corani
B109: COR1234 | C109: 371305.78
B110: Cuticucho
B111: CUT1 | C111: 5475.314
B112: CUT2 | C112: 4912.893
B113: CUT3 | C113: 5060.786
B114: CUT4 | C114: 3245.185
B115: CUT5 | C115: 71783.653
B116: Harca
B117: HAR1 | C117: 78528.325
B118: HAR2 | C118: 77429.542
B119: Huaji
B120: HUA1 | C120: 99009.819
B121: HUA2 | C121: 99241.433
B122: Kanata
B123: KAN1 | C123: 19804.84
B124: Kilpani
B125: KIL123 | C125: 45154.621
B126: Landara
B127: LAN123 | C127: 22123.662
B128: Miguilla
B129: MIG1 | C129: 4384.409
B130: MIG2 | C130: 4197.793
B131: Punutuma
B132: PUN1 | C132: 17786.664
B133: Quehata
B134: QUE | C134: 7175.84
B135: Sainani
B136: SAI1 | C136: 15429.729
B137: Santa Isabel
B138: SIS12345 | C138: 552076.44
B139: Santa Rosa
B140: SRO1 | C140: 35041.322
B141: SRO2 | C141: 48557.09
B142: Tiquimani
B143: TIQ1 | C143: 10445.099
B144: Yanacachi
B145: YAN | C145: 70571.212
B146: Zongo
B147: ZON1 | C147: 9230.836
B149: Plant Unit | C149: Generation [MWh/y]
B150: Biomass | C150: =+SUM(C151:C154) -> 76309.625
B151: Guabirá
B152: GBE1 | C152: 65694
B153: Santa Cruz
B154: UNA01 | C154: 10615.625
B156: Plant Unit | C156: Generation [MWh/y]
B157: Wind | C157: =+SUM(C158:C159) -> 8157.757
B158: Qollpana
B159: QOL12 | C159: 8157.757

Sheet OM_EF_2013
B3: Operating margin emissions factor | D3: 2013
B6: Total generation | C6: =+C7+C9 -> 7286833.036
B7: Renewable energy [MWh] | C7: =+C78+C144+C149 -> 2594391.147
B8: Renewable energy [%] | C8: =+C7/C6 -> 0.3560382315
B9: Fossil fuels [MWh] | C9: =+C22 -> 4692441.889
B10: Fossil fuels [%] | C10: =+C9/C6 -> 0.6439617685
B12: Constants and conversion factors
B13: Conversion factor [BTU - kWh] | C13: 3412.14
B14: Emission factor natural gas [tCO2/GJ] | C14: 0.0561
B15: Conversion factor [GJ - MWh] | C15: 3.6
B17: EFgrid,OM-ave,2010 [tCO2/MWh] | C17: =+H22/C6 -> 0.3813337486
B19: EFgrid,OM-ave,2010 [tCO2/MWh] | C19: =+H22/C9 -> 0.5921683044
B21: Plant Unit | C21: Generation [MWh] | D21: Capacity [MW] | E21: Heat rate [BTU/kWh] | F21: Efficiency [%] | G21: Emission factor [tCO2/MWh] | H21: GHG emissions [tCO2]
B22: Natural gas | C22: =SUM(C23:C75) -> 4692441.889 | H22: =SUM(H23:H75) -> 2778715.357
B23: El Alto | D23: =+SUM(D24) -> 17.5 | E23: =+E24 -> 9682 | F23: =1/(E23/$C$13) -> 0.3524209874 | G23: =+$C$14*$C$15/F23 -> 0.5730646222 | H23: =+G23*C23 -> 0
B24: ALT1 | C24: 107684.098 | D24: 17.5 | E24: 9682 | F24: =1/(E24/$C$13) -> 0.3524209874 | G24: =+$C$14*$C$15/F24 -> 0.5730646222 | H24: =+G24*C24 -> 61709.94694
B25: ALT2 | C25: 103575.9891 | D25: 32.4 | E25: 8140 | F25: =1/(E25/$C$13) -> 0.4191818182 | G25: =+$C$14*$C$15/F25 -> 0.4817957059 | H25: =+G25*C25 -> 49902.46677
B26: Aranjuez | D26: =+SUM(D27:D37) -> 41 | E26: =SUMPRODUCT(D27:D37,E27:E37)/D26 -> 10376.95122 | F26: 0.3288191231 | G26: 0.6141978548 | H26: =+G26*C26 -> 0
B27: ARJ1 | C27: 1574.993684 | D27: 3 | E27: 10201 | F27: =1/(E27/$C$13) -> 0.3344907362 | G27: =+$C$14*$C$15/F27 -> 0.6037835376 | H27: =+G27*C27 -> 950.9552582
B28: ARJ2 | C28: 0 | D28: 3 | E28: 10201 | F28: 0.3344907362 | G28: 0.6037835376 | H28: =+G28*C28 -> 0
B29: ARJ3 | C29: 1769.8755 | D29: 3 | E29: 10201 | F29: 0.3344907362 | G29: 0.6037835376 | H29: 1068.621691
B30: ARJ8 | C30: 106260.78 | D30: 18 | E30: 11497 | F30: 0.2967852483 | G30: 0.6804920431 | H30: 72309.61529
B31: ARJ9 | C31: 338.88614 | D31: 2 | E31: 9050 | F31: 0.3770320442 | G31: 0.535657388 | H31: 181.5268646
B32: ARJ10 | C32: 4904.84453 | D32: 2 | E32: 9050 | F32: 0.3770320442 | G32: 0.535657388 | H32: 2627.31621
B33: ARJ11 | C33: 9655.36312 | D33: 2 | E33: 9050 | F33: 0.3770320442 | G33: 0.535657388 | H33: 5171.966589
B34: ARJ12 | C34: 11349.07458 | D34: 2 | E34: 9050 | F34: 0.3770320442 | G34: 0.535657388 | H34: 6079.215643
B35: ARJ13 | C35: 9758.3664 | D35: 2 | E35: 9050 | F35: 0.3770320442 | G35: 0.535657388 | H35: 5227.141057
B36: ARJ14 | C36: 2570.0208 | D36: 2 | E36: 9050 | F36: 0.3770320442 | G36: 0.535657388 | H36: 1376.650629
B37: ARJ15 | C37: 10493.6892 | D37: 2 | E37: 9050 | F37: 0.3770320442 | G37: 0.535657388 | H37: 5621.022148
B38: Bulo Bulo | D38: =+SUM(D39:D40) -> 90 | E38: =SUMPRODUCT(D39:D40,E39:E40)/D38 -> 8851 | F38: 0.385508982 | G38: 0.5238788444 | H38: =+G38*C38 -> 0
B39: BUL1 | C39: 287973.534 | D39: 45 | E39: 8685 | F39: 0.3928773748 | G39: 0.5140535265 | H39: =+G39*C39 -> 148033.8107
B40: BUL2 | C40: 202260.81 | D40: 45 | E40: 9017 | F40: 0.3784118887 | G40: 0.5337041622 | H40: 107947.4361
B41: Carrasco | C41: 667630.61 | D41: =+SUM(D42:D43) -> 112 | E41: =SUMPRODUCT(D42:D44,E42:E44)/D41 -> 11949.96786 | F41: =1/(E41/$C$13) -> 0.2855354961 | G41: 0.7073026044 | H41: =+G41*C41 -> 472216.8692
B42: CAR1 | D42: 56 | E42: 9830 | F42: 0.3471149542 | G42: 0.5818245441
B43: CAR2 | D43: 56 | E43: 9830 | F43: 0.3471149542 | G43: 0.5818245441
B44: CAR3 | D44: 24.4 | E44: 9731 | F44: 0.3506463878 | G44: 0.5759648666 | H44: =+G44*C44 -> 0
B45: Entre Ríos | D45: =+SUM(D46:D47) -> 46 | E45: =SUMPRODUCT(D46:D47,E46:E47)/D45 -> 10048 | F45: 0.3395839968 | G45: 0.5947276724 | H45: =+G45*C45 -> 0
B46: ERI01 | C46: 176801 | D46: 23 | E46: 10018 | F46: 0.3406009183 | G46: 0.5929520125 | H46: =+G46*C46 -> 104834.5088
B47: ERI02 | C47: 175773 | D47: 23 | E47: 10078 | F47: 0.3385731296 | G47: 0.5965033322 | H47: 104849.1802
B48: ERI03 | C48: 195325 | D48: 25 | E48: 9980 | F48: 0.3418977956 | G48: 0.5907028434 | H48: 115379.0329
B49: ERI04 | C49: 186743 | D49: 25 | E49: 9897 | F49: 0.3447650803 | G49: 0.5857901845 | H49: 109392.2164
B50: Guaracachi | D50: =+SUM(D51:D58) -> 368 | E50: =SUMPRODUCT(D51:D58,E51:E58)/D50 -> 9872.152174 | F50: 0.3456328407 | G50: 0.5843194749 | H50: =+G50*C50 -> 0
B51: GCH1 | C51: 6585.96 | D51: 22 | E51: 11971 | F51: 0.2850338318 | G51: 0.7085474687 | H51: =+G51*C51 -> 4666.465287
B52: GCH2 | C52: 4921.44 | D52: 20 | E52: 12595 | F52: 0.2709122668 | G52: 0.7454811936 | H52: 3668.840966
B53: GCH4 | C53: 17730.18 | D53: 20 | E53: 12834 | F53: 0.2658672277 | G53: 0.7596272838 | H53: 13468.32847
B54: GCH6 | C54: 32721.12 | D54: 21 | E54: 12644 | F54: 0.2698623853 | G54: 0.748381438 | H54: 24487.87884
B55: GCH9 | C55: 479429.598 | D55: 63 | E55: 10070 | F55: 0.3388421053 | G55: 0.5960298229 | H55: 285754.3384
B56: GCH10 | C56: 461289.348 | D56: 63 | E56: 10070 | F56: 0.3388421053 | G56: 0.5960298229 | H56: 274942.2084
B57: GCH11 | C57: 201328.7141 | D57: 63 | E57: 10070 | F57: 0.3388421053 | G57: 0.5960298229 | H57: 119997.9178
B58: GCH12 | C58: 616226.289 | D58: 96 | E58: 7211 | F58: 0.4731854112 | G58: 0.4268094392 | H58: 263011.1969
B59: Karachipampa | D59: =+D60 -> 14 | E59: =+E60 -> 11860 | F59: 0.2877015177 | G59: 0.7019775273 | H59: =+G59*C59 -> 0
B60: KAR1 | C60: 84986.5836 | D60: 14 | E60: 11860 | F60: 0.2877015177 | G60: 0.7019775273 | H60: =+G60*C60 -> 59658.67181
B61: Kenko | D61: =+SUM(D62:D63) -> 18 | E61: =SUMPRODUCT(D62:D63,E62:E63)/D61 -> 12028 | F61: 0.2836830728 | G61: 0.7119212225 | H61: =+G61*C61 -> 0
B62: KEN1 | C62: 25340.75831 | D62: 9 | E62: 12074 | F62: 0.2826022859 | G62: 0.7146439009 | H62: =+G62*C62 -> 18109.61837
B63: KEN2 | C63: 20555.56487 | D63: 9 | E63: 11982 | F63: 0.2847721582 | G63: 0.709198544 | H63: 14577.97668
B64: Santa Cruz | D64: =+SUM(D65:D66) -> 44 | E64: =SUMPRODUCT(D65:D66,E65:E66)/D64 -> 11761 | F64: 0.2901232888 | G64: 0.6961178498 | H64: =+G64*C64 -> 0
B65: SCZ1 | C65: 23800.9429 | D65: 22 | E65: 11850 | F65: 0.2879443038 | G65: 0.7013856407 | H65: =+G65*C65 -> 16693.63959
B66: SCZ2 | C66: 16188.9 | D66: 22 | E66: 11672 | F66: 0.2923355038 | G66: 0.6908500589 | H66: 11184.10252
B67: Valle Hermoso (VHE) | C67: 438893.555 | D67: =+SUM(D68:D75) -> 116.6 | E67: =SUMPRODUCT(D68:D75,E68:E75)/D67 -> 11302.64357 | F67: 0.301888667 | G67: 0.668988346 | H67: =+G67*C67 -> 293614.6734
B68: VHE1 | D68: 18.52 | E68: 12124 | F68: 0.2814368195 | G68: 0.717603334 | H68: =+G68*C68 -> 0
B69: VHE2 | D69: 18.81 | E69: 12124 | F69: 0.2814368195 | G69: 0.717603334 | H69: 0
B70: VHE3 | D70: 18.32 | E70: 12124 | F70: 0.2814368195 | G70: 0.717603334 | H70: 0
B71: VHE4 | D71: 18.63 | E71: 12124 | F71: 0.2814368195 | G71: 0.717603334 | H71: 0
B72: VHE5 | D72: 10.58 | E72: 9861 | F72: 0.3460237298 | G72: 0.5836593926 | H72: 0
B73: VHE6 | D73: 10.58 | E73: 9861 | F73: 0.3460237298 | G73: 0.5836593926 | H73: 0
B74: VHE7 | D74: 10.58 | E74: 9861 | F74: 0.3460237298 | G74: 0.5836593926 | H74: 0
B75: VHE8 | D75: 10.58 | E75: 9861 | F75: 0.3460237298 | G75: 0.5836593926 | H75: 0
B77: Plant Unit | C77: Generation [MWh]
B78: Hydropower | C78: =SUM(C79:C141) -> 2514863.619
B79: Angostura
B80: ANG1 | C80: 8655.151
B81: ANG2 | C81: 3998.696
B82: ANG3 | C82: 6891.603
B83: Botijlaca
B84: BOT1 | C84: 8548.19
B85: BOT2 | C85: 7028.019
B86: BOT3 | C86: 22174.723
B87: Cahua
B88: CAH1 | C88: 86457.891
B89: CAH2 | C89: 84764.018
B90: Carabuco
B91: CRB | C91: 45495.326
B92: Chojlla
B93: CHJ1y2 | C93: 3766.921545
B94: CHJ | C94: 141958.0827
B95: Choquetanga
B96: CHO1 | C96: 12482.19
B97: CHO2 | C97: 15518.907
B98: CHO3 | C98: 12150.215
B99: Chururaqui
B100: CHU1 | C100: 71908.643
B101: CHU2 | C101: 72200.595
B102: Corani
B103: COR1234 | C103: 373791.26
B104: Cuticucho
B105: CUT1 | C105: 6458.43
B106: CUT2 | C106: 5753.34
B107: CUT3 | C107: 6045.047
B108: CUT4 | C108: 4570.038
B109: CUT5 | C109: 80968.934
B110: Harca
B111: HAR1 | C111: 86076.892
B112: HAR2 | C112: 79960.058
B113: Huaji
B114: HUA1 | C114: 105447.589
B115: HUA2 | C115: 99492.22
B116: Kanata
B117: KAN1 | C117: 16358.64
B118: Kilpani
B119: KIL123 | C119: 42148.482
B120: Landara
B121: LAN123 | C121: 18995.719
B122: Miguilla
B123: MIG1 | C123: 4552.424
B124: MIG2 | C124: 4698.227
B125: Punutuma
B126: PUN1 | C126: 16688.196
B127: Quehata
B128: QUE | C128: 7388.4
B129: Sainani
B130: SAI1 | C130: 70554.084
B131: Santa Isabel
B132: SIS12345 | C132: 555713.26
B133: Santa Rosa
B134: SRO1 | C134: 36699.026
B135: SRO2 | C135: 45291.725
B136: Tiquimani
B137: TIQ1 | C137: 11358.186
B138: Yanacachi
B139: YAN | C139: 223487.3474
B140: Zongo
B141: ZON1 | C141: 8366.923
B143: Plant Unit | C143: Generation [MWh/y]
B144: Biomass | C144: =+SUM(C145:C146) -> 79491
B145: Guabirá
B146: GBE1 | C146: 79491
B148: Plant Unit | C148: Generation [MWh/y]
B149: Wind | C149: =+SUM(C150:C151) -> 36.5285
B150: Qollpana
B151: QOL12 | C151: 36.5285

Sheet OM_EF_2012
B3: Operating margin emissions factor | D3: 2012
B6: Total generation | C6: =+C7+C9 -> 6861925.926
B7: Renewable energy [MWh] | C7: =+C77+C143 -> 2386578.665
B8: Renewable energy [%] | C8: =+C7/C6 -> 0.3478001207
B9: Fossil fuels [MWh] | C9: =+C22 -> 4475347.261
B10: Fossil fuels [%] | C10: =+C9/C6 -> 0.6521998793
B12: Constants and conversion factors
B13: Conversion factor [BTU - kWh] | C13: 3412.14
B14: Emission factor natural gas [tCO2/GJ] | C14: 0.0561
B15: Conversion factor [GJ - MWh] | C15: 3.6
B17: EFgrid,OM-ave,2010 [tCO2/MWh] | C17: =+H22/C6 -> 0.4106149992
B19: EFgrid,OM-ave,2010 [tCO2/MWh] | C19: =+H22/C9 -> 0.6295845986
B21: Plant Unit | C21: Generation [MWh] | D21: Capacity [MW] | E21: Heat rate [BTU/kWh] | F21: Efficiency [%] | G21: Emission factor [tCO2/MWh] | H21: GHG emissions [tCO2]
B22: Natural gas | C22: =SUM(C23:C74) -> 4475347.261 | H22: =SUM(H23:H74) -> 2817609.709
B23: El Alto | D23: =+SUM(D24) -> 17.5 | E23: =+E24 -> 9682 | F23: =1/(E23/$C$13) -> 0.3524209874 | G23: =+$C$14*$C$15/F23 -> 0.5730646222 | H23: =+G23*C23 -> 0
B24: ALT1 | C24: 57810.7089 | D24: 17.5 | E24: 9682 | F24: =1/(E24/$C$13) -> 0.3524209874 | G24: =+$C$14*$C$15/F24 -> 0.5730646222 | H24: =+G24*C24 -> 33129.27206
B25: Aranjuez | D25: =+SUM(D26:D36) -> 41 | E25: =SUMPRODUCT(D26:D36,E26:E36)/D25 -> 10376.95122 | F25: 0.3288191231 | G25: 0.6141978548 | H25: =+G25*C25 -> 0
B26: ARJ1 | C26: 6370.205515 | D26: 3 | E26: 10201 | F26: =1/(E26/$C$13) -> 0.3344907362 | G26: =+$C$14*$C$15/F26 -> 0.6037835376 | H26: =+G26*C26 -> 3846.225221
B27: ARJ2 | C27: 0 | D27: 3 | E27: 10201 | F27: 0.3344907362 | G27: 0.6037835376 | H27: =+G27*C27 -> 0
B28: ARJ3 | C28: 7512.44944 | D28: 3 | E28: 10201 | F28: 0.3344907362 | G28: 0.6037835376 | H28: 4535.893299
B29: ARJ8 | C29: 116890.92 | D29: 18 | E29: 11497 | F29: 0.2967852483 | G29: 0.6804920431 | H29: 79543.34097
B30: ARJ9 | C30: 1184.838632 | D30: 2 | E30: 9050 | F30: 0.3770320442 | G30: 0.535657388 | H30: 634.6675669
B31: ARJ10 | C31: 8797.995819 | D31: 2 | E31: 9050 | F31: 0.3770320442 | G31: 0.535657388 | H31: 4712.711461
B32: ARJ11 | C32: 8208.257779 | D32: 2 | E32: 9050 | F32: 0.3770320442 | G32: 0.535657388 | H32: 4396.813922
B33: ARJ12 | C33: 11548.43109 | D33: 2 | E33: 9050 | F33: 0.3770320442 | G33: 0.535657388 | H33: 6186.002432
B34: ARJ13 | C34: 10087.29019 | D34: 2 | E34: 9050 | F34: 0.3770320442 | G34: 0.535657388 | H34: 5403.331514
B35: ARJ14 | C35: 9538.652815 | D35: 2 | E35: 9050 | F35: 0.3770320442 | G35: 0.535657388 | H35: 5109.449852
B36: ARJ15 | C36: 11580.99053 | D36: 2 | E36: 9050 | F36: 0.3770320442 | G36: 0.535657388 | H36: 6203.443138
B37: Bulo Bulo | D37: =+SUM(D38:D39) -> 90 | E37: =SUMPRODUCT(D38:D39,E38:E39)/D37 -> 8557.5 | F37: 0.3987309378 | G37: 0.5065069722 | H37: =+G37*C37 -> 0
B38: BUL1 | C38: 106480 | D38: 45 | E38: 8389 | F38: 0.4067397783 | G38: 0.4965336827 | H38: =+G38*C38 -> 52870.90653
B39: BUL2 | C39: 289542 | D39: 45 | E39: 8726 | F39: 0.3910314004 | G39: 0.5164802617 | H39: 149542.7279
B40: Carrasco | C40: 772580.2 | D40: =+SUM(D41:D42) -> 112 | E40: =SUMPRODUCT(D41:D43,E41:E43)/D40 -> 11949.96786 | F40: =1/(E40/$C$13) -> 0.2855354961 | G40: 0.7073026044 | H40: =+G40*C40 -> 546447.9875
B41: CAR1 | D41: 56 | E41: 9830 | F41: 0.3471149542 | G41: 0.5818245441
B42: CAR2 | D42: 56 | E42: 9830 | F42: 0.3471149542 | G42: 0.5818245441
B43: CAR3 | D43: 24.4 | E43: 9731 | F43: 0.3506463878 | G43: 0.5759648666 | H43: =+G43*C43 -> 0
B44: Entre Ríos | D44: =+SUM(D45:D46) -> 46 | E44: =SUMPRODUCT(D45:D46,E45:E46)/D44 -> 10103.5 | F44: 0.3377186124 | G44: 0.5980126431 | H44: =+G44*C44 -> 0
B45: ERI01 | C45: 193238 | D45: 23 | E45: 10157 | F45: 0.335939746 | G45: 0.6011792365 | H45: =+G45*C45 -> 116170.6733
B46: ERI02 | C46: 193432 | D46: 23 | E46: 10050 | F46: 0.3395164179 | G46: 0.5948460497 | H46: 115062.2611
B47: ERI03 | C47: 196674 | D47: 25 | E47: 10060 | F47: 0.3391789264 | G47: 0.5954379363 | H47: 117107.1607
B48: ERI04 | C48: 183871 | D48: 25 | E48: 10033 | F48: 0.3400916974 | G48: 0.5938398424 | H48: 109189.9257
B49: Guaracachi | D49: =+SUM(D50:D56) -> 272 | E49: =SUMPRODUCT(D50:D56,E50:E56)/D49 -> 10811.38235 | F49: 0.3156062646 | G49: 0.6399112522 | H49: =+G49*C49 -> 0
B50: GCH1 | C50: 44186.28 | D50: 22 | E50: 11971 | F50: 0.2850338318 | G50: 0.7085474687 | H50: =+G50*C50 -> 31308.07685
B51: GCH2 | C51: 31007.91 | D51: 20 | E51: 12595 | F51: 0.2709122668 | G51: 0.7454811936 | H51: 23115.81376
B52: GCH4 | C52: 40516.368 | D52: 20 | E52: 12834 | F52: 0.2658672277 | G52: 0.7596272838 | H52: 30777.33857
B53: GCH6 | C53: 79926.345 | D53: 21 | E53: 12644 | F53: 0.2698623853 | G53: 0.748381438 | H53: 59815.39301
B54: GCH9 | C54: 345670.74 | D54: 63 | E54: 10070 | F54: =1/(E54/$C$13) -> 0.3388421053 | G54: =+$C$14*$C$15/F54 -> 0.5960298229 | H54: 206030.07
B55: GCH10 | C55: 425317.902 | D55: 63 | E55: 10070 | F55: 0.3388421053 | G55: 0.5960298229 | H55: 253502.1538
B56: GCH11 | C56: 215762.2583 | D56: 63 | E56: 10070 | F56: 0.3388421053 | G56: 0.5960298229 | H56: =+G56*C56 -> 128600.7406
B57: GCH12 | C57: 369449.514 | E57: 10070 | F57: 0.3388421053 | G57: 0.5960298229 | H57: 220202.9284
B58: Karachipampa | D58: =+D59 -> 14 | E58: =+E59 -> 11860 | F58: 0.2877015177 | G58: 0.7019775273 | H58: =+G58*C58 -> 0
B59: KAR1 | C59: 60267.49772 | D59: 14 | E59: 11860 | F59: 0.2877015177 | G59: 0.7019775273 | H59: =+G59*C59 -> 42306.42903
B60: Kenko | D60: =+SUM(D61:D62) -> 18 | E60: =SUMPRODUCT(D61:D62,E61:E62)/D60 -> 12074 | F60: 0.2826022859 | G60: 0.7146439009 | H60: =+G60*C60 -> 0
B61: KEN1 | C61: 50792.9475 | D61: 9 | E61: 12074 | F61: 0.2826022859 | G61: 0.7146439009 | H61: =+G61*C61 -> 36298.87014
B62: KEN2 | C62: 52201.957 | D62: 9 | E62: 12074 | F62: 0.2826022859 | G62: 0.7146439009 | H62: 37305.81018
B63: Santa Cruz | D63: =+SUM(D64:D65) -> 44 | E63: =SUMPRODUCT(D64:D65,E64:E65)/D63 -> 11761 | F63: 0.2901232888 | G63: 0.6961178498 | H63: =+G63*C63 -> 0
B64: SCZ1 | C64: 69552.7875 | D64: 22 | E64: 11850 | F64: 0.2879443038 | G64: 0.7013856407 | H64: =+G64*C64 -> 48783.32642
B65: SCZ2 | C65: 63985.62 | D65: 22 | E65: 11672 | F65: 0.2923355038 | G65: 0.6908500589 | H65: 44204.46935
B66: Valle Hermoso (VHE) | C66: 441361.193 | D66: =+SUM(D67:D74) -> 116.6 | E66: =SUMPRODUCT(D67:D74,E67:E74)/D66 -> 11302.64357 | F66: 0.301888667 | G66: 0.668988346 | H66: =+G66*C66 -> 295265.4945
B67: VHE1 | D67: 18.52 | E67: 12124 | F67: 0.2814368195 | G67: 0.717603334 | H67: =+G67*C67 -> 0
B68: VHE2 | D68: 18.81 | E68: 12124 | F68: 0.2814368195 | G68: 0.717603334 | H68: 0
B69: VHE3 | D69: 18.32 | E69: 12124 | F69: 0.2814368195 | G69: 0.717603334 | H69: 0
B70: VHE4 | D70: 18.63 | E70: 12124 | F70: 0.2814368195 | G70: 0.717603334 | H70: 0
B71: VHE5 | D71: 10.58 | E71: 9861 | F71: 0.3460237298 | G71: 0.5836593926 | H71: =+G71*C71 -> 0
B72: VHE6 | D72: 10.58 | E72: 9861 | F72: 0.3460237298 | G72: 0.5836593926 | H72: 0
B73: VHE7 | D73: 10.58 | E73: 9861 | F73: 0.3460237298 | G73: 0.5836593926 | H73: 0
B74: VHE8 | D74: 10.58 | E74: 9861 | F74: 0.3460237298 | G74: 0.5836593926 | H74: =+G74*C74 -> 0
B76: Plant Unit | C76: Generation [MWh]
B77: Hydropower | C77: =SUM(C78:C140) -> 2322084.465
B78: Angostura
B79: ANG1 | C79: 10232.769
B80: ANG2 | C80: 4981.526
B81: ANG3 | C81: 7386.07
B82: Botijlaca
B83: BOT1 | C83: 8717.69
B84: BOT2 | C84: 7359.012
B85: BOT3 | C85: 22706.516
B86: Cahua
B87: CAH1 | C87: 51281.208
B88: CAH2 | C88: 83285.34
B89: Carabuco
B90: CRB | C90: 43164.041
B91: Chojlla
B92: CHJ1y2 | C92: 5549.074273
B93: CHJ | C93: 135330.642
B94: Choquetanga
B95: CHO1 | C95: 12408.23
B96: CHO2 | C96: 15012.158
B97: CHO3 | C97: 12088.936
B98: Chururaqui
B99: CHU1 | C99: 69551.443
B100: CHU2 | C100: 64736.138
B101: Corani
B102: COR1234 | C102: 325459.12
B103: Cuticucho
B104: CUT1 | C104: 9415.135
B105: CUT2 | C105: 8698.524
B106: CUT3 | C106: 8820.174
B107: CUT4 | C107: 6336.64
B108: CUT5 | C108: 92591.82
B109: Harca
B110: HAR1 | C110: 78452.137
B111: HAR2 | C111: 73415.542
B112: Huaji
B113: HUA1 | C113: 95119.72
B114: HUA2 | C114: 94138.09
B115: Kanata
B116: KAN1 | C116: 20815.78
B117: Kilpani
B118: KIL123 | C118: 41587.582
B119: Landara
B120: LAN123 | C120: 17535.357
B121: Miguilla
B122: MIG1 | C122: 4812.643
B123: MIG2 | C123: 4781.625
B124: Punutuma
B125: PUN1 | C125: 18585.001
B126: Quehata
B127: QUE | C127: 6492.9
B128: Sainani
B129: SAI1 | C129: 68123.947
B130: Santa Isabel
B131: SIS12345 | C131: 485267.32
B132: Santa Rosa
B133: SRO1 | C133: 32300.108
B134: SRO2 | C134: 43194.46
B135: Tiquimani
B136: TIQ1 | C136: 12913.74
B137: Yanacachi
B138: YAN | C138: 209706.071
B139: Zongo
B140: ZON1 | C140: 9730.236
B142: Plant Unit | C142: Generation [MWh/y]
B143: Biomass | C143: =+SUM(C144:C145) -> 64494.2
B144: Guabirá
B145: GBE1 | C145: 64494.2

Sheet OM_EF_2011
B3: Operating margin emissions factor | D3: 2011
B6: Total generation | C6: =+C7+C9 -> 6592941.533
B7: Renewable energy [MWh] | C7: =+C72+C138 -> 2388145.984
B8: Renewable energy [%] | C8: =+C7/C6 -> 0.3622276903
B9: Fossil fuels [MWh] | C9: =+C22 -> 4204795.55
B10: Fossil fuels [%] | C10: =+C9/C6 -> 0.6377723097
B12: Constants and conversion factors
B13: Conversion factor [BTU - kWh] | C13: 3412.14
B14: Emission factor natural gas [tCO2/GJ] | C14: 0.0561
B15: Conversion factor [GJ - MWh] | C15: 3.6
B17: EFgrid,OM-ave,2010 [tCO2/MWh] | C17: =+H22/C6 -> 0.3888163639
B19: EFgrid,OM-ave,2010 [tCO2/MWh] | C19: =+H22/C9 -> 0.6096476093
B21: Plant Unit | C21: Generation [MWh] | D21: Capacity [MW] | E21: Heat rate [BTU/kWh] | F21: Efficiency [%] | G21: Emission factor [tCO2/MWh] | H21: GHG emissions [tCO2]
B22: Natural gas | C22: =SUM(C23:C69) -> 4204795.55 | H22: =SUM(H23:H69) -> 2563443.554
B23: Aranjuez | D23: =+SUM(D24:D34) -> 41 | E23: =SUMPRODUCT(D24:D34,E24:E34)/D23 -> 10376.95122 | F23: =1/(E23/$C$13) -> 0.3288191231 | G23: =+$C$14*$C$15/F23 -> 0.6141978548 | H23: =+G23*C23 -> 0
B24: ARJ1 | C24: 1295.25873 | D24: 3 | E24: 10201 | F24: 0.3344907362 | G24: 0.6037835376 | H24: =+G24*C24 -> 782.0558981
B25: ARJ2 | C25: 6630.80579 | D25: 3 | E25: 10201 | F25: 0.3344907362 | G25: 0.6037835376 | H25: =+G25*C25 -> 4003.571377
B26: ARJ3 | C26: 3921.550401 | D26: 3 | E26: 10201 | F26: 0.3344907362 | G26: 0.6037835376 | H26: 2367.767574
B27: ARJ8 | C27: 132236.64 | D27: 18 | E27: 11497 | F27: 0.2967852483 | G27: 0.6804920431 | H27: 89985.98133
B28: ARJ9 | C28: 9389.035841 | D28: 2 | E28: 9050 | F28: 0.3770320442 | G28: 0.535657388 | H28: 5029.306415
B29: ARJ10 | C29: 6762.75858 | D29: 2 | E29: 9050 | F29: 0.3770320442 | G29: 0.535657388 | H29: 3622.521597
B30: ARJ11 | C30: 0 | D30: 2 | E30: 9050 | F30: 0.3770320442 | G30: 0.535657388 | H30: 0
B31: ARJ12 | C31: 6196.934516 | D31: 2 | E31: 9050 | F31: 0.3770320442 | G31: 0.535657388 | H31: 3319.433757
B32: ARJ13 | C32: 8851.283968 | D32: 2 | E32: 9050 | F32: 0.3770320442 | G32: 0.535657388 | H32: 4741.255651
B33: ARJ14 | C33: 10123.33607 | D33: 2 | E33: 9050 | F33: 0.3770320442 | G33: 0.535657388 | H33: 5422.639757
B34: ARJ15 | C34: 4892.938408 | D34: 2 | E34: 9050 | F34: 0.3770320442 | G34: 0.535657388 | H34: 2620.938607
B35: Bulo Bulo | D35: =+SUM(D36:D37) -> 90 | E35: =SUMPRODUCT(D36:D37,E36:E37)/D35 -> 8557.5 | F35: 0.3987309378 | G35: 0.5065069722 | H35: =+G35*C35 -> 0
B36: BUL1 | C36: 327166 | D36: 45 | E36: 8389 | F36: 0.4067397783 | G36: 0.4965336827 | H36: =+G36*C36 -> 162448.9388
B37: BUL2 | C37: 326073 | D37: 45 | E37: 8726 | F37: 0.3910314004 | G37: 0.5164802617 | H37: 168410.2684
B38: Carrasco | C38: 609577.5585 | D38: =+SUM(D39:D40) -> 112 | E38: =SUMPRODUCT(D39:D40,E39:E40)/D38 -> 9830 | F38: 0.3471149542 | G38: 0.5818245441 | H38: =+G38*C38 -> 354667.1851
B39: CAR1 | D39: 56 | E39: 9830 | F39: 0.3471149542 | G39: 0.5818245441
B40: CAR2 | D40: 56 | E40: 9830 | F40: 0.3471149542 | G40: 0.5818245441
B41: CAR3 | C41: 7408.708638 | D41: 24.4 | E41: 9731 | F41: 0.3506463878 | G41: 0.5759648666 | H41: =+G41*C41 -> 4267.155883
B42: Entre Ríos | D42: =+SUM(D43:D44) -> 46 | E42: =SUMPRODUCT(D43:D44,E43:E44)/D42 -> 10103.5 | F42: 0.3377186124 | G42: 0.5980126431 | H42: =+G42*C42 -> 0
B43: ERI01 | C43: 186730 | D43: 23 | E43: 10157 | F43: 0.335939746 | G43: 0.6011792365 | H43: =+G43*C43 -> 112258.1988
B44: ERI02 | C44: 193364 | D44: 23 | E44: 10050 | F44: 0.3395164179 | G44: 0.5948460497 | H44: 115021.8116
B45: ERI03 | C45: 170825 | D45: 25 | E45: 10060 | F45: 0.3391789264 | G45: 0.5954379363 | H45: 101715.6855
B46: ERI04 | C46: 187411 | D46: 25 | E46: 10033 | F46: 0.3400916974 | G46: 0.5938398424 | H46: 111292.1187
B47: Guaracachi | D47: =+SUM(D48:D56) -> 272 | E47: =SUMPRODUCT(D48:D56,E48:E56)/D47 -> 10811.38235 | F47: 0.3156062646 | G47: 0.6399112522 | H47: =+G47*C47 -> 0
B48: GCH1 | C48: 31424.37 | D48: 22 | E48: 11971 | F48: 0.2850338318 | G48: 0.7085474687 | H48: =+G48*C48 -> 22265.65782
B49: GCH2 | C49: 38362.5 | D49: 20 | E49: 12595 | F49: 0.2709122668 | G49: 0.7454811936 | H49: 28598.52229
B50: GCH4 | C50: 65185.068 | D50: 20 | E50: 12834 | F50: 0.2658672277 | G50: 0.7596272838 | H50: 49516.35615
B51: GCH6 | C51: 73021.77 | D51: 21 | E51: 12644 | F51: 0.2698623853 | G51: 0.748381438 | H51: 54648.13724
B52: GCH7
B53: GCH8
B54: GCH9 | C54: 362328.336 | D54: 63 | E54: 10070 | F54: =1/(E54/$C$13) -> 0.3388421053 | G54: =+$C$14*$C$15/F54 -> 0.5960298229 | H54: 215958.4939
B55: GCH10 | C55: 328187.052 | D55: 63 | E55: 10070 | F55: 0.3388421053 | G55: 0.5960298229 | H55: 195609.2705
B56: GCH11 | C56: 362853.2407 | D56: 63 | E56: 10070 | F56: 0.3388421053 | G56: 0.5960298229 | H56: 216271.3528
B57: Karachipampa | D57: =+D58 -> 14 | E57: =+E58 -> 11860 | F57: 0.2877015177 | G57: 0.7019775273 | H57: =+G57*C57 -> 0
B58: KAR1 | C58: 79540.578 | D58: 14 | E58: 11860 | F58: 0.2877015177 | G58: 0.7019775273 | H58: =+G58*C58 -> 55835.69826
B59: Kenko | D59: =+SUM(D60:D61) -> 18 | E59: =SUMPRODUCT(D60:D61,E60:E61)/D59 -> 12074 | F59: 0.2826022859 | G59: 0.7146439009 | H59: =+G59*C59 -> 0
B60: KEN1 | C60: 50444.30312 | D60: 9 | E60: 12074 | F60: 0.2826022859 | G60: 0.7146439009 | H60: =+G60*C60 -> 36049.71356
B61: KEN2 | C61: 50578.20975 | D61: 9 | E61: 12074 | F61: 0.2826022859 | G61: 0.7146439009 | H61: 36145.40912
B62: Santa Cruz | D62: =+SUM(D63:D64) -> 44 | E62: =SUMPRODUCT(D63:D64,E63:E64)/D62 -> 11761 | F62: 0.2901232888 | G62: 0.6961178498 | H62: =+G62*C62 -> 0
B63: SCZ1 | C63: 82841.6925 | D63: 22 | E63: 11850 | F63: 0.2879443038 | G63: 0.7013856407 | H63: =+G63*C63 -> 58103.97357
B64: SCZ2 | C64: 105667.14 | D64: 22 | E64: 11672 | F64: 0.2923355038 | G64: 0.6908500589 | H64: 73000.14989
B65: Valle Hermoso (VHE) | C65: 375505.48 | D65: =+SUM(D66:D69) -> 72 | E65: =SUMPRODUCT(D66:D69,E66:E69)/D65 -> 12124 | F65: 0.2814368195 | G65: 0.717603334 | H65: =+G65*C65 -> 269463.9844
B66: VHE1 | D66: 18 | E66: 12124 | F66: 0.2814368195 | G66: 0.717603334 | H66: =+G66*C66 -> 0
B67: VHE2 | D67: 18 | E67: 12124 | F67: 0.2814368195 | G67: 0.717603334 | H67: 0
B68: VHE3 | D68: 18 | E68: 12124 | F68: 0.2814368195 | G68: 0.717603334 | H68: 0
B69: VHE4 | D69: 18 | E69: 12124 | F69: 0.2814368195 | G69: 0.717603334 | H69: 0
B71: Plant Unit | C71: Generation [MWh]
B72: Hydropower | C72: =SUM(C73:C135) -> 2324105.464
B73: Angostura
B74: ANG1 | C74: 8656.585
B75: ANG2 | C75: 5139.198
B76: ANG3 | C76: 6575.517
B77: Botijlaca
B78: BOT1 | C78: 8621.266
B79: BOT2 | C79: 7153.313
B80: BOT3 | C80: 20814.348
B81: Cahua
B82: CAH1 | C82: 58254.009
B83: CAH2 | C83: 91507.437
B84: Carabuco
B85: CRB | C85: 41999.479
B86: Chojlla
B87: CHJ1y2 | C87: 3270.249673
B88: CHJ | C88: 124388.162
B89: Choquetanga
B90: CHO1 | C90: 11726.216
B91: CHO2 | C91: 13902.389
B92: CHO3 | C92: 11428.677
B93: Chururaqui
B94: CHU1 | C94: 66072.78
B95: CHU2 | C95: 67733.378
B96: Corani
B97: COR1234 | C97: 317689.14
B98: Cuticucho
B99: CUT1 | C99: 9743.347
B100: CUT2 | C100: 9282.077
B101: CUT3 | C101: 9067.503
B102: CUT4 | C102: 6581.793
B103: CUT5 | C103: 94885.142
B104: Harca
B105: HAR1 | C105: 83215.97
B106: HAR2 | C106: 78275.416
B107: Huaji
B108: HUA1 | C108: 95144.05
B109: HUA2 | C109: 98539.03
B110: Kanata
B111: KAN1 | C111: 19288.97
B112: Kilpani
B113: KIL123 | C113: 38528.401
B114: Landara
B115: LAN123 | C115: 17363.157
B116: Miguilla
B117: MIG1 | C117: 4554.105
B118: MIG2 | C118: 4563.411
B119: Punutuma
B120: PUN1 | C120: 17331.444
B121: Quehata
B122: QUE | C122: 4002.56
B123: Sainani
B124: SAI1 | C124: 71701.51
B125: Santa Isabel
B126: SIS12345 | C126: 477614.6
B127: Santa Rosa
B128: SRO1 | C128: 40391.101
B129: SRO2 | C129: 46044.359
B130: Tiquimani
B131: TIQ1 | C131: 15926.226
B132: Yanacachi
B133: YAN | C133: 206067.001
B134: Zongo
B135: ZON1 | C135: 11062.147
B137: Plant Unit | C137: Generation [MWh/y]
B138: Biomass | C138: =+SUM(C139:C140) -> 64040.52
B139: Guabirá
B140: GBE1 | C140: 64040.52

Sheet OM_EF_2010
B3: Operating margin emissions factor | D3: 2010
B6: Total generation | C6: =+C7+C9 -> 6085440.865
B7: Renewable energy [MWh] | C7: =+C74+C140 -> 2209585.15
B8: Renewable energy [%] | C8: =+C7/C6 -> 0.3630936852
B9: Fossil fuels [MWh] | C9: =+C23 -> 3875855.715
B10: Fossil fuels [%] | C10: =+C9/C6 -> 0.6369063148
B12: Constants and conversion factors
B13: Conversion factor [BTU - kWh] | C13: 3412.14
B14: Emission factor natural gas [tCO2/GJ] | C14: 0.0561
B15: Conversion factor [GJ - MWh] | C15: 3.6
B17: EFgrid,OM-ave,2010 [tCO2/MWh] | C17: =+H23/C6 -> 0.3890598651
B19: EFgrid,OM-ave,2010 [tCO2/MWh] | C19: =+H23/C9 -> 0.6108588596
B22: Plant Unit | C22: Generation [MWh] | D22: Capacity [MW] | E22: Heat rate [BTU/kWh] | F22: Efficiency [%] | G22: Emission factor [tCO2/MWh] | H22: GHG emissions [tCO2]
B23: Natural gas | C23: =SUM(C24:C71) -> 3875855.715 | H23: =SUM(H24:H71) -> 2367600.802
B24: Aranjuez | D24: =+SUM(D25:D37) -> 47 | E24: =SUMPRODUCT(D25:D37,E25:E37)/D24 -> 10354.48936 | F24: =1/(E24/$C$13) -> 0.3295324261 | G24: =+$C$14*$C$15/F24 -> 0.6128683675 | H24: =+G24*C24 -> 0
B25: ARJ1 | C25: 0 | D25: 3 | E25: 10201 | F25: 0.3344907362 | G25: 0.6037835376 | H25: =+G25*C25 -> 0
B26: ARJ2 | C26: 7078.176123 | D26: 3 | E26: 10201 | F26: 0.3344907362 | G26: 0.6037835376 | H26: =+G26*C26 -> 4273.686219
B27: ARJ3 | C27: 6933.803202 | D27: 3 | E27: 10201 | F27: 0.3344907362 | G27: 0.6037835376 | H27: 4186.516226
B28: ARJ5 | C28: 0 | D28: 3 | E28: 10201 | F28: 0.3344907362 | G28: 0.6037835376 | H28: 0
B29: ARJ6 | C29: 2.1599455 | D29: 3 | E29: 10201 | F29: 0.3344907362 | G29: 0.6037835376 | H29: 1.304139535
B30: ARJ8 | C30: 128803.56 | D30: 18 | E30: 11497 | F30: 0.2967852483 | G30: 0.6804920431 | H30: 87649.79771
B31: ARJ9 | C31: 8515.644332 | D31: 2 | E31: 9050 | F31: 0.3770320442 | G31: 0.535657388 | H31: 4561.4678
B32: ARJ10 | C32: 5375.3301 | D32: 2 | E32: 9050 | F32: 0.3770320442 | G32: 0.535657388 | H32: 2879.335281
B33: ARJ11 | C33: 5023.210781 | D33: 2 | E33: 9050 | F33: 0.3770320442 | G33: 0.535657388 | H33: 2690.719967
B34: ARJ12 | C34: 2147.392315 | D34: 2 | E34: 9050 | F34: 0.3770320442 | G34: 0.535657388 | H34: 1150.266558
B35: ARJ13 | C35: 8526.900641 | D35: 2 | E35: 9050 | F35: 0.3770320442 | G35: 0.535657388 | H35: 4567.497325
B36: ARJ14 | C36: 7797.82554 | D36: 2 | E36: 9050 | F36: 0.3770320442 | G36: 0.535657388 | H36: 4176.962861
B37: ARJ15 | C37: 0 | D37: 2 | E37: 9050 | F37: 0.3770320442 | G37: 0.535657388 | H37: 0
B38: Bulo Bulo | D38: =+SUM(D39:D40) -> 90 | E38: =SUMPRODUCT(D39:D40,E39:E40)/D38 -> 8696 | F38: 0.3923804048 | G38: 0.5147046018 | H38: =+G38*C38 -> 0
B39: BUL1 | C39: 320717 | D39: 45 | E39: 8455 | F39: 0.4035647546 | G39: 0.5004401343 | H39: =+G39*C39 -> 160499.6586
B40: BUL2 | C40: 331746 | D40: 45 | E40: 8937 | F40: 0.3817992615 | G40: 0.5289690693 | H40: 175483.3729
B41: Carrasco | C41: 743118.8202 | D41: =+SUM(D42:D43) -> 112 | E41: =SUMPRODUCT(D42:D43,E42:E43)/D41 -> 9830 | F41: 0.3471149542 | G41: 0.5818245441 | H41: =+G41*C41 -> 432364.7688
B42: CAR1 | D42: 56 | E42: 9830 | F42: 0.3471149542 | G42: 0.5818245441
B43: CAR2 | D43: 56 | E43: 9830 | F43: 0.3471149542 | G43: 0.5818245441
B44: Entre Ríos | D44: =+SUM(D45:D46) -> 46 | E44: =SUMPRODUCT(D45:D46,E45:E46)/D44 -> 10103.5 | F44: 0.3377186124 | G44: 0.5980126431 | H44: =+G44*C44 -> 0
B45: ERI01 | C45: 94768 | D45: 23 | E45: 10157 | F45: 0.335939746 | G45: 0.6011792365 | H45: =+G45*C45 -> 56972.55388
B46: ERI02 | C46: 123773.2823 | D46: 23 | E46: 10050 | F46: 0.3395164179 | G46: 0.5948460497 | H46: 73626.04806
B47: ERI03 | C47: 109541.1268 | D47: 25 | E47: 10060 | F47: 0.3391789264 | G47: 0.5954379363 | H47: 65224.94246
B48: ERI04 | C48: 77401.001 | D48: 25 | E48: 10033 | F48: 0.3400916974 | G48: 0.5938398424 | H48: 45963.79824
B49: Guaracachi | D49: =+SUM(D50:D58) -> 272 | E49: =SUMPRODUCT(D50:D58,E50:E58)/D49 -> 10811.38235 | F49: 0.3156062646 | G49: 0.6399112522 | H49: =+G49*C49 -> 0
B50: GCH1 | C50: 54977.58 | D50: 22 | E50: 11971 | F50: 0.2850338318 | G50: 0.7085474687 | H50: =+G50*C50 -> 38954.22515
B51: GCH2 | C51: 44343.57 | D51: 20 | E51: 12595 | F51: 0.2709122668 | G51: 0.7454811936 | H51: 33057.29749
B52: GCH4 | C52: 35434.59 | D52: 20 | E52: 12834 | F52: 0.2658672277 | G52: 0.7596272838 | H52: 26917.08135
B53: GCH6 | C53: 47583.18 | D53: 21 | E53: 12644 | F53: 0.2698623853 | G53: 0.748381438 | H53: 35610.36868
B54: GCH7
B55: GCH8
B56: GCH9 | C56: 304167.352 | D56: 63 | E56: 10070 | F56: =1/(E56/$C$13) -> 0.3388421053 | G56: =+$C$14*$C$15/F56 -> 0.5960298229 | H56: 181292.813
B57: GCH10 | C57: 274064.728 | D57: 63 | E57: 10070 | F57: 0.3388421053 | G57: 0.5960298229 | H57: 163350.7513
B58: GCH11 | C58: 386364.6331 | D58: 63 | E58: 10070 | F58: 0.3388421053 | G58: 0.5960298229 | H58: 230284.8438
B59: Karachipampa | D59: =+D60 -> 14 | E59: =+E60 -> 11860 | F59: 0.2877015177 | G59: 0.7019775273 | H59: =+G59*C59 -> 0
B60: KAR1 | C60: 80691.73504 | D60: 14 | E60: 11860 | F60: 0.2877015177 | G60: 0.7019775273 | H60: =+G60*C60 -> 56643.78464
B61: Kenko | D61: =+SUM(D62:D63) -> 18 | E61: =SUMPRODUCT(D62:D63,E62:E63)/D61 -> 12145 | F61: 0.2809501853 | G61: 0.7188462959 | H61: =+G61*C61 -> 0
B62: KEN1 | C62: 46977.26562 | D62: 9 | E62: 12145 | F62: 0.2809501853 | G62: 0.7188462959 | H62: =+G62*C62 -> 33769.43338
B63: KEN2 | C63: 47451.323 | D63: 9 | E63: 12145 | F63: 0.2809501853 | G63: 0.7188462959 | H63: 34110.20777
B64: Santa Cruz | D64: =+SUM(D65:D66) -> 44 | E64: =SUMPRODUCT(D65:D66,E65:E66)/D64 -> 11761 | F64: 0.2901232888 | G64: 0.6961178498 | H64: =+G64*C64 -> 0
B65: SCZ1 | C65: 73485.585 | D65: 22 | E65: 11850 | F65: 0.2879443038 | G65: 0.7013856407 | H65: =+G65*C65 -> 51541.73412
B66: SCZ2 | C66: 86746.32 | D66: 22 | E66: 11672 | F66: 0.2923355038 | G66: 0.6908500589 | H66: 59928.70028
B67: Valle Hermoso (VHE) | C67: 412298.62 | D67: =+SUM(D68:D71) -> 72 | E67: =SUMPRODUCT(D68:D71,E68:E71)/D67 -> 12124 | F67: 0.2814368195 | G67: 0.717603334 | H67: =+G67*C67 -> 295866.8643
B68: VHE1 | D68: 18 | E68: 12124 | F68: 0.2814368195 | G68: 0.717603334 | H68: =+G68*C68 -> 0
B69: VHE2 | D69: 18 | E69: 12124 | F69: 0.2814368195 | G69: 0.717603334 | H69: 0
B70: VHE3 | D70: 18 | E70: 12124 | F70: 0.2814368195 | G70: 0.717603334 | H70: 0
B71: VHE4 | D71: 18 | E71: 12124 | F71: 0.2814368195 | G71: 0.717603334 | H71: 0
B73: Plant Unit | C73: Generation [MWh]
B74: Hydropower | C74: =SUM(C75:C137) -> 2151428.98
B75: Angostura
B76: ANG1 | C76: 9271.1
B77: ANG2 | C77: 4843.5
B78: ANG3 | C78: 5760.916
B79: Botijlaca
B80: BOT1 | C80: 7849.874
B81: BOT2 | C81: 6640.692
B82: BOT3 | C82: 21561.253
B83: Cahua
B84: CAH1 | C84: 79039.576
B85: CAH2 | C85: 81435.837
B86: Carabuco
B87: CRB | C87: 43231.955
B88: Chojlla
B89: CHJ1y2 | C89: 5956.35675
B90: CHJ | C90: 106123.258
B91: Choquetanga
B92: CHO1 | C92: 12172.712
B93: CHO2 | C93: 14106.915
B94: CHO3 | C94: 11843.383
B95: Chururaqui
B96: CHU1 | C96: 63528.492
B97: CHU2 | C97: 62589.967
B98: Corani
B99: COR1234 | C99: 280767.663
B100: Cuticucho
B101: CUT1 | C101: 7186.324
B102: CUT2 | C102: 6993.139
B103: CUT3 | C103: 6822.617
B104: CUT4 | C104: 5297.483
B105: CUT5 | C105: 90321.68
B106: Harca
B107: HAR1 | C107: 79080.591
B108: HAR2 | C108: 77042.934
B109: Huaji
B110: HUA1 | C110: 95760.287
B111: HUA2 | C111: 93799.605
B112: Kanata
B113: KAN1 | C113: 14119.3
B114: Kilpani
B115: KIL123 | C115: 40270.455
B116: Landara
B117: LAN123 | C117: 14596.415
B118: Miguilla
B119: MIG1 | C119: 4114
B120: MIG2 | C120: 4195
B121: Punutuma
B122: PUN1 | C122: 16964.522
B123: Quehata
B124: QUE | C124: 3310.4
B125: Sainani
B126: SAI1 | C126: 66898.477
B127: Santa Isabel
B128: SIS12345 | C128: 418380.171
B129: Santa Rosa
B130: SRO1 | C130: 35381.828
B131: SRO2 | C131: 43128.714
B132: Tiquimani
B133: TIQ1 | C133: 8884.209
B134: Yanacachi
B135: YAN | C135: 190812.2633
B136: Zongo
B137: ZON1 | C137: 11345.116
B139: Plant Unit | C139: Generation [MWh/y]
B140: Biomass | C140: =+SUM(C141:C142) -> 58156.17
B141: Guabirá
B142: GBE1 | C142: 58156.17

Sheet OM_EF_2009
B3: Operating margin emissions factor | D3: 2009
B6: Total generation | C6: =+C7+C9 -> 5632658.087
B7: Renewable energy [MWh] | C7: =+C68+C134 -> 2323968.515
B8: Renewable energy [%] | C8: =+C7/C6 -> 0.412588245
B9: Fossil fuels [MWh] | C9: =+C22 -> 3308689.573
B10: Fossil fuels [%] | C10: =+C9/C6 -> 0.587411755
B12: Constants and conversion factors
B13: Conversion factor [BTU - kWh] | C13: 3412.14
B14: Emission factor natural gas [tCO2/GJ] | C14: 0.0561
B15: Conversion factor [GJ - MWh] | C15: 3.6
B17: EFgrid,OM-ave,2009 [tCO2/MWh] | C17: =+H22/C6 -> 0.3583690552
B19: EFgrid,OM-ave,2009 [tCO2/MWh] | C19: =+H22/C9 -> 0.610081518
B21: Plant Unit | C21: Generation [MWh] | D21: Capacity [MW] | E21: Heat rate [BTU/kWh] | F21: Efficiency [%] | G21: Emission factor [tCO2/MWh] | H21: GHG emissions [tCO2]
B22: Natural gas | C22: =SUM(C23:C65) -> 3308689.573 | H22: =SUM(H23:H65) -> 2018570.357
B23: Aranjuez | D23: =+SUM(D24:D36) -> 47 | E23: =SUMPRODUCT(D24:D36,E24:E36)/D23 -> 10354.48936 | F23: =1/(E23/$C$13) -> 0.3295324261 | G23: =+$C$14*$C$15/F23 -> 0.6128683675 | H23: =+G23*C23 -> 0
B24: ARJ1 | C24: 5851.965734 | D24: 3 | E24: 10201 | F24: 0.3344907362 | G24: 0.6037835376 | H24: =+G24*C24 -> 3533.320573
B25: ARJ2 | C25: 2175.537795 | D25: 3 | E25: 10201 | F25: 0.3344907362 | G25: 0.6037835376 | H25: =+G25*C25 -> 1313.553906
B26: ARJ3 | C26: 2252.512868 | D26: 3 | E26: 10201 | F26: 0.3344907362 | G26: 0.6037835376 | H26: 1360.030188
B27: ARJ5 | C27: 2544.76176 | D27: 3 | E27: 10201 | F27: 0.3344907362 | G27: 0.6037835376 | H27: 1536.485258
B28: ARJ6 | C28: 2150.676969 | D28: 3 | E28: 10201 | F28: 0.3344907362 | G28: 0.6037835376 | H28: 1298.543349
B29: ARJ8 | C29: 103353.9883 | D29: 18 | E29: 11497 | F29: 0.2967852483 | G29: 0.6804920431 | H29: 70331.56668
B30: ARJ9 | C30: 11031.29936 | D30: 2 | E30: 9050 | F30: 0.3770320442 | G30: 0.535657388 | H30: 5908.997001
B31: ARJ10 | C31: 10810.11669 | D31: 2 | E31: 9050 | F31: 0.3770320442 | G31: 0.535657388 | H31: 5790.518872
B32: ARJ11 | C32: 10819.39979 | D32: 2 | E32: 9050 | F32: 0.3770320442 | G32: 0.535657388 | H32: 5795.491429
B33: ARJ12 | C33: 7067.324886 | D33: 2 | E33: 9050 | F33: 0.3770320442 | G33: 0.535657388 | H33: 3785.664789
B34: ARJ13 | C34: 11050.09117 | D34: 2 | E34: 9050 | F34: 0.3770320442 | G34: 0.535657388 | H34: 5919.062975
B35: ARJ14 | C35: 7370.068936 | D35: 2 | E35: 9050 | F35: 0.3770320442 | G35: 0.535657388 | H35: 3947.831876
B36: ARJ15 | C36: 0 | D36: 2 | E36: 9050 | F36: 0.3770320442 | G36: 0.535657388 | H36: =+G36*C36 -> 0
B37: Bulo Bulo | D37: =+SUM(D38:D39) -> 90 | E37: =SUMPRODUCT(D38:D39,E38:E39)/D37 -> 8696 | F37: 0.3923804048 | G37: 0.5147046018 | H37: =+G37*C37 -> 0
B38: BUL1 | C38: 303179 | D38: 45 | E38: 8455 | F38: 0.4035647546 | G38: 0.5004401343 | H38: =+G38*C38 -> 151722.9395
B39: BUL2 | C39: 327497 | D39: 45 | E39: 8937 | F39: 0.3817992615 | G39: 0.5289690693 | H39: 173235.7833
B40: Carrasco | C40: 622012.59 | D40: =+SUM(D41:D42) -> 112 | E40: =SUMPRODUCT(D41:D42,E41:E42)/D40 -> 9830 | F40: 0.3471149542 | G40: 0.5818245441 | H40: =+G40*C40 -> 361902.1916
B41: CAR1 | D41: 56 | E41: 9830 | F41: 0.3471149542 | G41: 0.5818245441
B42: CAR2 | D42: 56 | E42: 9830 | F42: 0.3471149542 | G42: 0.5818245441
B43: Guaracachi | D43: =+SUM(D44:D52) -> 316 | E43: =SUMPRODUCT(D44:D52,E44:E52)/D43 -> 10943.60759 | F43: 0.3117929778 | G43: 0.6477374873 | H43: =+G43*C43 -> 0
B44: GCH1 | C44: 74126.77867 | D44: 22 | E44: 11971 | F44: 0.2850338318 | G44: 0.7085474687 | H44: =+G44*C44 -> 52522.34139
B45: GCH2 | C45: 55177.35664 | D45: 20 | E45: 12595 | F45: 0.2709122668 | G45: 0.7454811936 | H45: 41133.68169
B46: GCH4 | C46: 34079.31641 | D46: 20 | E46: 12834 | F46: 0.2658672277 | G46: 0.7596272838 | H46: 25887.57856
B47: GCH6 | C47: 42803.13859 | D47: 21 | E47: 12644 | F47: 0.2698623853 | G47: 0.748381438 | H47: 32033.07441
B48: GCH7 | C48: 2585.251 | D48: 22 | E48: 11850 | F48: 0.2879443038 | G48: 0.7013856407 | H48: 1813.257929
B49: GCH8 | C49: 1867.027 | D49: 22 | E49: 11672 | F49: 0.2923355038 | G49: 0.6908500589 | H49: 1289.835713
B50: GCH9 | C50: 280808.8042 | D50: 63 | E50: 10070 | F50: 0.3388421053 | G50: 0.5960298229 | H50: 167370.4218
B51: GCH10 | C51: 338845.1555 | D51: 63 | E51: 10070 | F51: 0.3388421053 | G51: 0.5960298229 | H51: 201961.818
B52: GCH11 | C52: 425665.0024 | D52: 63 | E52: 10070 | F52: 0.3388421053 | G52: 0.5960298229 | H52: 253709.036
B53: Karachipampa | D53: =+D54 -> 14 | E53: =+E54 -> 11860 | F53: 0.2877015177 | G53: 0.7019775273 | H53: =+G53*C53 -> 0
B54: KAR1 | C54: 96307.51441 | D54: 14 | E54: 11860 | F54: 0.2877015177 | G54: 0.7019775273 | H54: =+G54*C54 -> 67605.71082
B55: Kenko | D55: =+SUM(D56:D57) -> 18 | E55: =SUMPRODUCT(D56:D57,E56:E57)/D55 -> 12145 | F55: 0.2809501853 | G55: 0.7188462959 | H55: =+G55*C55 -> 0
B56: KEN1 | C56: 32685.74 | D56: 9 | E56: 12145 | F56: 0.2809501853 | G56: 0.7188462959 | H56: =+G56*C56 -> 23496.02313
B57: KEN2 | C57: 38581.04 | D57: 9 | E57: 12145 | F57: 0.2809501853 | G57: 0.7188462959 | H57: 27733.83769
B58: Santa Cruz | D58: =+SUM(D59:D60) -> 44 | E58: =SUMPRODUCT(D59:D60,E59:E60)/D58 -> 11761 | F58: 0.2901232888 | G58: 0.6961178498 | H58: =+G58*C58 -> 0
B59: SCZ1 | C59: 67712.265 | D59: 22 | E59: 11850 | F59: 0.2879443038 | G59: 0.7013856407 | H59: =+G59*C59 -> 47492.41037
B60: SCZ2 | C60: 55725.8085 | D60: 22 | E60: 11672 | F60: 0.2923355038 | G60: 0.6908500589 | H60: 38498.17808
B61: Valle Hermoso (VHE) | C61: 332553.04 | D61: =+SUM(D62:D65) -> 72 | E61: =SUMPRODUCT(D62:D65,E62:E65)/D61 -> 12124 | F61: 0.2814368195 | G61: 0.717603334 | H61: =+G61*C61 -> 238641.1702
B62: VHE1 | D62: 18 | E62: 12124 | F62: 0.2814368195 | G62: 0.717603334 | H62: =+G62*C62 -> 0
B63: VHE2 | D63: 18 | E63: 12124 | F63: 0.2814368195 | G63: 0.717603334 | H63: 0
B64: VHE3 | D64: 18 | E64: 12124 | F64: 0.2814368195 | G64: 0.717603334 | H64: 0
B65: VHE4 | D65: 18 | E65: 12124 | F65: 0.2814368195 | G65: 0.717603334 | H65: 0
B67: Plant Unit | C67: Generation [MWh]
B68: Hydropower | C68: =SUM(C69:C131) -> 2264298.245
B69: Angostura
B70: ANG1 | C70: 6375.1
B71: ANG2 | C71: 3943.9
B72: ANG3 | C72: 9101.75
B73: Botijlaca
B74: BOT1 | C74: 7295.78
B75: BOT2 | C75: 6980.7
B76: BOT3 | C76: 22324.54
B77: Cahua
B78: CAH1 | C78: 80098.12
B79: CAH2 | C79: 81575.4
B80: Carabuco
B81: CRB | C81: 42325.62
B82: Chojlla
B83: CHJ1y2 | C83: 5273.879
B84: CHJ | C84: 119762.4868
B85: Choquetanga
B86: CHO1 | C86: 13858.9
B87: CHO2 | C87: 9926.27
B88: CHO3 | C88: 13581.15
B89: Chururaqui
B90: CHU1 | C90: 65835.64
B91: CHU2 | C91: 62954.65
B92: Corani
B93: COR1234 | C93: 326422.418
B94: Cuticucho
B95: CUT1 | C95: 8969.89
B96: CUT2 | C96: 8904.26
B97: CUT3 | C97: 8626.38
B98: CUT4 | C98: 6429.08
B99: CUT5 | C99: 91460.58
B100: Harca
B101: HAR1 | C101: 76645.84
B102: HAR2 | C102: 72829.82
B103: Huaji
B104: HUA1 | C104: 89014.59
B105: HUA2 | C105: 85975.38
B106: Kanata
B107: KAN1 | C107: 15643.88
B108: Kilpani
B109: KIL123 | C109: 40036.68
B110: Landara
B111: LAN123 | C111: 17601.85
B112: Miguilla
B113: MIG1 | C113: 4148
B114: MIG2 | C114: 4241
B115: Punutuma
B116: PUN1 | C116: 17051.01
B117: Quehata
B118: QUE | C118: 4897.19
B119: Sainani
B120: SAI1 | C120: 64284.6
B121: Santa Isabel
B122: SIS12345 | C122: 490869.355
B123: Santa Rosa
B124: SRO1 | C124: 35626.61
B125: SRO2 | C125: 22743.23
B126: Tiquimani
B127: TIQ1 | C127: 12186.21
B128: Yanacachi
B129: YAN | C129: 197753.896
B130: Zongo
B131: ZON1 | C131: 10722.61
B133: Plant Unit | C133: Generation [MWh/y]
B134: Biomass | C134: =+SUM(C135:C136) -> 59670.27
B135: Guabirá
B136: GBE1 | C136: 59670.27

Sheet OM_EF_2008
B3: Operating margin emissions factor | D3: 2008
B6: Total generation | C6: =+C17+C60+C126 -> 5360464.509
B7: Renewable energy [MWh] | C7: =+C60+C126 -> 2316679.21
B8: Renewable energy [%] | C8: =+C7/C6 -> 0.432178817
B9: Fossil fuels [MWh] | C9: =+C17 -> 3043785.299
B10: Fossil fuels [%] | C10: =+C9/C6 -> 0.567821183
B12: EFgrid,OM-ave,2008 [tCO2/MWh] | C12: =+E17/C6 -> 0.3405372558
B14: EFgrid,OM-ave,2008 [tCO2/MWh] | C14: =+E17/C9 -> 0.5997262271
B16: Plant Unit | C16: Generation [MWh] | D16: Emission factor* [tCO2/MWh] | E16: GHG emissions [tCO2]
B17: Natural gas | C17: =SUM(C18:C57) -> 3043785.299 | E17: =SUM(E18:E57) -> 1825437.874
B18: Aranjuez
B19: ARJ1 | C19: 1688.520924 | D19: =+Unit_EF_2008!J13 -> 0.6139755364 | E19: =+D19*C19 -> 1036.71054
B20: ARJ2 | C20: 1476.172649 | D20: =+Unit_EF_2008!J14 -> 0.6037835376 | E20: =+D20*C20 -> 891.2887441
B21: ARJ3 | C21: 1166.968429 | D21: =+Unit_EF_2008!J15 -> 0.6037835376 | E21: 704.5963263
B22: ARJ5 | C22: 507.256245 | D22: =+Unit_EF_2008!J16 -> 0.6037835376 | E22: 306.2729701
B23: ARJ6 | C23: 262.669 | D23: =+Unit_EF_2008!J17 -> 0.6037835376 | E23: 158.595218
B24: ARJ8 | C24: 119290.0338 | D24: =+Unit_EF_2008!J18 -> 0.6421377904 | E24: 76600.63872
B25: ARJ9 | C25: 10227.26653 | D25: =+Unit_EF_2008!J19 -> 0.6080747156 | E25: 6218.942186
B26: ARJ10 | C26: 10111.72378 | D26: =+Unit_EF_2008!J20 -> 0.535657388 | E26: 5416.419547
B27: ARJ11 | C27: 10451.81078 | D27: =+Unit_EF_2008!J21 -> 0.535657388 | E27: 5598.589662
B28: ARJ12 | C28: 5931.552 | D28: =+Unit_EF_2008!J22 -> 0.535657388 | E28: 3177.279651
B29: ARJ13
B30: ARJ14
B31: ARJ15 | C31: 2116.11598 | D31: =+Unit_EF_2008!J25 -> 0.535657388 | E31: 1133.513159
B32: Bulo Bulo | E32: 0
B33: BUL1 | C33: 322794 | D33: =+Unit_EF_2008!J27 -> 0.5052788074 | E33: 163100.9674
B34: BUL2 | C34: 310832 | D34: =+Unit_EF_2008!J28 -> 0.5138167719 | E34: 159710.6948
B35: Carrasco | C35: 664563.12 | D35: =+Unit_EF_2008!J29 -> 0.5818245441 | E35: 386659.1343
B36: CAR1
B37: CAR2
B38: Guaracachi
B39: GCH1 | C39: 18837.2 | D39: =+Unit_EF_2008!J33 -> 0.678142478 | E39: 12774.30549
B40: GCH2 | C40: 12728.325 | D40: =+Unit_EF_2008!J34 -> 0.7270143312 | E40: 9253.674687
B41: GCH4 | C41: 4707.258 | D41: =+Unit_EF_2008!J35 -> 0.7340873763 | E41: 3455.538675
B42: GCH6 | C42: 8419.262 | D42: =+Unit_EF_2008!J36 -> 0.7540043609 | E42: 6348.160264
B43: GCH7 | C43: 44315.945 | D43: =+Unit_EF_2008!J37 -> 0.7305064622 | E43: 32373.0842
B44: GCH8 | C44: 70924 | D44: =+Unit_EF_2008!J38 -> 0.6961178498 | E44: 49371.46238
B45: GCH9 | C45: 383101.164 | D45: =+Unit_EF_2008!J39 -> 0.6487077318 | E45: 248520.6872
B46: GCH10 | C46: 353846.016 | D46: =+Unit_EF_2008!J40 -> 0.5960298229 | E46: 210902.7783
B47: GCH11 | C47: 391554.1837 | D47: =+Unit_EF_2008!J41 -> 0.5960298229 | E47: 233377.9708
B48: Karachipampa | E48: 0
B49: KAR1 | C49: 78411.45497 | D49: =+Unit_EF_2008!J43 -> 0.6841617401 | E49: 53646.11748
B50: Kenko | E50: 0
B51: KEN1 | C51: 33335.08 | D51: =+Unit_EF_2008!J45 -> 0.7188462959 | E51: 23962.79878
B52: KEN2 | C52: 183.07 | D52: =+Unit_EF_2008!J46 -> 0.7188462959 | E52: 131.5991914
B53: Valle Hermoso (VHE) | C53: 182003.13 | D53: =+Unit_EF_2008!J50 -> 0.717603334 | E53: 130606.0529
B54: VHE1
B55: VHE2
B56: VHE3
B57: VHE4
B59: Plant Unit | C59: Generation [MWh]
B60: Hydropower | C60: =SUM(C61:C123) -> 2277361
B61: Angostura
B62: ANG1 | C62: 7353
B63: ANG2 | C63: 4765
B64: ANG3 | C64: 0
B65: Botijlaca
B66: BOT1 | C66: 8233
B67: BOT2 | C67: 7921
B68: BOT3 | C68: 19375
B69: Cahua
B70: CAH1 | C70: 75324
B71: CAH2 | C71: 69349
B72: Carabuco
B73: CRB | C73: 42241
B74: Chojlla
B75: CHJ1y2 | C75: 3684
B76: CHJ | C76: 115487
B77: Choquetanga
B78: CHO1 | C78: 12757
B79: CHO2 | C79: 10027
B80: CHO3 | C80: 13598
B81: Chururaqui
B82: CHU1 | C82: 63260
B83: CHU2 | C83: 61634
B84: Corani
B85: COR1234 | C85: 345890
B86: Cuticucho
B87: CUT1 | C87: 6715
B88: CUT2 | C88: 5407
B89: CUT3 | C89: 4786
B90: CUT4 | C90: 4002
B91: CUT5 | C91: 89648
B92: Harca
B93: HAR1 | C93: 76649
B94: HAR2 | C94: 74651
B95: Huaji
B96: HUA1 | C96: 92364
B97: HUA2 | C97: 90381
B98: Kanata
B99: KAN1 | C99: 20476
B100: Kilpani
B101: KIL123 | C101: 38274
B102: Landara
B103: LAN123 | C103: 16793
B104: Miguilla
B105: MIG1 | C105: 4237
B106: MIG2 | C106: 4452
B107: Punutuma
B108: PUN1 | C108: 17275
B109: Quehata
B110: QUE | C110: 3406
B111: Sainani
B112: SAI1 | C112: 65573
B113: Santa Isabel
B114: SIS12345 | C114: 515827
B115: Santa Rosa
B116: SRO1 | C116: 33075
B117: SRO2 | C117: 32948
B118: Tiquimani
B119: TIQ1 | C119: 11831
B120: Yanacachi
B121: YAN | C121: 197562
B122: Zongo
B123: ZON1 | C123: 10131
B125: Plant Unit | C125: Generation [MWh]
B126: Biomass | C126: =+SUM(C127:C128) -> 39318.21
B127: Guabirá
B128: GBE1 | C128: 39318.21

Sheet BM_EF_2017
B3: Build margin emissions factor | G3: 2017
G6: Total generation [MWh] | K6: =+OM_EF_2017!C6 -> 8891442.873
G7: Total generation excl. CDM project activities [MWh] | K7: =+K6-I65-I73-I74 -> 8017716.295 | L7: AEGtotal
G8: 20% of total generation excl. CDM project activities [MWh] | K8: =+K7*0.2 -> 1603543.259
G9: Generation 5 most recent plants [MWh] | K9: =+SUM(K16:K20) -> 40220.63325 | L9: AEGset-5-units
G10: Generation by set of most recent plants generating at least 20% [MWh] | K10: =+K28 -> 1928759.701 | L10: AEGset->20 per cent
G11: GHG emissions by set of most recent plants generating at least 20% [tCO2] | K11: =+SUM(M16:M28) -> 1024685.736
H13: EFgrid,BM,2010 [tCO2/MWh] | I13: =+K11/K10 -> 0.5312666658
F15: No. | G15: Unit | H15: Commissioning | I15: Generation [MWh] | J15: CDM project activity | K15: Cumulative generation [MWh] | L15: Emission factor [tCO2/MWh] | M15: GHG emissions [tCO2]
F16: 1 | G16: YUN | H16: 2017 | I16: 1065.63625 | J16: No | K16: =+I16 -> 1065.63625 | L16: 0 | M16: =+L16*I16 -> 0
F17: 2 | G17: IAG | H17: 2017 | I17: 3137 | J17: No | K17: =+I17+K16 -> 4202.63625 | L17: 0 | M17: =+L17*I17 -> 0
F18: 3 | G18: MIS01 | H18: 2017 | J18: No | K18: =+I18+K17 -> 4202.63625 | L18: 0 | M18: 0
F19: 4 | G19: MIS02 | H19: 2017 | I19: 11172.226 | J19: No | K19: 15374.86225 | L19: 0 | M19: 0
F20: 5 | G20: MIS03 | H20: 2017 | J20: No | K20: =+I20+K19 -> 15374.86225 | L20: 0 | M20: 0
F21: 6 | G21: WAR01 | H21: 2015 | I21: 341340.336 | J21: No | K21: 356715.1983 | L21: =+OM_EF_2017!G83 -> 0.5350063128 | M21: 182619.2346
F22: 7 | G22: WAR02 | H22: 2015 | I22: 232234.96 | J22: No | K22: 588950.1583 | L22: =+OM_EF_2017!G84 -> 0.540037349 | M22: 125415.5521
F23: 8 | G23: WAR03 | H23: 2015 | I23: 332215.632 | J23: No | K23: 921165.7903 | L23: =+OM_EF_2017!G85 -> 0.5399189717 | M23: 179369.5224
F24: 9 | G24: WAR04 | H24: 2015 | I24: 319457.856 | J24: No | K24: 1240623.646 | L24: =+OM_EF_2017!G86 -> 0.5406292356 | M24: 172708.2565
F25: 10 | G25: WAR05 | H25: 2015 | I25: 332882.232 | J25: No | K25: 1573505.878 | L25: =+OM_EF_2017!G87 -> 0.5412803109 | M25: 180182.598
F26: 11 | G26: SJA01 | H26: 2015 | I26: 9940.8974 | J26: No | K26: 1583446.776 | L26: 0 | M26: 0
F27: 12 | G27: SJA02 | H27: 2015 | I27: 10262.133 | J27: No | K27: 1593708.909 | L27: 0 | M27: 0
F28: 13 | G28: SUR04 | H28: 14/10/2014 | I28: 335050.7928 | J28: No | K28: =+I28+K27 -> 1928759.701 | L28: =+OM_EF_2017!G72 -> 0.5503361761 | M28: 184390.5721
F29: 14 | G29: UNA01 | H29: 23/09/2014 | J29: No
F30: 15 | G30: SUR03 | H30: 2014-05-09 | J30: No
F31: 16 | G31: SUR02 | H31: 2014-08-08 | J31: No
F32: 17 | G32: SUR01 | H32: 18/7/2014 | J32: No
F33: 18 | G33: BUL03 | H33: 27/1/2014 | J33: No
F34: 19 | G34: ALT2 | H34: 2013 | J34: No
F35: 20 | G35: QOL12 | H35: 2013 | J35: No
F36: 21 | G36: ALT1 | H36: 2012 | J36: No
F37: 22 | G37: VHE5 | H37: 2012 | J37: No
F38: 23 | G38: VHE6 | H38: 2012 | J38: No
F39: 24 | G39: VHE7 | H39: 2012 | J39: No
F40: 25 | G40: VHE8 | H40: 2012 | J40: No
F41: 26 | G41: GCH12 | H41: 2012 | J41: No
F42: 27 | G42: CAR03 | H42: 2011 | J42: No
F43: 28 | G43: ERI01 | H43: 2010 | J43: No
F44: 29 | G44: ERI02 | H44: 2010 | J44: No
F45: 30 | G45: ERI03 | H45: 2010 | J45: No
F46: 31 | G46: ERI04 | H46: 2010 | J46: No
F47: 32 | G47: SCZ1 | H47: 2009 | J47: No
F48: 33 | G48: SCZ2 | H48: 2009 | J48: No
F49: 34 | G49: ARJ13 | H49: 2008 | J49: No
F50: 35 | G50: ARJ14 | H50: 2008 | J50: No
F51: 36 | G51: ARJ15 | H51: 2008 | J51: No
F52: 37 | G52: ANG3 | H52: 2008 | J52: No
F53: 38 | G53: ARJ9 | H53: 2007 | J53: No
F54: 39 | G54: ARJ10 | H54: 2007 | J54: No
F55: 40 | G55: ARJ11 | H55: 2007 | J55: No
F56: 41 | G56: ARJ12 | H56: 2007 | J56: No
F57: 42 | G57: QUE1 | H57: 2007 | J57: No
F58: 43 | G58: QUE2 | H58: 2007 | J58: No
F59: 44 | G59: GBE1 | H59: 2007 | J59: No
F60: 45 | G60: GCH11 | H60: 2007 | J60: No
F61: 46 | G61: SRO1 | H61: 2006 | J61: No
F62: 47 | G62: SRO2 | H62: 2006 | J62: No
F63: 48 | G63: SIS5 | H63: 2004 | J63: No
F64: 49 | G64: YAN | H64: 2002 | J64: No
F65: 50 | G65: CHJ | H65: 2002 | I65: 127227.77 | J65: Yes
F66: 51 | G66: KIL3 | H66: 2001 | J66: No
F67: 52 | G67: LAN3 | H67: 2001 | J67: No
F68: 53 | G68: BUL1 | H68: 2000 | J68: No
F69: 54 | G69: BUL2 | H69: 2000 | J69: No
F70: 55 | G70: HUA1 | H70: 1999 | J70: No
F71: 56 | G71: HUA2 | H71: 1999 | J71: No
F72: 57 | G72: KAN1 | H72: 1999 | J72: No
F73: 58 | G73: GCH9 | H73: 1999 | I73: 381288.42 | J73: Yes
F74: 59 | G74: GCH10 | H74: 1999 | I74: 365210.388 | J74: Yes
F75: 60 | G75: CUT5 | H75: 1998 | J75: No
F76: 61 | G76: BOT3 | H76: 1998 | J76: No
F77: 62 | G77: CHJ1y2 | H77: 1998 | J77: No
F78: 63 | G78: TIQ1 | H78: 1997 | J78: No
F79: 64 | G79: ZON1 | H79: 1997 | J79: No
F80: 65 | G80: CAR1 | H80: 1996 | J80: No
F81: 66 | G81: CAR2 | H81: 1996 | J81: No
F82: 67 | G82: KEN1 | H82: 1995 | J82: No
F83: 68 | G83: KEN2 | H83: 1995 | J83: No
F84: 69 | G84: ARJ8 | H84: 1994 | J84: No
F85: 70 | G85: VHE1 | H85: 1992 | J85: No
F86: 71 | G86: VHE4 | H86: 1992 | J86: No
F87: 72 | G87: VHE2 | H87: 1991 | J87: No
F88: 73 | G88: VHE3 | H88: 1991 | J88: No
F89: 74 | G89: GCH6 | H89: 1988 | J89: No
F90: 75 | G90: SIS4 | H90: 1983 | J90: No
F91: 76 | G91: KAR1 | H91: 1982 | J91: No
F92: 77 | G92: SIS3 | H92: 1981 | J92: No
F93: 78 | G93: GCH4 | H93: 1980 | J93: No
F94: 79 | G94: COR3 | H94: 1980 | J94: No
F95: 80 | G95: COR4 | H95: 1980 | J95: No
F96: 81 | G96: GCH2 | H96: 1977 | J96: No
F97: 82 | G97: GCH1 | H97: 1975 | J97: No
F98: 83 | G98: ARJ1 | H98: 1974 | J98: No
F99: 84 | G99: ARJ2 | H99: 1974 | J99: No
F100: 85 | G100: ARJ3 | H100: 1974 | J100: No
F101: 86 | G101: CAH1 | H101: 1974 | J101: No
F102: 87 | G102: CAH2 | H102: 1974 | J102: No
F103: 88 | G103: SIS1 | H103: 1973 | J103: No
F104: 89 | G104: SIS2 | H104: 1973 | J104: No
F105: 90 | G105: ARJ6 | H105: 1971 | J105: No
F106: 91 | G106: ARJ5 | H106: 1970 | J106: No
F107: 92 | G107: HAR1 | H107: 1969 | J107: No
F108: 93 | G108: HAR2 | H108: 1969 | J108: No
F109: 94 | G109: COR1 | H109: 1967 | J109: No
F110: 95 | G110: COR2 | H110: 1967 | J110: No
F111: 96 | G111: CHU2 | H111: 1967 | J111: No
F112: 97 | G112: CHU1 | H112: 1966 | J112: No
F113: 98 | G113: PUN1 | H113: 1962 | J113: No
F114: 99 | G114: CUT4 | H114: 1958 | J114: No
F115: 100 | G115: ANG2 | H115: 1958 | J115: No
F116: 101 | G116: CRB | H116: 1958 | J116: No
F117: 102 | G117: LAN1 | H117: 1958 | J117: No
F118: 103 | G118: SAI1 | H118: 1956 | J118: No
F119: 104 | G119: CUT3 | H119: 1945 | J119: No
F120: 105 | G120: CHO2 | H120: 1944 | J120: No
F121: 106 | G121: CHO3 | H121: 1944 | J121: No
F122: 107 | G122: CUT2 | H122: 1943 | J122: No
F123: 108 | G123: CUT1 | H123: 1942 | J123: No
F124: 109 | G124: KIL2 | H124: 1942 | J124: No
F125: 110 | G125: LAN2 | H125: 1942 | J125: No
F126: 111 | G126: BOT2 | H126: 1941 | J126: No
F127: 112 | G127: CHO1 | H127: 1939 | J127: No
F128: 113 | G128: BOT1 | H128: 1938 | J128: No
F129: 114 | G129: ANG1 | H129: 1936 | J129: No
F130: 115 | G130: KIL1 | H130: 1936 | J130: No
F131: 116 | G131: MIG1 | H131: 1931 | J131: No
F132: 117 | G132: MIG2 | H132: 1931 | J132: No
G134: Kilpani
G135: Landara
G136: Corani
G137: Valle Hermoso (VHE)
G138: Santa Isabel

Sheet BM_EF_2010
B3: Build margin emissions factor | G3: 2010
G6: Total generation [MWh] | K6: =+OM_EF_2010!C6 -> 6085440.865
G7: Total generation excl. CDM project activities [MWh] | K7: =+K6-I38-I46-I47 -> 5401085.527 | L7: AEGtotal
G8: 20% of total generation excl. CDM project activities [MWh] | K8: =+K7*0.2 -> 1080217.105
G9: Generation 5 most recent plants [MWh] | K9: =+K20 -> 478968.9951 | L9: AEGset-5-units
G10: Generation by set of most recent plants generating at least 20% [MWh] | K10: =K34 -> 1092075.566 | L10: AEGset->20 per cent
G11: GHG emissions by set of most recent plants generating at least 20% [tCO2] | K11: =+SUM(M16:M34) -> 603568.8707
H13: EFgrid,BM,2010 [tCO2/MWh] | I13: =+K11/K10 -> 0.5526805008
F15: No. | G15: Unit | H15: Commissioning | I15: Generation [MWh] | J15: CDM project activity | K15: Cumulative generation [MWh] | L15: Emission factor [tCO2/MWh] | M15: GHG emissions [tCO2]
F16: 1 | G16: ERI01 | H16: 2010 | I16: 94768 | J16: No | K16: =+I16 -> 94768 | L16: =+OM_EF_2010!G45 -> 0.6011792365 | M16: =+L16*I16 -> 56972.55388
F17: 2 | G17: ERI02 | H17: 2010 | I17: 123773.2823 | J17: No | K17: =+I17+K16 -> 218541.2823 | L17: =+OM_EF_2010!G46 -> 0.5948460497 | M17: =+L17*I17 -> 73626.04806
F18: 3 | G18: ERI03 | H18: 2010 | I18: 109541.1268 | J18: No | K18: =+I18+K17 -> 328082.4091 | L18: =+OM_EF_2010!G47 -> 0.5954379363 | M18: 65224.94246
F19: 4 | G19: ERI04 | H19: 2010 | I19: 77401.001 | J19: No | K19: 405483.4101 | L19: =+OM_EF_2010!G48 -> 0.5938398424 | M19: 45963.79824
F20: 5 | G20: SCZ1 | H20: 2009 | I20: 73485.585 | J20: No | K20: 478968.9951 | L20: =+OM_EF_2010!G65 -> 0.7013856407 | M20: 51541.73412
F21: 6 | G21: SCZ2 | H21: 2009 | I21: 86746.32 | J21: No | K21: 565715.3151 | L21: =+OM_EF_2010!G66 -> 0.6908500589 | M21: 59928.70028
F22: 7 | G22: ARJ13 | H22: 2008 | I22: 8526.900641 | J22: No | K22: 574242.2157 | L22: =+OM_EF_2010!G35 -> 0.535657388 | M22: 4567.497325
F23: 8 | G23: ARJ14 | H23: 2008 | I23: 7797.82554 | J23: No | K23: 582040.0413 | L23: =+OM_EF_2010!G36 -> 0.535657388 | M23: 4176.962861
F24: 9 | G24: ARJ15 | H24: 2008 | I24: 0 | J24: No | K24: 582040.0413 | L24: =+OM_EF_2010!G37 -> 0.535657388 | M24: 0
F25: 10 | G25: ANG3 | H25: 2008 | I25: 5760.916 | J25: No | K25: 587800.9573 | L25: 0 | M25: 0
F26: 11 | G26: ARJ9 | H26: 2007 | I26: 8515.644332 | J26: No | K26: 596316.6016 | L26: =+OM_EF_2010!G31 -> 0.535657388 | M26: 4561.4678
F27: 12 | G27: ARJ10 | H27: 2007 | I27: 5375.3301 | J27: No | K27: 601691.9317 | L27: =+OM_EF_2010!G32 -> 0.535657388 | M27: 2879.335281
F28: 13 | G28: ARJ11 | H28: 2007 | I28: 5023.210781 | J28: No | K28: 606715.1425 | L28: =+OM_EF_2010!G33 -> 0.535657388 | M28: 2690.719967
F29: 14 | G29: ARJ12 | H29: 2007 | I29: 2147.392315 | J29: No | K29: 608862.5348 | L29: =+OM_EF_2010!G34 -> 0.535657388 | M29: 1150.266558
F30: 15 | G30: QUE1 | H30: 2007 | I30: 3310.4 | J30: No | K30: =+I30+K29 -> 612172.9348 | L30: 0 | M30: 0
F31: 16 | G31: QUE2 | H31: 2007 | J31: No | K31: =+I31+K30 -> 612172.9348 | L31: 0 | M31: 0
F32: 17 | G32: GBE1 | H32: 2007 | I32: 58156.17 | J32: No | K32: =+I32+K31 -> 670329.1048 | L32: 0 | M32: 0
F33: 18 | G33: GCH11 | H33: 2007 | I33: 386364.6331 | J33: No | K33: 1056693.738 | L33: =+OM_EF_2010!G58 -> 0.5960298229 | M33: 230284.8438
F34: 19 | G34: SRO1 | H34: 2006 | I34: 35381.828 | J34: No | K34: 1092075.566 | L34: 0 | M34: 0
F35: 20 | G35: SRO2 | H35: 2006 | J35: No
F36: 21 | G36: SIS5 | H36: 2004 | J36: No
F37: 22 | G37: YAN | H37: 2002 | J37: No
F38: 23 | G38: CHJ | H38: 2002 | I38: 106123.258 | J38: Yes
F39: 24 | G39: KIL3 | H39: 2001 | J39: No
F40: 25 | G40: LAN3 | H40: 2001 | J40: No
F41: 26 | G41: BUL1 | H41: 2000 | J41: No
F42: 27 | G42: BUL2 | H42: 2000 | J42: No
F43: 28 | G43: HUA1 | H43: 1999 | J43: No
F44: 29 | G44: HUA2 | H44: 1999 | J44: No
F45: 30 | G45: KAN1 | H45: 1999 | J45: No
F46: 31 | G46: GCH9 | H46: 1999 | I46: 304167.352 | J46: Yes
F47: 32 | G47: GCH10 | H47: 1999 | I47: 274064.728 | J47: Yes
F48: 72 | G48: CUT5 | H48: 1998 | J48: No
F49: 33 | G49: BOT3 | H49: 1998 | J49: No
F50: 34 | G50: CHJ1y2 | H50: 1998 | J50: No
F51: 35 | G51: TIQ1 | H51: 1997 | J51: No
F52: 36 | G52: ZON1 | H52: 1997 | J52: No
F53: 37 | G53: CAR1 | H53: 1996 | J53: No
F54: 38 | G54: CAR2 | H54: 1996 | J54: No
F55: 39 | G55: KEN1 | H55: 1995 | J55: No
F56: 40 | G56: KEN2 | H56: 1995 | J56: No
F57: 41 | G57: ARJ8 | H57: 1994 | J57: No
F58: 42 | G58: VHE1 | H58: 1992 | J58: No
F59: 43 | G59: VHE4 | H59: 1992 | J59: No
F60: 44 | G60: VHE2 | H60: 1991 | J60: No
F61: 45 | G61: VHE3 | H61: 1991 | J61: No
F62: 46 | G62: GCH6 | H62: 1988 | J62: No
F63: 47 | G63: SIS4 | H63: 1983 | J63: No
F64: 48 | G64: KAR1 | H64: 1982 | J64: No
F65: 49 | G65: SIS3 | H65: 1981 | J65: No
F66: 50 | G66: GCH4 | H66: 1980 | J66: No
F67: 51 | G67: COR3 | H67: 1980 | J67: No
F68: 52 | G68: COR4 | H68: 1980 | J68: No
F69: 53 | G69: GCH2 | H69: 1977 | J69: No
F70: 54 | G70: GCH1 | H70: 1975 | J70: No
F71: 55 | G71: ARJ1 | H71: 1974 | J71: No
F72: 56 | G72: ARJ2 | H72: 1974 | J72: No
F73: 57 | G73: ARJ3 | H73: 1974 | J73: No
F74: 58 | G74: CAH1 | H74: 1974 | J74: No
F75: 59 | G75: CAH2 | H75: 1974 | J75: No
F76: 60 | G76: SIS1 | H76: 1973 | J76: No
F77: 61 | G77: SIS2 | H77: 1973 | J77: No
F78: 62 | G78: ARJ6 | H78: 1971 | J78: No
F79: 63 | G79: ARJ5 | H79: 1970 | J79: No
F80: 64 | G80: HAR1 | H80: 1969 | J80: No
F81: 65 | G81: HAR2 | H81: 1969 | J81: No
F82: 66 | G82: COR1 | H82: 1967 | J82: No
F83: 67 | G83: COR2 | H83: 1967 | J83: No
F84: 68 | G84: CHU2 | H84: 1967 | J84: No
F85: 69 | G85: CHU1 | H85: 1966 | J85: No
F86: 70 | G86: PUN1 | H86: 1962 | J86: No
F87: 71 | G87: CUT4 | H87: 1958 | J87: No
F88: 73 | G88: ANG2 | H88: 1958 | J88: No
F89: 74 | G89: CRB | H89: 1958 | J89: No
F90: 75 | G90: LAN1 | H90: 1958 | J90: No
F91: 76 | G91: SAI1 | H91: 1956 | J91: No
F92: 77 | G92: CUT3 | H92: 1945 | J92: No
F93: 78 | G93: CHO2 | H93: 1944 | J93: No
F94: 79 | G94: CHO3 | H94: 1944 | J94: No
F95: 80 | G95: CUT2 | H95: 1943 | J95: No
F96: 81 | G96: CUT1 | H96: 1942 | J96: No
F97: 82 | G97: KIL2 | H97: 1942 | J97: No
F98: 91 | G98: LAN2 | H98: 1942 | J98: No
F99: 83 | G99: BOT2 | H99: 1941 | J99: No
F100: 84 | G100: CHO1 | H100: 1939 | J100: No
F101: 85 | G101: BOT1 | H101: 1938 | J101: No
F102: 86 | G102: ANG1 | H102: 1936 | J102: No
F103: 87 | G103: KIL1 | H103: 1936 | J103: No
F104: 88 | G104: MIG1 | H104: 1931 | J104: No
F105: 89 | G105: MIG2 | H105: 1931 | J105: No
G107: Kilpani
G108: Landara
G109: Corani
G110: Valle Hermoso (VHE)
G111: Santa Isabel

Sheet GHG-ER
B3: Greenhouse gas emissions reductions from investments in power generation
C5: Constants and conversion factors
C6: Conversion factor [BTU - kWh] | D6: 3412.14
C7: Conversion factor [GJ - BTU] | D7: 947817
C8: Emission factor natural gas [tCO2/GJ] | D8: 0.0561
C9: Conversion factor [GJ - MWh] | D9: 3.6
C11: Emissions factors
C12: Build margin emissions factor, 2010 | D12: =+'Grid-EF'!H11 -> 0.5526805008 | E12: tCO2/MWh
C13: Combined margin emissions factor, 2010 | D13: =+'Grid-EF'!H13 -> 0.4581942174 | E13: tCO2/MWh
C14: Upstream baseline emissions factor, 2010 | D14: =+Leakage_EF_2010!C13 -> 0.02434087434 | E14: tCO2e/MWh
C15: Upstream project emissions factor | D15: 2.9 | E15: tCO2e/MWh
C17: Capacity additions and GHG emissions reductions
B19: Source | C19: Plant/Unit | D19: Commissioning date | E19: Installed capacity [MW] | F19: Capacity factor | G19: Generation [MWh] | H19: Heat rate [BTU/kWh] | I19: Efficiency [%] | J19: Emissions factor [tCO2/MWh] | K19: Project GHG emissions [tCO2/y] | L19: Fuel consumption [GJ] | M19: Leakage [tCO2e/y] | N19: Grid emmissions factor [tCO2/MWh] | O19: Baseline GHG emissions [tCO2/y] | P19: GHG emissions reductions [tCO2/y] | Q19: Comments
C21: Natural gas | E21: =SUM(E22:E31) -> 1043.75
B22: [1] [8] [9] | C22: ALT01 | D22: 2012 | E22: 17.5 | F22: =+G22/(E22*8760) -> 0.6849315068 | G22: 105000 | H22: 9242.7 | I22: =1/(H22/$D$6) -> 0.369171346 | J22: =+$D$8*$D$9/I22 -> 0.5470630431 | K22: =+J22*G22 -> 57441.61953 | L22: =+G22*H22*1000/$D$7 -> 1023914.427 | M22: =+L22*$D$15/1000-G22*$D$14 -> 413.5600314 | N22: =+'Grid-EF'!$H$13 -> 0.4581942174 | O22: =+N22*G22 -> 48110.39283 | P22: =+O22-K22-IF(M22<0,0,M22) -> -9744.786731 | Q22: EFgrid,CM,2010 < EFgrid,BM,2010. No alternative technologies are considered (refer to section 5.4.1. of ACM0025, version 2.0). If leakage is negative, it is assumed zero.
B23: [1] [8] [9] | C23: ALT02 | D23: 2012 | E23: 32.35 | F23: =+G23/(E23*8760) -> 0.6951648988 | G23: 197000 | H23: 8039.9 | I23: =1/(H23/$D$6) -> 0.424400801 | J23: =+$D$8*$D$9/I23 -> 0.4758709209 | K23: =+J23*G23 -> 93746.57142 | L23: =+G23*H23*1000/$D$7 -> 1671061.291 | M23: =+L23*$D$15/1000-G23*$D$14 -> 50.92550037 | N23: =+'Grid-EF'!$H$13 -> 0.4581942174 | O23: =+N23*G23 -> 90264.26083 | P23: =+O23-K23-IF(M23<0,0,M23) -> -3533.236083 | Q23: see above
B24: [1] [8] [9] | C24: BUL03 | D24: 2014 | E24: 49.02 | F24: =+G24/(E24*8760) -> 0.5495846444 | G24: 236000 | H24: 8814 | I24: =1/(H24/$D$6) -> 0.3871272975 | J24: =+$D$8*$D$9/I24 -> 0.5216888639 | K24: =+J24*G24 -> 123118.5719 | L24: =+G24*H24*1000/$D$7 -> 2194626.178 | M24: =+L24*$D$15/1000-G24*$D$14 -> 619.969572 | N24: =+'Grid-EF'!$H$13 -> 0.4581942174 | O24: =+N24*G24 -> 108133.8353 | P24: =+O24-K24-IF(M24<0,0,M24) -> -15604.70614 | Q24: see above
B25: [4] | C25: CCSUR3 | D25: 2019 | E25: 132.69 | F25: 0.7 | G25: =+E25*F25*8760 -> 813655.08 | H25: 6449 | I25: =1/(H25/$D$6) -> 0.5290959839 | J25: =+$D$8*$D$9/I25 -> 0.3817076791 | K25: =+J25*G25 -> 310578.3921 | L25: =+G25*H25*1000/$D$7 -> 5536154.776 | M25: =+L25*$D$15/1000-G25*$D$14 -> -3750.227208 | N25: =+'Grid-EF'!$H$13 -> 0.4581942174 | O25: =+N25*G25 -> 372812.0526 | P25: =+O25-K25-IF(M25<0,0,M25) -> 62233.6605 | Q25: see above
B26: [4] | C26: CCSUR4 | D26: 2019 | E26: 132.69 | F26: 0.7 | G26: 813655.08 | H26: 6449 | I26: =1/(H26/$D$6) -> 0.5290959839 | J26: =+$D$8*$D$9/I26 -> 0.3817076791 | K26: =+J26*G26 -> 310578.3921 | L26: =+G26*H26*1000/$D$7 -> 5536154.776 | M26: =+L26*$D$15/1000-G26*$D$14 -> -3750.227208 | N26: =+'Grid-EF'!$H$13 -> 0.4581942174 | O26: 372812.0526 | P26: =+O26-K26-IF(M26<0,0,M26) -> 62233.6605 | Q26: see above
B27: [4] | C27: CCWAR3 | D27: 2019 | E27: 135.15 | F27: 0.7 | G27: 828739.8 | H27: 6449 | I27: 0.5290959839 | J27: 0.3817076791 | K27: 316336.3456 | L27: 5638792.056 | M27: -3819.754368 | N27: =+'Grid-EF'!$H$13 -> 0.4581942174 | O27: 379723.7841 | P27: 63387.43851 | Q27: see above
B28: [4] | C28: CCWAR4 | D28: 2019 | E28: 135.15 | F28: 0.7 | G28: 828739.8 | H28: 6449 | I28: 0.5290959839 | J28: 0.3817076791 | K28: 316336.3456 | L28: 5638792.056 | M28: -3819.754368 | N28: =+'Grid-EF'!$H$13 -> 0.4581942174 | O28: 379723.7841 | P28: 63387.43851 | Q28: see above
B29: [4] | C29: CCERI3 | D29: 2019 | E29: 136.4 | F29: 0.7 | G29: 836404.8 | H29: 6449 | I29: 0.5290959839 | J29: 0.3817076791 | K29: 319262.135 | L29: 5690945.146 | M29: -3855.08321 | N29: =+'Grid-EF'!$H$13 -> 0.4581942174 | O29: 383235.8428 | P29: 63973.70783 | Q29: see above
B30: [4] | C30: CCERI4 | D30: 2019 | E30: 136.4 | F30: 0.7 | G30: 836404.8 | H30: 6449 | I30: 0.5290959839 | J30: 0.3817076791 | K30: 319262.135 | L30: 5690945.146 | M30: -3855.08321 | N30: =+'Grid-EF'!$H$13 -> 0.4581942174 | O30: 383235.8428 | P30: 63973.70783 | Q30: see above
B31: [4] | C31: CCERI5 | D31: 2019 | E31: 136.4 | F31: 0.7 | G31: =+E31*F31*8760 -> 836404.8 | H31: 6449 | I31: =1/(H31/$D$6) -> 0.5290959839 | J31: =+$D$8*$D$9/I31 -> 0.3817076791 | K31: =+J31*G31 -> 319262.135 | L31: =+G31*H31*1000/$D$7 -> 5690945.146 | M31: =+L31*$D$15/1000-G31*$D$14 -> -3855.08321 | N31: =+'Grid-EF'!$H$13 -> 0.4581942174 | O31: =+N31*G31 -> 383235.8428 | P31: =+O31-K31-IF(M31<0,0,M31) -> 63973.70783 | Q31: see above
C33: Single to combined cycle | E33: =SUM(E34:E37) -> 535.8 | G33: =SUM(G34:G37) -> 0
B34: [4] | C34: SUR10 | D34: 2020 | E34: =+'GHG-ER-SC->CC'!T16 -> 132.7 | K34: =+'GHG-ER-SC->CC'!$Z$16 -> 310601.7985 | M34: =+'GHG-ER-SC->CC'!$AF$16 -> 0 | O34: =+'GHG-ER-SC->CC'!$AA$16 -> 430211.5408 | P34: =+'GHG-ER-SC->CC'!$AG$16 -> 119609.7423 | Q34: For calculation see worksheet "GHG-ER-SC->CC"
B35: [4] | C35: SUR20 | D35: 2020 | E35: =+'GHG-ER-SC->CC'!T20 -> 132.7 | K35: =+'GHG-ER-SC->CC'!$Z$20 -> 310601.7985 | M35: =+'GHG-ER-SC->CC'!$AF$20 -> 0 | O35: =+'GHG-ER-SC->CC'!$AA$20 -> 430267.8214 | P35: =+'GHG-ER-SC->CC'!$AG$20 -> 119666.0229 | Q35: For calculation see worksheet "GHG-ER-SC->CC"
B36: [4] | C36: WAR10 | D36: 2020 | E36: =+'GHG-ER-SC->CC'!T24 -> 135.2 | K36: =+'GHG-ER-SC->CC'!$Z$24 -> 316453.3772 | M36: =+'GHG-ER-SC->CC'!$AF$24 -> 2336.595602 | O36: =+'GHG-ER-SC->CC'!$AA$24 -> 419517.0722 | P36: =+'GHG-ER-SC->CC'!$AG$24 -> 100727.0994 | Q36: For calculation see worksheet "GHG-ER-SC->CC"
B37: [4] | C37: WAR20 | D37: 2020 | E37: =+'GHG-ER-SC->CC'!T28 -> 135.2 | K37: =+'GHG-ER-SC->CC'!$Z$28 -> 316453.3772 | M37: =+'GHG-ER-SC->CC'!$AF$28 -> 2099.63483 | O37: =+'GHG-ER-SC->CC'!$AA$28 -> 421607.8598 | P37: =+'GHG-ER-SC->CC'!$AG$28 -> 103054.8478 | Q37: For calculation see worksheet "GHG-ER-SC->CC"
C39: Hydropower | E39: =SUM(E41:E56) -> 2727.05
B41: [8] | C41: Misicuni | D41: 2017 | E41: 120 | F41: 0.5 | G41: =+E41*F41*8760 -> 525600 | N41: =+'Grid-EF'!$H$13 -> 0.4581942174 | O41: =+N41*G41 -> 240826.8807 | P41: =+O41 -> 240826.8807
B42: [8] | C42: San José 1 | D42: 2018 | E42: 55 | F42: 0.5 | G42: =+E42*F42*8760 -> 240900 | N42: =+'Grid-EF'!$H$13 -> 0.4581942174 | O42: 110378.987 | P42: =+O42 -> 110378.987
B43: [4] | C43: San José 2 | D43: 2019 | E43: 69 | F43: 0.5 | G43: =+E43*F43*8760 -> 302220 | N43: =+'Grid-EF'!$H$13 -> 0.4581942174 | O43: 138475.4564 | P43: 138475.4564
B44: [4] | C44: Sehuencas | D44: 2021 | E44: 198.6 | F44: 0.5 | G44: =+E44*F44*8760 -> 869868 | N44: =+'Grid-EF'!$H$13 -> 0.4581942174 | O44: 398568.4875 | P44: 398568.4875
B45: [4] | C45: Juntas | D45: 2021 | E45: 91.56 | F45: 0.5 | G45: 401032.8 | N45: =+'Grid-EF'!$H$13 -> 0.4581942174 | O45: 183750.91 | P45: 183750.91
B46: [4] | C46: Umapalca | D46: 2021 | E46: 85.8 | F46: 0.5 | G46: 375804 | N46: =+'Grid-EF'!$H$13 -> 0.4581942174 | O46: 172191.2197 | P46: 172191.2197
B47: [4] | C47: Palillada | D47: 2021 | E47: 118.2 | F47: 0.5 | G47: 517716 | N47: =+'Grid-EF'!$H$13 -> 0.4581942174 | O47: 237214.4775 | P47: 237214.4775
B48: [8] | C48: Ivirizu | D48: est. 2020 | E48: 253.89 | F48: 0.5 | G48: 1112038.2 | N48: =+'Grid-EF'!$H$13 -> 0.4581942174 | O48: 509529.4728 | P48: 509529.4728
B49: [20] | C49: Banda Azul | D49: est. 2020 | E49: 91 | F49: 0.5 | G49: 398580 | N49: =+'Grid-EF'!$H$13 -> 0.4581942174 | O49: 182627.0512 | P49: 182627.0512
B50: [8] | C50: Carrizal | D50: est. 2025 | E50: 347 | F50: 0.5 | G50: =+E50*F50*8760 -> 1519860 | N50: =+'Grid-EF'!$H$13 -> 0.4581942174 | O50: 696391.0633 | P50: 696391.0633
B51: [20] | C51: Molineros | D51: est. 2025 | E51: 132 | F51: 0.5 | G51: 578160 | N51: =+'Grid-EF'!$H$13 -> 0.4581942174 | O51: 264909.5687 | P51: 264909.5687
B52: [8] | C52: Rositas | D52: est. 2025 | E52: 600 | F52: 0.5 | G52: 2628000 | N52: =+'Grid-EF'!$H$13 -> 0.4581942174 | O52: 1204134.403 | P52: 1204134.403
B53: [20] | C53: Cambari | D53: est. 2025 | E53: 93 | F53: 0.5 | G53: 407340 | N53: =+'Grid-EF'!$H$13 -> 0.4581942174 | O53: 186640.8325 | P53: 186640.8325
B54: [20] | C54: Cuenca Corani | D54: est. 2025 | E54: 220 | F54: 0.5 | G54: 963600 | N54: =+'Grid-EF'!$H$13 -> 0.4581942174 | O54: 441515.9479 | P54: 441515.9479
B55: [8] | C55: Icla | D55: est. 2029 | E55: 102 | F55: 0.5 | G55: =+E55*F55*8760 -> 446760 | N55: 0.46 | O55: 205509.6 | P55: 205509.6
B56: [8] | C56: Margarita | D56: est. 2029 | E56: 150 | F56: 0.5 | G56: 657000 | N56: 0.46 | O56: 302220 | P56: 302220
C58: Large-scale hydropower | E58: =SUM(E59:E61) -> 5570
B59: [8] [19] | C59: Río Grande (excl. Juntas) | D59: NI | E59: =3072-172 -> 2900 | F59: =+G59/8760/E59 -> 0.5339393796 | G59: =13940000-G46 -> 13564196 | N59: =+'Grid-EF'!$H$13 -> 0.4581942174 | O59: =+N59*G59 -> 6215036.171 | P59: =+O59 -> 6215036.171
B60: [8] | C60: Cachuela Esperanza | D60: NI | E60: 990 | F60: =+G60/8760/E60 -> 0.6572575066 | G60: 5700000 | N60: =+'Grid-EF'!$H$13 -> 0.4581942174 | O60: =+N60*G60 -> 2611707.039 | P60: =+O60 -> 2611707.039
B61: [8] | C61: El Bala | D61: NI | E61: 1680 | F61: 0.5 | G61: =+E61*F61*8760 -> 7358400 | N61: =+'Grid-EF'!$H$13 -> 0.4581942174 | O61: =+N61*G61 -> 3371576.329 | P61: 3371576.329
C63: Wind | E63: =+SUM(E64:E70) -> 180
B64: [2] | C64: Qollpana I | D64: 2014 | E64: 3 | F64: 0.35 | G64: =+E64*F64*8760 -> 9198 | N64: =+'Grid-EF'!$H$12 -> 0.4109510757 | O64: =+N64*G64 -> 3779.927995 | P64: =+O64 -> 3779.927995
B65: [2] | C65: Qollpana II | D65: 2016 | E65: 24 | F65: 0.35 | G65: =+E65*F65*8760 -> 73584 | N65: =+'Grid-EF'!$H$12 -> 0.4109510757 | O65: 30239.42396 | P65: =+O65 -> 30239.42396 | T65: =365*24 -> 8760
B66: [2] | C66: Warnes | D66: 2020 | E66: 14.4 | F66: 0.35 | G66: 44150.4 | N66: =+'Grid-EF'!$H$12 -> 0.4109510757 | O66: 18143.65437 | P66: 18143.65437
B67: [2] | C67: San Julián | D67: 2020 | E67: 39.6 | F67: 0.35 | G67: 121413.6 | N67: =+'Grid-EF'!$H$12 -> 0.4109510757 | O67: 49895.04953 | P67: 49895.04953
B68: [2] | C68: El Dorado | D68: 2020 | E68: 54 | F68: 0.35 | G68: 165564 | N68: =+'Grid-EF'!$H$12 -> 0.4109510757 | O68: 68038.7039 | P68: 68038.7039
B69: [2] | C69: Warnes II | D69: 2021 | E69: 21 | F69: 0.35 | G69: 64386 | N69: =+'Grid-EF'!$H$12 -> 0.4109510757 | O69: 26459.49596 | P69: 26459.49596
B70: [2] | C70: La Ventolera | D70: 2021 | E70: 24 | F70: 0.35 | G70: 73584 | N70: =+'Grid-EF'!$H$12 -> 0.4109510757 | O70: 30239.42396 | P70: 30239.42396
C72: Solar PV | E72: =SUM(E73:E76) -> 165
B73: [2] | C73: Yunchará | D73: 2018 | E73: 5 | F73: 0.24 | G73: =+E73*F73*8760 -> 10512 | N73: =+'Grid-EF'!$H$12 -> 0.4109510757 | O73: =+N73*G73 -> 4319.917708 | P73: =+O73 -> 4319.917708
B74: [2] | C74: Uyuni | D74: 2018 | E74: 60 | F74: 0.24 | G74: 126144 | N74: =+'Grid-EF'!$H$12 -> 0.4109510757 | O74: =+N74*G74 -> 51839.0125 | P74: =+O74 -> 51839.0125
B75: [2] | C75: Oruro I | D75: 2019 | E75: 50 | F75: 0.24 | G75: 105120 | N75: =+'Grid-EF'!$H$12 -> 0.4109510757 | O75: =+N75*G75 -> 43199.17708 | P75: 43199.17708
B76: [2] | C76: Oruro II | D76: est. 2021 | E76: 50 | F76: 0.24 | G76: =+E76*F76*8760 -> 105120 | N76: =+'Grid-EF'!$H$12 -> 0.4109510757 | O76: =+N76*G76 -> 43199.17708 | P76: 43199.17708
C78: Geothermal | E78: =SUM(E79:E80) -> 105
B79: [2] | C79: Laguna Colorada, Pilot | D79: 2020 | E79: 5 | F79: 0.85 | G79: =+E79*F79*8760 -> 37230 | N79: =+'Grid-EF'!$H$13 -> 0.4581942174 | O79: =+N79*G79 -> 17058.57071 | P79: =+O79 -> 17058.57071 | Q79: Project emissions include may emissions from fossil fuel combustion and emissions from dry and/or flash steam, and/or from leakege of non-condensable gases and working fluid.
B80: [2] | C80: Laguna Colorada | D80: 2023 | E80: 100 | F80: 0.85 | G80: =+E80*F80*8760 -> 744600 | N80: =+'Grid-EF'!$H$13 -> 0.4581942174 | O80: =+N80*G80 -> 341171.4143 | P80: =+O80 -> 341171.4143 | Q80: see above

Sheet GHG-ER-SC->CC
B3: Greenhouse gas emissions reductions from projects to convert from single to combined cycle
C7: Constants and conversion factors
C8: Conversion factor [BTU - kWh] | F8: 3412.14
C9: Conversion factor [GJ - BTU] | F9: 947817
C10: Emission factor natural gas [tCO2/GJ] | F10: 0.0561
C11: Conversion factor [GJ - MWh] | F11: 3.6
C12: Upstream emissions factor [tCO2e/TJ] | F12: 2.9
B15: Plant/Unit | C15: Unit converted | D15: Capacity Capmax [MW] | E15: Maximum operation time Tmax [h] | F15: Maximum energy EGmax [MWh] | G15: Generation 2015 [MWh] | H15: Generation 2016 [MWh] | I15: Generation 2017 [MWh] | J15: Average generation EGBL,AVR [MWh] | K15: Heat rate 2015 [BTU/kWh] | L15: Fuel consumption 2015 [GJ] | M15: Heat rate 2016 [BTU/kWh] | N15: Fuel consumption 2016 [GJ] | O15: Heat rate 2017 [BTU/kWh] | P15: Fuel consumption 2017 [GJ] | Q15: Emission factor baseline EFCO2,BL [tCO2/MWh] | R15: Grid emission factor EFgrid,CM,2010 [tCO2/MWh] | S15: New unit | T15: Capacity [MW] | U15: Capacity factor | V15: Generation EGPJ,adj,y [MWh] | W15: Heat rate [BTU/kWh] | X15: Efficiency [%] | Y15: Emission factor project EFCO2,PJ [tCO2/MWh] | Z15: Project emissions PEy [tCO2/y] | AA15: Baseline emissions BEy [tCO2/y] | AB15: Fuel consumption [GJ] | AC15: Leakage | AD15: Average fuel consumption single cycle [GJ] | AE15: Increase in upstream emissions | AF15: Leakage LEy [tCO2/y] | AG15: Emissions reductions ERy [tCO2/y]
B16: CCSUR10 | F16: =+F17+F18 -> 763346.4 | G16: =+G17+G18 -> 539503 | H16: =+H17+H18 -> 640699.3359 | I16: =+I17+I18 -> 605633.3627 | J16: =+AVERAGE(G16:I16) -> 595278.5662 | L16: =+L17+L18 -> 5348017.134 | N16: =+N17+N18 -> 6395487.852 | P16: =+P17+P18 -> 5986933.092 | Q16: =+(OM_EF_2017!G69*OM_EF_2017!C69+OM_EF_2017!G70*OM_EF_2017!C70)/(OM_EF_2017!C69+OM_EF_2017!C70) -> 0.5545716026 | R16: =+'Grid-EF'!$H$13 -> 0.4581942174 | S16: =+B16 -> CCSUR10 | T16: 132.7 | U16: 0.7 | V16: =+T16*8760*U16 -> 813716.4 | W16: 6449 | X16: =1/(W16/$F$8) -> 0.5290959839 | Y16: =+$F$10*$F$11/X16 -> 0.3817076791 | Z16: =+Y16*V16 -> 310601.7985 | AA16: =+J16*Q16+(F16-J16)*MIN(Q16,R16)+(V16-F16)*R16 -> 430211.5408 | AB16: =+W16*V16*1000/$F$9 -> 5536572 | AC16: =+IF(AB16>MIN(L16,N16,P16),"Yes","No") -> Yes | AD16: =+(L16+N16+P16)/3 -> 5910146.026 | AE16: =+AB16*$F$12/1000*(1-AD16/AB16) -> -1083.364675 | AF16: =IF(AC16="Yes",MAX(0,AE16),0) -> 0 | AG16: =+AA16-Z16-AF16 -> 119609.7423
C17: SUR01 | D17: 43.83 | E17: 8760 | F17: =+E17*D17 -> 383950.8 | G17: =+OM_EF_2015!C69 -> 283458 | H17: =+OM_EF_2016!C70 -> 327520.8056 | I17: =+OM_EF_2017!$C$69 -> 321801.0224 | K17: =+OM_EF_2015!E69 -> 9397 | L17: =+K17*G17*1000/$F$9 -> 2810304.97 | M17: =+OM_EF_2016!E70 -> 9424 | N17: =+M17*H17*1000/$F$9 -> 3256489.462 | O17: =+OM_EF_2017!E69 -> 9348 | P17: =+O17*I17*1000/$F$9 -> 3173815.154
C18: SUR02 | D18: 43.31 | E18: 8760 | F18: =+E18*D18 -> 379395.6 | G18: =+OM_EF_2015!C70 -> 256045 | H18: =+OM_EF_2016!C71 -> 313178.5303 | I18: =+OM_EF_2017!$C$70 -> 283832.3403 | K18: =+OM_EF_2017!E70 -> 9394 | L18: =+K18*G18*1000/$F$9 -> 2537712.164 | M18: =+OM_EF_2016!E71 -> 9500 | N18: =+M18*H18*1000/$F$9 -> 3138998.39 | O18: =+OM_EF_2017!E70 -> 9394 | P18: =+O18*I18*1000/$F$9 -> 2813117.938
B20: CCSUR20 | F20: =+F21+F22 -> 772807.2 | G20: =+G21+G22 -> 564881 | H20: =+H21+H22 -> 639988.4822 | I20: =+I21+I22 -> 661338.2177 | J20: =+AVERAGE(G20:I20) -> 622069.2333 | L20: =+L21+L22 -> 5573336.807 | N20: =+N21+N22 -> 6359069.483 | P20: =+P21+P22 -> 6489734.276 | Q20: =+(OM_EF_2017!G71*OM_EF_2017!C71+OM_EF_2017!G72*OM_EF_2017!C72)/(OM_EF_2017!C71+OM_EF_2017!C72) -> 0.5505113892 | R20: =+'Grid-EF'!$H$13 -> 0.4581942174 | S20: =+B20 -> CCSUR20 | T20: 132.7 | U20: 0.7 | V20: =+T20*8760*U20 -> 813716.4 | W20: 6449 | X20: =1/(W20/$F$8) -> 0.5290959839 | Y20: =+$F$10*$F$11/X20 -> 0.3817076791 | Z20: =+Y20*V20 -> 310601.7985 | AA20: =+J20*Q20+(F20-J20)*MIN(Q20,R20)+(V20-F20)*R20 -> 430267.8214 | AB20: =+W20*V20*1000/$F$9 -> 5536572 | AC20: =+IF(AB20>MIN(L20,N20,P20),"Yes","No") -> No | AD20: =+(L20+N20+P20)/3 -> 6140713.522 | AE20: =+AB20*$F$12/1000*(1-AD20/AB20) -> -1752.010413 | AF20: =IF(AC20="Yes",MAX(0,AE20),0) -> 0 | AG20: =+AA20-Z20-AF20 -> 119666.0229
C21: SUR03 | D21: 44.16 | E21: 8760 | F21: =+E21*D21 -> 386841.6 | G21: =+OM_EF_2015!C71 -> 285112 | H21: =+OM_EF_2016!C72 -> 329847.8392 | I21: =+OM_EF_2017!C71 -> 326287.4248 | K21: =+OM_EF_2015!E71 -> 9355 | L21: =+K21*G21*1000/$F$9 -> 2814069.34 | M21: =+OM_EF_2016!E72 -> 9409 | N21: =+M21*H21*1000/$F$9 -> 3274406.683 | O21: =+OM_EF_2017!E71 -> 9304 | P21: =+O21*I21*1000/$F$9 -> 3202915.965
C22: SUR04 | D22: 44.06 | E22: 8760 | F22: =+E22*D22 -> 385965.6 | G22: =+OM_EF_2015!C72 -> 279769 | H22: =+OM_EF_2016!C73 -> 310140.643 | I22: =+OM_EF_2017!C72 -> 335050.7928 | K22: =+OM_EF_2015!E72 -> 9348 | L22: =+K22*G22*1000/$F$9 -> 2759267.466 | M22: =+OM_EF_2016!E73 -> 9427 | N22: =+M22*H22*1000/$F$9 -> 3084662.8 | O22: =+OM_EF_2017!E72 -> 9298 | P22: =+O22*I22*1000/$F$9 -> 3286818.312
B24: CCWAR10 | F24: =+F25+F26 -> 775960.8 | G24: =+G25+G26 -> 303785 | H24: =+H25+H26 -> 631324 | I24: =+I25+I26 -> 573575.296 | J24: =+AVERAGE(G24:I24) -> 502894.7653 | L24: =+L25+L26 -> 2926055.721 | N24: =+N25+N26 -> 6088596.723 | P24: =+P25+P26 -> 5490814.231 | Q24: =+(OM_EF_2017!G83*OM_EF_2017!C83+OM_EF_2017!G84*OM_EF_2017!C84)/(OM_EF_2017!C83+OM_EF_2017!C84) -> 0.5370433295 | R24: =+'Grid-EF'!$H$13 -> 0.4581942174 | S24: =+B24 -> CCWAR10 | T24: 135.2 | U24: 0.7 | V24: =+T24*8760*U24 -> 829046.4 | W24: 6449 | X24: =1/(W24/$F$8) -> 0.5290959839 | Y24: =+$F$10*$F$11/X24 -> 0.3817076791 | Z24: =+Y24*V24 -> 316453.3772 | AA24: =+J24*Q24+(F24-J24)*MIN(Q24,R24)+(V24-F24)*R24 -> 419517.0722 | AB24: =+W24*V24*1000/$F$9 -> 5640878.18 | AC24: =+IF(AB24>MIN(L24,N24,P24),"Yes","No") -> Yes | AD24: =+(L24+N24+P24)/3 -> 4835155.558 | AE24: =+AB24*$F$12/1000*(1-AD24/AB24) -> 2336.595602 | AF24: =IF(AC24="Yes",MAX(0,AE24),0) -> 2336.595602 | AG24: =+AA24-Z24-AF24 -> 100727.0994
C25: WAR01 | D25: 44.58 | E25: 8760 | F25: =+E25*D25 -> 390520.8 | G25: =+OM_EF_2015!C83 -> 198822 | H25: =+OM_EF_2016!C84 -> 327476 | I25: =+OM_EF_2017!C83 -> 341340.336 | K25: =+OM_EF_2015!E83 -> 9100 | L25: =+K25*G25*1000/$F$9 -> 1908891.906 | M25: =+OM_EF_2016!E84 -> 9100 | N25: =+M25*H25*1000/$F$9 -> 3144100.18 | O25: =+OM_EF_2017!E83 -> 9039 | P25: =+O25*I25*1000/$F$9 -> 3255243.678
C26: WAR02 | D26: 44 | E26: 8760 | F26: =+E26*D26 -> 385440 | G26: =+OM_EF_2015!C84 -> 104963 | H26: =+OM_EF_2016!C85 -> 303848 | I26: =+OM_EF_2017!C84 -> 232234.96 | K26: =+OM_EF_2015!E84 -> 9185 | L26: =+K26*G26*1000/$F$9 -> 1017163.814 | M26: =+OM_EF_2016!E85 -> 9185 | N26: =+M26*H26*1000/$F$9 -> 2944496.543 | O26: =+OM_EF_2017!E84 -> 9124 | P26: =+O26*I26*1000/$F$9 -> 2235570.553
B28: CCWAR20 | F28: =+F29+F30 -> 775698 | G28: =+G29+G30 -> 211369 | H28: =+H29+H30 -> 662805 | I28: =+I29+I30 -> 651673.488 | J28: =+AVERAGE(G28:I28) -> 508615.8293 | L28: =+L29+L30 -> 2048907.457 | N28: =+N29+N30 -> 6425797.021 | P28: =+P29+P30 -> 6275894.03 | Q28: =+(OM_EF_2017!G85*OM_EF_2017!C85+OM_EF_2017!G86*OM_EF_2017!C86)/(OM_EF_2017!C85+OM_EF_2017!C86) -> 0.5402671512 | R28: =+'Grid-EF'!$H$13 -> 0.4581942174 | S28: =+B28 -> CCWAR20 | T28: 135.2 | U28: 0.7 | V28: =+T28*8760*U28 -> 829046.4 | W28: 6449 | X28: =1/(W28/$F$8) -> 0.5290959839 | Y28: =+$F$10*$F$11/X28 -> 0.3817076791 | Z28: =+Y28*V28 -> 316453.3772 | AA28: =+J28*Q28+(F28-J28)*MIN(Q28,R28)+(V28-F28)*R28 -> 421607.8598 | AB28: =+W28*V28*1000/$F$9 -> 5640878.18 | AC28: =+IF(AB28>MIN(L28,N28,P28),"Yes","No") -> Yes | AD28: =+(L28+N28+P28)/3 -> 4916866.169 | AE28: =+AB28*$F$12/1000*(1-AD28/AB28) -> 2099.63483 | AF28: =IF(AC28="Yes",MAX(0,AE28),0) -> 2099.63483 | AG28: =+AA28-Z28-AF28 -> 103054.8478
C29: WAR03 | D29: 44.55 | E29: 8760 | F29: =+E29*D29 -> 390258 | G29: =+OM_EF_2015!C85 -> 135385 | H29: =+OM_EF_2016!C86 -> 334360 | I29: =+OM_EF_2017!C85 -> 332215.632 | K29: =+OM_EF_2015!E85 -> 9183 | L29: =+K29*G29*1000/$F$9 -> 1311688.285 | M29: =+OM_EF_2016!E86 -> 9183 | N29: =+M29*H29*1000/$F$9 -> 3239473.316 | O29: =+OM_EF_2017!E85 -> 9122 | P29: =+O29*I29*1000/$F$9 -> 3197316.565
C30: WAR04 | D30: 44 | E30: 8760 | F30: =+E30*D30 -> 385440 | G30: =+OM_EF_2015!C86 -> 75984 | H30: =+OM_EF_2016!C87 -> 328445 | I30: =+OM_EF_2017!C86 -> 319457.856 | K30: =+OM_EF_2015!E86 -> 9196 | L30: =+K30*G30*1000/$F$9 -> 737219.1721 | M30: =+OM_EF_2016!E87 -> 9195 | N30: =+M30*H30*1000/$F$9 -> 3186323.705 | O30: =+OM_EF_2017!E86 -> 9134 | P30: =+O30*I30*1000/$F$9 -> 3078577.465

Sheet Investment
B1: Scenarios. Nationally determined contribution | H1: Scenarios. Nationally determined contribution
B3: Scenario NDC | H3: Scenario 100% RE | N3: Scenario: current electricity demand
B5: Capacity additions 2018 - 2030 | H5: Capacity additions 2018 - 2030 | N5: Capacity additions 2018 - 2030
B7: Type of Technology | D7: Capacity [MW] | E7: Investment (USD/kW) | F7: Investment (000 USD) | H7: Type of Technology | J7: Capacity [MW] | K7: Investment (USD/kW) | L7: Investment (000 USD) | N7: Type of Technology | P7: Capacity [MW] | Q7: Investment (USD/kW) | R7: Investment (000 USD)
B8: =+B17 -> Natural gas | D8: =SUM(D19:D41) -> 1596.56 | E8: =+E19 -> 1807.5 | F8: =SUM(F19:F41) -> 2885782.2 | H8: =+H17 -> Natural gas | J8: =SUM(J19:J41) -> 0 | K8: =+K19 -> 1807.5 | L8: =SUM(L19:L41) -> 0 | N8: =+N17 -> Natural gas | P8: =SUM(P19:P41) -> 1480.56 | Q8: =+Q19 -> 1807.5 | R8: =SUM(R19:R41) -> 2676112.2
B9: =+B44 -> Hydropower | D9: =SUM(D46:D89) -> 8739.1 | E9: =+E46 -> 2500 | F9: =SUM(F46:F89) -> 21847750 | H9: =+H44 -> Hydropower | J9: =SUM(J46:J89) -> 8739.1 | K9: =+K46 -> 2500 | L9: =SUM(L46:L89) -> 21847750 | N9: =+N44 -> Hydropower | P9: =SUM(P46:P89) -> 958.2 | Q9: =+Q46 -> 2500 | R9: =SUM(R46:R89) -> 2395500
B10: =+B92 -> Wind | D10: =SUM(D94:D107) -> 429 | E10: =+E94 -> 1750 | F10: =SUM(F94:F107) -> 750750 | H10: =+H92 -> Wind | J10: =SUM(J94:J107) -> 429 | K10: =+K94 -> 1750 | L10: =SUM(L94:L107) -> 750750 | N10: =+N92 -> Wind | P10: =SUM(P94:P107) -> 153 | Q10: =+Q94 -> 1750 | R10: =SUM(R94:R107) -> 267750
B11: =+B110 -> Solar PV | D11: =SUM(D112:D124) -> 370 | E11: =+E112 -> 1200 | F11: =SUM(F112:F124) -> 444000 | H11: =+H110 -> Solar PV | J11: =SUM(J112:J124) -> 370 | K11: =+K112 -> 1200 | L11: =SUM(L112:L124) -> 444000 | N11: =+N110 -> Solar PV | P11: =SUM(P112:P124) -> 165 | Q11: =+Q112 -> 1200 | R11: =SUM(R112:R124) -> 198000
B12: =+B127 -> Geothermal | D12: =SUM(D128:D131) -> 105 | E12: =+E129 -> 5500 | F12: =SUM(F128:F131) -> 577500 | H12: =+H127 -> Geothermal | J12: =SUM(J128:J131) -> 105 | K12: =+K129 -> 5500 | L12: =SUM(L128:L131) -> 577500 | N12: =+N127 -> Geothermal | P12: =SUM(P128:P131) -> 5 | Q12: =+Q129 -> 5500 | R12: =SUM(R128:R131) -> 27500
B13: =+B134 -> Biomass | D13: =SUM(D136:D140) -> 50 | E13: =+E136 -> 4000 | F13: =SUM(F136:F140) -> 200000 | H13: =+H134 -> Biomass | J13: =SUM(J136:J140) -> 50 | K13: =+K136 -> 4000 | L13: =SUM(L136:L140) -> 200000 | N13: =+N134 -> Biomass | P13: =SUM(P136:P140) -> 0 | Q13: =+Q136 -> 0 | R13: =SUM(R136:R140) -> 0
B14: Total | D14: =SUM(D8:D13) -> 11289.66 | F14: =SUM(F8:F13) -> 26705782.2 | H14: Total | J14: =SUM(J8:J13) -> 9693.1 | L14: =SUM(L8:L13) -> 23820000 | N14: Total | P14: =SUM(P8:P13) -> 2761.76 | R14: =SUM(R8:R13) -> 5564862.2
B16: Plant Unit | C16: Commissioning date | D16: Capacity [MW] | E16: Investment (USD/kW) | F16: Investment (000 USD) | H16: Plant Unit | I16: Commissioning date | J16: Capacity [MW] | K16: Investment (USD/kW) | L16: Investment (000 USD) | N16: Plant Unit | O16: Commissioning date | P16: Capacity [MW] | Q16: Investment (USD/kW) | R16: Investment (000 USD)
B17: Natural gas | H17: Natural gas | N17: Natural gas
B18: Entre Ríos | H18: Entre Ríos | N18: Entre Ríos
B19: CCERI3 | C19: 2019 | D19: 136.4 | E19: 1807.5 | F19: =+E19*D19 -> 246543 | H19: CCERI3 | K19: 1807.5 | L19: =+K19*J19 -> 0 | N19: CCERI3 | O19: 2019 | P19: 136.4 | Q19: 1807.5 | R19: =+Q19*P19 -> 246543
B20: CCERI4 | C20: 2019 | D20: 136.4 | E20: =+E19 -> 1807.5 | F20: =+E20*D20 -> 246543 | H20: CCERI4 | K20: =+K19 -> 1807.5 | L20: =+K20*J20 -> 0 | N20: CCERI4 | O20: 2019 | P20: 136.4 | Q20: =+Q19 -> 1807.5 | R20: =+Q20*P20 -> 246543
B21: CCERI5 | C21: 2019 | D21: 136.4 | E21: =+E20 -> 1807.5 | F21: 246543 | H21: CCERI5 | K21: =+K20 -> 1807.5 | L21: 0 | N21: CCERI5 | O21: 2019 | P21: 136.4 | Q21: =+Q20 -> 1807.5 | R21: 246543
B22: Del Sur | H22: Del Sur | N22: Del Sur
B23: CCSUR1 | C23: 2020 | D23: 132.69 | E23: =+E21 -> 1807.5 | F23: 239837.175 | H23: CCSUR1 | K23: =+K21 -> 1807.5 | L23: =+K23*J23 -> 0 | N23: CCSUR1 | O23: 2020 | P23: 132.69 | Q23: =+Q21 -> 1807.5 | R23: =+Q23*P23 -> 239837.175
B24: CCSUR2 | C24: 2020 | D24: 132.69 | E24: =+E23 -> 1807.5 | F24: 239837.175 | H24: CCSUR2 | K24: =+K23 -> 1807.5 | L24: 0 | N24: CCSUR2 | O24: 2020 | P24: 132.69 | Q24: =+Q23 -> 1807.5 | R24: 239837.175
B25: CCSUR3 | C25: 2020 | D25: 132.69 | E25: =+E24 -> 1807.5 | F25: 239837.175 | H25: CCSUR3 | K25: =+K24 -> 1807.5 | L25: 0 | N25: CCSUR3 | O25: 2019 | P25: 132.69 | Q25: =+Q24 -> 1807.5 | R25: 239837.175
B26: CCSUR4 | C26: 2020 | D26: 132.69 | E26: 1807.5 | F26: 239837.175 | H26: CCSUR4 | K26: 1807.5 | L26: 0 | N26: CCSUR4 | O26: 2019 | P26: 132.69 | Q26: 1807.5 | R26: 239837.175
B27: Warnes | H27: Warnes | N27: Warnes
B28: CCWAR1 | C28: 2020 | D28: 135.15 | E28: =+E26 -> 1807.5 | F28: 244283.625 | H28: CCWAR1 | K28: =+K26 -> 1807.5 | L28: =+K28*J28 -> 0 | N28: CCWAR1 | O28: 2020 | P28: 135.15 | Q28: =+Q26 -> 1807.5 | R28: =+Q28*P28 -> 244283.625
B29: CCWAR2 | C29: 2020 | D29: 135.15 | E29: =+E28 -> 1807.5 | F29: 244283.625 | H29: CCWAR2 | K29: =+K28 -> 1807.5 | L29: 0 | N29: CCWAR2 | O29: 2020 | P29: 135.15 | Q29: =+Q28 -> 1807.5 | R29: 244283.625
B30: CCWAR3 | C30: 2020 | D30: 135.15 | E30: =+E29 -> 1807.5 | F30: 244283.625 | H30: CCWAR3 | K30: =+K29 -> 1807.5 | L30: 0 | N30: CCWAR3 | O30: 2019 | P30: 135.15 | Q30: =+Q29 -> 1807.5 | R30: 244283.625
B31: CCWAR4 | C31: 2020 | D31: 135.15 | E31: =+E30 -> 1807.5 | F31: 244283.625 | H31: CCWAR4 | K31: =+K30 -> 1807.5 | L31: 0 | N31: CCWAR4 | O31: 2019 | P31: 135.15 | Q31: =+Q30 -> 1807.5 | R31: 244283.625
B32: Guaracachi | H32: Guaracachi
B33: =+B32 -> Guaracachi | C33: 2020 | D33: 36 | E33: =+E31 -> 1807.5 | F33: 65070 | H33: =+H32 -> Guaracachi | K33: =+K31 -> 1807.5 | L33: =+K33*J33 -> 0
B34: Santa Cruz | H34: Santa Cruz
B35: =+B34 -> Santa Cruz | C35: 2020 | D35: 28 | E35: =+E33 -> 1807.5 | F35: 50610 | H35: =+H34 -> Santa Cruz | K35: =+K33 -> 1807.5 | L35: =+K35*J35 -> 0
B36: Carrasco | H36: Carrasco
B37: =+B36 -> Carrasco | C37: 2020 | D37: 52 | E37: =+E35 -> 1807.5 | F37: 93990 | H37: =+H36 -> Carrasco | K37: =+K35 -> 1807.5 | L37: =+K37*J37 -> 0
B38: Natural Gas A | H38: Natural Gas A
B39: =+B38 -> Natural Gas A | H39: =+H38 -> Natural Gas A
B40: Natural Gas B | H40: Natural Gas B
B41: =+B40 -> Natural Gas B | H41: =+H40 -> Natural Gas B
B43: Plant Unit | C43: Commissioning date | D43: Capacity [MW] | E43: Investment (USD/kW) | F43: Investment (000 USD) | H43: Plant Unit | I43: Commissioning date | J43: Capacity [MW] | K43: Investment (USD/kW) | L43: Investment (000 USD) | N43: Plant Unit | O43: Commissioning date | P43: Capacity [MW] | Q43: Investment (USD/kW) | R43: Investment (000 USD)
B44: Hydropower | H44: Hydropower | N44: Hydropower
B45: San José | H45: San José | N45: San José
B46: San Jose I | C46: 2018 | D46: 55 | E46: 2500 | F46: =+E46*D46 -> 137500 | H46: San Jose I | I46: 2018 | J46: 55 | K46: 2500 | L46: =+K46*J46 -> 137500 | N46: San Jose I | O46: 2018 | P46: 55 | Q46: 2500 | R46: =+Q46*P46 -> 137500
B47: San José II | C47: 2019 | D47: 69 | E47: =+E46 -> 2500 | F47: =+E47*D47 -> 172500 | H47: San José II | I47: 2019 | J47: 69 | K47: =+K46 -> 2500 | L47: =+K47*J47 -> 172500 | N47: San José II | O47: 2019 | P47: 69 | Q47: =+Q46 -> 2500 | R47: =+Q47*P47 -> 172500
B48: Sehuencas | H48: Sehuencas | N48: Sehuencas
B49: Sehuencas | C49: 2021 | D49: 198.6 | E49: =+E47 -> 2500 | F49: =+E49*D49 -> 496500 | H49: Sehuencas | I49: 2021 | J49: 198.6 | K49: =+K47 -> 2500 | L49: =+K49*J49 -> 496500 | N49: Sehuencas | O49: 2021 | P49: 198.6 | Q49: =+Q47 -> 2500 | R49: =+Q49*P49 -> 496500
B50: Juntas | H50: Juntas | N50: Juntas
B51: Juntas | C51: 2021 | D51: 91.6 | E51: =+E49 -> 2500 | F51: =+E51*D51 -> 229000 | H51: Juntas | I51: 2021 | J51: 91.6 | K51: =+K49 -> 2500 | L51: =+K51*J51 -> 229000 | N51: Juntas | O51: 2021 | P51: 91.6 | Q51: =+Q49 -> 2500 | R51: =+Q51*P51 -> 229000
B52: Umapalca | H52: Umapalca | N52: Umapalca
B53: Umapalca | C53: 2021 | D53: 85.8 | E53: =+E51 -> 2500 | F53: =+E53*D53 -> 214500 | H53: Umapalca | I53: 2021 | J53: 85.8 | K53: =+K51 -> 2500 | L53: =+K53*J53 -> 214500 | N53: Umapalca | O53: 2021 | P53: 85.8 | Q53: =+Q51 -> 2500 | R53: =+Q53*P53 -> 214500
B54: Palillada | H54: Palillada | N54: Palillada
B55: Palillada | C55: 2021 | D55: 118.2 | E55: =+E53 -> 2500 | F55: =+E55*D55 -> 295500 | H55: Palillada | I55: 2021 | J55: 118.2 | K55: =+K53 -> 2500 | L55: =+K55*J55 -> 295500 | N55: Palillada | O55: 2021 | P55: 118.2 | Q55: =+Q53 -> 2500 | R55: =+Q55*P55 -> 295500
B56: Ivirizu | H56: Ivirizu | N56: Hydro A
B57: =+B56 -> Ivirizu | C57: 2020 | D57: 253.9 | E57: =+E55 -> 2500 | F57: =+E57*D57 -> 634750 | H57: =+H56 -> Ivirizu | I57: 2020 | J57: 253.9 | K57: =+K55 -> 2500 | L57: =+K57*J57 -> 634750 | N57: Hidro A | O57: 2029 | P57: 250 | Q57: =+Q55 -> 2500 | R57: =+Q57*P57 -> 625000
B58: Banda Azul | H58: Banda Azul | N58: Hydro B
B59: =+B58 -> Banda Azul | C59: 2020 | D59: 93 | E59: =+E57 -> 2500 | F59: =+E59*D59 -> 232500 | H59: =+H58 -> Banda Azul | I59: 2020 | J59: 93 | K59: =+K57 -> 2500 | L59: =+K59*J59 -> 232500 | N59: Hidro B | O59: 2030 | P59: 90 | Q59: =+Q57 -> 2500 | R59: =+Q59*P59 -> 225000
B60: Pequenas centrales | H60: Pequenas centrales | N60: Hydro C
B61: =+B60 -> Pequenas centrales | C61: 2020 | D61: 200 | E61: =+E59 -> 2500 | F61: =+E61*D61 -> 500000 | H61: =+H60 -> Pequenas centrales | I61: 2020 | J61: 200 | K61: =+K59 -> 2500 | L61: =+K61*J61 -> 500000 | N61: Hidro C
B62: Carrizal | H62: Carrizal | N62: Hydro D
B63: =+B62 -> Carrizal | C63: 2025 | D63: 347 | E63: =+E61 -> 2500 | F63: =+E63*D63 -> 867500 | H63: =+H62 -> Carrizal | I63: 2025 | J63: 347 | K63: =+K61 -> 2500 | L63: =+K63*J63 -> 867500 | N63: Hidro D
B64: Cambari | H64: Cambari | N64: Hydro E
B65: =+B64 -> Cambari | C65: 2025 | D65: 93 | E65: =+E63 -> 2500 | F65: =+E65*D65 -> 232500 | H65: =+H64 -> Cambari | I65: 2025 | J65: 93 | K65: =+K63 -> 2500 | L65: =+K65*J65 -> 232500 | N65: Hidro E
B66: Cuenca Corani | H66: Cuenca Corani | N66: Hydro F
B67: =+B66 -> Cuenca Corani | C67: 2025 | D67: 220 | E67: =+E65 -> 2500 | F67: =+E67*D67 -> 550000 | H67: =+H66 -> Cuenca Corani | I67: 2025 | J67: 220 | K67: =+K65 -> 2500 | L67: =+K67*J67 -> 550000 | N67: Hidro F
B68: Moliineros | H68: Moliineros
B69: =+B68 -> Moliineros | C69: 2025 | D69: 132 | E69: =+E67 -> 2500 | F69: =+E69*D69 -> 330000 | H69: =+H68 -> Moliineros | I69: 2025 | J69: 132 | K69: =+K67 -> 2500 | L69: =+K69*J69 -> 330000
B70: Rositas | H70: Rositas
B71: =+B70 -> Rositas | C71: 2025 | D71: 600 | E71: =+E69 -> 2500 | F71: =+E71*D71 -> 1500000 | H71: =+H70 -> Rositas | I71: 2025 | J71: 600 | K71: =+K69 -> 2500 | L71: =+K71*J71 -> 1500000
B72: Icla | H72: Icla
B73: =+B72 -> Icla | C73: 2029 | D73: 102 | E73: =+E71 -> 2500 | F73: =+E73*D73 -> 255000 | H73: =+H72 -> Icla | I73: 2029 | J73: 102 | K73: =+K71 -> 2500 | L73: =+K73*J73 -> 255000
B74: Margarita | H74: Margarita
B75: =+B74 -> Margarita | C75: 2029 | D75: 150 | E75: =+E73 -> 2500 | F75: =+E75*D75 -> 375000 | H75: =+H74 -> Margarita | I75: 2029 | J75: 150 | K75: =+K73 -> 2500 | L75: =+K75*J75 -> 375000
B76: Río Grande (excl. Juntas) | H76: Río Grande (excl. Juntas)
B77: =+B76 -> Río Grande (excl. Juntas) | C77: 2029 | D77: =3072-172 -> 2900 | E77: =+E75 -> 2500 | F77: =+E77*D77 -> 7250000 | H77: =+H76 -> Río Grande (excl. Juntas) | I77: 2029 | J77: =3072-172 -> 2900 | K77: =+K75 -> 2500 | L77: =+K77*J77 -> 7250000
B78: Otras nuevas plantas | H78: Otras nuevas plantas
B79: =+B78 -> Otras nuevas plantas | C79: 2029 | D79: 360 | E79: =+E77 -> 2500 | F79: =+E79*D79 -> 900000 | H79: =+H78 -> Otras nuevas plantas | I79: 2029 | J79: 360 | K79: =+K77 -> 2500 | L79: =+K79*J79 -> 900000
B80: Cachuela Esperanza | H80: Cachuela Esperanza
B81: =+B80 -> Cachuela Esperanza | C81: 2029 | D81: 990 | E81: =+E79 -> 2500 | F81: =+E81*D81 -> 2475000 | H81: =+H80 -> Cachuela Esperanza | I81: 2029 | J81: 990 | K81: =+K79 -> 2500 | L81: =+K81*J81 -> 2475000
B82: El Bala | H82: El Bala
B83: =B82 -> El Bala | C83: 2030 | D83: 1680 | E83: =+E81 -> 2500 | F83: =+E83*D83 -> 4200000 | H83: =H82 -> El Bala | I83: 2030 | J83: 1680 | K83: =+K81 -> 2500 | L83: =+K83*J83 -> 4200000
B84: Hydro A | H84: Hydro A
B85: =B84 -> Hydro A | H85: =H84 -> Hydro A
B86: Hydro B | H86: Hydro B
B87: =B86 -> Hydro B | H87: =H86 -> Hydro B
B88: Hydro C | H88: Hydro C
B89: =B88 -> Hydro C | H89: =H88 -> Hydro C
B91: Plant Unit | C91: Commissioning date | D91: Capacity [MW] | E91: Investment (USD/kW) | F91: Investment (000 USD) | H91: Plant Unit | I91: Commissioning date | J91: Capacity [MW] | K91: Investment (USD/kW) | L91: Investment (000 USD) | N91: Plant Unit | O91: Commissioning date | P91: Capacity [MW] | Q91: Investment (USD/kW) | R91: Investment (000 USD)
B92: Wind | H92: Wind | N92: Wind
B93: El Dorado | H93: El Dorado | N93: El Dorado
B94: El Dorado | C94: 2020 | D94: 54 | E94: 1750 | F94: =+E94*D94 -> 94500 | H94: El Dorado | I94: 2020 | J94: 54 | K94: 1750 | L94: =+K94*J94 -> 94500 | N94: El Dorado | O94: 2020 | P94: 54 | Q94: 1750 | R94: =+Q94*P94 -> 94500
B95: La Ventolera | H95: La Ventolera | N95: La Ventolera
B96: La Ventolera | C96: 2021 | D96: 24 | E96: =+E94 -> 1750 | F96: =+E96*D96 -> 42000 | H96: La Ventolera | I96: 2021 | J96: 24 | K96: =+K94 -> 1750 | L96: =+K96*J96 -> 42000 | N96: La Ventolera | O96: 2021 | P96: 24 | Q96: =+Q94 -> 1750 | R96: =+Q96*P96 -> 42000
B97: San Julián | H97: San Julián | N97: San Julián
B98: San Julián | C98: 2020 | D98: 39.6 | E98: =+E96 -> 1750 | F98: =+E98*D98 -> 69300 | H98: San Julián | I98: 2020 | J98: 39.6 | K98: =+K96 -> 1750 | L98: =+K98*J98 -> 69300 | N98: San Julián | O98: 2020 | P98: 39.6 | Q98: =+Q96 -> 1750 | R98: =+Q98*P98 -> 69300
B99: Warnes | H99: Warnes | N99: Warnes
B100: Warnes I | C100: 2020 | D100: 14.4 | E100: =+E98 -> 1750 | F100: =+E100*D100 -> 25200 | H100: Warnes I | I100: 2020 | J100: 14.4 | K100: =+K98 -> 1750 | L100: =+K100*J100 -> 25200 | N100: Warnes I | O100: 2020 | P100: 14.4 | Q100: =+Q98 -> 1750 | R100: =+Q100*P100 -> 25200
B101: Warnes II | C101: 2021 | D101: 21 | E101: =+E100 -> 1750 | F101: =+E101*D101 -> 36750 | H101: Warnes II | I101: 2021 | J101: 21 | K101: =+K100 -> 1750 | L101: =+K101*J101 -> 36750 | N101: Warnes II | O101: 2021 | P101: 21 | Q101: =+Q100 -> 1750 | R101: =+Q101*P101 -> 36750
B102: Wind A | H102: Wind A | N102: Wind A
B103: Wind A | C103: 2030 | D103: 276 | E103: =+E101 -> 1750 | F103: =+E103*D103 -> 483000 | H103: Wind A | I103: 2030 | J103: 276 | K103: =+K101 -> 1750 | L103: =+K103*J103 -> 483000 | N103: Wind A
B104: Wind B | H104: Wind B | N104: Wind B
B105: Wind B | H105: Wind B | N105: Wind B
B106: Wind C | H106: Wind C | N106: Wind C
B107: Wind C | H107: Wind C | N107: Wind C
B109: Plant Unit | C109: Commissioning date | D109: Capacity [MW] | E109: Investment (USD/kW) | F109: Investment (000 USD) | H109: Plant Unit | I109: Commissioning date | J109: Capacity [MW] | K109: Investment (USD/kW) | L109: Investment (000 USD) | N109: Plant Unit | O109: Commissioning date | P109: Capacity [MW] | Q109: Investment (USD/kW) | R109: Investment (000 USD)
B110: Solar PV | H110: Solar PV | N110: Solar PV
B111: Oruro | H111: Oruro | N111: Oruro
B112: Oruro I | C112: 2019 | D112: 50 | E112: 1200 | F112: =+E112*D112 -> 60000 | H112: Oruro I | I112: 2019 | J112: 50 | K112: 1200 | L112: =+K112*J112 -> 60000 | N112: Oruro I | O112: 2019 | P112: 50 | Q112: 1200 | R112: =+Q112*P112 -> 60000
B113: Oruro | H113: Oruro | N113: Oruro
B114: Oruro I | C114: 2019 | D114: 50 | E114: =+E112 -> 1200 | F114: =+E114*D114 -> 60000 | H114: Oruro I | I114: 2019 | J114: 50 | K114: =+K112 -> 1200 | L114: =+K114*J114 -> 60000 | N114: Oruro I | O114: 2019 | P114: 50 | Q114: =+Q112 -> 1200 | R114: =+Q114*P114 -> 60000
B115: Uyuni | H115: Uyuni | N115: Uyuni
B116: Uyuni | C116: 2018 | D116: 60 | E116: =+E114 -> 1200 | F116: =+E116*D116 -> 72000 | H116: Uyuni | I116: 2018 | J116: 60 | K116: =+K114 -> 1200 | L116: =+K116*J116 -> 72000 | N116: Uyuni | O116: 2018 | P116: 60 | Q116: =+Q114 -> 1200 | R116: =+Q116*P116 -> 72000
B117: Yunchará | H117: Yunchará | N117: Yunchará
B118: Yunchará | C118: 2018 | D118: 5 | E118: =+E116 -> 1200 | F118: =+E118*D118 -> 6000 | H118: Yunchará | I118: 2018 | J118: 5 | K118: =+K116 -> 1200 | L118: =+K118*J118 -> 6000 | N118: Yunchará | O118: 2018 | P118: 5 | Q118: =+Q116 -> 1200 | R118: =+Q118*P118 -> 6000
B119: Riberalta - Guayamerin | H119: Riberalta - Guayamerin | N119: Solar A
B120: =B119 -> Riberalta - Guayamerin | C120: 2020 | D120: 5 | E120: =+E118 -> 1200 | F120: =+E120*D120 -> 6000 | H120: =H119 -> Riberalta - Guayamerin | I120: 2020 | J120: 5 | K120: =+K118 -> 1200 | L120: =+K120*J120 -> 6000 | N120: Solar A
B121: Solar A | H121: Solar A | N121: Solar B
B122: =+B121 -> Solar A | C122: 2030 | D122: 200 | E122: =+E120 -> 1200 | F122: =+E122*D122 -> 240000 | H122: =+H121 -> Solar A | I122: 2030 | J122: 200 | K122: =+K120 -> 1200 | L122: =+K122*J122 -> 240000 | N122: Solar B
B123: Solar B | H123: Solar B | N123: Solar C
B124: =B123 -> Solar B | H124: =H123 -> Solar B | N124: Solar C
B126: Plant Unit | C126: Commissioning date | D126: Capacity [MW] | E126: Investment (USD/kW) | F126: Investment (000 USD) | H126: Plant Unit | I126: Commissioning date | J126: Capacity [MW] | K126: Investment (USD/kW) | L126: Investment (000 USD) | N126: Plant Unit | O126: Commissioning date | P126: Capacity [MW] | Q126: Investment (USD/kW) | R126: Investment (000 USD)
B127: Geothermal | H127: Geothermal | N127: Geothermal
B128: Laguna Colorada | H128: Laguna Colorada | N128: Laguna Colorada
B129: Laguna Colorada | C129: 2020 | D129: 5 | E129: 5500 | F129: =+E129*D129 -> 27500 | H129: Laguna Colorada | I129: 2020 | J129: 5 | K129: 5500 | L129: =+K129*J129 -> 27500 | N129: Laguna Colorada | O129: 2020 | P129: 5 | Q129: 5500 | R129: =+Q129*P129 -> 27500
B130: Laguna Colorada | H130: Laguna Colorada | N130: GEO A
B131: =+B130 -> Laguna Colorada | C131: 2023 | D131: 100 | E131: =+E129 -> 5500 | F131: =+E131*D131 -> 550000 | H131: =+H130 -> Laguna Colorada | I131: 2023 | J131: 100 | K131: =+K129 -> 5500 | L131: =+K131*J131 -> 550000 | N131: GEO A
B133: Plant Unit | C133: Commissioning date | D133: Capacity [MW] | E133: Investment (USD/kW) | F133: Investment (000 USD) | H133: Plant Unit | I133: Commissioning date | J133: Capacity [MW] | K133: Investment (USD/kW) | L133: Investment (000 USD) | N133: Plant Unit | O133: Commissioning date | P133: Capacity [MW] | Q133: Investment (USD/kW) | R133: Investment (000 USD)
B134: Biomass | H134: Biomass | N134: Biomass
B135: San Buenaventura | H135: San Buenaventura | N135: San Buenaventura
B136: =+B135 -> San Buenaventura | C136: 2020 | D136: 10 | E136: 4000 | F136: =+E136*D136 -> 40000 | H136: =+H135 -> San Buenaventura | I136: 2020 | J136: 10 | K136: 4000 | L136: =+K136*J136 -> 40000 | N136: =+N135 -> San Buenaventura
B137: Cobija | H137: Cobija | N137: Cobija
B138: =+B137 -> Cobija | C138: 2020 | D138: 20 | E138: =+E136 -> 4000 | F138: =+E138*D138 -> 80000 | H138: =+H137 -> Cobija | I138: 2020 | J138: 20 | K138: =+K136 -> 4000 | L138: =+K138*J138 -> 80000 | N138: =+N137 -> Cobija
B139: Riberalta | H139: Riberalta | N139: Riberalta
B140: =+B139 -> Riberalta | C140: 2020 | D140: 20 | E140: =+E138 -> 4000 | F140: =+E140*D140 -> 80000 | H140: =+H139 -> Riberalta | I140: 2020 | J140: 20 | K140: =+K138 -> 4000 | L140: =+K140*J140 -> 80000 | N140: =+N139 -> Riberalta

Sheet Levelized Cost
B2: Technology | D2: $us/MWh
B3: Simple Cycle | D3: 32.91570645
B4: Combined cycle | D4: 50.19033392
B5: Hydroelectric | D5: 62.54751613
B6: Wind | D6: 72.04316482
B7: Solar | D7: 72.04316482
B8: Geothermal | D8: 81.3556091
B9: Biomass | D9: 88.43525436
C11: 2018 | D11: 2019 | E11: 2020 | F11: 2021 | G11: 2022 | H11: 2023 | I11: 2024 | J11: 2025 | K11: 2026 | L11: 2027 | M11: 2028 | N11: 2029 | O11: 2030
A12: Scenario: current electricity demand
A13: Levelized Energy Cost (LEC) | B13: =NPV(10%,C14:O14)/NPV(10%,C15:O15) -> 54.34486244 | C13: $us/MWh
A14: Production Cost Energy | B14: 000$us | C14: =SUMPRODUCT($D$3:$D$9,C16:C22) -> 428962.6825 | D14: 559433.7219 | E14: 616390.138 | F14: 704573.1978 | G14: 743336.5013 | H14: 784257.3079 | I14: 827498.3718 | J14: 873183.6005 | K14: 908060.8798 | L14: 943484.8061 | M14: 989509.5685 | N14: 1059219.723 | O14: 1110237.594
A15: Generation (GWh) | C15: =SUM(C16:C22) -> 9475.504271 | D15: =SUM(D16:D22) -> 10272.543 | E15: 11094.23545 | F15: 12258.19897 | G15: 13030.52504 | H15: 13845.83754 | I15: 14707.37921 | J15: 15617.61879 | K15: 16579.09796 | L15: 17594.54587 | M15: 18666.81671 | N15: 19798.90004 | O15: 20993.98337
A16: =+B3 -> Simple Cycle | C16: =(Scenario_Current_Demand!O118-Scenario_Current_Demand!O155-Scenario_Current_Demand!O156-Scenario_Current_Demand!O158)/1000 -> 5185.908178 | D16: =(Scenario_Current_Demand!P118-Scenario_Current_Demand!P155-Scenario_Current_Demand!P156-Scenario_Current_Demand!P158)/1000 -> 423.6867078 | E16: =(Scenario_Current_Demand!Q118-Scenario_Current_Demand!Q155-Scenario_Current_Demand!Q156-Scenario_Current_Demand!Q158)/1000 -> 0 | F16: =(Scenario_Current_Demand!R118-Scenario_Current_Demand!R155-Scenario_Current_Demand!R156-Scenario_Current_Demand!R158)/1000 -> 0 | G16: =(Scenario_Current_Demand!S118-Scenario_Current_Demand!S155-Scenario_Current_Demand!S156-Scenario_Current_Demand!S158)/1000 -> 0 | H16: =(Scenario_Current_Demand!T118-Scenario_Current_Demand!T155-Scenario_Current_Demand!T156-Scenario_Current_Demand!T158)/1000 -> 0 | I16: =(Scenario_Current_Demand!U118-Scenario_Current_Demand!U155-Scenario_Current_Demand!U156-Scenario_Current_Demand!U158)/1000 -> 0 | J16: =(Scenario_Current_Demand!V118-Scenario_Current_Demand!V155-Scenario_Current_Demand!V156-Scenario_Current_Demand!V158)/1000 -> 0 | K16: =(Scenario_Current_Demand!W118-Scenario_Current_Demand!W155-Scenario_Current_Demand!W156-Scenario_Current_Demand!W158)/1000 -> 774.5279066 | L16: =(Scenario_Current_Demand!X118-Scenario_Current_Demand!X155-Scenario_Current_Demand!X156-Scenario_Current_Demand!X158)/1000 -> 1674.214094 | M16: =(Scenario_Current_Demand!Y118-Scenario_Current_Demand!Y155-Scenario_Current_Demand!Y156-Scenario_Current_Demand!Y158)/1000 -> 2125.330557 | N16: =(Scenario_Current_Demand!Z118-Scenario_Current_Demand!Z155-Scenario_Current_Demand!Z156-Scenario_Current_Demand!Z158)/1000 -> 2162.41389 | O16: =(Scenario_Current_Demand!AA118-Scenario_Current_Demand!AA155-Scenario_Current_Demand!AA156-Scenario_Current_Demand!AA158)/1000 -> 2963.297223
A17: Combined cycle | C17: =(+Scenario_Current_Demand!O28+Scenario_Current_Demand!O155+Scenario_Current_Demand!O156+Scenario_Current_Demand!O158)/1000 -> 1112.951635 | D17: =(+Scenario_Current_Demand!P28+Scenario_Current_Demand!P155+Scenario_Current_Demand!P156+Scenario_Current_Demand!P158)/1000 -> 6170.039695 | E17: =(+Scenario_Current_Demand!Q28+Scenario_Current_Demand!Q155+Scenario_Current_Demand!Q156+Scenario_Current_Demand!Q158)/1000 -> 7047.060857 | F17: =(+Scenario_Current_Demand!R28+Scenario_Current_Demand!R155+Scenario_Current_Demand!R156+Scenario_Current_Demand!R158)/1000 -> 5908.458372 | G17: =(+Scenario_Current_Demand!S28+Scenario_Current_Demand!S155+Scenario_Current_Demand!S156+Scenario_Current_Demand!S158)/1000 -> 6680.784445 | H17: =(+Scenario_Current_Demand!T28+Scenario_Current_Demand!T155+Scenario_Current_Demand!T156+Scenario_Current_Demand!T158)/1000 -> 7496.096945 | I17: =(+Scenario_Current_Demand!U28+Scenario_Current_Demand!U155+Scenario_Current_Demand!U156+Scenario_Current_Demand!U158)/1000 -> 8357.638611 | J17: =(+Scenario_Current_Demand!V28+Scenario_Current_Demand!V155+Scenario_Current_Demand!V156+Scenario_Current_Demand!V158)/1000 -> 9267.878195 | K17: =(+Scenario_Current_Demand!W28+Scenario_Current_Demand!W155+Scenario_Current_Demand!W156+Scenario_Current_Demand!W158)/1000 -> 9454.829455 | L17: =(+Scenario_Current_Demand!X28+Scenario_Current_Demand!X155+Scenario_Current_Demand!X156+Scenario_Current_Demand!X158)/1000 -> 9570.591183 | M17: =(+Scenario_Current_Demand!Y28+Scenario_Current_Demand!Y155+Scenario_Current_Demand!Y156+Scenario_Current_Demand!Y158)/1000 -> 10191.74555 | N17: =(+Scenario_Current_Demand!Z28+Scenario_Current_Demand!Z155+Scenario_Current_Demand!Z156+Scenario_Current_Demand!Z158)/1000 -> 10191.74555 | O17: =(+Scenario_Current_Demand!AA28+Scenario_Current_Demand!AA155+Scenario_Current_Demand!AA156+Scenario_Current_Demand!AA158)/1000 -> 10191.74555
A18: Hydroelectric | C18: =(+Scenario_Current_Demand!O190+Scenario_Current_Demand!O45)/1000 -> 2892.138979 | D18: =(+Scenario_Current_Demand!P190+Scenario_Current_Demand!P45)/1000 -> 3184.071116 | E18: =(+Scenario_Current_Demand!Q190+Scenario_Current_Demand!Q45)/1000 -> 3184.071116 | F18: =(+Scenario_Current_Demand!R190+Scenario_Current_Demand!R45)/1000 -> 5348.667116 | G18: =(+Scenario_Current_Demand!S190+Scenario_Current_Demand!S45)/1000 -> 5348.667116 | H18: =(+Scenario_Current_Demand!T190+Scenario_Current_Demand!T45)/1000 -> 5348.667116 | I18: =(+Scenario_Current_Demand!U190+Scenario_Current_Demand!U45)/1000 -> 5348.667116 | J18: =(+Scenario_Current_Demand!V190+Scenario_Current_Demand!V45)/1000 -> 5348.667116 | K18: =(+Scenario_Current_Demand!W190+Scenario_Current_Demand!W45)/1000 -> 5348.667116 | L18: =(+Scenario_Current_Demand!X190+Scenario_Current_Demand!X45)/1000 -> 5348.667116 | M18: =(+Scenario_Current_Demand!Y190+Scenario_Current_Demand!Y45)/1000 -> 5348.667116 | N18: =(+Scenario_Current_Demand!Z190+Scenario_Current_Demand!Z45)/1000 -> 6443.667116 | O18: =(+Scenario_Current_Demand!AA190+Scenario_Current_Demand!AA45)/1000 -> 6837.867116
A19: Wind | C19: =(+Scenario_Current_Demand!O72+Scenario_Current_Demand!O270)/1000 -> 86.072579 | D19: =(+Scenario_Current_Demand!P72+Scenario_Current_Demand!P270)/1000 -> 86.072579 | E19: =(+Scenario_Current_Demand!Q72+Scenario_Current_Demand!Q270)/1000 -> 417.200579 | F19: =(+Scenario_Current_Demand!R72+Scenario_Current_Demand!R270)/1000 -> 555.170579 | G19: =(+Scenario_Current_Demand!S72+Scenario_Current_Demand!S270)/1000 -> 555.170579 | H19: =(+Scenario_Current_Demand!T72+Scenario_Current_Demand!T270)/1000 -> 555.170579 | I19: =(+Scenario_Current_Demand!U72+Scenario_Current_Demand!U270)/1000 -> 555.170579 | J19: =(+Scenario_Current_Demand!V72+Scenario_Current_Demand!V270)/1000 -> 555.170579 | K19: =(+Scenario_Current_Demand!W72+Scenario_Current_Demand!W270)/1000 -> 555.170579 | L19: =(+Scenario_Current_Demand!X72+Scenario_Current_Demand!X270)/1000 -> 555.170579 | M19: =(+Scenario_Current_Demand!Y72+Scenario_Current_Demand!Y270)/1000 -> 555.170579 | N19: =(+Scenario_Current_Demand!Z72+Scenario_Current_Demand!Z270)/1000 -> 555.170579 | O19: =(+Scenario_Current_Demand!AA72+Scenario_Current_Demand!AA270)/1000 -> 555.170579
A20: Solar | C20: =(+Scenario_Current_Demand!O90)/1000 -> 136.656 | D20: =(+Scenario_Current_Demand!P90)/1000 -> 346.896 | E20: =(+Scenario_Current_Demand!Q90)/1000 -> 346.896 | F20: =(+Scenario_Current_Demand!R90)/1000 -> 346.896 | G20: =(+Scenario_Current_Demand!S90)/1000 -> 346.896 | H20: =(+Scenario_Current_Demand!T90)/1000 -> 346.896 | I20: =(+Scenario_Current_Demand!U90)/1000 -> 346.896 | J20: =(+Scenario_Current_Demand!V90)/1000 -> 346.896 | K20: =(+Scenario_Current_Demand!W90)/1000 -> 346.896 | L20: =(+Scenario_Current_Demand!X90)/1000 -> 346.896 | M20: =(+Scenario_Current_Demand!Y90)/1000 -> 346.896 | N20: =(+Scenario_Current_Demand!Z90)/1000 -> 346.896 | O20: =(+Scenario_Current_Demand!AA90)/1000 -> 346.896
A21: Geothermal | C21: =+Scenario_Current_Demand!O107/1000 -> 0 | D21: =+Scenario_Current_Demand!P107/1000 -> 0 | E21: =+Scenario_Current_Demand!Q107/1000 -> 37.23 | F21: =+Scenario_Current_Demand!R107/1000 -> 37.23 | G21: =+Scenario_Current_Demand!S107/1000 -> 37.23 | H21: =+Scenario_Current_Demand!T107/1000 -> 37.23 | I21: =+Scenario_Current_Demand!U107/1000 -> 37.23 | J21: =+Scenario_Current_Demand!V107/1000 -> 37.23 | K21: =+Scenario_Current_Demand!W107/1000 -> 37.23 | L21: =+Scenario_Current_Demand!X107/1000 -> 37.23 | M21: =+Scenario_Current_Demand!Y107/1000 -> 37.23 | N21: =+Scenario_Current_Demand!Z107/1000 -> 37.23 | O21: =+Scenario_Current_Demand!AA107/1000 -> 37.23
A22: Biomass | C22: =+Scenario_Current_Demand!O262/1000 -> 61.77690033 | D22: =+Scenario_Current_Demand!P262/1000 -> 61.77690033 | E22: =+Scenario_Current_Demand!Q262/1000 -> 61.77690033 | F22: =+Scenario_Current_Demand!R262/1000 -> 61.77690033 | G22: =+Scenario_Current_Demand!S262/1000 -> 61.77690033 | H22: =+Scenario_Current_Demand!T262/1000 -> 61.77690033 | I22: =+Scenario_Current_Demand!U262/1000 -> 61.77690033 | J22: =+Scenario_Current_Demand!V262/1000 -> 61.77690033 | K22: =+Scenario_Current_Demand!W262/1000 -> 61.77690033 | L22: =+Scenario_Current_Demand!X262/1000 -> 61.77690033 | M22: =+Scenario_Current_Demand!Y262/1000 -> 61.77690033 | N22: =+Scenario_Current_Demand!Z262/1000 -> 61.77690033 | O22: =+Scenario_Current_Demand!AA262/1000 -> 61.77690033
A24: Scenarios. Nationally determined contribution
A25: Levelized Energy Cost (LEC) | B25: =NPV(10%,C26:O26)/NPV(10%,C27:O27) -> 54.69823179 | C25: $us/MWh
A26: =+A14 -> Production Cost Energy | B26: 000$us | C26: =SUMPRODUCT($D$3:$D$9,C28:C34) -> 431410.0043 | D26: 596200.2739 | E26: 1093214.063 | F26: 1237875.078 | G26: 1237875.078 | H26: 1298452.465 | I26: 1298452.465 | J26: 1679802.169 | K26: 1679802.169 | L26: 1679802.169 | M26: 1679802.169 | N26: 3056192.386 | O26: 3607698.817
A27: =+A15 -> Generation (GWh) | C27: =SUM(C28:C34) -> 9549.855457 | D27: =SUM(D28:D34) -> 12726.69419 | E27: 20759.86712 | F27: 23042.11201 | G27: 23042.11201 | H27: 23786.71201 | I27: 23786.71201 | J27: 29883.67201 | K27: 29883.67201 | L27: 29883.67201 | M27: 29883.67201 | N27: 51889.18561 | O27: =SUM(O28:O34) -> 60514.28161
A28: =+A16 -> Simple Cycle | C28: =(Scenario_NDC!O190-(Scenario_NDC!O227+Scenario_NDC!O228+Scenario_NDC!O230))/1000 -> 5260.259364 | D28: =(Scenario_NDC!P190-(Scenario_NDC!P227+Scenario_NDC!P228+Scenario_NDC!P230))/1000 -> 5425.711562 | E28: =(Scenario_NDC!Q190-(Scenario_NDC!Q227+Scenario_NDC!Q228+Scenario_NDC!Q230))/1000 -> 3031.40097 | F28: =(Scenario_NDC!R190-(Scenario_NDC!R227+Scenario_NDC!R228+Scenario_NDC!R230))/1000 -> 3011.079857 | G28: =(Scenario_NDC!S190-(Scenario_NDC!S227+Scenario_NDC!S228+Scenario_NDC!S230))/1000 -> 3011.079857 | H28: =(Scenario_NDC!T190-(Scenario_NDC!T227+Scenario_NDC!T228+Scenario_NDC!T230))/1000 -> 3011.079857 | I28: =(Scenario_NDC!U190-(Scenario_NDC!U227+Scenario_NDC!U228+Scenario_NDC!U230))/1000 -> 3011.079857 | J28: =(Scenario_NDC!V190-(Scenario_NDC!V227+Scenario_NDC!V228+Scenario_NDC!V230))/1000 -> 3011.079857 | K28: =(Scenario_NDC!W190-(Scenario_NDC!W227+Scenario_NDC!W228+Scenario_NDC!W230))/1000 -> 3011.079857 | L28: =(Scenario_NDC!X190-(Scenario_NDC!X227+Scenario_NDC!X228+Scenario_NDC!X230))/1000 -> 3011.079857 | M28: =(Scenario_NDC!Y190-(Scenario_NDC!Y227+Scenario_NDC!Y228+Scenario_NDC!Y230))/1000 -> 3011.079857 | N28: =(Scenario_NDC!Z190-(Scenario_NDC!Z227+Scenario_NDC!Z228+Scenario_NDC!Z230))/1000 -> 3011.079857 | O28: =(Scenario_NDC!AA190-(Scenario_NDC!AA227+Scenario_NDC!AA228+Scenario_NDC!AA230))/1000 -> 3011.079857
A29: =+A17 -> Combined cycle | C29: =(+Scenario_NDC!O54+(Scenario_NDC!O227+Scenario_NDC!O228+Scenario_NDC!O230))/1000 -> 1112.951635 | D29: =(+Scenario_NDC!P54+(Scenario_NDC!P227+Scenario_NDC!P228+Scenario_NDC!P230))/1000 -> 3622.166035 | E29: =(+Scenario_NDC!Q54+(Scenario_NDC!Q227+Scenario_NDC!Q228+Scenario_NDC!Q230))/1000 -> 10903.05755 | F29: =(+Scenario_NDC!R54+(Scenario_NDC!R227+Scenario_NDC!R228+Scenario_NDC!R230))/1000 -> 10903.05755 | G29: =(+Scenario_NDC!S54+(Scenario_NDC!S227+Scenario_NDC!S228+Scenario_NDC!S230))/1000 -> 10903.05755 | H29: =(+Scenario_NDC!T54+(Scenario_NDC!T227+Scenario_NDC!T228+Scenario_NDC!T230))/1000 -> 10903.05755 | I29: =(+Scenario_NDC!U54+(Scenario_NDC!U227+Scenario_NDC!U228+Scenario_NDC!U230))/1000 -> 10903.05755 | J29: =(+Scenario_NDC!V54+(Scenario_NDC!V227+Scenario_NDC!V228+Scenario_NDC!V230))/1000 -> 10903.05755 | K29: =(+Scenario_NDC!W54+(Scenario_NDC!W227+Scenario_NDC!W228+Scenario_NDC!W230))/1000 -> 10903.05755 | L29: =(+Scenario_NDC!X54+(Scenario_NDC!X227+Scenario_NDC!X228+Scenario_NDC!X230))/1000 -> 10903.05755 | M29: =(+Scenario_NDC!Y54+(Scenario_NDC!Y227+Scenario_NDC!Y228+Scenario_NDC!Y230))/1000 -> 10903.05755 | N29: =(+Scenario_NDC!Z54+(Scenario_NDC!Z227+Scenario_NDC!Z228+Scenario_NDC!Z230))/1000 -> 10903.05755 | O29: =(+Scenario_NDC!AA54+(Scenario_NDC!AA227+Scenario_NDC!AA228+Scenario_NDC!AA230))/1000 -> 10903.05755
A30: Hydroelectric | C30: =(+Scenario_NDC!O262+Scenario_NDC!O82)/1000 -> 2892.138979 | D30: =(+Scenario_NDC!P262+Scenario_NDC!P82)/1000 -> 3184.071116 | E30: =(+Scenario_NDC!Q262+Scenario_NDC!Q82)/1000 -> 5579.493116 | F30: =(+Scenario_NDC!R262+Scenario_NDC!R82)/1000 -> 7744.089116 | G30: =(+Scenario_NDC!S262+Scenario_NDC!S82)/1000 -> 7744.089116 | H30: =(+Scenario_NDC!T262+Scenario_NDC!T82)/1000 -> 7744.089116 | I30: =(+Scenario_NDC!U262+Scenario_NDC!U82)/1000 -> 7744.089116 | J30: =(+Scenario_NDC!V262+Scenario_NDC!V82)/1000 -> 13841.04912 | K30: =(+Scenario_NDC!W262+Scenario_NDC!W82)/1000 -> 13841.04912 | L30: =(+Scenario_NDC!X262+Scenario_NDC!X82)/1000 -> 13841.04912 | M30: =(+Scenario_NDC!Y262+Scenario_NDC!Y82)/1000 -> 13841.04912 | N30: =(+Scenario_NDC!Z262+Scenario_NDC!Z82)/1000 -> 35846.56272 | O30: =(+Scenario_NDC!AA262+Scenario_NDC!AA82)/1000 -> 43204.96272
A31: Wind | C31: =(+Scenario_NDC!O132+Scenario_NDC!O344)/1000 -> 86.072579 | D31: =(+Scenario_NDC!P132+Scenario_NDC!P344)/1000 -> 86.072579 | E31: =(+Scenario_NDC!Q132+Scenario_NDC!Q344)/1000 -> 417.200579 | F31: =(+Scenario_NDC!R132+Scenario_NDC!R344)/1000 -> 555.170579 | G31: =(+Scenario_NDC!S132+Scenario_NDC!S344)/1000 -> 555.170579 | H31: =(+Scenario_NDC!T132+Scenario_NDC!T344)/1000 -> 555.170579 | I31: =(+Scenario_NDC!U132+Scenario_NDC!U344)/1000 -> 555.170579 | J31: =(+Scenario_NDC!V132+Scenario_NDC!V344)/1000 -> 555.170579 | K31: =(+Scenario_NDC!W132+Scenario_NDC!W344)/1000 -> 555.170579 | L31: =(+Scenario_NDC!X132+Scenario_NDC!X344)/1000 -> 555.170579 | M31: =(+Scenario_NDC!Y132+Scenario_NDC!Y344)/1000 -> 555.170579 | N31: =(+Scenario_NDC!Z132+Scenario_NDC!Z344)/1000 -> 555.170579 | O31: =(+Scenario_NDC!AA132+Scenario_NDC!AA344)/1000 -> 1401.386579
A32: Solar | C32: =+Scenario_NDC!O151/1000 -> 136.656 | D32: =+Scenario_NDC!P151/1000 -> 346.896 | E32: =+Scenario_NDC!Q151/1000 -> 357.408 | F32: =+Scenario_NDC!R151/1000 -> 357.408 | G32: =+Scenario_NDC!S151/1000 -> 357.408 | H32: =+Scenario_NDC!T151/1000 -> 357.408 | I32: =+Scenario_NDC!U151/1000 -> 357.408 | J32: =+Scenario_NDC!V151/1000 -> 357.408 | K32: =+Scenario_NDC!W151/1000 -> 357.408 | L32: =+Scenario_NDC!X151/1000 -> 357.408 | M32: =+Scenario_NDC!Y151/1000 -> 357.408 | N32: =+Scenario_NDC!Z151/1000 -> 357.408 | O32: =+Scenario_NDC!AA151/1000 -> 777.888
A33: Geothermal | C33: =+Scenario_NDC!O169/1000 -> 0 | D33: =+Scenario_NDC!P169/1000 -> 0 | E33: =+Scenario_NDC!Q169/1000 -> 37.23 | F33: =+Scenario_NDC!R169/1000 -> 37.23 | G33: =+Scenario_NDC!S169/1000 -> 37.23 | H33: =+Scenario_NDC!T169/1000 -> 781.83 | I33: =+Scenario_NDC!U169/1000 -> 781.83 | J33: =+Scenario_NDC!V169/1000 -> 781.83 | K33: =+Scenario_NDC!W169/1000 -> 781.83 | L33: =+Scenario_NDC!X169/1000 -> 781.83 | M33: =+Scenario_NDC!Y169/1000 -> 781.83 | N33: =+Scenario_NDC!Z169/1000 -> 781.83 | O33: =+Scenario_NDC!AA169/1000 -> 781.83
A34: Biomass | C34: =(+Scenario_NDC!O177+Scenario_NDC!O335)/1000 -> 61.77690033 | D34: =(+Scenario_NDC!P177+Scenario_NDC!P335)/1000 -> 61.77690033 | E34: =(+Scenario_NDC!Q177+Scenario_NDC!Q335)/1000 -> 434.0769003 | F34: =(+Scenario_NDC!R177+Scenario_NDC!R335)/1000 -> 434.0769003 | G34: =(+Scenario_NDC!S177+Scenario_NDC!S335)/1000 -> 434.0769003 | H34: =(+Scenario_NDC!T177+Scenario_NDC!T335)/1000 -> 434.0769003 | I34: =(+Scenario_NDC!U177+Scenario_NDC!U335)/1000 -> 434.0769003 | J34: =(+Scenario_NDC!V177+Scenario_NDC!V335)/1000 -> 434.0769003 | K34: =(+Scenario_NDC!W177+Scenario_NDC!W335)/1000 -> 434.0769003 | L34: =(+Scenario_NDC!X177+Scenario_NDC!X335)/1000 -> 434.0769003 | M34: =(+Scenario_NDC!Y177+Scenario_NDC!Y335)/1000 -> 434.0769003 | N34: =(+Scenario_NDC!Z177+Scenario_NDC!Z335)/1000 -> 434.0769003 | O34: =(+Scenario_NDC!AA177+Scenario_NDC!AA335)/1000 -> 434.0769003
A36: Scenarios. 100% RE
A37: Levelized Energy Cost (LEC) | B37: =NPV(10%,C38:O38)/NPV(10%,C39:O39) -> 56.34467607 | C37: $us/MWh
A38: Energy Production Cost | B38: 000$us | C38: =SUMPRODUCT($D$3:$D$9,C40:C46) -> 431410.0043 | D38: 470261.9653 | E38: 651927.6853 | F38: 795630.3989 | G38: 796697.7784 | H38: 856883.0124 | I38: 856788.6543 | J38: 1146802.243 | K38: 1146704.614 | L38: 1146705.159 | M38: 1146737.339 | N38: 2409852.465 | O38: 2961358.897
A39: =+A27 -> Generation (GWh) | C39: =SUM(C40:C46) -> 9549.855457 | D39: =SUM(D40:D46) -> 10217.47979 | E39: 12491.29339 | F39: 14744.42448 | G39: 14776.85215 | H39: 15509.5383 | I39: 15506.67165 | J39: 19215.52663 | K39: 19212.56059 | L39: 19212.57715 | M39: 19213.55479 | N39: 37975.04819 | O39: 46600.14419
A40: =+A28 -> Simple Cycle | C40: =('Scenario_100%_RE'!O190-('Scenario_100%_RE'!O227+'Scenario_100%_RE'!O228+'Scenario_100%_RE'!O230))/1000 -> 5260.259364 | D40: =('Scenario_100%_RE'!P190-('Scenario_100%_RE'!P227+'Scenario_100%_RE'!P228+'Scenario_100%_RE'!P230))/1000 -> 5425.711562 | E40: =('Scenario_100%_RE'!Q190-('Scenario_100%_RE'!Q227+'Scenario_100%_RE'!Q228+'Scenario_100%_RE'!Q230))/1000 -> 4552.933164 | F40: =('Scenario_100%_RE'!R190-('Scenario_100%_RE'!R227+'Scenario_100%_RE'!R228+'Scenario_100%_RE'!R230))/1000 -> 4503.498253 | G40: =('Scenario_100%_RE'!S190-('Scenario_100%_RE'!S227+'Scenario_100%_RE'!S228+'Scenario_100%_RE'!S230))/1000 -> 4535.925919 | H40: =('Scenario_100%_RE'!T190-('Scenario_100%_RE'!T227+'Scenario_100%_RE'!T228+'Scenario_100%_RE'!T230))/1000 -> 4524.012075 | I40: =('Scenario_100%_RE'!U190-('Scenario_100%_RE'!U227+'Scenario_100%_RE'!U228+'Scenario_100%_RE'!U230))/1000 -> 4521.145416 | J40: =('Scenario_100%_RE'!V190-('Scenario_100%_RE'!V227+'Scenario_100%_RE'!V228+'Scenario_100%_RE'!V230))/1000 -> 2869.956497 | K40: =('Scenario_100%_RE'!W190-('Scenario_100%_RE'!W227+'Scenario_100%_RE'!W228+'Scenario_100%_RE'!W230))/1000 -> 2866.990459 | L40: =('Scenario_100%_RE'!X190-('Scenario_100%_RE'!X227+'Scenario_100%_RE'!X228+'Scenario_100%_RE'!X230))/1000 -> 2867.007022 | M40: =('Scenario_100%_RE'!Y190-('Scenario_100%_RE'!Y227+'Scenario_100%_RE'!Y228+'Scenario_100%_RE'!Y230))/1000 -> 2867.984659 | N40: =('Scenario_100%_RE'!Z190-('Scenario_100%_RE'!Z227+'Scenario_100%_RE'!Z228+'Scenario_100%_RE'!Z230))/1000 -> 0 | O40: =('Scenario_100%_RE'!AA190-('Scenario_100%_RE'!AA227+'Scenario_100%_RE'!AA228+'Scenario_100%_RE'!AA230))/1000 -> 0
A41: =+A29 -> Combined cycle | C41: =(+'Scenario_100%_RE'!O54+('Scenario_100%_RE'!O227+'Scenario_100%_RE'!O228+'Scenario_100%_RE'!O230))/1000 -> 1112.951635 | D41: =(+'Scenario_100%_RE'!P54+('Scenario_100%_RE'!P227+'Scenario_100%_RE'!P228+'Scenario_100%_RE'!P230))/1000 -> 1112.951635 | E41: =(+'Scenario_100%_RE'!Q54+('Scenario_100%_RE'!Q227+'Scenario_100%_RE'!Q228+'Scenario_100%_RE'!Q230))/1000 -> 1112.951635 | F41: =(+'Scenario_100%_RE'!R54+('Scenario_100%_RE'!R227+'Scenario_100%_RE'!R228+'Scenario_100%_RE'!R230))/1000 -> 1112.951635 | G41: =(+'Scenario_100%_RE'!S54+('Scenario_100%_RE'!S227+'Scenario_100%_RE'!S228+'Scenario_100%_RE'!S230))/1000 -> 1112.951635 | H41: =(+'Scenario_100%_RE'!T54+('Scenario_100%_RE'!T227+'Scenario_100%_RE'!T228+'Scenario_100%_RE'!T230))/1000 -> 1112.951635 | I41: =(+'Scenario_100%_RE'!U54+('Scenario_100%_RE'!U227+'Scenario_100%_RE'!U228+'Scenario_100%_RE'!U230))/1000 -> 1112.951635 | J41: =(+'Scenario_100%_RE'!V54+('Scenario_100%_RE'!V227+'Scenario_100%_RE'!V228+'Scenario_100%_RE'!V230))/1000 -> 376.0355346 | K41: =(+'Scenario_100%_RE'!W54+('Scenario_100%_RE'!W227+'Scenario_100%_RE'!W228+'Scenario_100%_RE'!W230))/1000 -> 376.0355346 | L41: =(+'Scenario_100%_RE'!X54+('Scenario_100%_RE'!X227+'Scenario_100%_RE'!X228+'Scenario_100%_RE'!X230))/1000 -> 376.0355346 | M41: =(+'Scenario_100%_RE'!Y54+('Scenario_100%_RE'!Y227+'Scenario_100%_RE'!Y228+'Scenario_100%_RE'!Y230))/1000 -> 376.0355346 | N41: =(+'Scenario_100%_RE'!Z54+('Scenario_100%_RE'!Z227+'Scenario_100%_RE'!Z228+'Scenario_100%_RE'!Z230))/1000 -> 0 | O41: =(+'Scenario_100%_RE'!AA54+('Scenario_100%_RE'!AA227+'Scenario_100%_RE'!AA228+'Scenario_100%_RE'!AA230))/1000 -> 0
A42: Hydroelectric | C42: =(+'Scenario_100%_RE'!O262+'Scenario_100%_RE'!O82)/1000 -> 2892.138979 | D42: =(+'Scenario_100%_RE'!P262+'Scenario_100%_RE'!P82)/1000 -> 3184.071116 | E42: =(+'Scenario_100%_RE'!Q262+'Scenario_100%_RE'!Q82)/1000 -> 5579.493116 | F42: =(+'Scenario_100%_RE'!R262+'Scenario_100%_RE'!R82)/1000 -> 7744.089116 | G42: =(+'Scenario_100%_RE'!S262+'Scenario_100%_RE'!S82)/1000 -> 7744.089116 | H42: =(+'Scenario_100%_RE'!T262+'Scenario_100%_RE'!T82)/1000 -> 7744.089116 | I42: =(+'Scenario_100%_RE'!U262+'Scenario_100%_RE'!U82)/1000 -> 7744.089116 | J42: =(+'Scenario_100%_RE'!V262+'Scenario_100%_RE'!V82)/1000 -> 13841.04912 | K42: =(+'Scenario_100%_RE'!W262+'Scenario_100%_RE'!W82)/1000 -> 13841.04912 | L42: =(+'Scenario_100%_RE'!X262+'Scenario_100%_RE'!X82)/1000 -> 13841.04912 | M42: =(+'Scenario_100%_RE'!Y262+'Scenario_100%_RE'!Y82)/1000 -> 13841.04912 | N42: =(+'Scenario_100%_RE'!Z262+'Scenario_100%_RE'!Z82)/1000 -> 35846.56272 | O42: =(+'Scenario_100%_RE'!AA262+'Scenario_100%_RE'!AA82)/1000 -> 43204.96272
A43: Wind | C43: =(+'Scenario_100%_RE'!O132+'Scenario_100%_RE'!O344)/1000 -> 86.072579 | D43: =(+'Scenario_100%_RE'!P132+'Scenario_100%_RE'!P344)/1000 -> 86.072579 | E43: =(+'Scenario_100%_RE'!Q132+'Scenario_100%_RE'!Q344)/1000 -> 417.200579 | F43: =(+'Scenario_100%_RE'!R132+'Scenario_100%_RE'!R344)/1000 -> 555.170579 | G43: =(+'Scenario_100%_RE'!S132+'Scenario_100%_RE'!S344)/1000 -> 555.170579 | H43: =(+'Scenario_100%_RE'!T132+'Scenario_100%_RE'!T344)/1000 -> 555.170579 | I43: =(+'Scenario_100%_RE'!U132+'Scenario_100%_RE'!U344)/1000 -> 555.170579 | J43: =(+'Scenario_100%_RE'!V132+'Scenario_100%_RE'!V344)/1000 -> 555.170579 | K43: =(+'Scenario_100%_RE'!W132+'Scenario_100%_RE'!W344)/1000 -> 555.170579 | L43: =(+'Scenario_100%_RE'!X132+'Scenario_100%_RE'!X344)/1000 -> 555.170579 | M43: =(+'Scenario_100%_RE'!Y132+'Scenario_100%_RE'!Y344)/1000 -> 555.170579 | N43: =(+'Scenario_100%_RE'!Z132+'Scenario_100%_RE'!Z344)/1000 -> 555.170579 | O43: =(+'Scenario_100%_RE'!AA132+'Scenario_100%_RE'!AA344)/1000 -> 1401.386579
A44: Solar | C44: =+'Scenario_100%_RE'!O151/1000 -> 136.656 | D44: =+'Scenario_100%_RE'!P151/1000 -> 346.896 | E44: =+'Scenario_100%_RE'!Q151/1000 -> 357.408 | F44: =+'Scenario_100%_RE'!R151/1000 -> 357.408 | G44: =+'Scenario_100%_RE'!S151/1000 -> 357.408 | H44: =+'Scenario_100%_RE'!T151/1000 -> 357.408 | I44: =+'Scenario_100%_RE'!U151/1000 -> 357.408 | J44: =+'Scenario_100%_RE'!V151/1000 -> 357.408 | K44: =+'Scenario_100%_RE'!W151/1000 -> 357.408 | L44: =+'Scenario_100%_RE'!X151/1000 -> 357.408 | M44: =+'Scenario_100%_RE'!Y151/1000 -> 357.408 | N44: =+'Scenario_100%_RE'!Z151/1000 -> 357.408 | O44: =+'Scenario_100%_RE'!AA151/1000 -> 777.888
A45: Geothermal | C45: =+'Scenario_100%_RE'!O169/1000 -> 0 | D45: =+'Scenario_100%_RE'!P169/1000 -> 0 | E45: =+'Scenario_100%_RE'!Q169/1000 -> 37.23 | F45: =+'Scenario_100%_RE'!R169/1000 -> 37.23 | G45: =+'Scenario_100%_RE'!S169/1000 -> 37.23 | H45: =+'Scenario_100%_RE'!T169/1000 -> 781.83 | I45: =+'Scenario_100%_RE'!U169/1000 -> 781.83 | J45: =+'Scenario_100%_RE'!V169/1000 -> 781.83 | K45: =+'Scenario_100%_RE'!W169/1000 -> 781.83 | L45: =+'Scenario_100%_RE'!X169/1000 -> 781.83 | M45: =+'Scenario_100%_RE'!Y169/1000 -> 781.83 | N45: =+'Scenario_100%_RE'!Z169/1000 -> 781.83 | O45: =+'Scenario_100%_RE'!AA169/1000 -> 781.83
A46: Biomass | C46: =(+'Scenario_100%_RE'!O177+'Scenario_100%_RE'!O335)/1000 -> 61.77690033 | D46: =(+'Scenario_100%_RE'!P177+'Scenario_100%_RE'!P335)/1000 -> 61.77690033 | E46: =(+'Scenario_100%_RE'!Q177+'Scenario_100%_RE'!Q335)/1000 -> 434.0769003 | F46: =(+'Scenario_100%_RE'!R177+'Scenario_100%_RE'!R335)/1000 -> 434.0769003 | G46: =(+'Scenario_100%_RE'!S177+'Scenario_100%_RE'!S335)/1000 -> 434.0769003 | H46: =(+'Scenario_100%_RE'!T177+'Scenario_100%_RE'!T335)/1000 -> 434.0769003 | I46: =(+'Scenario_100%_RE'!U177+'Scenario_100%_RE'!U335)/1000 -> 434.0769003 | J46: =(+'Scenario_100%_RE'!V177+'Scenario_100%_RE'!V335)/1000 -> 434.0769003 | K46: =(+'Scenario_100%_RE'!W177+'Scenario_100%_RE'!W335)/1000 -> 434.0769003 | L46: =(+'Scenario_100%_RE'!X177+'Scenario_100%_RE'!X335)/1000 -> 434.0769003 | M46: =(+'Scenario_100%_RE'!Y177+'Scenario_100%_RE'!Y335)/1000 -> 434.0769003 | N46: =(+'Scenario_100%_RE'!Z177+'Scenario_100%_RE'!Z335)/1000 -> 434.0769003 | O46: =(+'Scenario_100%_RE'!AA177+'Scenario_100%_RE'!AA335)/1000 -> 434.0769003

Sheet Scenario_Current_Demand
B3: Scenario: current electricity demand
B6: Electricity demand | G6: 2010 | H6: 2011 | I6: 2012 | J6: 2013 | K6: 2014 | L6: 2015 | M6: 2016 | N6: 2017 | O6: 2018 | P6: 2019 | Q6: 2020 | R6: 2021 | S6: 2022 | T6: 2023 | U6: 2024 | V6: 2025 | W6: 2026 | X6: 2027 | Y6: 2028 | Z6: 2029 | AA6: 2030
B7: Electricity demand [MWh] | G7: 5814019.035 | H7: 6301852.262 | I7: 6604327.164 | J7: 7012819.377 | K7: 7477658.063 | L7: 7945921.687 | M7: 8377847.314 | N7: 8613743.881 | O7: 9096484.101 | P7: 9861641.278 | Q7: 10650466.03 | R7: 11767871.01 | S7: 12509304.04 | T7: 13292004.04 | U7: 14119084.04 | V7: 14992914.04 | W7: 15915934.04 | X7: 16890764.04 | Y7: 17920144.04 | Z7: 19006944.04 | AA7: 20154224.04
B8: Transmission and distribution losses [%] | O8: 0.04 | P8: 0.04 | Q8: 0.04 | R8: 0.04 | S8: 0.04 | T8: 0.04 | U8: 0.04 | V8: 0.04 | W8: 0.04 | X8: 0.04 | Y8: 0.04 | Z8: 0.04 | AA8: 0.04
B9: Total electricity demand [MWh] | G9: =+G12 -> 6085440.865 | H9: =+H12 -> 6592941.533 | I9: 6861925.926 | J9: 7286833.036 | K9: 7743488.703 | L9: 8248316.823 | M9: 8669522.259 | N9: 8890377.237 | O9: =+O7/(1-O8) -> 9475504.271 | P9: =+P7/(1-P8) -> 10272543 | Q9: 11094235.45 | R9: 12258198.97 | S9: 13030525.04 | T9: 13845837.54 | U9: 14707379.21 | V9: 15617618.79 | W9: 16579097.96 | X9: 17594545.87 | Y9: 18666816.71 | Z9: 19798900.04 | AA9: 20993983.37
O11: =+O12-O9 -> 0 | P11: =+P12-P9 -> 0 | Q11: 0 | R11: 0 | S11: 0 | T11: 0 | U11: 0 | V11: 0 | W11: 0 | X11: 0 | Y11: 0 | Z11: 0 | AA11: =+AA12-AA9 -> 0
B12: Total generation [MWh] | G12: =+G118+G190+G262+G270 -> 6085440.865 | H12: 6592941.533 | I12: 6861925.926 | J12: 7286833.036 | K12: 7743488.703 | L12: 8248316.823 | M12: 8669522.259 | N12: 8890377.237 | O12: =+O118+O190+O262+O270+O28+O45+O72+O90+O107 -> 9475504.271 | P12: 10272543 | Q12: 11094235.45 | R12: 12258198.97 | S12: 13030525.04 | T12: 13845837.54 | U12: 14707379.21 | V12: 15617618.79 | W12: 16579097.96 | X12: 17594545.87 | Y12: 18666816.71 | Z12: 19798900.04 | AA12: 20993983.37
B13: Renewable energy generation [MWh] | G13: =+G190+G262+G270 -> 2209585.15 | H13: =+H190+H262+H270 -> 2388145.984 | I13: 2386578.665 | J13: 2594391.147 | K13: 2317460.239 | L13: 2530134.785 | M13: 1811708.955 | N13: 2334294.747 | O13: =+O45+O72+O90+O107+O190+O262+O270 -> 3176644.459 | P13: 3678816.595 | Q13: 4047174.595 | R13: 6349740.595 | S13: 6349740.595 | T13: 6349740.595 | U13: 6349740.595 | V13: 6349740.595 | W13: 6349740.595 | X13: 6349740.595 | Y13: 6349740.595 | Z13: 7444740.595 | AA13: 7838940.595
B14: Fraction renewable energy [%] | G14: =+G13/G12 -> 0.3630936852 | H14: =+H13/H12 -> 0.3622276903 | I14: 0.3478001207 | J14: 0.3560382315 | K14: 0.2992785716 | L14: 0.3067455869 | M14: 0.2089744857 | N14: 0.2625641956 | O14: =+O13/O12 -> 0.3352480636 | P14: =+P13/P12 -> 0.3581213139 | Q14: =+Q13/Q12 -> 0.3647997748 | R14: =+R13/R12 -> 0.5179994722 | S14: =+S13/S12 -> 0.487297371 | T14: =+T13/T12 -> 0.4586028528 | U14: =+U13/U12 -> 0.4317384155 | V14: =+V13/V12 -> 0.4065754633 | W14: =+W13/W12 -> 0.3829967476 | X14: =+X13/X12 -> 0.3608925539 | Y14: =+Y13/Y12 -> 0.3401619406 | Z14: =+Z13/Z12 -> 0.3760178889 | AA14: =+AA13/AA12 -> 0.3733898639
B15: Fossil fuel based generation [MWh] | G15: =+G118 -> 3875855.715 | H15: 4204795.55 | I15: 4475347.261 | J15: 4692441.889 | K15: 5426028.464 | L15: 5718182.038 | M15: 6857813.304 | N15: 6556082.49 | O15: =+O28+O118 -> 6298859.813 | P15: 6593726.402 | Q15: 7047060.857 | R15: 5908458.372 | S15: 6680784.445 | T15: 7496096.945 | U15: 8357638.611 | V15: 9267878.195 | W15: 10229357.36 | X15: 11244805.28 | Y15: 12317076.11 | Z15: 12354159.44 | AA15: 13155042.78
B16: Fraction fossil fuels [%] | G16: =+G15/G12 -> 0.6369063148 | H16: =+H15/H12 -> 0.6377723097 | I16: 0.6521998793 | J16: 0.6439617685 | K16: 0.7007214284 | L16: 0.6932544131 | M16: 0.7910255143 | N16: 0.7374358044 | O16: =+O15/O12 -> 0.6647519364 | P16: =+P15/P12 -> 0.6418786861 | Q16: =+Q15/Q12 -> 0.6352002252 | R16: =+R15/R12 -> 0.4820005278 | S16: =+S15/S12 -> 0.512702629 | T16: =+T15/T12 -> 0.5413971472 | U16: =+U15/U12 -> 0.5682615845 | V16: =+V15/V12 -> 0.5934245367 | W16: =+W15/W12 -> 0.6170032524 | X16: =+X15/X12 -> 0.6391074461 | Y16: =+Y15/Y12 -> 0.6598380594 | Z16: =+Z15/Z12 -> 0.6239821111 | AA16: =+AA15/AA12 -> 0.6266101361
B18: Grid emission factor
B19: Greenhouse gas emissions [tCO2e] | G19: =+OM_EF_2010!H23 -> 2367600.802 | H19: =+OM_EF_2011!H22 -> 2563443.554 | I19: =+OM_EF_2012!H22 -> 2817609.709 | J19: =+OM_EF_2013!H22 -> 2778715.357 | K19: =+OM_EF_2014!H22 -> 3227014.123 | L19: =+OM_EF_2015!H22 -> 3281998.242 | M19: =+OM_EF_2016!H23 -> 4027512.386 | N19: =+OM_EF_2017!H22 -> 3757647.583 | O19: =+SUMPRODUCT($F$119:$F$186,O119:O186)+SUMPRODUCT($F$29:$F$42,O29:O42) -> 3593345.083 | P19: 2590778.177 | Q19: 2689917.244 | R19: 2255303.932 | S19: 2550106.725 | T19: 2861317.767 | U19: 3190174.837 | V19: 3546148.309 | W19: 4030417.916 | X19: 4620177.049 | Y19: 5303607.902 | Z19: 5329647.882 | AA19: 5846583.669
B20: Average operting margin emission factor [tCO2e/MWh] | G20: =+'Grid-EF'!H9 -> 0.3890598651 | H20: =+'Grid-EF'!I9 -> 0.3888163639 | I20: =+'Grid-EF'!J9 -> 0.4106149992 | J20: =+'Grid-EF'!K9 -> 0.3813337486 | K20: =+'Grid-EF'!L9 -> 0.4167390497 | L20: =+'Grid-EF'!M9 -> 0.3978991486 | M20: =+'Grid-EF'!N9 -> 0.4645598991 | N20: =+'Grid-EF'!O9 -> 0.4226139263 | O20: =+O19/O12 -> 0.3792246808 | P20: =+P19/P12 -> 0.2522041697 | Q20: 0.2424608037 | R20: 0.1839833028 | S20: 0.1957025305 | T20: 0.2066554485 | U20: 0.2169098105 | V20: 0.2270607547 | W20: 0.2431023646 | X20: 0.262591435 | Y20: 0.2841195682 | Z20: 0.2691890899 | AA20: 0.2784885348
B21: Simple operating margin emission factor [tCO2e/MWh] | G21: =+G19/G15 -> 0.6108588596 | H21: =+H19/H15 -> 0.6096476093 | I21: 0.6295845986 | J21: 0.5921683044 | K21: 0.5947285652 | L21: 0.573958335 | M21: 0.5872881351 | N21: 0.5731544088 | O21: 0.5704754812 | P21: 0.3929156321 | Q21: 0.3817076791 | R21: 0.3817076791 | S21: 0.3817076791 | T21: 0.3817076791 | U21: 0.3817076791 | V21: 0.3826278501 | W21: 0.3940049969 | X21: 0.4108721258 | Y21: 0.4305898457 | Z21: 0.4314051398 | AA21: =+AA19/AA15 -> 0.44443669
B24: Capacity additions 2018 - 2030
G26: 2010 | H26: 2011 | I26: 2012 | J26: 2013 | K26: 2014 | L26: 2015 | M26: 2016 | N26: 2017 | O26: 2018 | P26: 2019 | Q26: 2020 | R26: 2021 | S26: 2022 | T26: 2023 | U26: 2024 | V26: 2025 | W26: 2026 | X26: 2027 | Y26: 2028 | Z26: 2029 | AA26: 2030
B27: Plant Unit | C27: Commissioning date | D27: Capacity [MW] | E27: Capacity factor | F27: Emission factor [tCO2/MWh] | G27: Generation [MWh] | H27: Generation [MWh] | I27: Generation [MWh] | J27: Generation [MWh] | K27: Generation [MWh] | L27: Generation [MWh] | M27: Generation [MWh] | N27: Generation [MWh] | O27: Generation [MWh] | P27: Generation [MWh] | Q27: Generation [MWh] | R27: Generation [MWh] | S27: Generation [MWh] | T27: Generation [MWh] | U27: Generation [MWh] | V27: Generation [MWh] | W27: Generation [MWh] | X27: Generation [MWh] | Y27: Generation [MWh] | Z27: Generation [MWh] | AA27: Generation [MWh]
B28: Natural gas | O28: =SUM(O29:O42) -> 0 | P28: 5794004.16 | Q28: 7047060.857 | R28: 5908458.372 | S28: 6680784.445 | T28: 7496096.945 | U28: 8357638.611 | V28: 9078793.92 | W28: 9078793.92 | X28: 9078793.92 | Y28: 9078793.92 | Z28: 9078793.92 | AA28: 9078793.92
B29: Entre Ríos
B30: CCERI3 | C30: 2019 | D30: 136.4 | E30: 0.7 | F30: =+'GHG-ER'!J29 -> 0.3817076791 | P30: =+$D30*8760*$E30 -> 836404.8 | U30: 115249.4913 | V30: =+$D30*8760*$E30 -> 836404.8 | W30: 836404.8 | X30: 836404.8 | Y30: 836404.8 | Z30: 836404.8 | AA30: 836404.8
B31: CCERI4 | C31: 2019 | D31: 136.4 | E31: 0.7 | F31: =+'GHG-ER'!J30 -> 0.3817076791 | P31: =+$D31*8760*$E31 -> 836404.8 | T31: 90112.62459 | U31: 836404.8 | V31: 836404.8 | W31: 836404.8 | X31: 836404.8 | Y31: 836404.8 | Z31: 836404.8 | AA31: 836404.8
B32: CCERI5 | C32: 2019 | D32: 136.4 | E32: 0.7 | F32: =+'GHG-ER'!J31 -> 0.3817076791 | P32: =+$D32*8760*$E32 -> 836404.8 | Q32: 477481.337 | S32: 111204.9246 | T32: 836404.8 | U32: 836404.8 | V32: 836404.8 | W32: 836404.8 | X32: 836404.8 | Y32: 836404.8 | Z32: 836404.8 | AA32: 836404.8
B33: Del Sur
B34: CCSUR1 | C34: 2020 | D34: 132.69 | E34: 0.7 | F34: =+F36 -> 0.3817076791 | Q34: =+$D34*8760*$E34 -> 813655.08 | R34: 152533.9317 | S34: =+$D34*8760*$E34 -> 813655.08 | T34: 813655.08 | U34: 813655.08 | V34: 813655.08 | W34: 813655.08 | X34: 813655.08 | Y34: 813655.08 | Z34: 813655.08 | AA34: 813655.08
B35: CCSUR2 | C35: 2020 | D35: 132.69 | E35: 0.7 | F35: =+F36 -> 0.3817076791 | Q35: =+$D35*8760*$E35 -> 813655.08 | R35: 813655.08 | S35: 813655.08 | T35: 813655.08 | U35: 813655.08 | V35: 813655.08 | W35: 813655.08 | X35: 813655.08 | Y35: 813655.08 | Z35: 813655.08 | AA35: 813655.08
B36: CCSUR3 | C36: 2019 | D36: 132.69 | E36: 0.7 | F36: =+'GHG-ER'!J25 -> 0.3817076791 | P36: =+$D36*8760*$E36 -> 813655.08 | Q36: =+$D36*8760*$E36 -> 813655.08 | R36: 813655.08 | S36: 813655.08 | T36: 813655.08 | U36: 813655.08 | V36: 813655.08 | W36: 813655.08 | X36: 813655.08 | Y36: 813655.08 | Z36: 813655.08 | AA36: 813655.08
B37: CCSUR4 | C37: 2019 | D37: 132.69 | E37: 0.7 | F37: =+'GHG-ER'!J26 -> 0.3817076791 | P37: =+$D37*8760*$E37 -> 813655.08 | Q37: 813655.08 | R37: 813655.08 | S37: 813655.08 | T37: 813655.08 | U37: 813655.08 | V37: 813655.08 | W37: 813655.08 | X37: 813655.08 | Y37: 813655.08 | Z37: 813655.08 | AA37: 813655.08
B38: Warnes
B39: CCWAR1 | C39: 2020 | D39: 135.15 | E39: 0.7 | F39: =+F41 -> 0.3817076791 | Q39: =+$D39*8760*$E39 -> 828739.8 | R39: =+$D39*8760*$E39 -> 828739.8 | S39: 828739.8 | T39: 828739.8 | U39: 828739.8 | V39: 828739.8 | W39: 828739.8 | X39: 828739.8 | Y39: 828739.8 | Z39: 828739.8 | AA39: 828739.8
B40: CCWAR2 | C40: 2020 | D40: 135.15 | E40: 0.7 | F40: =+F41 -> 0.3817076791 | Q40: 828739.8 | R40: 828739.8 | S40: 828739.8 | T40: 828739.8 | U40: 828739.8 | V40: 828739.8 | W40: 828739.8 | X40: 828739.8 | Y40: 828739.8 | Z40: 828739.8 | AA40: 828739.8
B41: CCWAR3 | C41: 2019 | D41: 135.15 | E41: 0.7 | F41: =+'GHG-ER'!J27 -> 0.3817076791 | P41: =+$D41*8760*$E41 -> 828739.8 | Q41: 828739.8 | R41: 828739.8 | S41: 828739.8 | T41: 828739.8 | U41: 828739.8 | V41: 828739.8 | W41: 828739.8 | X41: 828739.8 | Y41: 828739.8 | Z41: 828739.8 | AA41: 828739.8
B42: CCWAR4 | C42: 2019 | D42: 135.15 | E42: 0.7 | F42: =+'GHG-ER'!J28 -> 0.3817076791 | P42: =+$D42*8760*$E42 -> 828739.8 | Q42: 828739.8 | R42: 828739.8 | S42: 828739.8 | T42: 828739.8 | U42: 828739.8 | V42: 828739.8 | W42: 828739.8 | X42: 828739.8 | Y42: 828739.8 | Z42: 828739.8 | AA42: 828739.8
B44: Plant Unit | C44: Commissioning date | D44: Capacity [MW] | E44: Capacity factor | G44: Generation [MWh] | H44: Generation [MWh] | I44: Generation [MWh] | J44: Generation [MWh] | K44: Generation [MWh] | L44: Generation [MWh] | M44: Generation [MWh] | N44: Generation [MWh] | O44: Generation [MWh] | P44: Generation [MWh] | Q44: Generation [MWh] | R44: Generation [MWh] | S44: Generation [MWh] | T44: Generation [MWh] | U44: Generation [MWh] | V44: Generation [MWh] | W44: Generation [MWh] | X44: Generation [MWh] | Y44: Generation [MWh] | Z44: Generation [MWh] | AA44: Generation [MWh]
B45: Hydropower | O45: =SUM(O47:O68) -> 240900 | P45: =SUM(P47:P68) -> 543120 | Q45: 543120 | R45: 2707716 | S45: 2707716 | T45: 2707716 | U45: 2707716 | V45: 2707716 | W45: 2707716 | X45: 2707716 | Y45: 2707716 | Z45: =SUM(Z47:Z68) -> 3802716 | AA45: 4196916
B46: San José
B47: San Jose I | C47: 2018 | D47: 55 | E47: 0.5 | O47: =+$D47*8760*$E47 -> 240900 | P47: =+$D47*8760*$E47 -> 240900 | Q47: 240900 | R47: 240900 | S47: 240900 | T47: 240900 | U47: 240900 | V47: 240900 | W47: 240900 | X47: 240900 | Y47: 240900 | Z47: 240900 | AA47: 240900
B48: San José II | C48: 2019 | D48: 69 | E48: 0.5 | P48: =+$D48*8760*$E48 -> 302220 | Q48: 302220 | R48: 302220 | S48: 302220 | T48: 302220 | U48: 302220 | V48: 302220 | W48: 302220 | X48: 302220 | Y48: 302220 | Z48: 302220 | AA48: 302220
B49: Sehuencas
B50: Sehuencas | C50: 2021 | D50: 198.6 | E50: 0.5 | R50: =+$D50*8760*$E50 -> 869868 | S50: 869868 | T50: 869868 | U50: 869868 | V50: 869868 | W50: 869868 | X50: 869868 | Y50: 869868 | Z50: 869868 | AA50: 869868
B51: Juntas
B52: Juntas | C52: 2021 | D52: 91.6 | E52: 0.5 | R52: 401208 | S52: 401208 | T52: 401208 | U52: 401208 | V52: 401208 | W52: 401208 | X52: 401208 | Y52: 401208 | Z52: 401208 | AA52: 401208
B53: Umapalca
B54: Umapalca | C54: 2021 | D54: 85.8 | E54: 0.5 | R54: 375804 | S54: 375804 | T54: 375804 | U54: 375804 | V54: 375804 | W54: 375804 | X54: 375804 | Y54: 375804 | Z54: 375804 | AA54: 375804
B55: Palillada
B56: Palillada | C56: 2021 | D56: 118.2 | E56: 0.5 | R56: =+$D56*8760*$E56 -> 517716 | S56: 517716 | T56: 517716 | U56: 517716 | V56: 517716 | W56: 517716 | X56: 517716 | Y56: 517716 | Z56: 517716 | AA56: 517716
B57: Hydro A
B58: Hidro A | C58: 2029 | D58: 250 | E58: 0.5 | Z58: =$D$58*8760*$E$58 -> 1095000 | AA58: =$D$58*8760*$E$58 -> 1095000
B59: Hydro B
B60: Hidro B | C60: 2030 | D60: 90 | E60: 0.5 | AA60: =$D$60*8760*$E$60 -> 394200
B61: Hydro C
B62: Hidro C
B63: Hydro D
B64: Hidro D
B65: Hydro E
B66: Hidro E
B67: Hydro F
B68: Hidro F
B71: Plant Unit | C71: Commissioning date | D71: Capacity [MW] | E71: Capacity factor | G71: Generation [MWh] | H71: Generation [MWh] | I71: Generation [MWh] | J71: Generation [MWh] | K71: Generation [MWh] | L71: Generation [MWh] | M71: Generation [MWh] | N71: Generation [MWh] | O71: Generation [MWh] | P71: Generation [MWh] | Q71: Generation [MWh] | R71: Generation [MWh] | S71: Generation [MWh] | T71: Generation [MWh] | U71: Generation [MWh] | V71: Generation [MWh] | W71: Generation [MWh] | X71: Generation [MWh] | Y71: Generation [MWh] | Z71: Generation [MWh] | AA71: Generation [MWh]
B72: Wind | G72: =+SUM(G73:G75) -> 0 | H72: =+SUM(H73:H75) -> 0 | I72: =+SUM(I73:I75) -> 0 | J72: =+SUM(J73:J75) -> 0 | K72: =+SUM(K73:K75) -> 0 | L72: =+SUM(L73:L75) -> 0 | M72: =+SUM(M73:M75) -> 0 | N72: =+SUM(N73:N75) -> 0 | O72: =+SUM(O73:O87) -> 0 | P72: =+SUM(P73:P87) -> 0 | Q72: 331128 | R72: 469098 | S72: 469098 | T72: 469098 | U72: 469098 | V72: 469098 | W72: 469098 | X72: 469098 | Y72: 469098 | Z72: 469098 | AA72: 469098
B73: El Dorado
B74: El Dorado | C74: 2020 | D74: 54 | E74: 0.35 | Q74: =+$D74*8760*$E74 -> 165564 | R74: =+$D74*8760*$E74 -> 165564 | S74: 165564 | T74: 165564 | U74: 165564 | V74: 165564 | W74: 165564 | X74: 165564 | Y74: 165564 | Z74: 165564 | AA74: 165564
B75: La Ventolera
B76: La Ventolera | C76: 2021 | D76: 24 | E76: 0.35 | R76: =+$D76*8760*$E76 -> 73584 | S76: 73584 | T76: 73584 | U76: 73584 | V76: 73584 | W76: 73584 | X76: 73584 | Y76: 73584 | Z76: 73584 | AA76: 73584
B77: San Julián
B78: San Julián | C78: 2020 | D78: 39.6 | E78: 0.35 | Q78: =+$D78*8760*$E78 -> 121413.6 | R78: 121413.6 | S78: 121413.6 | T78: 121413.6 | U78: 121413.6 | V78: 121413.6 | W78: 121413.6 | X78: 121413.6 | Y78: 121413.6 | Z78: 121413.6 | AA78: 121413.6
B79: Warnes
B80: Warnes I | C80: 2020 | D80: 14.4 | E80: 0.35 | Q80: =+$D80*8760*$E80 -> 44150.4 | R80: 44150.4 | S80: 44150.4 | T80: 44150.4 | U80: 44150.4 | V80: 44150.4 | W80: 44150.4 | X80: 44150.4 | Y80: 44150.4 | Z80: 44150.4 | AA80: 44150.4
B81: Warnes II | C81: 2021 | D81: 21 | E81: 0.35 | R81: 64386 | S81: 64386 | T81: 64386 | U81: 64386 | V81: 64386 | W81: 64386 | X81: 64386 | Y81: 64386 | Z81: 64386 | AA81: 64386
B82: Wind A
B83: Wind A
B84: Wind B
B85: Wind B
B86: Wind C
B87: Wind C
B89: Plant Unit | C89: Commissioning date | D89: Capacity [MW] | E89: Capacity factor | G89: Generation [MWh] | H89: Generation [MWh] | I89: Generation [MWh] | J89: Generation [MWh] | K89: Generation [MWh] | L89: Generation [MWh] | M89: Generation [MWh] | N89: Generation [MWh] | O89: Generation [MWh] | P89: Generation [MWh] | Q89: Generation [MWh] | R89: Generation [MWh] | S89: Generation [MWh] | T89: Generation [MWh] | U89: Generation [MWh] | V89: Generation [MWh] | W89: Generation [MWh] | X89: Generation [MWh] | Y89: Generation [MWh] | Z89: Generation [MWh] | AA89: Generation [MWh]
B90: Solar PV | G90: =+SUM(G91:G95) -> 0 | H90: 0 | I90: 0 | J90: 0 | K90: 0 | L90: 0 | M90: 0 | N90: 0 | O90: =+SUM(O91:O104) -> 136656 | P90: =+SUM(P91:P104) -> 346896 | Q90: 346896 | R90: 346896 | S90: 346896 | T90: 346896 | U90: 346896 | V90: 346896 | W90: 346896 | X90: 346896 | Y90: 346896 | Z90: 346896 | AA90: 346896
B91: Oruro
B92: Oruro I | C92: 2019 | D92: 50 | E92: 0.24 | P92: =+$D92*8760*$E92 -> 105120 | Q92: 105120 | R92: 105120 | S92: 105120 | T92: 105120 | U92: 105120 | V92: 105120 | W92: 105120 | X92: 105120 | Y92: 105120 | Z92: 105120 | AA92: 105120
B93: Oruro
B94: Oruro I | C94: 2019 | D94: 50 | E94: 0.24 | P94: 105120 | Q94: 105120 | R94: 105120 | S94: 105120 | T94: 105120 | U94: 105120 | V94: 105120 | W94: 105120 | X94: 105120 | Y94: 105120 | Z94: 105120 | AA94: 105120
B95: Uyuni
B96: Uyuni | C96: 2018 | D96: 60 | E96: 0.24 | O96: =+$D96*8760*$E96 -> 126144 | P96: 126144 | Q96: 126144 | R96: 126144 | S96: 126144 | T96: 126144 | U96: 126144 | V96: 126144 | W96: 126144 | X96: 126144 | Y96: 126144 | Z96: 126144 | AA96: 126144
B97: Yunchará
B98: Yunchará | C98: 2018 | D98: 5 | E98: 0.24 | O98: =+$D98*8760*$E98 -> 10512 | P98: 10512 | Q98: 10512 | R98: 10512 | S98: 10512 | T98: 10512 | U98: 10512 | V98: 10512 | W98: 10512 | X98: 10512 | Y98: 10512 | Z98: 10512 | AA98: 10512
B99: Solar A
B100: Solar A
B101: Solar B
B102: Solar B
B103: Solar C
B104: Solar C
B106: Plant Unit | C106: Commissioning date | D106: Capacity [MW] | E106: Capacity factor | G106: Generation [MWh] | H106: Generation [MWh] | I106: Generation [MWh] | J106: Generation [MWh] | K106: Generation [MWh] | L106: Generation [MWh] | M106: Generation [MWh] | N106: Generation [MWh] | O106: Generation [MWh] | P106: Generation [MWh] | Q106: Generation [MWh] | R106: Generation [MWh] | S106: Generation [MWh] | T106: Generation [MWh] | U106: Generation [MWh] | V106: Generation [MWh] | W106: Generation [MWh] | X106: Generation [MWh] | Y106: Generation [MWh] | Z106: Generation [MWh] | AA106: Generation [MWh]
B107: Geothermal | G107: =+SUM(G108:G113) -> 0 | H107: =+SUM(H108:H113) -> 0 | I107: =+SUM(I108:I113) -> 0 | J107: =+SUM(J108:J113) -> 0 | K107: =+SUM(K108:K113) -> 0 | L107: =+SUM(L108:L113) -> 0 | M107: =+SUM(M108:M113) -> 0 | N107: =+SUM(N108:N113) -> 0 | O107: =+SUM(O108:O111) -> 0 | P107: =+SUM(P108:P111) -> 0 | Q107: 37230 | R107: 37230 | S107: 37230 | T107: 37230 | U107: 37230 | V107: 37230 | W107: 37230 | X107: 37230 | Y107: 37230 | Z107: 37230 | AA107: 37230
B108: Laguna Colorada
B109: Laguna Colorada | C109: 2020 | D109: 5 | E109: 0.85 | Q109: =+$D109*8760*$E109 -> 37230 | R109: =+$D109*8760*$E109 -> 37230 | S109: 37230 | T109: 37230 | U109: 37230 | V109: 37230 | W109: 37230 | X109: 37230 | Y109: 37230 | Z109: 37230 | AA109: 37230
B110: GEO A
B111: GEO A
B114: Existing plants
G116: 2010 | H116: 2011 | I116: 2012 | J116: 2013 | K116: 2014 | L116: 2015 | M116: 2016 | N116: 2017 | O116: 2018 | P116: 2019 | Q116: 2020 | R116: 2021 | S116: 2022 | T116: 2023 | U116: 2024 | V116: 2025 | W116: 2026 | X116: 2027 | Y116: 2028 | Z116: 2029 | AA116: 2030
B117: Plant Unit | F117: Emission factor (2017) [tCO2/MWh] | G117: Generation [MWh] | H117: Generation [MWh] | I117: Generation [MWh] | J117: Generation [MWh] | K117: Generation [MWh] | L117: Generation [MWh] | M117: Generation [MWh] | N117: Generation [MWh] | O117: Generation [MWh] | P117: Generation [MWh] | Q117: Generation [MWh] | R117: Generation [MWh] | S117: Generation [MWh] | T117: Generation [MWh] | U117: Generation [MWh] | V117: Generation [MWh] | W117: Generation [MWh] | X117: Generation [MWh] | Y117: Generation [MWh] | Z117: Generation [MWh] | AA117: Generation [MWh]
B118: Natural gas | G118: =SUM(G119:G186) -> 3875855.715 | H118: 4204795.55 | I118: 4475347.261 | J118: 4692441.889 | K118: 5426028.464 | L118: 5718182.038 | M118: 6857813.304 | N118: =SUM(N119:N186) -> 6556082.49 | O118: =SUM(O119:O186) -> 6298859.813 | P118: 799722.2424 | Q118: 0 | R118: 0 | S118: 0 | T118: 0 | U118: 0 | V118: 189084.2746 | W118: 1150563.441 | X118: 2166011.358 | Y118: 3238282.191 | Z118: 3275365.525 | AA118: =SUM(AA119:AA186) -> 4076248.858 | AB118: =SUM(AB119:AB186) -> 3627882.419
B119: El Alto | F119: =+OM_EF_2017!G23 -> 0 | AB119: =+F119*O119 -> 0
B120: ALT1 | F120: =+OM_EF_2017!G24 -> 0.5643047003 | G120: 0 | H120: 0 | I120: 57810.7089 | J120: 107684.098 | K120: 108265.7625 | L120: 62901.0717 | M120: 100635.927 | N120: 49236.5229 | O120: =+AVERAGE($L$120:$N$120) -> 70924.5072 | W120: 52910.75454 | X120: =+AVERAGE($L$120:$N$120) -> 70924.5072 | Y120: 70924.5072 | Z120: 70924.5072 | AA120: 70924.5072 | AB120: 40023.03278
B121: ALT2 | F121: =+OM_EF_2017!G25 -> 0.4944620795 | G121: 0 | H121: 0 | I121: 0 | J121: 103575.9891 | K121: 74350.10655 | L121: 230006.7025 | M121: 213864.514 | N121: 148687.6958 | O121: =+AVERAGE($L$121:$N$121) -> 197519.6374 | P121: =+AVERAGE($L$121:$N$121) -> 197519.6374 | W121: =+AVERAGE($L$121:$N$121) -> 197519.6374 | X121: 197519.6374 | Y121: 197519.6374 | Z121: 197519.6374 | AA121: 197519.6374 | AB121: 97665.97067
B122: Aranjuez | F122: =+OM_EF_2017!G26 -> 0 | AB122: 0
B123: ARJ1 | F123: =+OM_EF_2017!G27 -> 0.6037835376 | G123: 0 | H123: 1295.25873 | I123: 6370.205515 | J123: 1574.993684 | K123: 5457.598282 | L123: 903.1293569 | M123: 2065.398746 | N123: 511.0025 | Y123: =+AVERAGE($L$123:$N$123) -> 1159.843534 | Z123: 1159.843534 | AA123: 1159.843534 | AB123: 0
B124: ARJ2 | F124: =+OM_EF_2017!G28 -> 0.6037835376 | G124: 7078.176123 | H124: 6630.80579 | I124: 0 | J124: 0 | K124: 1826.328269 | L124: 911.2479539 | M124: 2494.435346 | N124: 148.1945 | O124: =+AVERAGE($L$124:$N$124) -> 1184.625933 | Y124: =+AVERAGE($L$124:$N$124) -> 1184.625933 | Z124: 1184.625933 | AA124: 1184.625933 | AB124: 715.2576368
B125: ARJ3 | F125: =+OM_EF_2017!G29 -> 0.6037835376 | G125: 6933.803202 | H125: 3921.550401 | I125: 7512.44944 | J125: 1769.8755 | K125: 5453.138 | L125: 742.6815 | M125: 3046.812 | N125: 740.5125 | O125: =+AVERAGE($L$125:$N$125) -> 1510.002 | Y125: =+AVERAGE($L$125:$N$125) -> 1510.002 | Z125: 1510.002 | AA125: 1510.002 | AB125: 911.7143493
B126: ARJ5 | G126: 0 | H126: 0 | I126: 0 | J126: 0 | K126: 0 | L126: 0 | M126: 0 | N126: 0 | O126: =+AVERAGE(L126:N126) -> 0 | P126: =+O126 -> 0 | Q126: 0 | R126: 0 | S126: 0 | T126: 0 | U126: 0 | V126: 0 | W126: 0 | X126: 0 | Y126: 0 | Z126: 0 | AA126: 0 | AB126: 0
B127: ARJ6 | G127: 2.1599455 | H127: 0 | I127: 0 | J127: 0 | K127: 0 | L127: 0 | M127: 0 | N127: 0 | O127: 0 | P127: =+O127 -> 0 | Q127: 0 | R127: 0 | S127: 0 | T127: 0 | U127: 0 | V127: 0 | W127: 0 | X127: 0 | Y127: 0 | Z127: 0 | AA127: 0 | AB127: 0
B128: ARJ8 | F128: =+OM_EF_2017!G30 -> 0.6804920431 | G128: 128803.56 | H128: 132236.64 | I128: 116890.92 | J128: 106260.78 | K128: 105427.86 | L128: 83446.76 | M128: 101154.24 | N128: 139685.16 | O128: =+AVERAGE($L$128:$N$128) -> 108095.3867 | Y128: =+AVERAGE($L$128:$N$128) -> 108095.3867 | Z128: 108095.3867 | AA128: 108095.3867 | AB128: 108095.3867
B129: ARJ9 | F129: =+OM_EF_2017!G31 -> 0.535657388 | G129: 8515.644332 | H129: 9389.035841 | I129: 1184.838632 | J129: 338.88614 | K129: 10782.3011 | L129: 8423.39897 | M129: 10825.28304 | N129: 697.12325 | O129: =+AVERAGE($L$129:$N$129) -> 6648.601753 | W129: =+AVERAGE($L$129:$N$129) -> 6648.601753 | X129: 6648.601753 | Y129: 6648.601753 | Z129: 6648.601753 | AA129: 6648.601753 | AB129: 3561.372649
B130: ARJ10 | F130: =+OM_EF_2017!G32 -> 0.535657388 | G130: 5375.3301 | H130: 6762.75858 | I130: 8797.995819 | J130: 4904.84453 | K130: 2009.37959 | L130: 0 | M130: 0 | N130: 0 | O130: 0 | P130: =+O130 -> 0 | Q130: 0 | R130: 0 | S130: 0 | T130: 0 | U130: 0 | V130: 0 | W130: 0 | X130: 0 | Y130: 0 | Z130: 0 | AA130: 0 | AB130: 0
B131: ARJ11 | F131: =+OM_EF_2017!G33 -> 0.535657388 | G131: 5023.210781 | H131: 0 | I131: 8208.257779 | J131: 9655.36312 | K131: 5505.76371 | L131: 4874.09304 | M131: 10874.30593 | N131: 657.711895 | O131: =+AVERAGE($L$131:$N$131) -> 5468.703622 | W131: =+AVERAGE($L$131:$N$131) -> 5468.703622 | X131: 5468.703622 | Y131: 5468.703622 | Z131: 5468.703622 | AA131: 5468.703622 | AB131: 2929.351498
B132: ARJ12 | F132: =+OM_EF_2017!G34 -> 0.535657388 | G132: 2147.392315 | H132: 6196.934516 | I132: 11548.43109 | J132: 11349.07458 | K132: 9975.93413 | L132: 7073.216074 | M132: 0 | N132: 0 | O132: 0 | P132: =+O132 -> 0 | Q132: 0 | R132: 0 | S132: 0 | T132: 0 | U132: 0 | V132: 0 | W132: 0 | X132: 0 | Y132: 0 | Z132: 0 | AA132: 0 | AB132: 0
B133: ARJ13 | F133: =+OM_EF_2017!G35 -> 0.535657388 | G133: 8526.900641 | H133: 8851.283968 | I133: 10087.29019 | J133: 9758.3664 | K133: 4970.5612 | L133: 5371.6202 | M133: 0 | N133: 0 | O133: 0 | P133: =+O133 -> 0 | Q133: 0 | R133: 0 | S133: 0 | T133: 0 | U133: 0 | V133: 0 | W133: 0 | X133: 0 | Y133: 0 | Z133: 0 | AA133: 0 | AB133: 0
B134: ARJ14 | F134: =+OM_EF_2017!G36 -> 0.535657388 | G134: 7797.82554 | H134: 10123.33607 | I134: 9538.652815 | J134: 2570.0208 | K134: 7007.9094 | L134: 0 | M134: 0 | N134: 0 | O134: 0 | P134: =+O134 -> 0 | Q134: 0 | R134: 0 | S134: 0 | T134: 0 | U134: 0 | V134: 0 | W134: 0 | X134: 0 | Y134: 0 | Z134: 0 | AA134: 0 | AB134: 0
B135: ARJ15 | F135: =+OM_EF_2017!G37 -> 0.535657388 | G135: 0 | H135: 4892.938408 | I135: 11580.99053 | J135: 10493.6892 | K135: 9947.2014 | L135: 7564.2672 | M135: 8339.7396 | N135: 474.077 | O135: =+AVERAGE($L$135:$N$135) -> 5459.361267 | W135: =+AVERAGE($L$135:$N$135) -> 5459.361267 | X135: 5459.361267 | Y135: 5459.361267 | Z135: 5459.361267 | AA135: 5459.361267 | AB135: 2924.347196
B136: Bulo Bulo | F136: =+OM_EF_2017!G38 -> 0 | AB136: 0
B137: BUL1 | F137: =+OM_EF_2017!G39 -> 0.5329347096 | G137: 320717 | H137: 327166 | I137: 106480 | J137: 287973.534 | K137: 269807.618 | L137: 253280.231 | M137: 223504.631 | N137: 237695.821 | O137: =+AVERAGE($L$137:$N$137) -> 238160.2277 | W137: =+AVERAGE($L$137:$N$137) -> 238160.2277 | X137: 238160.2277 | Y137: 238160.2277 | Z137: 238160.2277 | AA137: 238160.2277 | AB137: 126923.8518
B138: BUL2 | F138: =+OM_EF_2017!G40 -> 0.5363084633 | G138: 331746 | H138: 326073 | I138: 289542 | J138: 202260.81 | K138: 173568.66 | L138: 33037.909 | M138: 15850.489 | N138: 77027.986 | O138: =+AVERAGE($L$138:$N$138) -> 41972.128 | W138: =+AVERAGE($L$138:$N$138) -> 41972.128 | X138: 41972.128 | Y138: 41972.128 | Z138: 41972.128 | AA138: 41972.128 | AB138: 22510.00747
B139: BUL3 | F139: =+OM_EF_2017!G41 -> 0.5216888639 | K139: 265758.5813 | L139: 313954.442 | M139: 125500.576 | N139: 239710.459 | O139: =+AVERAGE($L$139:$N$139) -> 226388.4923 | W139: =+AVERAGE($L$139:$N$139) -> 226388.4923 | X139: 226388.4923 | Y139: 226388.4923 | Z139: 226388.4923 | AA139: 226388.4923 | AB139: 118104.3554
B140: Carrasco | F140: =+OM_EF_2017!G42 -> 0.6067264812 | G140: 743118.8202 | H140: 609577.5585 | I140: 772580.2 | J140: 667630.61 | K140: 815783.94 | L140: 516330.15 | M140: 440398.86 | N140: 552699.29 | O140: =+AVERAGE($L$140:$N$140) -> 503142.7667 | AA140: =+AVERAGE($L$140:$N$140) -> 503142.7667 | AB140: 305270.0403
B141: CAR1 | F141: =+OM_EF_2017!G43 -> 0.5929520125 | AB141: 0
B142: CAR2 | F142: =+OM_EF_2017!G44 -> 0.6404805078 | AB142: 0
B143: CAR3 | F143: =+OM_EF_2017!G45 -> 0.5608717579 | H143: 7408.708638 | AB143: 0
B144: Entre Ríos | F144: =+OM_EF_2017!G46 -> 0 | AB144: 0
B145: ERI01 | F145: =+OM_EF_2017!G47 -> 0.5922417486 | G145: 94768 | H145: 186730 | I145: 193238 | J145: 176801 | K145: 173128 | L145: 75240 | M145: 152450 | N145: 36192 | O145: =+AVERAGE($L$145:$N$145) -> 87960.66667 | X145: =+AVERAGE($L$145:$N$145) -> 87960.66667 | Y145: 87960.66667 | Z145: 87960.66667 | AA145: 87960.66667 | AB145: 52093.97903
B146: ERI02 | F146: =+OM_EF_2017!G48 -> 0.5917090506 | G146: 123773.2823 | H146: 193364 | I146: 193432 | J146: 175773 | K146: 165138 | L146: 85293 | M146: 168623 | N146: 52744 | O146: =+AVERAGE($L$146:$N$146) -> 102220 | X146: =+AVERAGE($L$146:$N$146) -> 102220 | Y146: 102220 | Z146: 102220 | AA146: 102220 | AB146: 60484.49915
B147: ERI03 | F147: =+OM_EF_2017!G49 -> 0.5917682393 | G147: 109541.1268 | H147: 170825 | I147: 196674 | J147: 195325 | K147: 173443 | L147: 74301 | M147: 182321 | N147: 60409 | O147: =+AVERAGE($L$147:$N$147) -> 105677 | X147: =+AVERAGE($L$147:$N$147) -> 105677 | Y147: 105677 | Z147: 105677 | AA147: 105677 | AB147: 62536.29222
B148: ERI04 | F148: =+OM_EF_2017!G50 -> 0.5970360302 | G148: 77401.001 | H148: 187411 | I148: 183871 | J148: 186743 | K148: 193663 | L148: 89367 | M148: 182872 | N148: 46175 | O148: =+AVERAGE($L$148:$N$148) -> 106138 | X148: =+AVERAGE($L$148:$N$148) -> 106138 | Y148: 106138 | Z148: 106138 | AA148: 106138 | AB148: 63368.21017
B149: Guaracachi | F149: =+OM_EF_2017!G51 -> 0 | AB149: 0
B150: GCH1 | F150: =+OM_EF_2017!G52 -> 0.7085474687 | G150: 54977.58 | H150: 31424.37 | I150: 44186.28 | J150: 6585.96 | K150: 15638.4 | L150: 14091.3 | M150: 42919.2 | N150: 41459.7 | O150: =+AVERAGE($L$150:$N$150) -> 32823.4 | AA150: =+AVERAGE($L$150:$N$150) -> 32823.4 | AB150: 23256.93699
B151: GCH2 | F151: =+OM_EF_2017!G53 -> 0.7454811936 | G151: 44343.57 | H151: 38362.5 | I151: 31007.91 | J151: 4921.44 | K151: 14575.08 | L151: 10209.6 | M151: 28229.76 | N151: 20603.04 | O151: =+AVERAGE($L$151:$N$151) -> 19680.8 | AA151: =+AVERAGE($L$151:$N$151) -> 19680.8 | AB151: =+F151*O151 -> 14671.66628
B152: GCH4 | F152: =+OM_EF_2017!G54 -> 0.7596272838 | G152: 35434.59 | H152: 65185.068 | I152: 40516.368 | J152: 17730.18 | K152: 24451.464 | L152: 13814.244 | M152: 43634.928 | N152: 24144.996 | AB152: 0
B153: GCH6 | F153: =+OM_EF_2017!G55 -> 0.748381438 | G153: 47583.18 | H153: 73021.77 | I153: 79926.345 | J153: 32721.12 | K153: 52400.7557 | L153: 49910.715 | M153: 73438.605 | N153: 47740.185 | O153: 11036.54888 | AA153: 36445.25758 | AB153: 8259.548321
B154: GCH7 | G154: 0 | H154: 0 | I154: 0 | J154: 0 | K154: 0 | L154: 0 | M154: 0 | N154: 0 | O154: =+AVERAGE(L154:N154) -> 0 | P154: =+O154 -> 0 | Q154: 0 | R154: 0 | S154: 0 | T154: 0 | U154: 0 | V154: 0 | W154: 0 | X154: 0 | Y154: 0 | Z154: 0 | AA154: 0 | AB154: 0
B155: GCH9 | F155: =+OM_EF_2017!G56 -> 0.5960298229 | G155: 0 | H155: 0 | I155: 345670.74 | J155: 479429.598 | K155: 420127.4714 | L155: 459226.692 | M155: 240047.46 | N155: 381288.42 | O155: =+AVERAGE($L$155:$N$155) -> 360187.524 | Y155: =+AVERAGE($L$155:$N$155) -> 360187.524 | Z155: 360187.524 | AA155: 360187.524 | AB155: 214682.5062
B156: GCH10 | F156: =+OM_EF_2017!G57 -> 0.5960298229 | G156: 304167.352 | H156: 362328.336 | I156: 425317.902 | J156: 461289.348 | K156: 412122.1051 | L156: 378806.544 | M156: 386168.796 | N156: 365210.388 | O156: =+AVERAGE($L$156:$N$156) -> 376728.576 | X156: 115761.7288 | Y156: =+AVERAGE($L$156:$N$156) -> 376728.576 | Z156: 376728.576 | AA156: 376728.576 | AB156: 224541.4664
B157: GCH11 | F157: =+OM_EF_2017!G58 -> 0.5960298229 | G157: 274064.728 | H157: 328187.052 | I157: 215762.2583 | J157: 201328.7141 | K157: 301526.5525 | L157: 234237.2923 | M157: 299524.302 | N157: 149744.4793 | O157: =+AVERAGE($L$157:$N$157) -> 227835.3578 | X157: =+AVERAGE($L$157:$N$157) -> 227835.3578 | Y157: 227835.3578 | Z157: 227835.3578 | AA157: 227835.3578 | AB157: 135796.668
B158: GCH12 | F158: =+OM_EF_2017!G59 -> 0.4268094392 | G158: 386364.6331 | H158: 362853.2407 | I158: 369449.514 | J158: 616226.289 | K158: 523552.596 | L158: 544179.2599 | M158: 222713.652 | N158: 361213.692 | O158: =+AVERAGE($L$158:$N$158) -> 376035.5346 | P158: =+AVERAGE($L$158:$N$158) -> 376035.5346 | V158: 189084.2746 | W158: 376035.5346 | X158: 376035.5346 | Y158: 376035.5346 | Z158: 376035.5346 | AA158: 376035.5346 | AB158: 160495.5157
B159: Karachipampa | F159: =+OM_EF_2017!G60 -> 0 | AB159: 0
B160: KAR1 | F160: =+OM_EF_2017!G61 -> 0.7019775273 | G160: 80691.73504 | H160: 79540.578 | I160: 60267.49772 | J160: 84986.5836 | K160: 61003.53232 | L160: 79662.39755 | M160: 76545.15521 | N160: 41016.303 | O160: =+AVERAGE($L$160:$N$160) -> 65741.28526 | Z160: =+AVERAGE($L$160:$N$160) -> 65741.28526 | AA160: 65741.28526 | AB160: 46148.90487
B161: Kenko | F161: =+OM_EF_2017!G62 -> 0 | AB161: 0
B162: KEN1 | F162: =+OM_EF_2017!G63 -> 0.7146439009 | G162: 46977.26562 | H162: 50444.30312 | I162: 50792.9475 | J162: 25340.75831 | K162: 43520.74519 | L162: 0 | M162: 1793.82 | N162: 18.81 | O162: =+AVERAGE($L$162:$N$162) -> 604.21 | R162: 0 | S162: 0 | T162: 0 | U162: 0 | V162: 0 | W162: 0 | X162: 0 | Y162: 0 | Z162: 0 | AA162: 0 | AB162: 431.7949914
B163: KEN2 | F163: =+OM_EF_2017!G64 -> 0.709198544 | G163: 47451.323 | H163: 50578.20975 | I163: 52201.957 | J163: 20555.56487 | K163: 46932.1795 | L163: 29966.794 | M163: 14728.66919 | N163: 14455.24559 | O163: =+AVERAGE($L$163:$N$163) -> 19716.90293 | R163: 0 | S163: 0 | T163: 0 | U163: 0 | V163: 0 | W163: 0 | X163: 0 | Y163: 0 | Z163: 0 | AA163: 0 | AB163: 13983.19885
B164: Santa Cruz | F164: =+OM_EF_2017!G65 -> 0 | AB164: 0
B165: SCZ1 | F165: =+OM_EF_2017!G66 -> 0.7013856407 | G165: 73485.585 | H165: 82841.6925 | I165: 69552.7875 | J165: 23800.9429 | K165: 44110.71 | L165: 44085.42 | M165: 76414.3515 | N165: 77133.69 | O165: =+AVERAGE($L$165:$N$165) -> 65877.8205 | Z165: =+AVERAGE($L$165:$N$165) -> 65877.8205 | AA165: 65877.8205 | AB165: 46205.75734
B166: SCZ2 | F166: =+OM_EF_2017!G67 -> 0.6908500589 | G166: 86746.32 | H166: 105667.14 | I166: 63985.62 | J166: 16188.9 | K166: 29892.71113 | L166: 35185.5 | M166: 69334.6305 | N166: 64466.46 | O166: =+AVERAGE($L$166:$N$166) -> 56328.8635 | Y166: =+AVERAGE($L$166:$N$166) -> 56328.8635 | Z166: 56328.8635 | AA166: 56328.8635 | AB166: 38914.79867
B167: Del Sur | F167: =+OM_EF_2017!G68 -> 0 | AB167: 0
B168: SUR01 | F168: =+OM_EF_2017!G69 -> 0.5532956092 | K168: 84605.7 | L168: 283458 | M168: 327520.8056 | N168: 321801.0224 | O168: 310926.6093 | AB168: 172034.3277
B169: SUR02 | F169: =+OM_EF_2017!G70 -> 0.5560182876 | K169: 129537 | L169: 256045 | M169: 313178.5303 | N169: 283832.3403 | O169: 284351.9568 | AB169: 158104.8881
B170: SUR03 | F170: =+OM_EF_2017!G71 -> 0.5506913081 | K170: 108702.3 | L170: 285112 | M170: 329847.8392 | N170: 326287.4248 | O170: 313749.088 | AB170: 172778.8957
B171: SUR04 | F171: =+OM_EF_2017!G72 -> 0.5503361761 | K171: 73180 | L171: 279769 | M171: 310140.643 | N171: 335050.7928 | O171: 308320.1453 | AB171: 169679.7298
B172: Valle Hermoso (VHE) | F172: =+OM_EF_2017!G73 -> 0.7014771344 | G172: 412298.62 | H172: 375505.48 | I172: 441361.193 | J172: 438893.555 | K172: 458878.518 | L172: 260568.359 | M172: 431717.9446 | N172: 498992.928 | O172: =+AVERAGE($L$172:$N$172) -> 397093.0772 | Y172: 282837.7405 | Z172: 188301.9681 | AA172: =+AVERAGE($L$172:$N$172) -> 397093.0772 | AB172: 278551.7139
B173: VHE1 | F173: =+OM_EF_2017!G74 -> 0.77217528 | AB173: 0
B174: VHE2 | F174: =+OM_EF_2017!G75 -> 0.6957627178 | AB174: 0
B175: VHE3 | F175: =+OM_EF_2017!G76 -> 0.7326964427 | AB175: 0
B176: VHE4 | F176: =+OM_EF_2017!G77 -> 0.7701036769 | AB176: 0
B177: VHE5 | F177: =+OM_EF_2017!G78 -> 0.6259200971 | AB177: 0
B178: VHE6 | F178: =+OM_EF_2017!G79 -> 0.6288795301 | AB178: 0
B179: VHE7 | F179: =+OM_EF_2017!G80 -> 0.6310695106 | AB179: 0
B180: VHE8 | F180: =+OM_EF_2017!G81 -> 0.6315430199 | AB180: 0
B181: Warnes | F181: =+OM_EF_2017!G82 -> 0 | AB181: 0
B182: WAR01 | F182: =+OM_EF_2017!G83 -> 0.5350063128 | L182: 198822 | M182: 327476 | N182: 341340.336 | O182: =+AVERAGE(L182:N182) -> 289212.7787 | P182: 226167.0703 | AB182: 154730.6623
B183: WAR02 | F183: =+OM_EF_2017!G84 -> 0.540037349 | L183: 104963 | M183: 303848 | N183: 232234.96 | O183: =+AVERAGE(L183:N183) -> 213681.9867 | AB183: 115396.2536
B184: WAR03 | F184: =+OM_EF_2017!G85 -> 0.5399189717 | L184: 135385 | M184: 334360 | N184: 332215.632 | O184: 267320.2107 | AB184: 144331.2533
B185: WAR04 | F185: =+OM_EF_2017!G86 -> 0.5406292356 | L185: 75984 | M185: 328445 | N185: 319457.856 | O185: 241295.6187 | AB185: 130451.4659
B186: WAR05 | F186: =+OM_EF_2017!G87 -> 0.5412803109 | L186: 91678 | M186: 330964 | N186: 332882.232 | O186: =+AVERAGE($L$186:$N$186) -> 251841.4107 | X186: =+AVERAGE($L$186:$N$186) -> 251841.4107 | Y186: 251841.4107 | Z186: 251841.4107 | AA186: 251841.4107 | AB186: 136316.7971
G188: 2010 | H188: 2011 | I188: 2012 | J188: 2013 | K188: 2014 | L188: 2015 | M188: 2016 | N188: 2017 | O188: 2018 | P188: 2019 | Q188: 2020 | R188: 2021 | S188: 2022 | T188: 2023 | U188: 2024 | V188: 2025 | W188: 2026 | X188: 2027 | Y188: 2028 | Z188: 2029 | AA188: 2030
B189: Plant Unit | C189: Commissioning date | D189: Capacity [MW] | E189: Capacity factor | G189: Generation [MWh] | H189: Generation [MWh] | I189: Generation [MWh] | J189: Generation [MWh] | K189: Generation [MWh] | L189: Generation [MWh] | M189: Generation [MWh] | N189: Generation [MWh] | O189: Generation [MWh] | P189: Generation [MWh] | Q189: Generation [MWh] | R189: Generation [MWh] | S189: Generation [MWh] | T189: Generation [MWh] | U189: Generation [MWh] | V189: Generation [MWh] | W189: Generation [MWh] | X189: Generation [MWh] | Y189: Generation [MWh] | Z189: Generation [MWh] | AA189: Generation [MWh]
B190: Hydropower | G190: =SUM(G191:G259) -> 2151428.98 | H190: 2324105.464 | I190: 2322084.465 | J190: 2514863.619 | K190: 2232992.857 | L190: 2439591.151 | M190: 1715604.461 | N190: 2229863.901 | O190: 2651238.979 | P190: 2640951.116 | Q190: 2640951.116 | R190: 2640951.116 | S190: 2640951.116 | T190: 2640951.116 | U190: 2640951.116 | V190: 2640951.116 | W190: 2640951.116 | X190: 2640951.116 | Y190: 2640951.116 | Z190: 2640951.116 | AA190: 2640951.116
B191: Angostura
B192: ANG1 | G192: 9271.1 | H192: 8656.585 | I192: 10232.769 | J192: 8655.151 | K192: 8364.82 | L192: 8059.284 | M192: 8299.026 | N192: 7068.212 | O192: =+AVERAGE(L192:N192) -> 7808.840667 | P192: =+O192 -> 7808.840667 | Q192: =+P192 -> 7808.840667 | R192: 7808.840667 | S192: 7808.840667 | T192: 7808.840667 | U192: 7808.840667 | V192: 7808.840667 | W192: 7808.840667 | X192: 7808.840667 | Y192: 7808.840667 | Z192: 7808.840667 | AA192: 7808.840667
B193: ANG2 | G193: 4843.5 | H193: 5139.198 | I193: 4981.526 | J193: 3998.696 | K193: 4087.838 | L193: 3992.585 | M193: 2863.16 | N193: 3531.556 | O193: =+AVERAGE(L193:N193) -> 3462.433667 | P193: =+O193 -> 3462.433667 | Q193: 3462.433667 | R193: 3462.433667 | S193: 3462.433667 | T193: 3462.433667 | U193: 3462.433667 | V193: 3462.433667 | W193: 3462.433667 | X193: 3462.433667 | Y193: 3462.433667 | Z193: 3462.433667 | AA193: 3462.433667
B194: ANG3 | G194: 5760.916 | H194: 6575.517 | I194: 7386.07 | J194: 6891.603 | K194: 6808.925 | L194: 6644.116 | M194: 5656.743 | N194: 6833.087 | O194: 6377.982 | P194: =+O194 -> 6377.982 | Q194: 6377.982 | R194: 6377.982 | S194: 6377.982 | T194: 6377.982 | U194: 6377.982 | V194: 6377.982 | W194: 6377.982 | X194: 6377.982 | Y194: 6377.982 | Z194: 6377.982 | AA194: 6377.982
B195: Botijlaca
B196: BOT1 | G196: 7849.874 | H196: 8621.266 | I196: 8717.69 | J196: 8548.19 | K196: 6937.646 | L196: 8959.491 | M196: 5032.601 | N196: 8563.441 | O196: 7518.511 | P196: =+O196 -> 7518.511 | Q196: 7518.511 | R196: 7518.511 | S196: 7518.511 | T196: 7518.511 | U196: 7518.511 | V196: 7518.511 | W196: 7518.511 | X196: 7518.511 | Y196: 7518.511 | Z196: 7518.511 | AA196: 7518.511
B197: BOT2 | G197: 6640.692 | H197: 7153.313 | I197: 7359.012 | J197: 7028.019 | K197: 5548.011 | L197: 7037.519 | M197: 3451.904 | N197: 6239.618 | O197: 5576.347 | P197: =+O197 -> 5576.347 | Q197: 5576.347 | R197: 5576.347 | S197: 5576.347 | T197: 5576.347 | U197: 5576.347 | V197: 5576.347 | W197: 5576.347 | X197: 5576.347 | Y197: 5576.347 | Z197: 5576.347 | AA197: 5576.347
B198: BOT3 | G198: 21561.253 | H198: 20814.348 | I198: 22706.516 | J198: 22174.723 | K198: 20967.523 | L198: 23605.781 | M198: 18889.346 | N198: 20402.677 | O198: 20965.93467 | P198: =+O198 -> 20965.93467 | Q198: 20965.93467 | R198: 20965.93467 | S198: 20965.93467 | T198: 20965.93467 | U198: 20965.93467 | V198: 20965.93467 | W198: 20965.93467 | X198: 20965.93467 | Y198: 20965.93467 | Z198: 20965.93467 | AA198: 20965.93467
B199: Cahua
B200: CAH1 | G200: 79039.576 | H200: 58254.009 | I200: 51281.208 | J200: 86457.891 | K200: 85493.886 | L200: 81648.602 | M200: 62691.475 | N200: 85854.238 | O200: 76731.43833 | P200: =+O200 -> 76731.43833 | Q200: 76731.43833 | R200: 76731.43833 | S200: 76731.43833 | T200: 76731.43833 | U200: 76731.43833 | V200: 76731.43833 | W200: 76731.43833 | X200: 76731.43833 | Y200: 76731.43833 | Z200: 76731.43833 | AA200: 76731.43833
B201: CAH2 | G201: 81435.837 | H201: 91507.437 | I201: 83285.34 | J201: 84764.018 | K201: 77185.931 | L201: 81079.113 | M201: 67549.633 | N201: 83617.593 | O201: 77415.44633 | P201: =+O201 -> 77415.44633 | Q201: 77415.44633 | R201: 77415.44633 | S201: 77415.44633 | T201: 77415.44633 | U201: 77415.44633 | V201: 77415.44633 | W201: 77415.44633 | X201: 77415.44633 | Y201: 77415.44633 | Z201: 77415.44633 | AA201: 77415.44633
B202: Carabuco
B203: CRB | G203: 43231.955 | H203: 41999.479 | I203: 43164.041 | J203: 45495.326 | K203: 43258.478 | L203: 41867.757 | M203: 36040.24 | N203: 41074.045 | O203: 39660.68067 | P203: =+O203 -> 39660.68067 | Q203: =+P203 -> 39660.68067 | R203: 39660.68067 | S203: 39660.68067 | T203: 39660.68067 | U203: 39660.68067 | V203: 39660.68067 | W203: 39660.68067 | X203: 39660.68067 | Y203: 39660.68067 | Z203: 39660.68067 | AA203: 39660.68067
B204: Chojlla
B205: CHJ1y2 | G205: 5956.35675 | H205: 3270.249673 | I205: 5549.074273 | J205: 3766.921545 | K205: 4567.332535 | L205: 1658.238035 | M205: 38.66845 | N205: 0 | O205: 565.635495 | P205: =+O205 -> 565.635495 | Q205: 565.635495 | R205: 565.635495 | S205: 565.635495 | T205: 565.635495 | U205: 565.635495 | V205: 565.635495 | W205: 565.635495 | X205: 565.635495 | Y205: 565.635495 | Z205: 565.635495 | AA205: 565.635495
B206: CHJ | G206: 106123.258 | H206: 124388.162 | I206: 135330.642 | J206: 141958.0827 | K206: 127364.103 | L206: 130614.54 | M206: 50256.09 | N206: 127227.77 | O206: 102699.4667 | P206: =+O206 -> 102699.4667 | Q206: 102699.4667 | R206: 102699.4667 | S206: 102699.4667 | T206: 102699.4667 | U206: 102699.4667 | V206: 102699.4667 | W206: 102699.4667 | X206: 102699.4667 | Y206: 102699.4667 | Z206: 102699.4667 | AA206: 102699.4667
B207: Choquetanga
B208: CHO1 | G208: 12172.712 | H208: 11726.216 | I208: 12408.23 | J208: 12482.19 | K208: 11577.643 | L208: 11539.983 | M208: 9108.759 | N208: 10812.362 | O208: 10487.03467 | P208: =+O208 -> 10487.03467 | Q208: 10487.03467 | R208: 10487.03467 | S208: 10487.03467 | T208: 10487.03467 | U208: 10487.03467 | V208: 10487.03467 | W208: 10487.03467 | X208: 10487.03467 | Y208: 10487.03467 | Z208: 10487.03467 | AA208: 10487.03467
B209: CHO2 | G209: 14106.915 | H209: 13902.389 | I209: 15012.158 | J209: 15518.907 | K209: 14227.504 | L209: 14778.668 | M209: 11847.556 | N209: 13785.388 | O209: 13470.53733 | P209: =+O209 -> 13470.53733 | Q209: 13470.53733 | R209: 13470.53733 | S209: 13470.53733 | T209: 13470.53733 | U209: 13470.53733 | V209: 13470.53733 | W209: 13470.53733 | X209: 13470.53733 | Y209: 13470.53733 | Z209: 13470.53733 | AA209: 13470.53733
B210: CHO3 | G210: 11843.383 | H210: 11428.677 | I210: 12088.936 | J210: 12150.215 | K210: 11142.393 | L210: 11178.842 | M210: 9006.972 | N210: 10677.777 | O210: =+AVERAGE(L210:N210) -> 10287.86367
B211: Chururaqui
B212: CHU1 | G212: 63528.492 | H212: 66072.78 | I212: 69551.443 | J212: 71908.643 | K212: 64762.602 | L212: 71255.49 | M212: 53061.766 | N212: 68171.012 | O212: =+AVERAGE(L212:N212) -> 64162.756 | P212: =+O212 -> 64162.756 | Q212: 64162.756 | R212: 64162.756 | S212: 64162.756 | T212: 64162.756 | U212: 64162.756 | V212: 64162.756 | W212: 64162.756 | X212: 64162.756 | Y212: 64162.756 | Z212: 64162.756 | AA212: 64162.756
B213: CHU2 | G213: 62589.967 | H213: 67733.378 | I213: 64736.138 | J213: 72200.595 | K213: 62725.934 | L213: 67719.197 | M213: 53897.993 | N213: 66329.928 | O213: 62649.03933 | P213: =+O213 -> 62649.03933 | Q213: 62649.03933 | R213: 62649.03933 | S213: 62649.03933 | T213: 62649.03933 | U213: 62649.03933 | V213: 62649.03933 | W213: 62649.03933 | X213: 62649.03933 | Y213: 62649.03933 | Z213: 62649.03933 | AA213: 62649.03933
B214: Corani
B215: COR1234 | G215: 280767.663 | H215: 317689.14 | I215: 325459.12 | J215: 373791.26 | K215: 371305.78 | L215: 377176.696 | M215: 214629.939 | N215: 284284.711 | O215: =+AVERAGE(L215:N215) -> 292030.4487 | P215: =+O215 -> 292030.4487 | Q215: =+P215 -> 292030.4487 | R215: 292030.4487 | S215: 292030.4487 | T215: 292030.4487 | U215: 292030.4487 | V215: 292030.4487 | W215: 292030.4487 | X215: 292030.4487 | Y215: 292030.4487 | Z215: 292030.4487 | AA215: 292030.4487
B216: Cuticucho
B217: CUT1 | G217: 7186.324 | H217: 9743.347 | I217: 9415.135 | J217: 6458.43 | K217: 5475.314 | L217: 14181.029 | M217: 4440.681 | N217: 9498.882 | O217: =+AVERAGE(L217:N217) -> 9373.530667 | P217: =+O217 -> 9373.530667 | Q217: 9373.530667 | R217: 9373.530667 | S217: 9373.530667 | T217: 9373.530667 | U217: 9373.530667 | V217: 9373.530667 | W217: 9373.530667 | X217: 9373.530667 | Y217: 9373.530667 | Z217: 9373.530667 | AA217: 9373.530667
B218: CUT2 | G218: 6993.139 | H218: 9282.077 | I218: 8698.524 | J218: 5753.34 | K218: 4912.893 | L218: 12898.889 | M218: 5619.907 | N218: 9023.669 | O218: =+AVERAGE(L218:N218) -> 9180.821667 | P218: =+O218 -> 9180.821667 | Q218: 9180.821667 | R218: 9180.821667 | S218: 9180.821667 | T218: 9180.821667 | U218: 9180.821667 | V218: 9180.821667 | W218: 9180.821667 | X218: 9180.821667 | Y218: 9180.821667 | Z218: 9180.821667 | AA218: 9180.821667
... 53 more rows

Sheet Scenario_NDC
B3: Scenarios. Nationally determined contribution
D6: Installed capacity | G6: 2010 | H6: 2011 | I6: 2012 | J6: 2013 | K6: 2014 | L6: 2015 | M6: 2016 | N6: 2017 | O6: 2018 | P6: 2019 | Q6: 2020 | R6: 2021 | S6: 2022 | T6: 2023 | U6: 2024 | V6: 2025 | W6: 2026 | X6: 2027 | Y6: 2028 | Z6: 2029 | AA6: 2030
D7: Total capacity [MW] | G7: =G8+G10 -> 1288.95 | H7: 1288.95 | I7: 1444.77 | J7: 1480.17 | K7: 1719.12 | L7: 1948.18 | M7: 1972.18 | N7: =N8+N10 -> 2097.18 | O7: =O8+O10 -> 2217.18 | P7: 2795.38 | Q7: 4697.64 | R7: 5236.84 | S7: 5236.84 | T7: 5336.84 | U7: 5336.84 | V7: 6728.84 | W7: 6728.84 | X7: 6728.84 | Y7: 6728.84 | Z7: 11230.84 | AA7: 13386.84 | AB7: 13387 | AC7: =AB7-AA7 -> 0.16
D8: Fossil fuel based [MW] | G8: =+H8-H25 -> 785.68 | H8: 785.68 | I8: 941.5 | J8: 973.9 | K8: 1198.28 | L8: 1419.74 | M8: =+N8-N25 -> 1419.74 | N8: =OM_EF_2017!D22 -> 1419.74 | O8: =+N8+O25 -> 1419.74 | P8: =+O8+P25 -> 1828.94 | Q8: 3016.3 | R8: 3016.3 | S8: 3016.3 | T8: 3016.3 | U8: 3016.3 | V8: 3016.3 | W8: 3016.3 | X8: 3016.3 | Y8: 3016.3 | Z8: 3016.3 | AA8: 3016.3
D9: Fraction fossil fuels [%] | N9: =+N8/N7 -> 0.6769757484 | O9: =+O8/O7 -> 0.6403359222 | P9: 0.6542724066 | Q9: 0.6420883678 | R9: 0.575977116 | S9: 0.575977116 | T9: 0.5651846411 | U9: 0.5651846411 | V9: 0.4482644854 | W9: 0.4482644854 | X9: 0.4482644854 | Y9: 0.4482644854 | Z9: 0.2685729652 | AA9: 0.2253182977
D10: Renewable energy [MW] | G10: =G12+G14+G16+G18+G20 -> 503.27 | H10: 503.27 | I10: 503.27 | J10: 506.27 | K10: 520.84 | L10: 528.44 | M10: 552.44 | N10: =N12+N14+N16+N18+N20 -> 677.44 | O10: =O12+O14+O16+O18+O20 -> 797.44 | P10: 966.44 | Q10: 1681.34 | R10: 2220.54 | S10: 2220.54 | T10: 2320.54 | U10: 2320.54 | V10: 3712.54 | W10: 3712.54 | X10: 3712.54 | Y10: 3712.54 | Z10: 8214.54 | AA10: 10370.54
D11: Fraction renewable energy [%] | N11: =+N10/N7 -> 0.3230242516 | O11: =+O10/O7 -> 0.3596640778 | P11: 0.3457275934 | Q11: 0.3579116322 | R11: 0.424022884 | S11: 0.424022884 | T11: 0.4348153589 | U11: 0.4348153589 | V11: 0.5517355146 | W11: 0.5517355146 | X11: 0.5517355146 | Y11: 0.5517355146 | Z11: 0.7314270348 | AA11: 0.7746817023 | AB11: 0.79
D12: Hydro [MW] | G12: =+H12-H27 -> 482.27 | H12: 482.27 | I12: 482.27 | J12: 482.27 | K12: 482.27 | L12: 489.87 | M12: =+N12-N27 -> 489.87 | N12: =OM_EF_2017!D90 -> 609.87 | O12: =+N12+O27 -> 664.87 | P12: =+O12+P27 -> 733.87 | Q12: 1280.77 | R12: 1774.97 | S12: 1774.97 | T12: 1774.97 | U12: 1774.97 | V12: 3166.97 | W12: 3166.97 | X12: 3166.97 | Y12: 3166.97 | Z12: 7668.97 | AA12: 9348.97
D13: Fraction hydro [%] | N13: =+N12/N10 -> 0.9002568493 | O13: =+O12/O10 -> 0.8337555177 | P13: 0.7593539175 | Q13: 0.7617555045 | R13: 0.7993416016 | S13: 0.7993416016 | T13: 0.7648952399 | U13: 0.7648952399 | V13: 0.8530467012 | W13: 0.8530467012 | X13: 0.8530467012 | Y13: 0.8530467012 | Z13: 0.9335848386 | AA13: 0.9014930756
D14: Wind [MW] | G14: =+H14-H28 -> 0 | H14: 0 | I14: 0 | J14: 3 | K14: 3 | L14: 3 | M14: =+N14-N28 -> 27 | N14: =OM_EF_2017!D170 -> 27 | O14: =+N14+O28 -> 27 | P14: =+O14+P28 -> 27 | Q14: 135 | R14: 180 | S14: 180 | T14: 180 | U14: 180 | V14: 180 | W14: 180 | X14: 180 | Y14: 180 | Z14: 180 | AA14: 456
D15: Fraction wind [%] | N15: =+N14/N10 -> 0.0398559282 | O15: =+O14/O10 -> 0.03385834671 | P15: 0.02793758536 | Q15: 0.08029309955 | R15: 0.08106136345 | S15: 0.08106136345 | T15: 0.07756815224 | U15: 0.07756815224 | V15: 0.04848432609 | W15: 0.04848432609 | X15: 0.04848432609 | Y15: 0.04848432609 | Z15: 0.02191236515 | AA15: 0.04397070934
D16: Solar [MW] | G16: =+H16-H29 -> 0 | H16: 0 | I16: 0 | J16: 0 | K16: 0 | L16: 0 | M16: =+N16-N29 -> 0 | N16: 0 | O16: =+N16+O29 -> 65 | P16: =+O16+P29 -> 165 | Q16: 170 | R16: 170 | S16: 170 | T16: 170 | U16: 170 | V16: 170 | W16: 170 | X16: 170 | Y16: 170 | Z16: 170 | AA16: 370
D17: Fraction solar [%] | N17: =+N16/N10 -> 0 | O17: =+O16/O10 -> 0.08151083467 | P17: 0.1707296883 | Q17: 0.1011098291 | R17: 0.07655795437 | S17: 0.07655795437 | T17: 0.07325881045 | U17: 0.07325881045 | V17: 0.04579075242 | W17: 0.04579075242 | X17: 0.04579075242 | Y17: 0.04579075242 | Z17: 0.02069501153 | AA17: 0.03567798784
D18: Geothermal [MW] | G18: =+H18-G30 -> 0 | H18: =+I18-I30 -> 0 | I18: 0 | J18: 0 | K18: 0 | L18: 0 | M18: =+N18-N30 -> 0 | N18: 0 | O18: =+N18+O30 -> 0 | P18: =+O18+P30 -> 0 | Q18: 5 | R18: 5 | S18: 5 | T18: 105 | U18: 105 | V18: 105 | W18: 105 | X18: 105 | Y18: 105 | Z18: 105 | AA18: 105
D19: Fraction geothermal [%] | N19: =+N18/N10 -> 0 | O19: =+O18/O10 -> 0 | P19: 0 | Q19: 0.002973818502 | R19: 0.00225170454 | S19: 0.00225170454 | T19: 0.04524808881 | U19: 0.04524808881 | V19: 0.02828252356 | W19: 0.02828252356 | X19: 0.02828252356 | Y19: 0.02828252356 | Z19: 0.012782213 | AA19: 0.01012483439
D20: Biomass [MW] | G20: =+H20-H31 -> 21 | H20: 21 | I20: 21 | J20: 21 | K20: 35.57 | L20: 35.57 | M20: =+N20-N31 -> 35.57 | N20: =OM_EF_2017!D162 -> 40.57 | O20: =+N20+O31 -> 40.57 | P20: =+O20+P31 -> 40.57 | Q20: 90.57 | R20: 90.57 | S20: 90.57 | T20: 90.57 | U20: 90.57 | V20: 90.57 | W20: 90.57 | X20: 90.57 | Y20: 90.57 | Z20: 90.57 | AA20: 90.57
D21: Fraction biomass [%] | N21: =+N20/N10 -> 0.05988722248 | O21: =+O20/O10 -> 0.05087530096 | P21: 0.04197880882 | Q21: 0.05386774834 | R21: 0.04078737604 | S21: 0.04078737604 | T21: 0.0390297086 | U21: 0.0390297086 | V21: 0.02439569675 | W21: 0.02439569675 | X21: 0.02439569675 | Y21: 0.02439569675 | Z21: 0.01102557173 | AA21: 0.008733392861
D23: Capacity additions | G23: 2010 | H23: 2011 | I23: 2012 | J23: 2013 | K23: 2014 | L23: 2015 | M23: 2016 | N23: 2017 | O23: 2018 | P23: 2019 | Q23: 2020 | R23: 2021 | S23: 2022 | T23: 2023 | U23: 2024 | V23: 2025 | W23: 2026 | X23: 2027 | Y23: 2028 | Z23: 2029 | AA23: 2030
D24: Total capacity additions [MW] | G24: =+G25+G26 -> 96 | H24: 0 | I24: 155.82 | J24: 35.4 | K24: 238.95 | L24: 229.06 | M24: 24 | N24: =+N25+N26 -> 125 | O24: =+O25+O26 -> 120 | P24: 578.2 | Q24: 1902.26 | R24: 539.2 | S24: 0 | T24: 100 | U24: 0 | V24: 1392 | W24: 0 | X24: 0 | Y24: 0 | Z24: 4502 | AA24: 2156
D25: Fossil fuel based [MW] | G25: =+SUMIF($C$191:$C$258,G23,$D$191:$D$258) -> 96 | H25: 0 | I25: 155.82 | J25: 32.4 | K25: 224.38 | L25: 221.46 | M25: 0 | N25: 0 | O25: =+SUMIF($C$55:$C$78,O23,$D$55:$D$78) -> 0 | P25: 409.2 | Q25: 1187.36 | R25: 0 | S25: 0 | T25: 0 | U25: 0 | V25: 0 | W25: 0 | X25: 0 | Y25: 0 | Z25: 0 | AA25: 0
D26: Renewables [MW] | G26: =+G27+G28+G29+G30+G31 -> 0 | H26: 0 | I26: 0 | J26: 3 | K26: 14.57 | L26: 7.6 | M26: 24 | N26: =+N27+N28+N29+N30+N31 -> 125 | O26: =+O27+O28+O29+O30+O31 -> 120 | P26: 169 | Q26: 714.9 | R26: 539.2 | S26: 0 | T26: 100 | U26: 0 | V26: 1392 | W26: 0 | X26: 0 | Y26: 0 | Z26: 4502 | AA26: 2156
D27: Hydro [MW] | G27: =SUMIF($C$263:$C$331,G23,$D$263:$D$331) -> 0 | H27: 0 | I27: 0 | J27: 0 | K27: 0 | L27: 7.6 | M27: 0 | N27: 120 | O27: =+SUMIF($C$83:$C$127,O23,$D$83:$D$127) -> 55 | P27: 69 | Q27: 546.9 | R27: 494.2 | S27: 0 | T27: 0 | U27: 0 | V27: 1392 | W27: 0 | X27: 0 | Y27: 0 | Z27: 4502 | AA27: 1680
D28: Wind [MW] | G28: =+SUMIF($C$345:$C$347,G23,$D$345:$D$347) -> 0 | H28: 0 | I28: 0 | J28: 3 | K28: 0 | L28: 0 | M28: 24 | N28: 0 | O28: =+SUMIF($C$133:$C$147,O23,$D$133:$D$147) -> 0 | P28: 0 | Q28: 108 | R28: 45 | S28: 0 | T28: 0 | U28: 0 | V28: 0 | W28: 0 | X28: 0 | Y28: 0 | Z28: 0 | AA28: 276
D29: Solar [MW] | G29: 0 | H29: 0 | I29: 0 | J29: 0 | K29: 0 | L29: 0 | M29: 0 | N29: 0 | O29: =+SUMIF($C$152:$C$165,O23,$D$152:$D$165) -> 65 | P29: 100 | Q29: 5 | R29: 0 | S29: 0 | T29: 0 | U29: 0 | V29: 0 | W29: 0 | X29: 0 | Y29: 0 | Z29: 0 | AA29: 200
D30: Geothermal [MW] | G30: 0 | H30: 0 | I30: 0 | J30: 0 | K30: 0 | L30: 0 | M30: 0 | N30: =+SUMIF($C$170:$C$173,N23,$D$170:$D$184) -> 0 | O30: 0 | P30: 0 | Q30: 5 | R30: 0 | S30: 0 | T30: 100 | U30: 0 | V30: 0 | W30: 0 | X30: 0 | Y30: 0 | Z30: 0 | AA30: 0
D31: Biomass [MW] | G31: =+SUMIF($C$336:$C$340,G23,$D$336:$D$340) -> 0 | H31: 0 | I31: 0 | J31: 0 | K31: 14.57 | L31: 0 | M31: 0 | N31: 5 | O31: =+SUMIF($C$178:$C$183,O23,$D$178:$D$183) -> 0 | P31: 0 | Q31: 50 | R31: 0 | S31: 0 | T31: 0 | U31: 0 | V31: 0 | W31: 0 | X31: 0 | Y31: 0 | Z31: 0 | AA31: 0
D33: Electricity demand | G33: 2010 | H33: 2011 | I33: 2012 | J33: 2013 | K33: 2014 | L33: 2015 | M33: 2016 | N33: 2017 | O33: 2018 | P33: 2019 | Q33: 2020 | R33: 2021 | S33: 2022 | T33: 2023 | U33: 2024 | V33: 2025 | W33: 2026 | X33: 2027 | Y33: 2028 | Z33: 2029 | AA33: 2030
D34: Electricity demand [MWh] | G34: 5814019.035 | H34: 6301852.262 | I34: 6604327.164 | J34: 7012819.377 | K34: 7477658.063 | L34: 7945921.687 | M34: 8377847.314 | N34: 8613743.881 | O34: 9096484.101 | P34: 9861641.278 | Q34: 10650466.03 | R34: 11767871.01 | S34: 12509304.04 | T34: 13292004.04 | U34: 14119084.04 | V34: 14992914.04 | W34: 15915934.04 | X34: 16890764.04 | Y34: 17920144.04 | Z34: 19006944.04 | AA34: 20154224.04
D35: Transmission and distribution losses [%] | O35: 0.04 | P35: 0.04 | Q35: 0.04 | R35: 0.04 | S35: 0.04 | T35: 0.04 | U35: 0.04 | V35: 0.04 | W35: 0.04 | X35: 0.04 | Y35: 0.04 | Z35: 0.04 | AA35: 0.04
D36: Total electricity demand [MWh] | G36: =+G38 -> 6085440.865 | H36: =+H38 -> 6592941.533 | I36: 6861925.926 | J36: 7286833.036 | K36: 7743488.703 | L36: 8248316.823 | M36: 8669522.259 | N36: 8890377.237 | O36: =+O34/(1-O35) -> 9475504.271 | P36: =+P34/(1-P35) -> 10272543 | Q36: 11094235.45 | R36: 12258198.97 | S36: 13030525.04 | T36: 13845837.54 | U36: 14707379.21 | V36: 15617618.79 | W36: 16579097.96 | X36: 17594545.87 | Y36: 18666816.71 | Z36: 19798900.04 | AA36: 20993983.37
D38: Total generation [MWh] | G38: =+G190+G262+G335+G344 -> 6085440.865 | H38: 6592941.533 | I38: 6861925.926 | J38: 7286833.036 | K38: 7743488.703 | L38: 8248316.823 | M38: 8669522.259 | N38: 8890377.237 | O38: =+O190+O262+O335+O344+O54+O82+O132+O151+O169+O177 -> 9549855.457 | P38: =+P190+P262+P335+P344+P54+P82+P132+P151+P169+P177 -> 12726694.19 | Q38: 20759867.12 | R38: 23042112.01 | S38: 23042112.01 | T38: 23786712.01 | U38: 23786712.01 | V38: 29883672.01 | W38: 29883672.01 | X38: 29883672.01 | Y38: 29883672.01 | Z38: 51889185.61 | AA38: 60514281.61
D39: Renewable energy generation [MWh] | G39: =+G262+G335+G344 -> 2209585.15 | H39: 2388145.984 | I39: 2386578.665 | J39: 2594391.147 | K39: 2317460.239 | L39: 2530134.785 | M39: 1811708.955 | N39: 2334294.747 | O39: =+O82+O132+O151+O169+O262+O335+O344 -> 3176644.459 | P39: 3678816.595 | Q39: 6453108.595 | R39: 8755674.595 | S39: 8755674.595 | T39: 9500274.595 | U39: 9500274.595 | V39: 15597234.59 | W39: 15597234.59 | X39: 15597234.59 | Y39: 15597234.59 | Z39: 37602748.19 | AA39: 46227844.19
D40: Fraction renewable energy [%] | G40: =+G39/G38 -> 0.3630936852 | H40: =+H39/H38 -> 0.3622276903 | I40: 0.3478001207 | J40: 0.3560382315 | K40: 0.2992785716 | L40: 0.3067455869 | M40: 0.2089744857 | N40: 0.2625641956 | O40: 0.3326379622 | P40: 0.2890630151 | Q40: 0.3108453709 | R40: 0.3799857666 | S40: 0.3799857666 | T40: 0.3993941909 | U40: 0.3993941909 | V40: 0.5219316619 | W40: 0.5219316619 | X40: 0.5219316619 | Y40: 0.5219316619 | Z40: 0.7246740868 | AA40: 0.7639162685
D41: Fossil fuel based generation [MWh] | G41: =+G54+G190 -> 3875855.715 | H41: 4204795.55 | I41: 4475347.261 | J41: 4692441.889 | K41: 5426028.464 | L41: 5718182.038 | M41: 6857813.304 | N41: 6556082.49 | O41: =+O54+O190 -> 6373210.998 | P41: 9047877.597 | Q41: 13934458.52 | R41: 13914137.41 | S41: 13914137.41 | T41: 13914137.41 | U41: 13914137.41 | V41: 13914137.41 | W41: 13914137.41 | X41: 13914137.41 | Y41: 13914137.41 | Z41: 13914137.41 | AA41: 13914137.41
D42: Fraction fossil fuels [%] | G42: =+G41/G38 -> 0.6369063148 | H42: =+H41/H38 -> 0.6377723097 | I42: 0.6521998793 | J42: 0.6439617685 | K42: 0.7007214284 | L42: 0.6932544131 | M42: 0.7910255143 | N42: 0.7374358044 | O42: 0.6673620378 | P42: 0.7109369849 | Q42: 0.6712209883 | R42: 0.6038568603 | S42: 0.6038568603 | T42: 0.5849542134 | U42: 0.5849542134 | V42: 0.4656100297 | W42: 0.4656100297 | X42: 0.4656100297 | Y42: 0.4656100297 | Z42: 0.2681510077 | AA42: 0.2299314648
D43: Electricity surplus [MWh] | G43: =+G38-G36 -> 0 | H43: 0 | I43: 0 | J43: 0 | K43: 0 | L43: 0 | M43: 0 | N43: 0 | O43: 74351.18566 | P43: 2454151.194 | Q43: 9665631.667 | R43: 10783913.04 | S43: 10011586.97 | T43: 9940874.467 | U43: 9079332.8 | V43: 14266053.22 | W43: 13304574.05 | X43: 12289126.13 | Y43: 11216855.3 | Z43: 32090285.57 | AA43: 39520298.23
D45: Grid emission factor | G45: 2010 | H45: 2011 | I45: 2012 | J45: 2013 | K45: 2014 | L45: 2015 | M45: 2016 | N45: 2017 | O45: 2018 | P45: 2019 | Q45: 2020 | R45: 2021 | S45: 2022 | T45: 2023 | U45: 2024 | V45: 2025 | W45: 2026 | X45: 2027 | Y45: 2028 | Z45: 2029 | AA45: 2030
D46: Greenhouse gas emissions [tCO2e] | G46: =+OM_EF_2010!H23 -> 2367600.802 | H46: =+OM_EF_2011!H22 -> 2563443.554 | I46: =+OM_EF_2012!H22 -> 2817609.709 | J46: =+OM_EF_2013!H22 -> 2778715.357 | K46: =+OM_EF_2014!H22 -> 3227014.123 | L46: =+OM_EF_2015!H22 -> 3281998.242 | M46: =+OM_EF_2016!H23 -> 4027512.386 | N46: =+OM_EF_2017!H22 -> 3757647.583 | O46: =+SUMPRODUCT($F$191:$F$258,O191:O258)+SUMPRODUCT($F$55:$F$78,O55:O78) -> 3649126.284 | P46: =+SUMPRODUCT($F$191:$F$258,P191:P258)+SUMPRODUCT($F$55:$F$78,P55:P78) -> 4696138.878 | Q46: 6657346.983 | R46: 6642931.989 | S46: 6642931.989 | T46: 6642931.989 | U46: 6642931.989 | V46: 6642931.989 | W46: 6642931.989 | X46: =+SUMPRODUCT($F$191:$F$258,X191:X258)+SUMPRODUCT($F$55:$F$78,X55:X78) -> 6642931.989 | Y46: 6642931.989 | Z46: 6642931.989 | AA46: 6642931.989
D47: Average operting margin emission factor [tCO2e/MWh] | G47: =+'Grid-EF'!H9 -> 0.3890598651 | H47: =+'Grid-EF'!I9 -> 0.3888163639 | I47: =+'Grid-EF'!J9 -> 0.4106149992 | J47: =+'Grid-EF'!K9 -> 0.3813337486 | K47: =+'Grid-EF'!L9 -> 0.4167390497 | L47: =+'Grid-EF'!M9 -> 0.3978991486 | M47: =+'Grid-EF'!N9 -> 0.4645598991 | N47: =+'Grid-EF'!O9 -> 0.4226139263 | O47: =+O46/O38 -> 0.3821132477 | P47: =+P46/P38 -> 0.3689991138 | Q47: 0.3206835065 | R47: 0.2882952738 | S47: 0.2882952738 | T47: 0.2792707116 | U47: 0.2792707116 | V47: 0.2222930297 | W47: 0.2222930297 | X47: 0.2222930297 | Y47: 0.2222930297 | Z47: 0.1280215118 | AA47: 0.1097746154
D48: Simple operating margin emission factor [tCO2e/MWh] | G48: =+G46/G41 -> 0.6108588596 | H48: =+H46/H41 -> 0.6096476093 | I48: 0.6295845986 | J48: 0.5921683044 | K48: 0.5947285652 | L48: 0.573958335 | M48: 0.5872881351 | N48: 0.5731544088 | O48: 0.5725726459 | P48: 0.5190320965 | Q48: 0.4777614409 | R48: 0.4774231986 | S48: 0.4774231986 | T48: 0.4774231986 | U48: 0.4774231986 | V48: 0.4774231986 | W48: 0.4774231986 | X48: 0.4774231986 | Y48: 0.4774231986 | Z48: 0.4774231986 | AA48: 0.4774231986
B50: Capacity additions 2018 - 2030
G52: 2010 | H52: 2011 | I52: 2012 | J52: 2013 | K52: 2014 | L52: 2015 | M52: 2016 | N52: 2017 | O52: 2018 | P52: 2019 | Q52: 2020 | R52: 2021 | S52: 2022 | T52: 2023 | U52: 2024 | V52: 2025 | W52: 2026 | X52: 2027 | Y52: 2028 | Z52: 2029 | AA52: 2030
B53: Plant Unit | C53: Commissioning date | D53: Capacity [MW] | E53: Capacity factor | F53: Emission factor [tCO2/MWh] | G53: Generation [MWh] | H53: Generation [MWh] | I53: Generation [MWh] | J53: Generation [MWh] | K53: Generation [MWh] | L53: Generation [MWh] | M53: Generation [MWh] | N53: Generation [MWh] | O53: Generation [MWh] | P53: Generation [MWh] | Q53: Generation [MWh] | R53: Generation [MWh] | S53: Generation [MWh] | T53: Generation [MWh] | U53: Generation [MWh] | V53: Generation [MWh] | W53: Generation [MWh] | X53: Generation [MWh] | Y53: Generation [MWh] | Z53: Generation [MWh] | AA53: Generation [MWh]
B54: Natural gas | G54: =SUM(G55:G78) -> 0 | H54: 0 | I54: 0 | J54: 0 | K54: 0 | L54: 0 | M54: 0 | N54: 0 | O54: 0 | P54: =SUM(P55:P78) -> 2509214.4 | Q54: 9790105.92 | R54: 9790105.92 | S54: 9790105.92 | T54: 9790105.92 | U54: 9790105.92 | V54: 9790105.92 | W54: 9790105.92 | X54: 9790105.92 | Y54: 9790105.92 | Z54: 9790105.92 | AA54: 9790105.92
B55: Entre Ríos
B56: CCERI3 | C56: 2019 | D56: 136.4 | E56: 0.7 | F56: =+'GHG-ER'!J29 -> 0.3817076791 | G56: =+IF($C56<=G$52,$D56*8760*$E56,0) -> 0 | H56: 0 | I56: 0 | J56: 0 | K56: 0 | L56: 0 | M56: 0 | N56: 0 | O56: 0 | P56: 836404.8 | Q56: 836404.8 | R56: 836404.8 | S56: 836404.8 | T56: 836404.8 | U56: 836404.8 | V56: 836404.8 | W56: =+IF($C56<=W$52,$D56*8760*$E56,0) -> 836404.8 | X56: 836404.8 | Y56: 836404.8 | Z56: 836404.8 | AA56: 836404.8
B57: CCERI4 | C57: 2019 | D57: 136.4 | E57: 0.7 | F57: =+'GHG-ER'!J30 -> 0.3817076791 | G57: =+IF($C57<=G$52,$D57*8760*$E57,0) -> 0 | H57: 0 | I57: 0 | J57: 0 | K57: 0 | L57: 0 | M57: 0 | N57: 0 | O57: 0 | P57: 836404.8 | Q57: 836404.8 | R57: 836404.8 | S57: 836404.8 | T57: 836404.8 | U57: 836404.8 | V57: 836404.8 | W57: 836404.8 | X57: 836404.8 | Y57: 836404.8 | Z57: 836404.8 | AA57: 836404.8
B58: CCERI5 | C58: 2019 | D58: 136.4 | E58: 0.7 | F58: =+'GHG-ER'!J31 -> 0.3817076791 | G58: 0 | H58: 0 | I58: 0 | J58: 0 | K58: 0 | L58: 0 | M58: 0 | N58: 0 | O58: 0 | P58: 836404.8 | Q58: 836404.8 | R58: 836404.8 | S58: 836404.8 | T58: 836404.8 | U58: 836404.8 | V58: 836404.8 | W58: 836404.8 | X58: 836404.8 | Y58: 836404.8 | Z58: 836404.8 | AA58: =+IF($C58<=AA$52,$D58*8760*$E58,0) -> 836404.8
B59: Del Sur
B60: CCSUR1 | C60: 2020 | D60: 132.69 | E60: 0.7 | F60: =+F62 -> 0.3817076791 | G60: 0 | H60: 0 | I60: 0 | J60: 0 | K60: 0 | L60: 0 | M60: 0 | N60: 0 | O60: 0 | P60: 0 | Q60: 813655.08 | R60: 813655.08 | S60: 813655.08 | T60: 813655.08 | U60: 813655.08 | V60: 813655.08 | W60: 813655.08 | X60: 813655.08 | Y60: 813655.08 | Z60: 813655.08 | AA60: 813655.08
B61: CCSUR2 | C61: 2020 | D61: 132.69 | E61: 0.7 | F61: =+F62 -> 0.3817076791 | G61: 0 | H61: 0 | I61: 0 | J61: 0 | K61: 0 | L61: 0 | M61: 0 | N61: 0 | O61: 0 | P61: 0 | Q61: 813655.08 | R61: 813655.08 | S61: 813655.08 | T61: 813655.08 | U61: 813655.08 | V61: 813655.08 | W61: 813655.08 | X61: 813655.08 | Y61: 813655.08 | Z61: 813655.08 | AA61: 813655.08
B62: CCSUR3 | C62: 2020 | D62: 132.69 | E62: 0.7 | F62: =+'GHG-ER'!J25 -> 0.3817076791 | G62: 0 | H62: 0 | I62: 0 | J62: 0 | K62: 0 | L62: 0 | M62: 0 | N62: 0 | O62: 0 | P62: 0 | Q62: 813655.08 | R62: 813655.08 | S62: 813655.08 | T62: 813655.08 | U62: 813655.08 | V62: 813655.08 | W62: 813655.08 | X62: 813655.08 | Y62: 813655.08 | Z62: 813655.08 | AA62: 813655.08
B63: CCSUR4 | C63: 2020 | D63: 132.69 | E63: 0.7 | F63: =+'GHG-ER'!J26 -> 0.3817076791 | G63: 0 | H63: 0 | I63: 0 | J63: 0 | K63: 0 | L63: 0 | M63: 0 | N63: 0 | O63: 0 | P63: 0 | Q63: 813655.08 | R63: 813655.08 | S63: 813655.08 | T63: 813655.08 | U63: 813655.08 | V63: 813655.08 | W63: 813655.08 | X63: 813655.08 | Y63: 813655.08 | Z63: 813655.08 | AA63: 813655.08
B64: Warnes
B65: CCWAR1 | C65: 2020 | D65: 135.15 | E65: 0.7 | F65: =+F67 -> 0.5470630431 | G65: 0 | H65: 0 | I65: 0 | J65: 0 | K65: 0 | L65: 0 | M65: 0 | N65: 0 | O65: 0 | P65: 0 | Q65: 828739.8 | R65: 828739.8 | S65: 828739.8 | T65: 828739.8 | U65: 828739.8 | V65: 828739.8 | W65: 828739.8 | X65: 828739.8 | Y65: 828739.8 | Z65: 828739.8 | AA65: 828739.8
B66: CCWAR2 | C66: 2020 | D66: 135.15 | E66: 0.7 | F66: =+F67 -> 0.5470630431 | G66: 0 | H66: 0 | I66: 0 | J66: 0 | K66: 0 | L66: 0 | M66: 0 | N66: 0 | O66: 0 | P66: 0 | Q66: 828739.8 | R66: 828739.8 | S66: 828739.8 | T66: 828739.8 | U66: 828739.8 | V66: 828739.8 | W66: 828739.8 | X66: 828739.8 | Y66: 828739.8 | Z66: 828739.8 | AA66: 828739.8
B67: CCWAR3 | C67: 2020 | D67: 135.15 | E67: 0.7 | F67: =+'GHG-ER'!J22 -> 0.5470630431 | G67: 0 | H67: 0 | I67: 0 | J67: 0 | K67: 0 | L67: 0 | M67: 0 | N67: 0 | O67: 0 | P67: 0 | Q67: 828739.8 | R67: 828739.8 | S67: 828739.8 | T67: 828739.8 | U67: 828739.8 | V67: 828739.8 | W67: 828739.8 | X67: 828739.8 | Y67: 828739.8 | Z67: 828739.8 | AA67: 828739.8
B68: CCWAR4 | C68: 2020 | D68: 135.15 | E68: 0.7 | F68: =+'GHG-ER'!J23 -> 0.4758709209 | G68: 0 | H68: 0 | I68: 0 | J68: 0 | K68: 0 | L68: 0 | M68: 0 | N68: 0 | O68: 0 | P68: 0 | Q68: 828739.8 | R68: 828739.8 | S68: 828739.8 | T68: 828739.8 | U68: 828739.8 | V68: 828739.8 | W68: 828739.8 | X68: 828739.8 | Y68: 828739.8 | Z68: 828739.8 | AA68: 828739.8
B69: Guaracachi
B70: =+B69 -> Guaracachi | C70: 2020 | D70: 36 | E70: 0.7 | F70: 0.38 | G70: 0 | H70: 0 | I70: 0 | J70: 0 | K70: 0 | L70: 0 | M70: 0 | N70: 0 | O70: 0 | P70: 0 | Q70: 220752 | R70: 220752 | S70: 220752 | T70: 220752 | U70: 220752 | V70: 220752 | W70: 220752 | X70: 220752 | Y70: 220752 | Z70: 220752 | AA70: 220752
B71: Santa Cruz
B72: =+B71 -> Santa Cruz | C72: 2020 | D72: 28 | E72: 0.7 | F72: =+'GHG-ER'!J25 -> 0.3817076791 | G72: 0 | H72: 0 | I72: 0 | J72: 0 | K72: 0 | L72: 0 | M72: 0 | N72: 0 | O72: 0 | P72: 0 | Q72: 171696 | R72: 171696 | S72: 171696 | T72: 171696 | U72: 171696 | V72: 171696 | W72: 171696 | X72: 171696 | Y72: 171696 | Z72: 171696 | AA72: 171696
B73: Carrasco
B74: =+B73 -> Carrasco | C74: 2020 | D74: 52 | E74: 0.7 | F74: =+'GHG-ER'!J25 -> 0.3817076791 | G74: 0 | H74: 0 | I74: =+IF($C74<=I$52,$D74*8760*$E74,0) -> 0 | J74: 0 | K74: 0 | L74: 0 | M74: 0 | N74: 0 | O74: 0 | P74: 0 | Q74: 318864 | R74: 318864 | S74: 318864 | T74: 318864 | U74: 318864 | V74: 318864 | W74: 318864 | X74: 318864 | Y74: 318864 | Z74: 318864 | AA74: 318864
B75: Natural Gas A
B76: =+B75 -> Natural Gas A | G76: =+IF($C76<=G$52,$D76*8760*$E76,0) -> 0 | H76: 0 | I76: 0 | J76: 0 | K76: 0 | L76: 0 | M76: =+IF($C76<=M$52,$D76*8760*$E76,0) -> 0 | N76: =+IF($C76<=N$52,$D76*8760*$E76,0) -> 0 | O76: 0 | P76: =+$D76*8760*$E76 -> 0 | Q76: =+$D76*8760*$E76 -> 0 | R76: 0 | S76: 0 | T76: 0 | U76: 0 | V76: 0 | W76: 0 | X76: 0 | Y76: 0 | Z76: 0 | AA76: 0
B77: Natural Gas B
B78: =+B77 -> Natural Gas B | G78: 0 | H78: 0 | I78: 0 | J78: 0 | K78: 0 | L78: 0 | M78: =+IF($C78<=M$52,$D78*8760*$E78,0) -> 0 | N78: 0 | O78: 0 | P78: =+$D78*8760*$E78 -> 0 | Q78: 0 | R78: 0 | S78: 0 | T78: 0 | U78: 0 | V78: 0 | W78: 0 | X78: 0 | Y78: 0 | Z78: 0 | AA78: 0
G80: 2010 | H80: 2011 | I80: 2012 | J80: 2013 | K80: 2014 | L80: 2015 | M80: 2016 | N80: 2017 | O80: 2018 | P80: 2019 | Q80: 2020 | R80: 2021 | S80: 2022 | T80: 2023 | U80: 2024 | V80: 2025 | W80: 2026 | X80: 2027 | Y80: 2028 | Z80: 2029 | AA80: 2030
B81: Plant Unit | C81: Commissioning date | D81: Capacity [MW] | E81: Capacity factor | G81: Generation [MWh] | H81: Generation [MWh] | I81: Generation [MWh] | J81: Generation [MWh] | K81: Generation [MWh] | L81: Generation [MWh] | M81: Generation [MWh] | N81: Generation [MWh] | O81: Generation [MWh] | P81: Generation [MWh] | Q81: Generation [MWh] | R81: Generation [MWh] | S81: Generation [MWh] | T81: Generation [MWh] | U81: Generation [MWh] | V81: Generation [MWh] | W81: Generation [MWh] | X81: Generation [MWh] | Y81: Generation [MWh] | Z81: Generation [MWh] | AA81: Generation [MWh]
B82: Hydropower | G82: =SUM(G84:G127) -> 0 | H82: 0 | I82: 0 | J82: 0 | K82: 0 | L82: 0 | M82: 0 | N82: 0 | O82: 240900 | P82: 543120 | Q82: 2938542 | R82: 5103138 | S82: 5103138 | T82: 5103138 | U82: 5103138 | V82: 11200098 | W82: 11200098 | X82: 11200098 | Y82: 11200098 | Z82: 33205611.6 | AA82: 40564011.6
B83: San José
B84: San Jose I | C84: 2018 | D84: 55 | E84: 0.5 | G84: =+IF($C84<=G$52,$D84*8760*$E84,0) -> 0 | H84: 0 | I84: 0 | J84: 0 | K84: 0 | L84: 0 | M84: 0 | N84: 0 | O84: 240900 | P84: 240900 | Q84: 240900 | R84: 240900 | S84: 240900 | T84: 240900 | U84: 240900 | V84: 240900 | W84: =+IF($C84<=W$52,$D84*8760*$E84,0) -> 240900 | X84: 240900 | Y84: 240900 | Z84: 240900 | AA84: 240900
B85: San José II | C85: 2019 | D85: 69 | E85: 0.5 | G85: 0 | H85: 0 | I85: 0 | J85: 0 | K85: 0 | L85: 0 | M85: 0 | N85: 0 | O85: 0 | P85: 302220 | Q85: 302220 | R85: 302220 | S85: 302220 | T85: 302220 | U85: 302220 | V85: 302220 | W85: 302220 | X85: 302220 | Y85: 302220 | Z85: 302220 | AA85: 302220
B86: Sehuencas
B87: Sehuencas | C87: 2021 | D87: 198.6 | E87: 0.5 | G87: 0 | H87: 0 | I87: 0 | J87: 0 | K87: 0 | L87: 0 | M87: 0 | N87: 0 | O87: 0 | P87: 0 | Q87: 0 | R87: 869868 | S87: 869868 | T87: 869868 | U87: 869868 | V87: 869868 | W87: 869868 | X87: 869868 | Y87: 869868 | Z87: 869868 | AA87: 869868
B88: Juntas
B89: Juntas | C89: 2021 | D89: 91.6 | E89: 0.5 | G89: 0 | H89: 0 | I89: 0 | J89: 0 | K89: 0 | L89: 0 | M89: 0 | N89: 0 | O89: 0 | P89: 0 | Q89: 0 | R89: 401208 | S89: 401208 | T89: 401208 | U89: 401208 | V89: 401208 | W89: 401208 | X89: 401208 | Y89: 401208 | Z89: 401208 | AA89: 401208
B90: Umapalca
B91: Umapalca | C91: 2021 | D91: 85.8 | E91: 0.5 | G91: 0 | H91: 0 | I91: 0 | J91: 0 | K91: 0 | L91: 0 | M91: 0 | N91: 0 | O91: 0 | P91: 0 | Q91: 0 | R91: 375804 | S91: 375804 | T91: 375804 | U91: 375804 | V91: 375804 | W91: 375804 | X91: 375804 | Y91: 375804 | Z91: 375804 | AA91: 375804
B92: Palillada
B93: Palillada | C93: 2021 | D93: 118.2 | E93: 0.5 | G93: 0 | H93: 0 | I93: 0 | J93: 0 | K93: 0 | L93: 0 | M93: 0 | N93: 0 | O93: 0 | P93: 0 | Q93: 0 | R93: 517716 | S93: 517716 | T93: 517716 | U93: 517716 | V93: 517716 | W93: 517716 | X93: 517716 | Y93: 517716 | Z93: 517716 | AA93: 517716
B94: Ivirizu
B95: =+B94 -> Ivirizu | C95: 2020 | D95: 253.9 | E95: 0.5 | G95: 0 | H95: 0 | I95: 0 | J95: 0 | K95: 0 | L95: 0 | M95: 0 | N95: 0 | O95: 0 | P95: 0 | Q95: 1112082 | R95: 1112082 | S95: 1112082 | T95: 1112082 | U95: 1112082 | V95: 1112082 | W95: 1112082 | X95: 1112082 | Y95: 1112082 | Z95: 1112082 | AA95: 1112082
B96: Banda Azul
B97: =+B96 -> Banda Azul | C97: 2020 | D97: 93 | E97: 0.5 | G97: 0 | H97: 0 | I97: 0 | J97: 0 | K97: 0 | L97: 0 | M97: 0 | N97: 0 | O97: 0 | P97: 0 | Q97: 407340 | R97: 407340 | S97: 407340 | T97: 407340 | U97: 407340 | V97: 407340 | W97: 407340 | X97: 407340 | Y97: 407340 | Z97: 407340 | AA97: 407340
B98: Pequenas centrales
B99: =+B98 -> Pequenas centrales | C99: 2020 | D99: 200 | E99: 0.5 | G99: 0 | H99: 0 | I99: 0 | J99: 0 | K99: 0 | L99: 0 | M99: 0 | N99: 0 | O99: 0 | P99: 0 | Q99: 876000 | R99: 876000 | S99: 876000 | T99: 876000 | U99: 876000 | V99: 876000 | W99: 876000 | X99: 876000 | Y99: 876000 | Z99: 876000 | AA99: 876000
B100: Carrizal
B101: =+B100 -> Carrizal | C101: 2025 | D101: 347 | E101: 0.5 | G101: 0 | H101: 0 | I101: 0 | J101: 0 | K101: 0 | L101: 0 | M101: 0 | N101: 0 | O101: 0 | P101: 0 | Q101: 0 | R101: 0 | S101: 0 | T101: 0 | U101: 0 | V101: 1519860 | W101: 1519860 | X101: 1519860 | Y101: 1519860 | Z101: 1519860 | AA101: 1519860
B102: Cambari
B103: =+B102 -> Cambari | C103: 2025 | D103: 93 | E103: 0.5 | G103: 0 | H103: 0 | I103: 0 | J103: 0 | K103: 0 | L103: 0 | M103: 0 | N103: 0 | O103: 0 | P103: 0 | Q103: 0 | R103: 0 | S103: 0 | T103: 0 | U103: 0 | V103: 407340 | W103: 407340 | X103: 407340 | Y103: 407340 | Z103: 407340 | AA103: 407340
B104: Cuenca Corani
B105: =+B104 -> Cuenca Corani | C105: 2025 | D105: 220 | E105: 0.5 | G105: 0 | H105: 0 | I105: 0 | J105: 0 | K105: 0 | L105: 0 | M105: 0 | N105: 0 | O105: 0 | P105: 0 | Q105: 0 | R105: 0 | S105: 0 | T105: 0 | U105: 0 | V105: 963600 | W105: 963600 | X105: 963600 | Y105: 963600 | Z105: 963600 | AA105: 963600
B106: Moliineros
B107: =+B106 -> Moliineros | C107: 2025 | D107: 132 | E107: 0.5 | G107: 0 | H107: 0 | I107: 0 | J107: 0 | K107: 0 | L107: 0 | M107: 0 | N107: 0 | O107: 0 | P107: 0 | Q107: 0 | R107: 0 | S107: 0 | T107: 0 | U107: 0 | V107: 578160 | W107: 578160 | X107: 578160 | Y107: 578160 | Z107: 578160 | AA107: 578160
B108: Rositas
B109: =+B108 -> Rositas | C109: 2025 | D109: 600 | E109: 0.5 | G109: 0 | H109: =+IF($C109<=H$52,$D109*8760*$E109,0) -> 0 | I109: 0 | J109: 0 | K109: 0 | L109: 0 | M109: 0 | N109: 0 | O109: 0 | P109: 0 | Q109: 0 | R109: 0 | S109: 0 | T109: 0 | U109: 0 | V109: 2628000 | W109: 2628000 | X109: 2628000 | Y109: 2628000 | Z109: 2628000 | AA109: 2628000
B110: Icla
B111: =+B110 -> Icla | C111: 2029 | D111: 102 | E111: 0.53 | G111: =+IF($C111<=G$52,$D111*8760*$E111,0) -> 0 | H111: 0 | I111: 0 | J111: 0 | K111: 0 | L111: 0 | M111: 0 | N111: 0 | O111: 0 | P111: 0 | Q111: 0 | R111: 0 | S111: 0 | T111: 0 | U111: 0 | V111: 0 | W111: 0 | X111: 0 | Y111: 0 | Z111: 473565.6 | AA111: 473565.6
B112: Margarita
B113: =+B112 -> Margarita | C113: 2029 | D113: 150 | E113: 0.53 | G113: =+IF($C113<=G$52,$D113*8760*$E113,0) -> 0 | H113: 0 | I113: 0 | J113: 0 | K113: 0 | L113: 0 | M113: 0 | N113: 0 | O113: 0 | P113: 0 | Q113: 0 | R113: 0 | S113: 0 | T113: 0 | U113: 0 | V113: 0 | W113: 0 | X113: 0 | Y113: 0 | Z113: 696420 | AA113: 696420
B114: Río Grande (excl. Juntas)
B115: =+B114 -> Río Grande (excl. Juntas) | C115: 2029 | D115: =3072-172 -> 2900 | E115: 0.53 | G115: =+IF($C115<=G$52,$D115*8760*$E115,0) -> 0 | H115: 0 | I115: 0 | J115: 0 | K115: 0 | L115: 0 | M115: 0 | N115: 0 | O115: 0 | P115: 0 | Q115: 0 | R115: 0 | S115: 0 | T115: 0 | U115: 0 | V115: 0 | W115: 0 | X115: 0 | Y115: 0 | Z115: 13464120 | AA115: 13464120
B116: Otras nuevas plantas
B117: =+B116 -> Otras nuevas plantas | C117: 2029 | D117: 360 | E117: 0.53 | G117: =+IF($C117<=G$52,$D117*8760*$E117,0) -> 0 | H117: 0 | I117: 0 | J117: 0 | K117: 0 | L117: 0 | M117: 0 | N117: 0 | O117: 0 | P117: 0 | Q117: 0 | R117: 0 | S117: 0 | T117: 0 | U117: 0 | V117: 0 | W117: 0 | X117: 0 | Y117: 0 | Z117: 1671408 | AA117: 1671408
B118: Cachuela Esperanza
B119: =+B118 -> Cachuela Esperanza | C119: 2029 | D119: 990 | E119: 0.6572575066 | G119: =+IF($C119<=G$52,$D119*8760*$E119,0) -> 0 | H119: 0 | I119: 0 | J119: 0 | K119: 0 | L119: 0 | M119: 0 | N119: 0 | O119: 0 | P119: 0 | Q119: 0 | R119: 0 | S119: 0 | T119: 0 | U119: 0 | V119: 0 | W119: 0 | X119: 0 | Y119: 0 | Z119: 5700000 | AA119: 5700000
B120: El Bala
B121: =B120 -> El Bala | C121: 2030 | D121: 1680 | E121: 0.5 | G121: =+IF($C121<=G$52,$D121*8760*$E121,0) -> 0 | H121: 0 | I121: 0 | J121: 0 | K121: 0 | L121: 0 | M121: 0 | N121: 0 | O121: 0 | P121: 0 | Q121: 0 | R121: 0 | S121: 0 | T121: 0 | U121: 0 | V121: 0 | W121: 0 | X121: 0 | Y121: 0 | Z121: 0 | AA121: 7358400
B122: Hydro A
B123: =B122 -> Hydro A | G123: =+IF($C123<=G$52,$D123*8760*$E123,0) -> 0 | H123: 0 | I123: 0 | J123: 0 | K123: 0 | L123: 0 | M123: 0 | N123: 0 | O123: 0 | P123: 0 | Q123: 0 | R123: 0 | S123: 0 | T123: 0 | U123: 0 | V123: 0 | W123: 0 | X123: 0 | Y123: 0 | Z123: 0 | AA123: 0
B124: Hydro B
B125: =B124 -> Hydro B | G125: =+IF($C125<=G$52,$D125*8760*$E125,0) -> 0 | H125: 0 | I125: 0 | J125: 0 | K125: 0 | L125: 0 | M125: 0 | N125: 0 | O125: 0 | P125: 0 | Q125: 0 | R125: 0 | S125: 0 | T125: 0 | U125: 0 | V125: 0 | W125: 0 | X125: 0 | Y125: 0 | Z125: 0 | AA125: 0
B126: Hydro C
B127: =B126 -> Hydro C | G127: 0 | H127: 0 | I127: 0 | J127: 0 | K127: 0 | L127: 0 | M127: 0 | N127: 0 | O127: 0 | P127: 0 | Q127: 0 | R127: 0 | S127: 0 | T127: 0 | U127: 0 | V127: 0 | W127: 0 | X127: 0 | Y127: 0 | Z127: 0 | AA127: 0
G130: 2010 | H130: 2011 | I130: 2012 | J130: 2013 | K130: 2014 | L130: 2015 | M130: 2016 | N130: 2017 | O130: 2018 | P130: 2019 | Q130: 2020 | R130: 2021 | S130: 2022 | T130: 2023 | U130: 2024 | V130: 2025 | W130: 2026 | X130: 2027 | Y130: 2028 | Z130: 2029 | AA130: 2030
B131: Plant Unit | C131: Commissioning date | D131: Capacity [MW] | E131: Capacity factor | G131: Generation [MWh] | H131: Generation [MWh] | I131: Generation [MWh] | J131: Generation [MWh] | K131: Generation [MWh] | L131: Generation [MWh] | M131: Generation [MWh] | N131: Generation [MWh] | O131: Generation [MWh] | P131: Generation [MWh] | Q131: Generation [MWh] | R131: Generation [MWh] | S131: Generation [MWh] | T131: Generation [MWh] | U131: Generation [MWh] | V131: Generation [MWh] | W131: Generation [MWh] | X131: Generation [MWh] | Y131: Generation [MWh] | Z131: Generation [MWh] | AA131: Generation [MWh]
B132: Wind | G132: =+SUM(G133:G147) -> 0 | H132: =+SUM(H133:H147) -> 0 | I132: 0 | J132: 0 | K132: 0 | L132: 0 | M132: 0 | N132: 0 | O132: 0 | P132: 0 | Q132: =+SUM(Q133:Q147) -> 331128 | R132: =+SUM(R133:R147) -> 469098 | S132: =+SUM(S133:S147) -> 469098 | T132: 469098 | U132: 469098 | V132: 469098 | W132: 469098 | X132: 469098 | Y132: 469098 | Z132: 469098 | AA132: =+SUM(AA133:AA147) -> 1315314
B133: El Dorado
B134: El Dorado | C134: 2020 | D134: 54 | E134: 0.35 | G134: =+IF($C134<=G$52,$D134*8760*$E134,0) -> 0 | H134: =+IF($C134<=H$52,$D134*8760*$E134,0) -> 0 | I134: 0 | J134: 0 | K134: 0 | L134: 0 | M134: 0 | N134: 0 | O134: 0 | P134: 0 | Q134: 165564 | R134: 165564 | S134: 165564 | T134: 165564 | U134: 165564 | V134: 165564 | W134: 165564 | X134: 165564 | Y134: 165564 | Z134: 165564 | AA134: 165564
B135: La Ventolera
B136: La Ventolera | C136: 2021 | D136: 24 | E136: 0.35 | G136: =+IF($C136<=G$52,$D136*8760*$E136,0) -> 0 | H136: 0 | I136: 0 | J136: 0 | K136: 0 | L136: 0 | M136: 0 | N136: 0 | O136: 0 | P136: 0 | Q136: 0 | R136: 73584 | S136: 73584 | T136: 73584 | U136: 73584 | V136: 73584 | W136: 73584 | X136: 73584 | Y136: 73584 | Z136: 73584 | AA136: 73584
B137: San Julián
B138: San Julián | C138: 2020 | D138: 39.6 | E138: 0.35 | G138: =+IF($C138<=G$52,$D138*8760*$E138,0) -> 0 | H138: 0 | I138: 0 | J138: 0 | K138: 0 | L138: 0 | M138: 0 | N138: 0 | O138: 0 | P138: 0 | Q138: 121413.6 | R138: 121413.6 | S138: 121413.6 | T138: 121413.6 | U138: 121413.6 | V138: 121413.6 | W138: 121413.6 | X138: 121413.6 | Y138: 121413.6 | Z138: 121413.6 | AA138: 121413.6
B139: Warnes
B140: Warnes I | C140: 2020 | D140: 14.4 | E140: 0.35 | G140: =+IF($C140<=G$52,$D140*8760*$E140,0) -> 0 | H140: 0 | I140: 0 | J140: 0 | K140: 0 | L140: 0 | M140: 0 | N140: 0 | O140: 0 | P140: 0 | Q140: 44150.4 | R140: 44150.4 | S140: 44150.4 | T140: 44150.4 | U140: 44150.4 | V140: 44150.4 | W140: 44150.4 | X140: 44150.4 | Y140: 44150.4 | Z140: 44150.4 | AA140: 44150.4
B141: Warnes II | C141: 2021 | D141: 21 | E141: 0.35 | G141: =+IF($C141<=G$52,$D141*8760*$E141,0) -> 0 | H141: 0 | I141: 0 | J141: 0 | K141: 0 | L141: 0 | M141: 0 | N141: 0 | O141: 0 | P141: 0 | Q141: 0 | R141: 64386 | S141: 64386 | T141: 64386 | U141: 64386 | V141: 64386 | W141: 64386 | X141: 64386 | Y141: 64386 | Z141: 64386 | AA141: 64386
B142: Wind A
B143: Wind A | C143: 2030 | D143: 276 | E143: 0.35 | G143: =+IF($C143<=G$52,$D143*8760*$E143,0) -> 0 | H143: 0 | I143: 0 | J143: 0 | K143: 0 | L143: 0 | M143: 0 | N143: 0 | O143: 0 | P143: 0 | Q143: 0 | R143: 0 | S143: 0 | T143: 0 | U143: 0 | V143: 0 | W143: 0 | X143: 0 | Y143: 0 | Z143: 0 | AA143: 846216
B144: Wind B
B145: Wind B | G145: =+IF($C145<=G$52,$D145*8760*$E145,0) -> 0 | H145: 0 | I145: 0 | J145: 0 | K145: 0 | L145: 0 | M145: 0 | N145: 0 | O145: 0 | P145: 0 | Q145: 0 | R145: 0 | S145: 0 | T145: 0 | U145: 0 | V145: 0 | W145: 0 | X145: 0 | Y145: 0 | Z145: 0 | AA145: 0
B146: Wind C
B147: Wind C | G147: =+IF($C147<=G$52,$D147*8760*$E147,0) -> 0 | H147: 0 | I147: 0 | J147: 0 | K147: 0 | L147: 0 | M147: 0 | N147: 0 | O147: 0 | P147: 0 | Q147: 0 | R147: 0 | S147: 0 | T147: 0 | U147: 0 | V147: 0 | W147: 0 | X147: 0 | Y147: 0 | Z147: 0 | AA147: 0
G149: 2010 | H149: 2011 | I149: 2012 | J149: 2013 | K149: 2014 | L149: 2015 | M149: 2016 | N149: 2017 | O149: 2018 | P149: 2019 | Q149: 2020 | R149: 2021 | S149: 2022 | T149: 2023 | U149: 2024 | V149: 2025 | W149: 2026 | X149: 2027 | Y149: 2028 | Z149: 2029 | AA149: 2030
B150: Plant Unit | C150: Commissioning date | D150: Capacity [MW] | E150: Capacity factor | G150: Generation [MWh] | H150: Generation [MWh] | I150: Generation [MWh] | J150: Generation [MWh] | K150: Generation [MWh] | L150: Generation [MWh] | M150: Generation [MWh] | N150: Generation [MWh] | O150: Generation [MWh] | P150: Generation [MWh] | Q150: Generation [MWh] | R150: Generation [MWh] | S150: Generation [MWh] | T150: Generation [MWh] | U150: Generation [MWh] | V150: Generation [MWh] | W150: Generation [MWh] | X150: Generation [MWh] | Y150: Generation [MWh] | Z150: Generation [MWh] | AA150: Generation [MWh]
B151: Solar PV | G151: =+SUM(G152:G165) -> 0 | H151: =+SUM(H152:H156) -> 0 | I151: 0 | J151: 0 | K151: 0 | L151: 0 | M151: 0 | N151: 0 | O151: =+SUM(O152:O165) -> 136656 | P151: =+SUM(P152:P165) -> 346896 | Q151: 357408 | R151: 357408 | S151: 357408 | T151: 357408 | U151: 357408 | V151: 357408 | W151: =+SUM(W152:W165) -> 357408 | X151: 357408 | Y151: 357408 | Z151: 357408 | AA151: =+SUM(AA152:AA165) -> 777888
B152: Oruro
B153: Oruro I | C153: 2019 | D153: 50 | E153: 0.24 | G153: =+IF($C153<=G$52,$D153*8760*$E153,0) -> 0 | H153: =+IF($C153<=H$52,$D153*8760*$E153,0) -> 0 | I153: 0 | J153: 0 | K153: 0 | L153: 0 | M153: 0 | N153: 0 | O153: 0 | P153: 105120 | Q153: 105120 | R153: 105120 | S153: 105120 | T153: 105120 | U153: 105120 | V153: 105120 | W153: 105120 | X153: 105120 | Y153: 105120 | Z153: 105120 | AA153: =+IF($C153<=AA$52,$D153*8760*$E153,0) -> 105120
B154: Oruro
B155: Oruro I | C155: 2019 | D155: 50 | E155: 0.24 | G155: =+IF($C155<=G$52,$D155*8760*$E155,0) -> 0 | H155: =+IF($C155<=H$52,$D155*8760*$E155,0) -> 0 | I155: 0 | J155: 0 | K155: 0 | L155: 0 | M155: 0 | N155: 0 | O155: 0 | P155: 105120 | Q155: 105120 | R155: 105120 | S155: 105120 | T155: 105120 | U155: 105120 | V155: 105120 | W155: 105120 | X155: 105120 | Y155: 105120 | Z155: 105120 | AA155: =+IF($C155<=AA$52,$D155*8760*$E155,0) -> 105120
B156: Uyuni
B157: Uyuni | C157: 2018 | D157: 60 | E157: 0.24 | G157: =+IF($C157<=G$52,$D157*8760*$E157,0) -> 0 | H157: =+IF($C157<=H$52,$D157*8760*$E157,0) -> 0 | I157: 0 | J157: 0 | K157: 0 | L157: 0 | M157: 0 | N157: 0 | O157: 126144 | P157: 126144 | Q157: 126144 | R157: 126144 | S157: 126144 | T157: 126144 | U157: 126144 | V157: 126144 | W157: 126144 | X157: 126144 | Y157: 126144 | Z157: 126144 | AA157: =+IF($C157<=AA$52,$D157*8760*$E157,0) -> 126144
B158: Yunchará
B159: Yunchará | C159: 2018 | D159: 5 | E159: 0.24 | G159: =+IF($C159<=G$52,$D159*8760*$E159,0) -> 0 | H159: =+IF($C159<=H$52,$D159*8760*$E159,0) -> 0 | I159: 0 | J159: 0 | K159: 0 | L159: 0 | M159: 0 | N159: 0 | O159: 10512 | P159: 10512 | Q159: 10512 | R159: 10512 | S159: 10512 | T159: 10512 | U159: 10512 | V159: 10512 | W159: 10512 | X159: 10512 | Y159: 10512 | Z159: 10512 | AA159: =+IF($C159<=AA$52,$D159*8760*$E159,0) -> 10512
B160: Riberalta - Guayamerin
B161: =B160 -> Riberalta - Guayamerin | C161: 2020 | D161: 5 | E161: 0.24 | G161: =+IF($C161<=G$52,$D161*8760*$E161,0) -> 0 | H161: =+IF($C161<=H$52,$D161*8760*$E161,0) -> 0 | I161: 0 | J161: 0 | K161: 0 | L161: 0 | M161: 0 | N161: 0 | O161: 0 | P161: 0 | Q161: 10512 | R161: 10512 | S161: 10512 | T161: 10512 | U161: 10512 | V161: 10512 | W161: 10512 | X161: 10512 | Y161: 10512 | Z161: 10512 | AA161: =+IF($C161<=AA$52,$D161*8760*$E161,0) -> 10512
B162: Solar A
B163: =+B162 -> Solar A | C163: 2030 | D163: 200 | E163: 0.24 | G163: =+IF($C163<=G$52,$D163*8760*$E163,0) -> 0 | H163: =+IF($C163<=H$52,$D163*8760*$E163,0) -> 0 | I163: 0 | J163: 0 | K163: 0 | L163: 0 | M163: 0 | N163: 0 | O163: 0 | P163: 0 | Q163: 0 | R163: 0 | S163: 0 | T163: 0 | U163: 0 | V163: 0 | W163: 0 | X163: 0 | Y163: 0 | Z163: 0 | AA163: =+IF($C163<=AA$52,$D163*8760*$E163,0) -> 420480
B164: Solar B
B165: =B164 -> Solar B | G165: =+IF($C165<=G$52,$D165*8760*$E165,0) -> 0 | H165: 0 | I165: 0 | J165: 0 | K165: 0 | L165: 0 | M165: 0 | N165: 0 | O165: 0 | P165: 0 | Q165: 0 | R165: 0 | S165: 0 | T165: 0 | U165: 0 | V165: 0 | W165: 0 | X165: 0 | Y165: 0 | Z165: 0 | AA165: =+IF($C165<=AA$52,$D165*8760*$E165,0) -> 0
G167: 2010 | H167: 2011 | I167: 2012 | J167: 2013 | K167: 2014 | L167: 2015 | M167: 2016 | N167: 2017 | O167: 2018 | P167: 2019 | Q167: 2020 | R167: 2021 | S167: 2022 | T167: 2023 | U167: 2024 | V167: 2025 | W167: 2026 | X167: 2027 | Y167: 2028 | Z167: 2029 | AA167: 2030
B168: Plant Unit | C168: Commissioning date | D168: Capacity [MW] | E168: Capacity factor | G168: Generation [MWh] | H168: Generation [MWh] | I168: Generation [MWh] | J168: Generation [MWh] | K168: Generation [MWh] | L168: Generation [MWh] | M168: Generation [MWh] | N168: Generation [MWh] | O168: Generation [MWh] | P168: Generation [MWh] | Q168: Generation [MWh] | R168: Generation [MWh] | S168: Generation [MWh] | T168: Generation [MWh] | U168: Generation [MWh] | V168: Generation [MWh] | W168: Generation [MWh] | X168: Generation [MWh] | Y168: Generation [MWh] | Z168: Generation [MWh] | AA168: Generation [MWh]
B169: Geothermal | G169: =+SUM(G170:G173) -> 0 | H169: =+SUM(H170:H173) -> 0 | I169: 0 | J169: 0 | K169: 0 | L169: 0 | M169: 0 | N169: 0 | O169: 0 | P169: 0 | Q169: 37230 | R169: 37230 | S169: 37230 | T169: 781830 | U169: 781830 | V169: 781830 | W169: 781830 | X169: 781830 | Y169: 781830 | Z169: 781830 | AA169: 781830
B170: Laguna Colorada
B171: Laguna Colorada | C171: 2020 | D171: 5 | E171: 0.85 | G171: =+IF($C171<=G$52,$D171*8760*$E171,0) -> 0 | H171: =+IF($C171<=H$52,$D171*8760*$E171,0) -> 0 | I171: 0 | J171: 0 | K171: 0 | L171: 0 | M171: 0 | N171: 0 | O171: 0 | P171: 0 | Q171: 37230 | R171: 37230 | S171: 37230 | T171: 37230 | U171: 37230 | V171: 37230 | W171: 37230 | X171: 37230 | Y171: 37230 | Z171: 37230 | AA171: 37230
B172: Laguna Colorada
B173: =+B172 -> Laguna Colorada | C173: 2023 | D173: 100 | E173: 0.85 | G173: =+IF($C173<=G$52,$D173*8760*$E173,0) -> 0 | H173: 0 | I173: 0 | J173: 0 | K173: 0 | L173: 0 | M173: 0 | N173: 0 | O173: 0 | P173: 0 | Q173: 0 | R173: 0 | S173: 0 | T173: 744600 | U173: 744600 | V173: 744600 | W173: 744600 | X173: 744600 | Y173: 744600 | Z173: 744600 | AA173: 744600
G175: 2010 | H175: 2011 | I175: 2012 | J175: 2013 | K175: 2014 | L175: 2015 | M175: 2016 | N175: 2017 | O175: 2018 | P175: 2019 | Q175: 2020 | R175: 2021 | S175: 2022 | T175: 2023 | U175: 2024 | V175: 2025 | W175: 2026 | X175: 2027 | Y175: 2028 | Z175: 2029 | AA175: 2030
B176: Plant Unit | C176: Commissioning date | D176: Capacity [MW] | E176: Capacity factor | G176: Generation [MWh] | H176: Generation [MWh] | I176: Generation [MWh] | J176: Generation [MWh] | K176: Generation [MWh] | L176: Generation [MWh] | M176: Generation [MWh] | N176: Generation [MWh] | O176: Generation [MWh] | P176: Generation [MWh] | Q176: Generation [MWh] | R176: Generation [MWh] | S176: Generation [MWh] | T176: Generation [MWh] | U176: Generation [MWh] | V176: Generation [MWh] | W176: Generation [MWh] | X176: Generation [MWh] | Y176: Generation [MWh] | Z176: Generation [MWh] | AA176: Generation [MWh]
B177: Biomass | G177: =+SUM(G178:G183) -> 0 | H177: =+SUM(H178:H183) -> 0 | I177: 0 | J177: 0 | K177: 0 | L177: 0 | M177: 0 | N177: 0 | O177: 0 | P177: 0 | Q177: =+SUM(Q178:Q183) -> 372300 | R177: 372300 | S177: 372300 | T177: 372300 | U177: 372300 | V177: 372300 | W177: 372300 | X177: 372300 | Y177: 372300 | Z177: 372300 | AA177: 372300
B178: San Buenaventura
B179: =+B178 -> San Buenaventura | C179: 2020 | D179: 10 | E179: 0.85 | G179: =+IF($C179<=G$52,$D179*8760*$E179,0) -> 0 | H179: =+IF($C179<=H$52,$D179*8760*$E179,0) -> 0 | I179: 0 | J179: 0 | K179: 0 | L179: 0 | M179: 0 | N179: 0 | O179: 0 | P179: 0 | Q179: 74460 | R179: 74460 | S179: 74460 | T179: 74460 | U179: 74460 | V179: 74460 | W179: 74460 | X179: 74460 | Y179: 74460 | Z179: 74460 | AA179: 74460
B180: Cobija
B181: =+B180 -> Cobija | C181: 2020 | D181: 20 | E181: 0.85 | G181: =+IF($C181<=G$52,$D181*8760*$E181,0) -> 0 | H181: 0 | I181: 0 | J181: 0 | K181: 0 | L181: 0 | M181: 0 | N181: 0 | O181: 0 | P181: 0 | Q181: 148920 | R181: 148920 | S181: 148920 | T181: 148920 | U181: 148920 | V181: 148920 | W181: 148920 | X181: 148920 | Y181: 148920 | Z181: 148920 | AA181: 148920
B182: Riberalta
B183: =+B182 -> Riberalta | C183: 2020 | D183: 20 | E183: 0.85 | G183: =+IF($C183<=G$52,$D183*8760*$E183,0) -> 0 | H183: 0 | I183: 0 | J183: 0 | K183: 0 | L183: 0 | M183: 0 | N183: 0 | O183: 0 | P183: 0 | Q183: 148920 | R183: 148920 | S183: 148920 | T183: 148920 | U183: 148920 | V183: 148920 | W183: 148920 | X183: 148920 | Y183: 148920 | Z183: 148920 | AA183: 148920
B186: Existing plants
G188: 2010 | H188: 2011 | I188: 2012 | J188: 2013 | K188: 2014 | L188: 2015 | M188: 2016 | N188: 2017 | O188: 2018 | P188: 2019 | Q188: 2020 | R188: 2021 | S188: 2022 | T188: 2023 | U188: 2024 | V188: 2025 | W188: 2026 | X188: 2027 | Y188: 2028 | Z188: 2029 | AA188: 2030
B189: Plant Unit | C189: Commissioning date | D189: Capacity [MW] | E189: Capacity factor | F189: Emission factor (2017) [tCO2/MWh] | G189: Generation [MWh] | H189: Generation [MWh] | I189: Generation [MWh] | J189: Generation [MWh] | K189: Generation [MWh] | L189: Generation [MWh] | M189: Generation [MWh] | N189: Generation [MWh] | O189: Generation [MWh] | P189: Generation [MWh] | Q189: Generation [MWh] | R189: Generation [MWh] | S189: Generation [MWh] | T189: Generation [MWh] | U189: Generation [MWh] | V189: Generation [MWh] | W189: Generation [MWh] | X189: Generation [MWh] | Y189: Generation [MWh] | Z189: Generation [MWh] | AA189: Generation [MWh]
B190: Natural gas | G190: =SUM(G191:G258) -> 3875855.715 | H190: =SUM(H191:H258) -> 4204795.55 | I190: 4475347.261 | J190: 4692441.889 | K190: 5426028.464 | L190: 5718182.038 | M190: 6857813.304 | N190: =SUM(N191:N258) -> 6556082.49 | O190: =SUM(O191:O258) -> 6373210.998 | P190: =SUM(P191:P258) -> 6538663.197 | Q190: 4144352.604 | R190: 4124031.491 | S190: =SUM(S191:S258) -> 4124031.491 | T190: =SUM(T191:T258) -> 4124031.491 | U190: 4124031.491 | V190: 4124031.491 | W190: 4124031.491 | X190: 4124031.491 | Y190: 4124031.491 | Z190: 4124031.491 | AA190: =SUM(AA191:AA258) -> 4124031.491
B191: El Alto
B192: ALT1 | C192: 2012 | D192: 17.5 | F192: =+OM_EF_2017!G24 -> 0.5643047003 | G192: 0 | H192: 0 | I192: 57810.7089 | J192: 107684.098 | K192: 108265.7625 | L192: 62901.0717 | M192: 100635.927 | N192: 49236.5229 | O192: =+AVERAGE($L$192:$N$192) -> 70924.5072 | P192: =+AVERAGE($L$192:$N$192) -> 70924.5072 | Q192: 70924.5072 | R192: 70924.5072 | S192: 70924.5072 | T192: 70924.5072 | U192: 70924.5072 | V192: 70924.5072 | W192: 70924.5072 | X192: 70924.5072 | Y192: 70924.5072 | Z192: =+AVERAGE($L$192:$N$192) -> 70924.5072 | AA192: =+AVERAGE($L$192:$N$192) -> 70924.5072
B193: ALT2 | C193: 2013 | D193: 32.4 | F193: =+OM_EF_2017!G25 -> 0.4944620795 | G193: 0 | H193: 0 | I193: 0 | J193: 103575.9891 | K193: 74350.10655 | L193: 230006.7025 | M193: 213864.514 | N193: 148687.6958 | O193: =+AVERAGE($L$193:$N$193) -> 197519.6374 | P193: =+AVERAGE($L$193:$N$193) -> 197519.6374 | Q193: 197519.6374 | R193: 197519.6374 | S193: 197519.6374 | T193: 197519.6374 | U193: 197519.6374 | V193: 197519.6374 | W193: 197519.6374 | X193: 197519.6374 | Y193: 197519.6374 | Z193: =+AVERAGE($L$193:$N$193) -> 197519.6374 | AA193: =+AVERAGE($L$193:$N$193) -> 197519.6374
B194: Aranjuez
B195: ARJ1 | C195: 1974 | D195: 3 | F195: =+OM_EF_2017!G27 -> 0.6037835376 | G195: 0 | H195: 1295.25873 | I195: 6370.205515 | J195: 1574.993684 | K195: 5457.598282 | L195: 903.1293569 | M195: 2065.398746 | N195: 511.0025 | O195: =+AVERAGE($L$195:$N$195) -> 1159.843534 | P195: 1159.843534 | Q195: 1159.843534 | R195: 1159.843534 | S195: 1159.843534 | T195: 1159.843534 | U195: 1159.843534 | V195: 1159.843534 | W195: 1159.843534 | X195: 1159.843534 | Y195: =+AVERAGE($L$195:$N$195) -> 1159.843534 | Z195: 1159.843534 | AA195: 1159.843534
B196: ARJ2 | C196: 1974 | D196: 3 | F196: =+OM_EF_2017!G28 -> 0.6037835376 | G196: 7078.176123 | H196: 6630.80579 | I196: 0 | J196: 0 | K196: 1826.328269 | L196: 911.2479539 | M196: 2494.435346 | N196: 148.1945 | O196: =+AVERAGE($L$196:$N$196) -> 1184.625933 | P196: 1184.625933 | Q196: 1184.625933 | R196: 1184.625933 | S196: 1184.625933 | T196: 1184.625933 | U196: 1184.625933 | V196: 1184.625933 | W196: 1184.625933 | X196: 1184.625933 | Y196: =+AVERAGE($L$196:$N$196) -> 1184.625933 | Z196: 1184.625933 | AA196: 1184.625933
B197: ARJ3 | C197: 1974 | D197: 3 | F197: =+OM_EF_2017!G29 -> 0.6037835376 | G197: 6933.803202 | H197: 3921.550401 | I197: 7512.44944 | J197: 1769.8755 | K197: 5453.138 | L197: 742.6815 | M197: 3046.812 | N197: 740.5125 | O197: =+AVERAGE($L$197:$N$197) -> 1510.002 | P197: 1510.002 | Q197: 1510.002 | R197: 1510.002 | S197: 1510.002 | T197: 1510.002 | U197: 1510.002 | V197: 1510.002 | W197: 1510.002 | X197: 1510.002 | Y197: =+AVERAGE($L$197:$N$197) -> 1510.002 | Z197: 1510.002 | AA197: 1510.002
B198: ARJ5 | C198: 1970 | G198: 0 | H198: 0 | I198: 0 | J198: 0 | K198: 0 | L198: 0 | M198: 0 | N198: 0 | O198: =+AVERAGE(L198:N198) -> 0 | P198: =+O198 -> 0 | Q198: 0 | R198: 0 | S198: 0 | T198: 0 | U198: 0 | V198: 0 | W198: 0 | X198: 0 | Y198: 0 | Z198: 0 | AA198: 0
B199: ARJ6 | C199: 1971 | G199: 2.1599455 | H199: 0 | I199: 0 | J199: 0 | K199: 0 | L199: 0 | M199: 0 | N199: 0 | O199: 0 | P199: 0 | Q199: 0 | R199: 0 | S199: 0 | T199: 0 | U199: 0 | V199: 0 | W199: 0 | X199: 0 | Y199: 0 | Z199: 0 | AA199: 0
B200: ARJ8 | C200: 1994 | D200: 18 | F200: =+OM_EF_2017!G30 -> 0.6804920431 | G200: 128803.56 | H200: 132236.64 | I200: 116890.92 | J200: 106260.78 | K200: 105427.86 | L200: 83446.76 | M200: 101154.24 | N200: 139685.16 | O200: =+AVERAGE($L$200:$N$200) -> 108095.3867 | P200: =+AVERAGE($L$200:$N$200) -> 108095.3867 | Q200: 108095.3867 | R200: 108095.3867 | S200: 108095.3867 | T200: 108095.3867 | U200: 108095.3867 | V200: 108095.3867 | W200: 108095.3867 | X200: 108095.3867 | Y200: 108095.3867 | Z200: =+AVERAGE($L$200:$N$200) -> 108095.3867 | AA200: =+AVERAGE($L$200:$N$200) -> 108095.3867
B201: ARJ9 | C201: 2007 | D201: 2 | F201: =+OM_EF_2017!G31 -> 0.535657388 | G201: 8515.644332 | H201: 9389.035841 | I201: 1184.838632 | J201: 338.88614 | K201: 10782.3011 | L201: 8423.39897 | M201: 10825.28304 | N201: 697.12325 | O201: =+AVERAGE($L$201:$N$201) -> 6648.601753 | P201: =+AVERAGE($L$201:$N$201) -> 6648.601753 | Q201: 6648.601753 | R201: 6648.601753 | S201: 6648.601753 | T201: 6648.601753 | U201: 6648.601753 | V201: 6648.601753 | W201: 6648.601753 | X201: 6648.601753 | Y201: 6648.601753 | Z201: =+AVERAGE($L$201:$N$201) -> 6648.601753 | AA201: =+AVERAGE($L$201:$N$201) -> 6648.601753
B202: ARJ10 | C202: 2007 | D202: 2 | F202: =+OM_EF_2017!G32 -> 0.535657388 | G202: 5375.3301 | H202: 6762.75858 | I202: 8797.995819 | J202: 4904.84453 | K202: 2009.37959 | L202: 0 | M202: 0 | N202: 0 | O202: 0 | P202: =+O202 -> 0 | Q202: 0 | R202: 0 | S202: 0 | T202: 0 | U202: 0 | V202: 0 | W202: 0 | X202: 0 | Y202: 0 | Z202: 0 | AA202: 0
B203: ARJ11 | C203: 2007 | D203: 2 | F203: =+OM_EF_2017!G33 -> 0.535657388 | G203: 5023.210781 | H203: 0 | I203: 8208.257779 | J203: 9655.36312 | K203: 5505.76371 | L203: 4874.09304 | M203: 10874.30593 | N203: 657.711895 | O203: =+AVERAGE($L$203:$N$203) -> 5468.703622 | P203: =+AVERAGE($L$203:$N$203) -> 5468.703622 | Q203: 5468.703622 | R203: 5468.703622 | S203: 5468.703622 | T203: 5468.703622 | U203: 5468.703622 | V203: 5468.703622 | W203: 5468.703622 | X203: 5468.703622 | Y203: 5468.703622 | Z203: =+AVERAGE($L$203:$N$203) -> 5468.703622 | AA203: =+AVERAGE($L$203:$N$203) -> 5468.703622
B204: ARJ12 | C204: 2007 | D204: 2 | F204: =+OM_EF_2017!G34 -> 0.535657388 | G204: 2147.392315 | H204: 6196.934516 | I204: 11548.43109 | J204: 11349.07458 | K204: 9975.93413 | L204: 7073.216074 | M204: 0 | N204: 0 | O204: 0 | P204: =+O204 -> 0 | Q204: 0 | R204: 0 | S204: 0 | T204: 0 | U204: 0 | V204: 0 | W204: 0 | X204: 0 | Y204: 0 | Z204: 0 | AA204: 0
B205: ARJ13 | C205: 2008 | D205: 2 | F205: =+OM_EF_2017!G35 -> 0.535657388 | G205: 8526.900641 | H205: 8851.283968 | I205: 10087.29019 | J205: 9758.3664 | K205: 4970.5612 | L205: 5371.6202 | M205: 0 | N205: 0 | O205: 0 | P205: 0 | Q205: 0 | R205: 0 | S205: 0 | T205: 0 | U205: 0 | V205: 0 | W205: 0 | X205: 0 | Y205: 0 | Z205: 0 | AA205: 0
B206: ARJ14 | C206: 2008 | D206: 2 | F206: =+OM_EF_2017!G36 -> 0.535657388 | G206: 7797.82554 | H206: 10123.33607 | I206: 9538.652815 | J206: 2570.0208 | K206: 7007.9094 | L206: 0 | M206: 0 | N206: 0 | O206: 0 | P206: 0 | Q206: 0 | R206: 0 | S206: 0 | T206: 0 | U206: 0 | V206: 0 | W206: 0 | X206: 0 | Y206: 0 | Z206: 0 | AA206: 0
B207: ARJ15 | C207: 2008 | D207: 2 | F207: =+OM_EF_2017!G37 -> 0.535657388 | G207: 0 | H207: 4892.938408 | I207: 11580.99053 | J207: 10493.6892 | K207: 9947.2014 | L207: 7564.2672 | M207: 8339.7396 | N207: 474.077 | O207: =+AVERAGE($L$207:$N$207) -> 5459.361267 | P207: =+AVERAGE($L$207:$N$207) -> 5459.361267 | Q207: 5459.361267 | R207: 5459.361267 | S207: 5459.361267 | T207: 5459.361267 | U207: 5459.361267 | V207: 5459.361267 | W207: 5459.361267 | X207: 5459.361267 | Y207: 5459.361267 | Z207: =+AVERAGE($L$207:$N$207) -> 5459.361267 | AA207: =+AVERAGE($L$207:$N$207) -> 5459.361267
B208: Bulo Bulo
B209: BUL1 | C209: 2000 | D209: 45 | F209: =+OM_EF_2017!G39 -> 0.5329347096 | G209: 320717 | H209: 327166 | I209: 106480 | J209: 287973.534 | K209: 269807.618 | L209: 253280.231 | M209: 223504.631 | N209: 237695.821 | O209: =+AVERAGE($L$209:$N$209) -> 238160.2277 | P209: =+AVERAGE($L$209:$N$209) -> 238160.2277 | Q209: 238160.2277 | R209: 238160.2277 | S209: 238160.2277 | T209: 238160.2277 | U209: 238160.2277 | V209: 238160.2277 | W209: 238160.2277 | X209: 238160.2277 | Y209: =+AVERAGE($L$209:$N$209) -> 238160.2277 | Z209: =+AVERAGE($L$209:$N$209) -> 238160.2277 | AA209: =+AVERAGE($L$209:$N$209) -> 238160.2277
B210: BUL2 | C210: 2000 | D210: 45 | F210: =+OM_EF_2017!G40 -> 0.5363084633 | G210: 331746 | H210: 326073 | I210: 289542 | J210: 202260.81 | K210: 173568.66 | L210: 33037.909 | M210: 15850.489 | N210: 77027.986 | O210: =+AVERAGE($L$210:$N$210) -> 41972.128 | P210: =+AVERAGE($L$210:$N$210) -> 41972.128 | Q210: 41972.128 | R210: 41972.128 | S210: 41972.128 | T210: 41972.128 | U210: 41972.128 | V210: 41972.128 | W210: 41972.128 | X210: 41972.128 | Y210: =+AVERAGE($L$210:$N$210) -> 41972.128 | Z210: =+AVERAGE($L$210:$N$210) -> 41972.128 | AA210: =+AVERAGE($L$210:$N$210) -> 41972.128
B211: BUL3 | C211: 2014 | D211: 49.02 | F211: =+OM_EF_2017!G41 -> 0.5216888639 | K211: 265758.5813 | L211: 313954.442 | M211: 125500.576 | N211: 239710.459 | O211: =+AVERAGE($L$211:$N$211) -> 226388.4923 | P211: =+AVERAGE($L$211:$N$211) -> 226388.4923 | Q211: 226388.4923 | R211: 226388.4923 | S211: 226388.4923 | T211: 226388.4923 | U211: 226388.4923 | V211: 226388.4923 | W211: 226388.4923 | X211: 226388.4923 | Y211: =+AVERAGE($L$211:$N$211) -> 226388.4923 | Z211: =+AVERAGE($L$211:$N$211) -> 226388.4923 | AA211: =+AVERAGE($L$211:$N$211) -> 226388.4923
B212: Carrasco | F212: =+OM_EF_2017!G42 -> 0.6067264812 | G212: 743118.8202 | H212: 609577.5585 | I212: 772580.2 | J212: 667630.61 | K212: 815783.94 | L212: 516330.15 | M212: 440398.86 | N212: 552699.29 | O212: =+AVERAGE($L$212:$N$212) -> 503142.7667 | P212: =+AVERAGE($L$212:$N$212) -> 503142.7667 | Q212: 503142.7667 | R212: 503142.7667 | S212: 503142.7667 | T212: 503142.7667 | U212: 503142.7667 | V212: 503142.7667 | W212: 503142.7667 | X212: 503142.7667 | Y212: 503142.7667 | Z212: 503142.7667 | AA212: 503142.7667
B213: CAR1 | C213: 1996 | D213: 56 | F213: =+OM_EF_2017!G43 -> 0.5929520125
B214: CAR2 | C214: 1996 | D214: 56 | F214: =+OM_EF_2017!G44 -> 0.6404805078
B215: CAR3 | D215: 24.4 | F215: =+OM_EF_2017!G45 -> 0.5608717579 | H215: 7408.708638
B216: Entre Ríos
B217: ERI01 | C217: 2010 | D217: 23 | F217: =+OM_EF_2017!G47 -> 0.5922417486 | G217: 94768 | H217: 186730 | I217: 193238 | J217: 176801 | K217: 173128 | L217: 75240 | M217: 152450 | N217: 36192 | O217: =+AVERAGE($L$217:$N$217) -> 87960.66667 | P217: =+AVERAGE($L$217:$N$217) -> 87960.66667 | Q217: 87960.66667 | R217: 87960.66667 | S217: 87960.66667 | T217: 87960.66667 | U217: 87960.66667 | V217: 87960.66667 | W217: 87960.66667 | X217: 87960.66667 | Y217: 87960.66667 | Z217: =+AVERAGE($L$217:$N$217) -> 87960.66667 | AA217: =+AVERAGE($L$217:$N$217) -> 87960.66667
B218: ERI02 | C218: 2010 | D218: 23 | F218: =+OM_EF_2017!G48 -> 0.5917090506 | G218: 123773.2823 | H218: 193364 | I218: 193432 | J218: 175773 | K218: 165138 | L218: 85293 | M218: 168623 | N218: 52744 | O218: =+AVERAGE($L$218:$N$218) -> 102220 | P218: =+AVERAGE($L$218:$N$218) -> 102220 | Q218: 102220 | R218: 102220 | S218: 102220 | T218: 102220 | U218: 102220 | V218: 102220 | W218: 102220 | X218: 102220 | Y218: 102220 | Z218: =+AVERAGE($L$218:$N$218) -> 102220 | AA218: =+AVERAGE($L$218:$N$218) -> 102220
B219: ERI03 | C219: 2010 | D219: 25 | F219: =+OM_EF_2017!G49 -> 0.5917682393 | G219: 109541.1268 | H219: 170825 | I219: 196674 | J219: 195325 | K219: 173443 | L219: 74301 | M219: 182321 | N219: 60409 | O219: =+AVERAGE($L$219:$N$219) -> 105677 | P219: =+AVERAGE($L$219:$N$219) -> 105677 | Q219: 105677 | R219: 105677 | S219: 105677 | T219: 105677 | U219: 105677 | V219: 105677 | W219: 105677 | X219: 105677 | Y219: 105677 | Z219: =+AVERAGE($L$219:$N$219) -> 105677 | AA219: =+AVERAGE($L$219:$N$219) -> 105677
... 125 more rows

Sheet Scenario_100%_RE
B3: Scenarios. Nationally determined contribution
D6: Installed capacity | G6: 2010 | H6: 2011 | I6: 2012 | J6: 2013 | K6: 2014 | L6: 2015 | M6: 2016 | N6: 2017 | O6: 2018 | P6: 2019 | Q6: 2020 | R6: 2021 | S6: 2022 | T6: 2023 | U6: 2024 | V6: 2025 | W6: 2026 | X6: 2027 | Y6: 2028 | Z6: 2029 | AA6: 2030
D7: Total capacity [MW] | G7: =G8+G10 -> 1288.95 | H7: 1288.95 | I7: 1444.77 | J7: 1480.17 | K7: 1719.12 | L7: 1948.18 | M7: 1972.18 | N7: =N8+N10 -> 2097.18 | O7: =O8+O10 -> 2217.18 | P7: 2386.18 | Q7: 3101.08 | R7: 3640.28 | S7: 3640.28 | T7: 3740.28 | U7: 3740.28 | V7: 5132.28 | W7: 5132.28 | X7: 5132.28 | Y7: 5132.28 | Z7: 9634.28 | AA7: 11790.28 | AB7: 13387 | AC7: =AB7-AA7 -> 1596.72
D8: Fossil fuel based [MW] | G8: =+H8-H25 -> 785.68 | H8: 785.68 | I8: 941.5 | J8: 973.9 | K8: 1198.28 | L8: 1419.74 | M8: =+N8-N25 -> 1419.74 | N8: =OM_EF_2017!D22 -> 1419.74 | O8: =+N8+O25 -> 1419.74 | P8: =+O8+P25 -> 1419.74 | Q8: 1419.74 | R8: 1419.74 | S8: 1419.74 | T8: 1419.74 | U8: 1419.74 | V8: 1419.74 | W8: 1419.74 | X8: 1419.74 | Y8: 1419.74 | Z8: 1419.74 | AA8: 1419.74
D9: Fraction fossil fuels [%] | N9: =+N8/N7 -> 0.6769757484 | O9: =+O8/O7 -> 0.6403359222 | P9: 0.5949844521 | Q9: 0.4578211462 | R9: 0.3900084609 | S9: 0.3900084609 | T9: 0.3795812078 | U9: 0.3795812078 | V9: 0.2766294902 | W9: 0.2766294902 | X9: 0.2766294902 | Y9: 0.2766294902 | Z9: 0.1473633733 | AA9: 0.1204161394
D10: Renewable energy [MW] | G10: =G12+G14+G16+G18+G20 -> 503.27 | H10: 503.27 | I10: 503.27 | J10: 506.27 | K10: 520.84 | L10: 528.44 | M10: 552.44 | N10: =N12+N14+N16+N18+N20 -> 677.44 | O10: =O12+O14+O16+O18+O20 -> 797.44 | P10: 966.44 | Q10: 1681.34 | R10: 2220.54 | S10: 2220.54 | T10: 2320.54 | U10: 2320.54 | V10: 3712.54 | W10: 3712.54 | X10: 3712.54 | Y10: 3712.54 | Z10: 8214.54 | AA10: 10370.54
D11: Fraction renewable energy [%] | N11: =+N10/N7 -> 0.3230242516 | O11: =+O10/O7 -> 0.3596640778 | P11: 0.4050155479 | Q11: 0.5421788538 | R11: 0.6099915391 | S11: 0.6099915391 | T11: 0.6204187922 | U11: 0.6204187922 | V11: 0.7233705098 | W11: 0.7233705098 | X11: 0.7233705098 | Y11: 0.7233705098 | Z11: 0.8526366267 | AA11: 0.8795838606 | AB11: 0.79
D12: Hydro [MW] | G12: =+H12-H27 -> 482.27 | H12: 482.27 | I12: 482.27 | J12: 482.27 | K12: 482.27 | L12: 489.87 | M12: =+N12-N27 -> 489.87 | N12: =OM_EF_2017!D90 -> 609.87 | O12: =+N12+O27 -> 664.87 | P12: =+O12+P27 -> 733.87 | Q12: 1280.77 | R12: 1774.97 | S12: 1774.97 | T12: 1774.97 | U12: 1774.97 | V12: 3166.97 | W12: 3166.97 | X12: 3166.97 | Y12: 3166.97 | Z12: 7668.97 | AA12: 9348.97
D13: Fraction hydro [%] | N13: =+N12/N10 -> 0.9002568493 | O13: =+O12/O10 -> 0.8337555177 | P13: 0.7593539175 | Q13: 0.7617555045 | R13: 0.7993416016 | S13: 0.7993416016 | T13: 0.7648952399 | U13: 0.7648952399 | V13: 0.8530467012 | W13: 0.8530467012 | X13: 0.8530467012 | Y13: 0.8530467012 | Z13: 0.9335848386 | AA13: 0.9014930756
D14: Wind [MW] | G14: =+H14-H28 -> 0 | H14: 0 | I14: 0 | J14: 3 | K14: 3 | L14: 3 | M14: =+N14-N28 -> 27 | N14: =OM_EF_2017!D170 -> 27 | O14: =+N14+O28 -> 27 | P14: =+O14+P28 -> 27 | Q14: 135 | R14: 180 | S14: 180 | T14: 180 | U14: 180 | V14: 180 | W14: 180 | X14: 180 | Y14: 180 | Z14: 180 | AA14: 456
D15: Fraction wind [%] | N15: =+N14/N10 -> 0.0398559282 | O15: =+O14/O10 -> 0.03385834671 | P15: 0.02793758536 | Q15: 0.08029309955 | R15: 0.08106136345 | S15: 0.08106136345 | T15: 0.07756815224 | U15: 0.07756815224 | V15: 0.04848432609 | W15: 0.04848432609 | X15: 0.04848432609 | Y15: 0.04848432609 | Z15: 0.02191236515 | AA15: 0.04397070934
D16: Solar [MW] | G16: =+H16-H29 -> 0 | H16: 0 | I16: 0 | J16: 0 | K16: 0 | L16: 0 | M16: =+N16-N29 -> 0 | N16: 0 | O16: =+N16+O29 -> 65 | P16: =+O16+P29 -> 165 | Q16: 170 | R16: 170 | S16: 170 | T16: 170 | U16: 170 | V16: 170 | W16: 170 | X16: 170 | Y16: 170 | Z16: 170 | AA16: 370
D17: Fraction solar [%] | N17: =+N16/N10 -> 0 | O17: =+O16/O10 -> 0.08151083467 | P17: 0.1707296883 | Q17: 0.1011098291 | R17: 0.07655795437 | S17: 0.07655795437 | T17: 0.07325881045 | U17: 0.07325881045 | V17: 0.04579075242 | W17: 0.04579075242 | X17: 0.04579075242 | Y17: 0.04579075242 | Z17: 0.02069501153 | AA17: 0.03567798784
D18: Geothermal [MW] | G18: =+H18-G30 -> 0 | H18: =+I18-I30 -> 0 | I18: 0 | J18: 0 | K18: 0 | L18: 0 | M18: =+N18-N30 -> 0 | N18: 0 | O18: =+N18+O30 -> 0 | P18: =+O18+P30 -> 0 | Q18: 5 | R18: 5 | S18: 5 | T18: 105 | U18: 105 | V18: 105 | W18: 105 | X18: 105 | Y18: 105 | Z18: 105 | AA18: 105
D19: Fraction geothermal [%] | N19: =+N18/N10 -> 0 | O19: =+O18/O10 -> 0 | P19: 0 | Q19: 0.002973818502 | R19: 0.00225170454 | S19: 0.00225170454 | T19: 0.04524808881 | U19: 0.04524808881 | V19: 0.02828252356 | W19: 0.02828252356 | X19: 0.02828252356 | Y19: 0.02828252356 | Z19: 0.012782213 | AA19: 0.01012483439
D20: Biomass [MW] | G20: =+H20-H31 -> 21 | H20: 21 | I20: 21 | J20: 21 | K20: 35.57 | L20: 35.57 | M20: =+N20-N31 -> 35.57 | N20: =OM_EF_2017!D162 -> 40.57 | O20: =+N20+O31 -> 40.57 | P20: =+O20+P31 -> 40.57 | Q20: 90.57 | R20: 90.57 | S20: 90.57 | T20: 90.57 | U20: 90.57 | V20: 90.57 | W20: 90.57 | X20: 90.57 | Y20: 90.57 | Z20: 90.57 | AA20: 90.57
D21: Fraction biomass [%] | N21: =+N20/N10 -> 0.05988722248 | O21: =+O20/O10 -> 0.05087530096 | P21: 0.04197880882 | Q21: 0.05386774834 | R21: 0.04078737604 | S21: 0.04078737604 | T21: 0.0390297086 | U21: 0.0390297086 | V21: 0.02439569675 | W21: 0.02439569675 | X21: 0.02439569675 | Y21: 0.02439569675 | Z21: 0.01102557173 | AA21: 0.008733392861
D23: Capacity additions | G23: 2010 | H23: 2011 | I23: 2012 | J23: 2013 | K23: 2014 | L23: 2015 | M23: 2016 | N23: 2017 | O23: 2018 | P23: 2019 | Q23: 2020 | R23: 2021 | S23: 2022 | T23: 2023 | U23: 2024 | V23: 2025 | W23: 2026 | X23: 2027 | Y23: 2028 | Z23: 2029 | AA23: 2030
D24: Total capacity additions [MW] | G24: =+G25+G26 -> 96 | H24: 0 | I24: 155.82 | J24: 35.4 | K24: 238.95 | L24: 229.06 | M24: 24 | N24: =+N25+N26 -> 125 | O24: =+O25+O26 -> 120 | P24: 169 | Q24: 714.9 | R24: 539.2 | S24: 0 | T24: 100 | U24: 0 | V24: 1392 | W24: 0 | X24: 0 | Y24: 0 | Z24: 4502 | AA24: 2156
D25: Fossil fuel based [MW] | G25: =+SUMIF($C$191:$C$258,G23,$D$191:$D$258) -> 96 | H25: 0 | I25: 155.82 | J25: 32.4 | K25: 224.38 | L25: 221.46 | M25: 0 | N25: 0 | O25: =+SUMIF($C$55:$C$78,O23,$D$55:$D$78) -> 0 | P25: 0 | Q25: 0 | R25: 0 | S25: 0 | T25: 0 | U25: 0 | V25: 0 | W25: 0 | X25: 0 | Y25: 0 | Z25: 0 | AA25: 0
D26: Renewables [MW] | G26: =+G27+G28+G29+G30+G31 -> 0 | H26: 0 | I26: 0 | J26: 3 | K26: 14.57 | L26: 7.6 | M26: 24 | N26: =+N27+N28+N29+N30+N31 -> 125 | O26: =+O27+O28+O29+O30+O31 -> 120 | P26: 169 | Q26: 714.9 | R26: 539.2 | S26: 0 | T26: 100 | U26: 0 | V26: 1392 | W26: 0 | X26: 0 | Y26: 0 | Z26: 4502 | AA26: 2156
D27: Hydro [MW] | G27: =SUMIF($C$263:$C$331,G23,$D$263:$D$331) -> 0 | H27: 0 | I27: 0 | J27: 0 | K27: 0 | L27: 7.6 | M27: 0 | N27: 120 | O27: =+SUMIF($C$83:$C$127,O23,$D$83:$D$127) -> 55 | P27: 69 | Q27: 546.9 | R27: 494.2 | S27: 0 | T27: 0 | U27: 0 | V27: 1392 | W27: 0 | X27: 0 | Y27: 0 | Z27: 4502 | AA27: 1680
D28: Wind [MW] | G28: =+SUMIF($C$345:$C$347,G23,$D$345:$D$347) -> 0 | H28: 0 | I28: 0 | J28: 3 | K28: 0 | L28: 0 | M28: 24 | N28: 0 | O28: =+SUMIF($C$133:$C$147,O23,$D$133:$D$147) -> 0 | P28: 0 | Q28: 108 | R28: 45 | S28: 0 | T28: 0 | U28: 0 | V28: 0 | W28: 0 | X28: 0 | Y28: 0 | Z28: 0 | AA28: 276
D29: Solar [MW] | G29: 0 | H29: 0 | I29: 0 | J29: 0 | K29: 0 | L29: 0 | M29: 0 | N29: 0 | O29: =+SUMIF($C$152:$C$165,O23,$D$152:$D$165) -> 65 | P29: 100 | Q29: 5 | R29: 0 | S29: 0 | T29: 0 | U29: 0 | V29: 0 | W29: 0 | X29: 0 | Y29: 0 | Z29: 0 | AA29: 200
D30: Geothermal [MW] | G30: 0 | H30: 0 | I30: 0 | J30: 0 | K30: 0 | L30: 0 | M30: 0 | N30: =+SUMIF($C$170:$C$173,N23,$D$170:$D$184) -> 0 | O30: 0 | P30: 0 | Q30: 5 | R30: 0 | S30: 0 | T30: 100 | U30: 0 | V30: 0 | W30: 0 | X30: 0 | Y30: 0 | Z30: 0 | AA30: 0
D31: Biomass [MW] | G31: =+SUMIF($C$336:$C$340,G23,$D$336:$D$340) -> 0 | H31: 0 | I31: 0 | J31: 0 | K31: 14.57 | L31: 0 | M31: 0 | N31: 5 | O31: =+SUMIF($C$178:$C$183,O23,$D$178:$D$183) -> 0 | P31: 0 | Q31: 50 | R31: 0 | S31: 0 | T31: 0 | U31: 0 | V31: 0 | W31: 0 | X31: 0 | Y31: 0 | Z31: 0 | AA31: 0
D33: Electricity demand | G33: 2010 | H33: 2011 | I33: 2012 | J33: 2013 | K33: 2014 | L33: 2015 | M33: 2016 | N33: 2017 | O33: 2018 | P33: 2019 | Q33: 2020 | R33: 2021 | S33: 2022 | T33: 2023 | U33: 2024 | V33: 2025 | W33: 2026 | X33: 2027 | Y33: 2028 | Z33: 2029 | AA33: 2030
D34: Electricity demand [MWh] | G34: 5814019.035 | H34: 6301852.262 | I34: 6604327.164 | J34: 7012819.377 | K34: 7477658.063 | L34: 7945921.687 | M34: 8377847.314 | N34: 8613743.881 | O34: 9096484.101 | P34: 9861641.278 | Q34: 10650466.03 | R34: 11767871.01 | S34: 12509304.04 | T34: 13292004.04 | U34: 14119084.04 | V34: 14992914.04 | W34: 15915934.04 | X34: 16890764.04 | Y34: 17920144.04 | Z34: 19006944.04 | AA34: 20154224.04
D35: Transmission and distribution losses [%] | O35: 0.04 | P35: 0.04 | Q35: 0.04 | R35: 0.04 | S35: 0.04 | T35: 0.04 | U35: 0.04 | V35: 0.04 | W35: 0.04 | X35: 0.04 | Y35: 0.04 | Z35: 0.04 | AA35: 0.04
D36: Total electricity demand [MWh] | G36: =+G38 -> 6085440.865 | H36: =+H38 -> 6592941.533 | I36: 6861925.926 | J36: 7286833.036 | K36: 7743488.703 | L36: 8248316.823 | M36: 8669522.259 | N36: 8890377.237 | O36: =+O34/(1-O35) -> 9475504.271 | P36: =+P34/(1-P35) -> 10272543 | Q36: 11094235.45 | R36: 12258198.97 | S36: 13030525.04 | T36: 13845837.54 | U36: 14707379.21 | V36: 15617618.79 | W36: 16579097.96 | X36: 17594545.87 | Y36: 18666816.71 | Z36: 19798900.04 | AA36: 20993983.37
D38: Total generation [MWh] | G38: =+G190+G262+G335+G344 -> 6085440.865 | H38: 6592941.533 | I38: 6861925.926 | J38: 7286833.036 | K38: 7743488.703 | L38: 8248316.823 | M38: 8669522.259 | N38: 8890377.237 | O38: =+O190+O262+O335+O344+O54+O82+O132+O151+O169+O177 -> 9549855.457 | P38: =+P190+P262+P335+P344+P54+P82+P132+P151+P169+P177 -> 10217479.79 | Q38: 12491293.39 | R38: 14744424.48 | S38: 14776852.15 | T38: 15509538.3 | U38: 15506671.65 | V38: 19215526.63 | W38: 19212560.59 | X38: 19212577.15 | Y38: 19213554.79 | Z38: 37975048.19 | AA38: 46600144.19
D39: Renewable energy generation [MWh] | G39: =+G262+G335+G344 -> 2209585.15 | H39: 2388145.984 | I39: 2386578.665 | J39: 2594391.147 | K39: 2317460.239 | L39: 2530134.785 | M39: 1811708.955 | N39: 2334294.747 | O39: =+O82+O132+O151+O169+O262+O335+O344 -> 3176644.459 | P39: 3678816.595 | Q39: 6453108.595 | R39: 8755674.595 | S39: 8755674.595 | T39: 9500274.595 | U39: 9500274.595 | V39: 15597234.59 | W39: 15597234.59 | X39: 15597234.59 | Y39: 15597234.59 | Z39: 37602748.19 | AA39: 46227844.19
D40: Fraction renewable energy [%] | G40: =+G39/G38 -> 0.3630936852 | H40: =+H39/H38 -> 0.3622276903 | I40: 0.3478001207 | J40: 0.3560382315 | K40: 0.2992785716 | L40: 0.3067455869 | M40: 0.2089744857 | N40: 0.2625641956 | O40: 0.3326379622 | P40: 0.3600512719 | Q40: 0.5166085202 | R40: 0.5938295255 | S40: 0.5925263721 | T40: 0.6125439977 | U40: 0.6126572363 | V40: 0.8116995645 | W40: 0.8118248748 | X40: 0.811824175 | Y40: 0.8117828672 | Z40: 0.9901961941 | AA40: 0.9920107543
D41: Fossil fuel based generation [MWh] | G41: =+G54+G190 -> 3875855.715 | H41: 4204795.55 | I41: 4475347.261 | J41: 4692441.889 | K41: 5426028.464 | L41: 5718182.038 | M41: 6857813.304 | N41: 6556082.49 | O41: =+O54+O190 -> 6373210.998 | P41: 6538663.197 | Q41: 5665884.799 | R41: 5616449.888 | S41: 5648877.554 | T41: 5636963.709 | U41: 5634097.05 | V41: 3245992.032 | W41: 3243025.993 | X41: 3243042.557 | Y41: 3244020.194 | Z41: 0 | AA41: 0
D42: Fraction fossil fuels [%] | G42: =+G41/G38 -> 0.6369063148 | H42: =+H41/H38 -> 0.6377723097 | I42: 0.6521998793 | J42: 0.6439617685 | K42: 0.7007214284 | L42: 0.6932544131 | M42: 0.7910255143 | N42: 0.7374358044 | O42: 0.6673620378 | P42: 0.6399487281 | Q42: 0.45358672 | R42: 0.3809202519 | S42: 0.3822788167 | T42: 0.3634514193 | U42: 0.363333743 | V42: 0.1689254786 | W42: 0.1687971772 | X42: 0.1687978937 | Y42: 0.1688401875 | Z42: 0 | AA42: 0
D43: Electricity surplus [MWh] | G43: =+G38-G36 -> 0 | H43: 0 | I43: 0 | J43: 0 | K43: 0 | L43: 0 | M43: 0 | N43: 0 | O43: 74351.18566 | P43: -55063.20578 | Q43: 1397057.942 | R43: 2486225.516 | S43: 1746327.109 | T43: 1663700.765 | U43: 799292.4391 | V43: 3597907.837 | W43: 2633462.632 | X43: 1618031.279 | Y43: 546738.0827 | Z43: 18176148.16 | AA43: 25606160.82
D45: Grid emission factor | G45: 2010 | H45: 2011 | I45: 2012 | J45: 2013 | K45: 2014 | L45: 2015 | M45: 2016 | N45: 2017 | O45: 2018 | P45: 2019 | Q45: 2020 | R45: 2021 | S45: 2022 | T45: 2023 | U45: 2024 | V45: 2025 | W45: 2026 | X45: 2027 | Y45: 2028 | Z45: 2029 | AA45: 2030
D46: Greenhouse gas emissions [tCO2e] | G46: =+OM_EF_2010!H23 -> 2367600.802 | H46: =+OM_EF_2011!H22 -> 2563443.554 | I46: =+OM_EF_2012!H22 -> 2817609.709 | J46: =+OM_EF_2013!H22 -> 2778715.357 | K46: =+OM_EF_2014!H22 -> 3227014.123 | L46: =+OM_EF_2015!H22 -> 3281998.242 | M46: =+OM_EF_2016!H23 -> 4027512.386 | N46: =+OM_EF_2017!H22 -> 3757647.583 | O46: =+SUMPRODUCT($F$191:$F$258,O191:O258)+SUMPRODUCT($F$55:$F$78,O55:O78) -> 3649126.284 | P46: =+SUMPRODUCT($F$191:$F$258,P191:P258)+SUMPRODUCT($F$55:$F$78,P55:P78) -> 3738352.473 | Q46: 3130293.774 | R46: 3100192.15 | S46: 3117677.62 | T46: 3111249.516 | U46: 3109706.429 | V46: 1717150.907 | W46: 1715550.986 | X46: =+SUMPRODUCT($F$191:$F$258,X191:X258)+SUMPRODUCT($F$55:$F$78,X55:X78) -> 1715560.458 | Y46: 1716087.451 | Z46: 0 | AA46: 0
D47: Average operting margin emission factor [tCO2e/MWh] | G47: =+'Grid-EF'!H9 -> 0.3890598651 | H47: =+'Grid-EF'!I9 -> 0.3888163639 | I47: =+'Grid-EF'!J9 -> 0.4106149992 | J47: =+'Grid-EF'!K9 -> 0.3813337486 | K47: =+'Grid-EF'!L9 -> 0.4167390497 | L47: =+'Grid-EF'!M9 -> 0.3978991486 | M47: =+'Grid-EF'!N9 -> 0.4645598991 | N47: =+'Grid-EF'!O9 -> 0.4226139263 | O47: =+O46/O38 -> 0.3821132477 | P47: =+P46/P38 -> 0.3658781372 | Q47: 0.2505980506 | R47: 0.2102619979 | S47: 0.2109838813 | T47: 0.2006023297 | U47: 0.2005399031 | V47: 0.08936267742 | W47: 0.08929319848 | X47: 0.08929361452 | Y47: 0.08931649918 | Z47: 0 | AA47: 0
D48: Simple operating margin emission factor [tCO2e/MWh] | G48: =+G46/G41 -> 0.6108588596 | H48: =+H46/H41 -> 0.6096476093 | I48: 0.6295845986 | J48: 0.5921683044 | K48: 0.5947285652 | L48: 0.573958335 | M48: 0.5872881351 | N48: 0.5731544088 | O48: 0.5725726459 | P48: 0.5717303921 | Q48: 0.5524810131 | R48: 0.5519842982 | S48: 0.5519109929 | T48: 0.5519371202 | U48: 0.551944065 | V48: 0.5290065073 | W48: 0.5289969891 | X48: 0.5289972081 | Y48: 0.5290002367 | AA48: 0
B50: Capacity additions 2018 - 2030
G52: 2010 | H52: 2011 | I52: 2012 | J52: 2013 | K52: 2014 | L52: 2015 | M52: 2016 | N52: 2017 | O52: 2018 | P52: 2019 | Q52: 2020 | R52: 2021 | S52: 2022 | T52: 2023 | U52: 2024 | V52: 2025 | W52: 2026 | X52: 2027 | Y52: 2028 | Z52: 2029 | AA52: 2030
B53: Plant Unit | C53: Commissioning date | D53: Capacity [MW] | E53: Capacity factor | F53: Emission factor [tCO2/MWh] | G53: Generation [MWh] | H53: Generation [MWh] | I53: Generation [MWh] | J53: Generation [MWh] | K53: Generation [MWh] | L53: Generation [MWh] | M53: Generation [MWh] | N53: Generation [MWh] | O53: Generation [MWh] | P53: Generation [MWh] | Q53: Generation [MWh] | R53: Generation [MWh] | S53: Generation [MWh] | T53: Generation [MWh] | U53: Generation [MWh] | V53: Generation [MWh] | W53: Generation [MWh] | X53: Generation [MWh] | Y53: Generation [MWh] | Z53: Generation [MWh] | AA53: Generation [MWh]
B54: Natural gas | G54: =SUM(G55:G78) -> 0 | H54: 0 | I54: 0 | J54: 0 | K54: 0 | L54: 0 | M54: 0 | N54: 0 | O54: 0 | P54: =SUM(P55:P78) -> 0 | Q54: 0 | R54: 0 | S54: 0 | T54: 0 | U54: 0 | V54: 0 | W54: 0 | X54: 0 | Y54: 0 | Z54: 0 | AA54: 0
B55: Entre Ríos
B56: CCERI3 | F56: =+'GHG-ER'!J29 -> 0.3817076791 | G56: 0 | H56: 0 | I56: 0 | J56: 0 | K56: 0 | L56: 0 | M56: 0 | N56: 0 | O56: 0 | P56: =+$D56*8760*$E56 -> 0 | Q56: =+$D56*8760*$E56 -> 0 | R56: 0 | S56: 0 | T56: 0 | U56: 0 | V56: 0 | W56: 0 | X56: 0 | Y56: 0 | Z56: 0 | AA56: 0
B57: CCERI4 | G57: 0 | H57: 0 | I57: 0 | J57: 0 | K57: 0 | L57: 0 | M57: 0 | N57: 0 | O57: 0 | P57: =+$D57*8760*$E57 -> 0 | Q57: 0 | R57: 0 | S57: 0 | T57: 0 | U57: 0 | V57: 0 | W57: 0 | X57: 0 | Y57: 0 | Z57: 0 | AA57: 0
B58: CCERI5 | G58: 0 | H58: 0 | I58: 0 | J58: 0 | K58: 0 | L58: 0 | M58: 0 | N58: 0 | O58: 0 | P58: =+$D58*8760*$E58 -> 0 | Q58: 0 | R58: 0 | S58: 0 | T58: 0 | U58: 0 | V58: 0 | W58: 0 | X58: 0 | Y58: 0 | Z58: 0 | AA58: 0
B59: Del Sur
B60: CCSUR1 | G60: 0 | H60: 0 | I60: 0 | J60: 0 | K60: 0 | L60: 0 | M60: 0 | N60: 0 | O60: 0 | P60: 0 | Q60: =+$D60*8760*$E60 -> 0 | R60: =+$D60*8760*$E60 -> 0 | S60: 0 | T60: 0 | U60: 0 | V60: 0 | W60: 0 | X60: 0 | Y60: 0 | Z60: 0 | AA60: 0
B61: CCSUR2 | G61: 0 | H61: 0 | I61: 0 | J61: 0 | K61: 0 | L61: 0 | M61: 0 | N61: 0 | O61: 0 | P61: 0 | Q61: =+$D61*8760*$E61 -> 0 | R61: 0 | S61: 0 | T61: 0 | U61: 0 | V61: 0 | W61: 0 | X61: 0 | Y61: 0 | Z61: 0 | AA61: 0
B62: CCSUR3 | G62: 0 | H62: 0 | I62: 0 | J62: 0 | K62: 0 | L62: 0 | M62: 0 | N62: 0 | O62: 0 | P62: =+$D62*8760*$E62 -> 0 | Q62: =+$D62*8760*$E62 -> 0 | R62: 0 | S62: 0 | T62: 0 | U62: 0 | V62: 0 | W62: 0 | X62: 0 | Y62: 0 | Z62: 0 | AA62: 0
B63: CCSUR4 | G63: 0 | H63: 0 | I63: 0 | J63: 0 | K63: 0 | L63: 0 | M63: 0 | N63: 0 | O63: 0 | P63: =+$D63*8760*$E63 -> 0 | Q63: 0 | R63: 0 | S63: 0 | T63: 0 | U63: 0 | V63: 0 | W63: 0 | X63: 0 | Y63: 0 | Z63: 0 | AA63: 0
B64: Warnes
B65: CCWAR1 | G65: 0 | H65: 0 | I65: 0 | J65: 0 | K65: 0 | L65: 0 | M65: 0 | N65: 0 | O65: 0 | P65: 0 | Q65: =+$D65*8760*$E65 -> 0 | R65: =+$D65*8760*$E65 -> 0 | S65: 0 | T65: 0 | U65: 0 | V65: 0 | W65: 0 | X65: 0 | Y65: 0 | Z65: 0 | AA65: 0
B66: CCWAR2 | G66: 0 | H66: 0 | I66: 0 | J66: 0 | K66: 0 | L66: 0 | M66: 0 | N66: 0 | O66: 0 | P66: 0 | Q66: 0 | R66: 0 | S66: 0 | T66: 0 | U66: 0 | V66: 0 | W66: 0 | X66: 0 | Y66: 0 | Z66: 0 | AA66: 0
B67: CCWAR3 | G67: 0 | H67: 0 | I67: 0 | J67: 0 | K67: 0 | L67: 0 | M67: 0 | N67: 0 | O67: 0 | P67: =+$D67*8760*$E67 -> 0 | Q67: 0 | R67: 0 | S67: 0 | T67: 0 | U67: 0 | V67: 0 | W67: 0 | X67: 0 | Y67: 0 | Z67: 0 | AA67: 0
B68: CCWAR4 | G68: 0 | H68: 0 | I68: 0 | J68: 0 | K68: 0 | L68: 0 | M68: 0 | N68: 0 | O68: 0 | P68: =+$D68*8760*$E68 -> 0 | Q68: 0 | R68: 0 | S68: 0 | T68: 0 | U68: 0 | V68: 0 | W68: 0 | X68: 0 | Y68: 0 | Z68: 0 | AA68: 0
B69: Guaracachi
B70: =+B69 -> Guaracachi | G70: 0 | H70: 0 | I70: 0 | J70: 0 | K70: 0 | L70: 0 | M70: 0 | N70: 0 | O70: 0 | P70: 0 | Q70: =+$D70*8760*$E70 -> 0 | R70: =+$D70*8760*$E70 -> 0 | S70: 0 | T70: 0 | U70: 0 | V70: 0 | W70: 0 | X70: 0 | Y70: 0 | Z70: 0 | AA70: 0
B71: Santa Cruz
B72: =+B71 -> Santa Cruz | G72: 0 | H72: 0 | I72: 0 | J72: 0 | K72: 0 | L72: 0 | M72: 0 | N72: 0 | O72: 0 | P72: =+$D72*8760*$E72 -> 0 | Q72: 0 | R72: 0 | S72: 0 | T72: 0 | U72: 0 | V72: 0 | W72: 0 | X72: 0 | Y72: 0 | Z72: 0 | AA72: 0
B73: Carrasco
B74: =+B73 -> Carrasco | G74: 0 | H74: 0 | I74: 0 | J74: 0 | K74: 0 | L74: 0 | M74: 0 | N74: 0 | O74: 0 | P74: =+$D74*8760*$E74 -> 0 | Q74: 0 | R74: 0 | S74: 0 | T74: 0 | U74: 0 | V74: 0 | W74: 0 | X74: 0 | Y74: 0 | Z74: 0 | AA74: 0
B75: Natural Gas A
B76: =+B75 -> Natural Gas A | G76: =+IF($C76<=G$52,$D76*8760*$E76,0) -> 0 | H76: 0 | I76: 0 | J76: 0 | K76: 0 | L76: 0 | M76: =+IF($C76<=M$52,$D76*8760*$E76,0) -> 0 | N76: =+IF($C76<=N$52,$D76*8760*$E76,0) -> 0 | O76: 0 | P76: =+$D76*8760*$E76 -> 0 | Q76: 0 | R76: 0 | S76: 0 | T76: 0 | U76: 0 | V76: 0 | W76: 0 | X76: 0 | Y76: 0 | Z76: 0 | AA76: 0
B77: Natural Gas B
B78: =+B77 -> Natural Gas B | G78: 0 | H78: 0 | I78: 0 | J78: 0 | K78: 0 | L78: 0 | M78: =+IF($C78<=M$52,$D78*8760*$E78,0) -> 0 | N78: 0 | O78: 0 | P78: =+$D78*8760*$E78 -> 0 | Q78: 0 | R78: 0 | S78: 0 | T78: 0 | U78: 0 | V78: 0 | W78: 0 | X78: 0 | Y78: 0 | Z78: 0 | AA78: 0
G80: 2010 | H80: 2011 | I80: 2012 | J80: 2013 | K80: 2014 | L80: 2015 | M80: 2016 | N80: 2017 | O80: 2018 | P80: 2019 | Q80: 2020 | R80: 2021 | S80: 2022 | T80: 2023 | U80: 2024 | V80: 2025 | W80: 2026 | X80: 2027 | Y80: 2028 | Z80: 2029 | AA80: 2030
B81: Plant Unit | C81: Commissioning date | D81: Capacity [MW] | E81: Capacity factor | G81: Generation [MWh] | H81: Generation [MWh] | I81: Generation [MWh] | J81: Generation [MWh] | K81: Generation [MWh] | L81: Generation [MWh] | M81: Generation [MWh] | N81: Generation [MWh] | O81: Generation [MWh] | P81: Generation [MWh] | Q81: Generation [MWh] | R81: Generation [MWh] | S81: Generation [MWh] | T81: Generation [MWh] | U81: Generation [MWh] | V81: Generation [MWh] | W81: Generation [MWh] | X81: Generation [MWh] | Y81: Generation [MWh] | Z81: Generation [MWh] | AA81: Generation [MWh]
B82: Hydropower | G82: =SUM(G84:G127) -> 0 | H82: 0 | I82: 0 | J82: 0 | K82: 0 | L82: 0 | M82: 0 | N82: 0 | O82: 240900 | P82: 543120 | Q82: 2938542 | R82: 5103138 | S82: 5103138 | T82: 5103138 | U82: 5103138 | V82: 11200098 | W82: 11200098 | X82: 11200098 | Y82: 11200098 | Z82: 33205611.6 | AA82: 40564011.6
B83: San José
